Workbook

Sheet Home
A1: Ground Gain Measurement - Data Processing Spreadsheet
B3: Meas. Type : | F3: 1 | H3: =OR(F3=1,F3=2) -> TRUE | I3: =IF(H3=TRUE,"Nbgd","Nreference") -> Nbgd | J3: =IF(F3=1,"PRE","POST") -> PRE
B4: Lowest azimuth : | F4: 14 | H4: =(F4-1)*5 -> 65
B5: Highest azimth : | F5: 29 | H5: =(F5-1)*5 -> 140
B6: Day : | F6: 2 | H6: =IF(F6<10,"0"&F6,F6) -> 02
B7: Month : | F7: 4 | H7: =IF(F7<10,"0"&F7,F7) -> 04 | I7: File to upload : | N7: 1
B8: Year : | F8: 2 | H8: =F8+2009 -> 2011
B10: Azimuth | D10: Action | F10: File Name | K10: Status | P10: Status
D11: =IF(OR(F3<>4,K11="File uploaded"),"","File to upload :") ->  | F11: ="Nmeasured.txt" -> Nmeasured.txt | K11: File uploaded
D13: =IF(OR(F3<>5,K13="File uploaded"),"","File to upload :") -> 
D15: =IF(OR(F3<>3,K15="File uploaded"),"","File to upload :") ->  | F15: ="Nreference.txt" -> Nreference.txt | K15: File uploaded
B18: 0 | D18: =IF(OR((AND(B18>=$H$4,B18<=$H$5,$F$3=1,K18<>"File uploaded")),(AND(B18>=$H$4,B18<=$H$5,$F$3=2,P18<>"File uploaded")))=TRUE,"File to upload :","") ->  | F18: =IF(AND(OR(K18="File uploaded",D18="File to upload :"),$H$3=TRUE),$I$3&" "&B18&"deg "&$J$3&".txt","") -> 
B19: =B18+5 -> 5 | D19: =IF(OR((AND(B19>=$H$4,B19<=$H$5,$F$3=1,K19<>"File uploaded")),(AND(B19>=$H$4,B19<=$H$5,$F$3=2,P19<>"File uploaded")))=TRUE,"File to upload :","") -> 
B20: =B19+5 -> 10
B21: 15
B22: 20
B23: 25
B24: 30
B25: 35 | C25: =AVERAGE(Nreference!#REF!) -> 
B26: 40
B27: 45
B28: 50
B29: 55
B30: 60
B31: 65 | F31: =IF(AND(OR(K31="File uploaded",D31="File to upload :"),$H$3=TRUE),$I$3&" "&B31&"deg "&$J$3&".txt","") -> Nbgd 65deg PRE.txt | K31: File uploaded | P31: File uploaded
B32: 70 | F32: =IF(AND(OR(K32="File uploaded",D32="File to upload :"),$H$3=TRUE),$I$3&" "&B32&"deg "&$J$3&".txt","") -> Nbgd 70deg PRE.txt | K32: File uploaded | P32: File uploaded
B33: 75 | F33: Nbgd 75deg PRE.txt | K33: File uploaded | P33: File uploaded
B34: 80 | F34: Nbgd 80deg PRE.txt | K34: File uploaded | P34: File uploaded
B35: 85 | F35: Nbgd 85deg PRE.txt | K35: File uploaded | P35: File uploaded
B36: 90 | F36: Nbgd 90deg PRE.txt | K36: File uploaded | P36: File uploaded
B37: 95 | F37: Nbgd 95deg PRE.txt | K37: File uploaded | P37: File uploaded
B38: =B37+5 -> 100 | F38: Nbgd 100deg PRE.txt | K38: File uploaded | P38: File uploaded
B39: 105 | F39: Nbgd 105deg PRE.txt | K39: File uploaded | P39: File uploaded
B40: 110 | F40: Nbgd 110deg PRE.txt | K40: File uploaded | P40: File uploaded
B41: 115 | F41: Nbgd 115deg PRE.txt | K41: File uploaded | P41: File uploaded
B42: 120 | F42: Nbgd 120deg PRE.txt | K42: File uploaded | P42: File uploaded
B43: 125 | F43: Nbgd 125deg PRE.txt | K43: File uploaded | P43: File uploaded
B44: 130 | F44: Nbgd 130deg PRE.txt | K44: File uploaded | P44: File uploaded
B45: 135 | F45: Nbgd 135deg PRE.txt | K45: File uploaded | P45: File uploaded
B46: 140 | F46: Nbgd 140deg PRE.txt | K46: File uploaded | P46: File uploaded
B47: 145
B48: 150
B49: 155
B50: 160
B51: 165
B52: 170
B53: 175
B54: 180
B55: 185
B56: 190
B57: 195
B58: 200
B59: 205
B60: 210
B61: 215
B62: 220
B63: 225
B64: 230
B65: 235
B66: 240
B67: 245
B68: 250
B69: 255
B70: 260
B71: 265
B72: 270
B73: 275
B74: 280
B75: 285
B76: 290
B77: 295
B78: 300
B79: 305
B80: 310
B81: 315
B82: 320
B83: 325 | D83: =IF(OR((AND(B83>=$H$4,B83<=$H$5,$F$3=1,K83<>"File uploaded")),(AND(B83>=$H$4,B83<=$H$5,$F$3=2,P83<>"File uploaded")))=TRUE,"File to upload :","") -> 
B84: =B83+5 -> 330
B85: 335
B86: 340
B87: 345
B88: 350
B89: 355

Sheet Receiving Station Data
B2: Frequency [MHz] : | C2: 144.3
B3: Physical Temperature [°C] : | C3: 17
B4: Physical Temperature [K] : | C4: =C3+273 -> 290
B6: Latitude
B7: Degrees : | C7: 50 | D7: (*)
B8: Minutes : | C8: 36
B9: Seconds : | C9: 34
B10: Longitude
B11: Degrees : | C11: -4 | D11: (*)
B12: Minutes : | C12: 0
B13: Seconds : | C13: 22
C15: Antenna | D15: Jumper | E15: Preamp. (External) | F15: Feeder 1 | G15: Preamp. (Transverter) | H15: Band-Pass Filter | I15: Mixer | J15: (Post-mixer) Amplifier | K15: Feeder 2 | L15: Transceiver
B16: Gain G [dB(i)] : | C16: 16.3 | D16: -0.1 | E16: -0.1 | F16: -0.8 | G16: 22 | H16: -2 | I16: -7 | J16: 9 | K16: -4
B17: Gain g [ ] : | C17: =10^(C16/10) -> 42.65795188 | D17: =10^(D16/10) -> 0.977237221 | E17: 0.977237221 | F17: 0.8317637711 | G17: 158.4893192 | H17: 0.6309573445 | I17: 0.1995262315 | J17: 7.943282347 | K17: 0.3981071706
B18: Noise Figure NF [dB] : | D18: =-D16 -> 0.1 | E18: =-E16 -> 0.1 | F18: =-F16 -> 0.8 | G18: 0.4 | H18: =-H16 -> 2 | I18: 7 | J18: 2.5 | K18: =-K16 -> 4 | L18: 6
B19: Noise Factor f [ ] : | D19: =10^(D18/10) -> 1.023292992 | E19: =10^(E18/10) -> 1.023292992 | F19: 1.202264435 | G19: 1.096478196 | H19: 1.584893192 | I19: 5.011872336 | J19: 1.77827941 | K19: 2.511886432 | L19: 3.981071706
B20: Noise Temp. T [K] : | D20: =(D19-1)*$C$4 -> 6.754967761 | E20: =(E19-1)*$C$4 -> 6.754967761 | F20: 58.65668604 | G20: 27.97867688 | H20: 169.6190258 | I20: 1163.442978 | J20: 225.7010289 | K20: 438.4470651 | L20: 864.5107946
B22: Tload [K] : | C22: =C4 -> 290 | E22: RSF2800 [sfu] : | F22: 108 | G22: =IF(L22=1,"Type in the RSF2800 from U.S. S.W.P.C.","") -> Type in the RSF2800 from U.S. S.W.P.C. | K22: =IF(L22=2,"VK3UM","Polynomial") -> Polynomial | L22: 1
B23: TRX [K] : | C23: =G20+(H20/G17)+(I20/(G17*H17))+(J20/(G17*H17*I17))+(K20/(G17*H17*I17*J17))+(L20/(G17*H17*I17*J17*K17)) -> 68.46316448
B24: Treference [K] : | C24: =C22+C23 -> 358.4631645 | E24: RSFx [sfu] : | F24: 37 | G24: =IF(L22=2,"Type in the RSFx (x = 50, 70, 144,…) from the EME Calculator of VK3UM","") -> 
B25: Nreference [dB] : | C25: =AVERAGE(Nreference!C:C) -> -53.55533333 | E25: RSFx [sfu] : | F25: =IF(L22=1,-0.00037689*(F22^2)+0.162242*F22-6.02015,F24) -> 7.10594104 | G25: x = 144 (Polynomial) or 50, 70, 144,… (EME Calculator of VK3UM)
E27: Tant sun [K] : | F27: =(F25*10^-22*C17*(300/C2)^2)/(8*PI()*1.381*10^-23) -> 377.483444
B28: (*) : positive for North and West, | E28: Tant sun corrected [K] : | F28: =(F27/(1/(D17*E17*F17)))+(((1/(D17*E17*F17))-1)*C4) -> 374.9341271
B29: negative for South and East

Sheet Chart
A1: Ground Gain Measurement - Resulting Charts
D3: Date : | E3: =Home!H6&"/"&Home!H7&"/"&Home!H8 -> 02/04/2011 | H3: Meas. Type : | I3: =IF(Home!N7=2,"Sun Set","Sun Rise") -> Sun Rise
D4: ="RSF"&ROUND('Receiving Station Data'!C2,0)&" :" -> RSF144 : | E4: =ROUND('Receiving Station Data'!F25,1)&" ("&'Receiving Station Data'!K22&")" -> 7.1 (Polynomial) | H4: Frequency (MHz) : | I4: ='Receiving Station Data'!C2 -> 144.3
B5: Az. min. (°) : | C5: =Results!AD3 -> 77.96 | E5: Az. max. (°) : | F5: =Results!AD2 -> 116.47 | H5: Elev. min. (°) : | I5: =Results!AE3 -> -3.45 | K5: Elev. max. (°) : | L5: =Results!AE2 -> 26.13
B101: Comments :
B102: RSF144 = 79 (source VK3UM). Theoretical GG patterm for a 12-element DK7ZB at 17.3m agl, over perfect flat ground.

Sheet Nmeasured
A1: Date | B1: UTC | D1: Nsun 1 | E1: Nsun 2 | F1: Nsun 3 | G1: Nsun 4 | J1: Tant bgd corrected PRE | K1: Tant bgd corrected POST | L1: NRsun PRE | M1: NRsun POST | N1: Nbgd interpolated PRE | O1: Nbgd interpolated POST | P1: GG PRE | Q1: GG POST | R1: NRmeasured
A2: 2011-04-02 | B2: 05:01:32 | C2: =ROUND(B2,6) -> 0.209398 | D2: -47.74 | E2: -50.86 | F2: -47.14 | G2: -41.91 | H2: 77.96 | I2: -3.45 | J2: =VLOOKUP(H2,'Process Nbgd'!A:H,8,1) -> 799.6797021 | K2: =VLOOKUP(H2,'Process Nbgd'!A:O,15,1) -> 524.0949139 | L2: =10*LOG(('Receiving Station Data'!$F$28+Nmeasured!J2+'Receiving Station Data'!$C$23)/(Nmeasured!J2+'Receiving Station Data'!$C$23)) -> 1.559068278 | M2: =10*LOG(('Receiving Station Data'!$F$28+Nmeasured!K2+'Receiving Station Data'!$C$23)/(Nmeasured!K2+'Receiving Station Data'!$C$23)) -> 2.129165516 | N2: =VLOOKUP(H2,'Process Nbgd'!A:E,5,1) -> -49.71386667 | O2: =VLOOKUP(H2,'Process Nbgd'!A:L,12,1) -> -51.37246944 | P2: =E2-N2-L2 -> -2.705201611 | Q2: =E2-O2-M2 -> -1.616696071 | R2: =IF(E2<>0,E2-'Receiving Station Data'!$C$25,0) -> 2.695333333
A3: 2011-04-02 | B3: 05:01:42 | C3: =ROUND(B3,6) -> 0.209514 | D3: -49.29 | E3: -50.5 | F3: -47.16 | G3: -42.7 | H3: 77.99 | I3: -3.43 | J3: =VLOOKUP(H3,'Process Nbgd'!A:H,8,1) -> 799.6797021 | K3: =VLOOKUP(H3,'Process Nbgd'!A:O,15,1) -> 524.0949139 | L3: =10*LOG(('Receiving Station Data'!$F$28+Nmeasured!J3+'Receiving Station Data'!$C$23)/(Nmeasured!J3+'Receiving Station Data'!$C$23)) -> 1.559068278 | M3: =10*LOG(('Receiving Station Data'!$F$28+Nmeasured!K3+'Receiving Station Data'!$C$23)/(Nmeasured!K3+'Receiving Station Data'!$C$23)) -> 2.129165516 | N3: =VLOOKUP(H3,'Process Nbgd'!A:E,5,1) -> -49.71386667 | O3: =VLOOKUP(H3,'Process Nbgd'!A:L,12,1) -> -51.37246944 | P3: =E3-N3-L3 -> -2.345201611 | Q3: =E3-O3-M3 -> -1.256696071 | R3: =IF(E3<>0,E3-'Receiving Station Data'!$C$25,0) -> 3.055333333
A4: 2011-04-02 | B4: 05:01:52 | C4: 0.20963 | D4: -48.33 | E4: -51.14 | F4: -46.66 | G4: -41.3 | H4: 78.03 | I4: -3.4 | J4: =VLOOKUP(H4,'Process Nbgd'!A:H,8,1) -> 806.6775068 | K4: =VLOOKUP(H4,'Process Nbgd'!A:O,15,1) -> 526.1865313 | L4: =10*LOG(('Receiving Station Data'!$F$28+Nmeasured!J4+'Receiving Station Data'!$C$23)/(Nmeasured!J4+'Receiving Station Data'!$C$23)) -> 1.548581321 | M4: =10*LOG(('Receiving Station Data'!$F$28+Nmeasured!K4+'Receiving Station Data'!$C$23)/(Nmeasured!K4+'Receiving Station Data'!$C$23)) -> 2.123241598 | N4: =VLOOKUP(H4,'Process Nbgd'!A:E,5,1) -> -49.679 | O4: =VLOOKUP(H4,'Process Nbgd'!A:L,12,1) -> -51.35716667 | P4: -3.009581321 | Q4: -1.906074932 | R4: =IF(E4<>0,E4-'Receiving Station Data'!$C$25,0) -> 2.415333333
A5: 2011-04-02 | B5: 05:02:02 | C5: 0.209745 | D5: -49.22 | E5: -50.08 | F5: -47.99 | G5: -41.38 | H5: 78.06 | I5: -3.37 | J5: =VLOOKUP(H5,'Process Nbgd'!A:H,8,1) -> 806.6775068 | K5: =VLOOKUP(H5,'Process Nbgd'!A:O,15,1) -> 526.1865313 | L5: =10*LOG(('Receiving Station Data'!$F$28+Nmeasured!J5+'Receiving Station Data'!$C$23)/(Nmeasured!J5+'Receiving Station Data'!$C$23)) -> 1.548581321 | M5: =10*LOG(('Receiving Station Data'!$F$28+Nmeasured!K5+'Receiving Station Data'!$C$23)/(Nmeasured!K5+'Receiving Station Data'!$C$23)) -> 2.123241598 | N5: =VLOOKUP(H5,'Process Nbgd'!A:E,5,1) -> -49.679 | O5: =VLOOKUP(H5,'Process Nbgd'!A:L,12,1) -> -51.35716667 | P5: -1.949581321 | Q5: -0.8460749315 | R5: =IF(E5<>0,E5-'Receiving Station Data'!$C$25,0) -> 3.475333333
A6: 2011-04-02 | B6: 05:02:12 | C6: 0.209861 | D6: -49.7 | E6: -51.07 | F6: -47.79 | G6: -41.93 | H6: 78.09 | I6: -3.35 | J6: =VLOOKUP(H6,'Process Nbgd'!A:H,8,1) -> 806.6775068 | K6: =VLOOKUP(H6,'Process Nbgd'!A:O,15,1) -> 526.1865313 | L6: =10*LOG(('Receiving Station Data'!$F$28+Nmeasured!J6+'Receiving Station Data'!$C$23)/(Nmeasured!J6+'Receiving Station Data'!$C$23)) -> 1.548581321 | M6: =10*LOG(('Receiving Station Data'!$F$28+Nmeasured!K6+'Receiving Station Data'!$C$23)/(Nmeasured!K6+'Receiving Station Data'!$C$23)) -> 2.123241598 | N6: =VLOOKUP(H6,'Process Nbgd'!A:E,5,1) -> -49.679 | O6: =VLOOKUP(H6,'Process Nbgd'!A:L,12,1) -> -51.35716667 | P6: -2.939581321 | Q6: -1.836074932 | R6: =IF(E6<>0,E6-'Receiving Station Data'!$C$25,0) -> 2.485333333
A7: 2011-04-02 | B7: 05:02:22 | C7: 0.209977 | D7: -48.77 | E7: -51.24 | F7: -46.97 | G7: -39.45 | H7: 78.12 | I7: -3.32 | J7: =VLOOKUP(H7,'Process Nbgd'!A:H,8,1) -> 813.7317185 | K7: =VLOOKUP(H7,'Process Nbgd'!A:O,15,1) -> 528.2855317 | L7: =10*LOG(('Receiving Station Data'!$F$28+Nmeasured!J7+'Receiving Station Data'!$C$23)/(Nmeasured!J7+'Receiving Station Data'!$C$23)) -> 1.538153141 | M7: =10*LOG(('Receiving Station Data'!$F$28+Nmeasured!K7+'Receiving Station Data'!$C$23)/(Nmeasured!K7+'Receiving Station Data'!$C$23)) -> 2.117330468 | N7: =VLOOKUP(H7,'Process Nbgd'!A:E,5,1) -> -49.64413333 | O7: =VLOOKUP(H7,'Process Nbgd'!A:L,12,1) -> -51.34186389 | P7: -3.134019808 | Q7: -2.01546658 | R7: =IF(E7<>0,E7-'Receiving Station Data'!$C$25,0) -> 2.315333333
A8: 2011-04-02 | B8: 05:02:32 | C8: 0.210093 | D8: -50.02 | E8: -50.88 | F8: -47.8 | G8: -42.56 | H8: 78.16 | I8: -3.3 | J8: =VLOOKUP(H8,'Process Nbgd'!A:H,8,1) -> 813.7317185 | K8: =VLOOKUP(H8,'Process Nbgd'!A:O,15,1) -> 528.2855317 | L8: =10*LOG(('Receiving Station Data'!$F$28+Nmeasured!J8+'Receiving Station Data'!$C$23)/(Nmeasured!J8+'Receiving Station Data'!$C$23)) -> 1.538153141 | M8: =10*LOG(('Receiving Station Data'!$F$28+Nmeasured!K8+'Receiving Station Data'!$C$23)/(Nmeasured!K8+'Receiving Station Data'!$C$23)) -> 2.117330468 | N8: =VLOOKUP(H8,'Process Nbgd'!A:E,5,1) -> -49.64413333 | O8: =VLOOKUP(H8,'Process Nbgd'!A:L,12,1) -> -51.34186389 | P8: -2.774019808 | Q8: -1.65546658 | R8: =IF(E8<>0,E8-'Receiving Station Data'!$C$25,0) -> 2.675333333
A9: 2011-04-02 | B9: 05:02:42 | C9: 0.210208 | D9: -49.32 | E9: -51.43 | F9: -47.67 | G9: -43.53 | H9: 78.19 | I9: -3.27 | J9: =VLOOKUP(H9,'Process Nbgd'!A:H,8,1) -> 813.7317185 | K9: =VLOOKUP(H9,'Process Nbgd'!A:O,15,1) -> 528.2855317 | L9: =10*LOG(('Receiving Station Data'!$F$28+Nmeasured!J9+'Receiving Station Data'!$C$23)/(Nmeasured!J9+'Receiving Station Data'!$C$23)) -> 1.538153141 | M9: =10*LOG(('Receiving Station Data'!$F$28+Nmeasured!K9+'Receiving Station Data'!$C$23)/(Nmeasured!K9+'Receiving Station Data'!$C$23)) -> 2.117330468 | N9: =VLOOKUP(H9,'Process Nbgd'!A:E,5,1) -> -49.64413333 | O9: =VLOOKUP(H9,'Process Nbgd'!A:L,12,1) -> -51.34186389 | P9: -3.324019808 | Q9: -2.20546658 | R9: =IF(E9<>0,E9-'Receiving Station Data'!$C$25,0) -> 2.125333333
A10: 2011-04-02 | B10: 05:02:52 | C10: 0.210324 | D10: -48.93 | E10: -50.82 | F10: -47.08 | G10: -41.64 | H10: 78.22 | I10: -3.25 | J10: =VLOOKUP(H10,'Process Nbgd'!A:H,8,1) -> 820.8427917 | K10: =VLOOKUP(H10,'Process Nbgd'!A:O,15,1) -> 530.3919412 | L10: =10*LOG(('Receiving Station Data'!$F$28+Nmeasured!J10+'Receiving Station Data'!$C$23)/(Nmeasured!J10+'Receiving Station Data'!$C$23)) -> 1.527783547 | M10: =10*LOG(('Receiving Station Data'!$F$28+Nmeasured!K10+'Receiving Station Data'!$C$23)/(Nmeasured!K10+'Receiving Station Data'!$C$23)) -> 2.111432116 | N10: =VLOOKUP(H10,'Process Nbgd'!A:E,5,1) -> -49.60926667 | O10: =VLOOKUP(H10,'Process Nbgd'!A:L,12,1) -> -51.32656111 | P10: -2.73851688 | Q10: -1.604871005 | R10: =IF(E10<>0,E10-'Receiving Station Data'!$C$25,0) -> 2.735333333
A11: 2011-04-02 | B11: 05:03:02 | C11: 0.21044 | D11: -49.53 | E11: -50.33 | F11: -47.14 | G11: -40.73 | H11: 78.25 | I11: -3.22 | J11: =VLOOKUP(H11,'Process Nbgd'!A:H,8,1) -> 820.8427917 | K11: =VLOOKUP(H11,'Process Nbgd'!A:O,15,1) -> 530.3919412 | L11: =10*LOG(('Receiving Station Data'!$F$28+Nmeasured!J11+'Receiving Station Data'!$C$23)/(Nmeasured!J11+'Receiving Station Data'!$C$23)) -> 1.527783547 | M11: =10*LOG(('Receiving Station Data'!$F$28+Nmeasured!K11+'Receiving Station Data'!$C$23)/(Nmeasured!K11+'Receiving Station Data'!$C$23)) -> 2.111432116 | N11: =VLOOKUP(H11,'Process Nbgd'!A:E,5,1) -> -49.60926667 | O11: =VLOOKUP(H11,'Process Nbgd'!A:L,12,1) -> -51.32656111 | P11: -2.24851688 | Q11: -1.114871005 | R11: =IF(E11<>0,E11-'Receiving Station Data'!$C$25,0) -> 3.225333333
A12: 2011-04-02 | B12: 05:03:12 | C12: 0.210556 | D12: -49.42 | E12: -49.42 | F12: -46.65 | G12: -39.09 | H12: 78.29 | I12: -3.19 | J12: =VLOOKUP(H12,'Process Nbgd'!A:H,8,1) -> 820.8427917 | K12: =VLOOKUP(H12,'Process Nbgd'!A:O,15,1) -> 530.3919412 | L12: =10*LOG(('Receiving Station Data'!$F$28+Nmeasured!J12+'Receiving Station Data'!$C$23)/(Nmeasured!J12+'Receiving Station Data'!$C$23)) -> 1.527783547 | M12: =10*LOG(('Receiving Station Data'!$F$28+Nmeasured!K12+'Receiving Station Data'!$C$23)/(Nmeasured!K12+'Receiving Station Data'!$C$23)) -> 2.111432116 | N12: =VLOOKUP(H12,'Process Nbgd'!A:E,5,1) -> -49.60926667 | O12: =VLOOKUP(H12,'Process Nbgd'!A:L,12,1) -> -51.32656111 | P12: -1.33851688 | Q12: -0.2048710053 | R12: =IF(E12<>0,E12-'Receiving Station Data'!$C$25,0) -> 4.135333333
A13: 2011-04-02 | B13: 05:03:22 | C13: 0.210671 | D13: -49.49 | E13: -50.71 | F13: -46.93 | G13: -40.07 | H13: 78.32 | I13: -3.17 | J13: =VLOOKUP(H13,'Process Nbgd'!A:H,8,1) -> 828.0111849 | K13: =VLOOKUP(H13,'Process Nbgd'!A:O,15,1) -> 532.5057859 | L13: =10*LOG(('Receiving Station Data'!$F$28+Nmeasured!J13+'Receiving Station Data'!$C$23)/(Nmeasured!J13+'Receiving Station Data'!$C$23)) -> 1.517472348 | M13: =10*LOG(('Receiving Station Data'!$F$28+Nmeasured!K13+'Receiving Station Data'!$C$23)/(Nmeasured!K13+'Receiving Station Data'!$C$23)) -> 2.105546532 | N13: =VLOOKUP(H13,'Process Nbgd'!A:E,5,1) -> -49.5744 | O13: =VLOOKUP(H13,'Process Nbgd'!A:L,12,1) -> -51.31125833 | P13: -2.653072348 | Q13: -1.504288198 | R13: =IF(E13<>0,E13-'Receiving Station Data'!$C$25,0) -> 2.845333333
A14: 2011-04-02 | B14: 05:03:32 | C14: 0.210787 | D14: -47.21 | E14: -51.03 | F14: -45.91 | G14: -41.23 | H14: 78.35 | I14: -3.14 | J14: =VLOOKUP(H14,'Process Nbgd'!A:H,8,1) -> 828.0111849 | K14: =VLOOKUP(H14,'Process Nbgd'!A:O,15,1) -> 532.5057859 | L14: =10*LOG(('Receiving Station Data'!$F$28+Nmeasured!J14+'Receiving Station Data'!$C$23)/(Nmeasured!J14+'Receiving Station Data'!$C$23)) -> 1.517472348 | M14: =10*LOG(('Receiving Station Data'!$F$28+Nmeasured!K14+'Receiving Station Data'!$C$23)/(Nmeasured!K14+'Receiving Station Data'!$C$23)) -> 2.105546532 | N14: =VLOOKUP(H14,'Process Nbgd'!A:E,5,1) -> -49.5744 | O14: =VLOOKUP(H14,'Process Nbgd'!A:L,12,1) -> -51.31125833 | P14: -2.973072348 | Q14: -1.824288198 | R14: =IF(E14<>0,E14-'Receiving Station Data'!$C$25,0) -> 2.525333333
A15: 2011-04-02 | B15: 05:03:42 | C15: 0.210903 | D15: -47.66 | E15: -51.21 | F15: -46.55 | G15: -40 | H15: 78.38 | I15: -3.12 | J15: =VLOOKUP(H15,'Process Nbgd'!A:H,8,1) -> 828.0111849 | K15: =VLOOKUP(H15,'Process Nbgd'!A:O,15,1) -> 532.5057859 | L15: =10*LOG(('Receiving Station Data'!$F$28+Nmeasured!J15+'Receiving Station Data'!$C$23)/(Nmeasured!J15+'Receiving Station Data'!$C$23)) -> 1.517472348 | M15: =10*LOG(('Receiving Station Data'!$F$28+Nmeasured!K15+'Receiving Station Data'!$C$23)/(Nmeasured!K15+'Receiving Station Data'!$C$23)) -> 2.105546532 | N15: =VLOOKUP(H15,'Process Nbgd'!A:E,5,1) -> -49.5744 | O15: =VLOOKUP(H15,'Process Nbgd'!A:L,12,1) -> -51.31125833 | P15: -3.153072348 | Q15: -2.004288198 | R15: =IF(E15<>0,E15-'Receiving Station Data'!$C$25,0) -> 2.345333333
A16: 2011-04-02 | B16: 05:03:52 | C16: 0.211019 | D16: -48.67 | E16: -50.15 | F16: -46.13 | G16: -41.1 | H16: 78.42 | I16: -3.09 | J16: =VLOOKUP(H16,'Process Nbgd'!A:H,8,1) -> 835.2373601 | K16: =VLOOKUP(H16,'Process Nbgd'!A:O,15,1) -> 534.6270921 | L16: =10*LOG(('Receiving Station Data'!$F$28+Nmeasured!J16+'Receiving Station Data'!$C$23)/(Nmeasured!J16+'Receiving Station Data'!$C$23)) -> 1.507219355 | M16: =10*LOG(('Receiving Station Data'!$F$28+Nmeasured!K16+'Receiving Station Data'!$C$23)/(Nmeasured!K16+'Receiving Station Data'!$C$23)) -> 2.099673704 | N16: =VLOOKUP(H16,'Process Nbgd'!A:E,5,1) -> -49.53953333 | O16: =VLOOKUP(H16,'Process Nbgd'!A:L,12,1) -> -51.29595556 | P16: -2.117686022 | Q16: -0.9537181487 | R16: =IF(E16<>0,E16-'Receiving Station Data'!$C$25,0) -> 3.405333333
A17: 2011-04-02 | B17: 05:04:02 | C17: 0.211134 | D17: -47.14 | E17: -49.99 | F17: -45.51 | G17: -39.87 | H17: 78.45 | I17: -3.06 | J17: =VLOOKUP(H17,'Process Nbgd'!A:H,8,1) -> 835.2373601 | K17: =VLOOKUP(H17,'Process Nbgd'!A:O,15,1) -> 534.6270921 | L17: =10*LOG(('Receiving Station Data'!$F$28+Nmeasured!J17+'Receiving Station Data'!$C$23)/(Nmeasured!J17+'Receiving Station Data'!$C$23)) -> 1.507219355 | M17: =10*LOG(('Receiving Station Data'!$F$28+Nmeasured!K17+'Receiving Station Data'!$C$23)/(Nmeasured!K17+'Receiving Station Data'!$C$23)) -> 2.099673704 | N17: =VLOOKUP(H17,'Process Nbgd'!A:E,5,1) -> -49.53953333 | O17: =VLOOKUP(H17,'Process Nbgd'!A:L,12,1) -> -51.29595556 | P17: -1.957686022 | Q17: -0.7937181487 | R17: =IF(E17<>0,E17-'Receiving Station Data'!$C$25,0) -> 3.565333333
A18: 2011-04-02 | B18: 05:04:12 | C18: 0.21125 | D18: -47.63 | E18: -51.4 | F18: -44.93 | G18: -37.35 | H18: 78.48 | I18: -3.04 | J18: =VLOOKUP(H18,'Process Nbgd'!A:H,8,1) -> 835.2373601 | K18: =VLOOKUP(H18,'Process Nbgd'!A:O,15,1) -> 534.6270921 | L18: =10*LOG(('Receiving Station Data'!$F$28+Nmeasured!J18+'Receiving Station Data'!$C$23)/(Nmeasured!J18+'Receiving Station Data'!$C$23)) -> 1.507219355 | M18: =10*LOG(('Receiving Station Data'!$F$28+Nmeasured!K18+'Receiving Station Data'!$C$23)/(Nmeasured!K18+'Receiving Station Data'!$C$23)) -> 2.099673704 | N18: =VLOOKUP(H18,'Process Nbgd'!A:E,5,1) -> -49.53953333 | O18: =VLOOKUP(H18,'Process Nbgd'!A:L,12,1) -> -51.29595556 | P18: -3.367686022 | Q18: -2.203718149 | R18: =IF(E18<>0,E18-'Receiving Station Data'!$C$25,0) -> 2.155333333
A19: 2011-04-02 | B19: 05:04:22 | C19: 0.211366 | D19: -48.93 | E19: -50.05 | F19: -47.4 | G19: -41.31 | H19: 78.51 | I19: -3.01 | J19: =VLOOKUP(H19,'Process Nbgd'!A:H,8,1) -> 842.521783 | K19: =VLOOKUP(H19,'Process Nbgd'!A:O,15,1) -> 536.7558861 | L19: =10*LOG(('Receiving Station Data'!$F$28+Nmeasured!J19+'Receiving Station Data'!$C$23)/(Nmeasured!J19+'Receiving Station Data'!$C$23)) -> 1.497024374 | M19: =10*LOG(('Receiving Station Data'!$F$28+Nmeasured!K19+'Receiving Station Data'!$C$23)/(Nmeasured!K19+'Receiving Station Data'!$C$23)) -> 2.093813623 | N19: =VLOOKUP(H19,'Process Nbgd'!A:E,5,1) -> -49.50466667 | O19: =VLOOKUP(H19,'Process Nbgd'!A:L,12,1) -> -51.28065278 | P19: -2.042357707 | Q19: -0.8631608454 | R19: =IF(E19<>0,E19-'Receiving Station Data'!$C$25,0) -> 3.505333333
A20: 2011-04-02 | B20: 05:04:32 | C20: 0.211481 | D20: -49.71 | E20: -51.39 | F20: -48 | G20: -40.73 | H20: 78.55 | I20: -2.99 | J20: =VLOOKUP(H20,'Process Nbgd'!A:H,8,1) -> 842.521783 | K20: =VLOOKUP(H20,'Process Nbgd'!A:O,15,1) -> 536.7558861 | L20: =10*LOG(('Receiving Station Data'!$F$28+Nmeasured!J20+'Receiving Station Data'!$C$23)/(Nmeasured!J20+'Receiving Station Data'!$C$23)) -> 1.497024374 | M20: =10*LOG(('Receiving Station Data'!$F$28+Nmeasured!K20+'Receiving Station Data'!$C$23)/(Nmeasured!K20+'Receiving Station Data'!$C$23)) -> 2.093813623 | N20: =VLOOKUP(H20,'Process Nbgd'!A:E,5,1) -> -49.50466667 | O20: =VLOOKUP(H20,'Process Nbgd'!A:L,12,1) -> -51.28065278 | P20: -3.382357707 | Q20: -2.203160845 | R20: =IF(E20<>0,E20-'Receiving Station Data'!$C$25,0) -> 2.165333333
A21: 2011-04-02 | B21: 05:04:42 | C21: 0.211597 | D21: -49.82 | E21: -52.31 | F21: -48.61 | G21: -41.01 | H21: 78.58 | I21: -2.96 | J21: =VLOOKUP(H21,'Process Nbgd'!A:H,8,1) -> 842.521783 | K21: =VLOOKUP(H21,'Process Nbgd'!A:O,15,1) -> 536.7558861 | L21: =10*LOG(('Receiving Station Data'!$F$28+Nmeasured!J21+'Receiving Station Data'!$C$23)/(Nmeasured!J21+'Receiving Station Data'!$C$23)) -> 1.497024374 | M21: =10*LOG(('Receiving Station Data'!$F$28+Nmeasured!K21+'Receiving Station Data'!$C$23)/(Nmeasured!K21+'Receiving Station Data'!$C$23)) -> 2.093813623 | N21: =VLOOKUP(H21,'Process Nbgd'!A:E,5,1) -> -49.50466667 | O21: =VLOOKUP(H21,'Process Nbgd'!A:L,12,1) -> -51.28065278 | P21: -4.302357707 | Q21: -3.123160845 | R21: =IF(E21<>0,E21-'Receiving Station Data'!$C$25,0) -> 1.245333333
A22: 2011-04-02 | B22: 05:04:52 | C22: 0.211713 | D22: -49.74 | E22: -50.52 | F22: -47.45 | G22: -41.13 | H22: 78.61 | I22: -2.93 | J22: =VLOOKUP(H22,'Process Nbgd'!A:H,8,1) -> 849.8649232 | K22: =VLOOKUP(H22,'Process Nbgd'!A:O,15,1) -> 538.8921943 | L22: =10*LOG(('Receiving Station Data'!$F$28+Nmeasured!J22+'Receiving Station Data'!$C$23)/(Nmeasured!J22+'Receiving Station Data'!$C$23)) -> 1.486887213 | M22: =10*LOG(('Receiving Station Data'!$F$28+Nmeasured!K22+'Receiving Station Data'!$C$23)/(Nmeasured!K22+'Receiving Station Data'!$C$23)) -> 2.087966278 | N22: =VLOOKUP(H22,'Process Nbgd'!A:E,5,1) -> -49.4698 | O22: =VLOOKUP(H22,'Process Nbgd'!A:L,12,1) -> -51.26535 | P22: -2.537087213 | Q22: -1.342616278 | R22: =IF(E22<>0,E22-'Receiving Station Data'!$C$25,0) -> 3.035333333
A23: 2011-04-02 | B23: 05:05:02 | C23: 0.211829 | D23: -50.26 | E23: -51.28 | F23: -47.99 | G23: -42.09 | H23: 78.64 | I23: -2.91 | J23: =VLOOKUP(H23,'Process Nbgd'!A:H,8,1) -> 849.8649232 | K23: =VLOOKUP(H23,'Process Nbgd'!A:O,15,1) -> 538.8921943 | L23: =10*LOG(('Receiving Station Data'!$F$28+Nmeasured!J23+'Receiving Station Data'!$C$23)/(Nmeasured!J23+'Receiving Station Data'!$C$23)) -> 1.486887213 | M23: =10*LOG(('Receiving Station Data'!$F$28+Nmeasured!K23+'Receiving Station Data'!$C$23)/(Nmeasured!K23+'Receiving Station Data'!$C$23)) -> 2.087966278 | N23: =VLOOKUP(H23,'Process Nbgd'!A:E,5,1) -> -49.4698 | O23: =VLOOKUP(H23,'Process Nbgd'!A:L,12,1) -> -51.26535 | P23: -3.297087213 | Q23: -2.102616278 | R23: =IF(E23<>0,E23-'Receiving Station Data'!$C$25,0) -> 2.275333333
A24: 2011-04-02 | B24: 05:05:12 | C24: 0.211944 | D24: -51.6 | E24: -51.6 | F24: -48.27 | G24: -42.12 | H24: 78.68 | I24: -2.88 | J24: =VLOOKUP(H24,'Process Nbgd'!A:H,8,1) -> 849.8649232 | K24: =VLOOKUP(H24,'Process Nbgd'!A:O,15,1) -> 538.8921943 | L24: =10*LOG(('Receiving Station Data'!$F$28+Nmeasured!J24+'Receiving Station Data'!$C$23)/(Nmeasured!J24+'Receiving Station Data'!$C$23)) -> 1.486887213 | M24: =10*LOG(('Receiving Station Data'!$F$28+Nmeasured!K24+'Receiving Station Data'!$C$23)/(Nmeasured!K24+'Receiving Station Data'!$C$23)) -> 2.087966278 | N24: =VLOOKUP(H24,'Process Nbgd'!A:E,5,1) -> -49.4698 | O24: =VLOOKUP(H24,'Process Nbgd'!A:L,12,1) -> -51.26535 | P24: -3.617087213 | Q24: -2.422616278 | R24: =IF(E24<>0,E24-'Receiving Station Data'!$C$25,0) -> 1.955333333
A25: 2011-04-02 | B25: 05:05:22 | C25: 0.21206 | D25: -49.21 | E25: -50.87 | F25: -48.19 | G25: -42.77 | H25: 78.71 | I25: -2.86 | J25: =VLOOKUP(H25,'Process Nbgd'!A:H,8,1) -> 857.267254 | K25: =VLOOKUP(H25,'Process Nbgd'!A:O,15,1) -> 541.0360433 | L25: =10*LOG(('Receiving Station Data'!$F$28+Nmeasured!J25+'Receiving Station Data'!$C$23)/(Nmeasured!J25+'Receiving Station Data'!$C$23)) -> 1.476807677 | M25: =10*LOG(('Receiving Station Data'!$F$28+Nmeasured!K25+'Receiving Station Data'!$C$23)/(Nmeasured!K25+'Receiving Station Data'!$C$23)) -> 2.082131659 | N25: =VLOOKUP(H25,'Process Nbgd'!A:E,5,1) -> -49.43493333 | O25: =VLOOKUP(H25,'Process Nbgd'!A:L,12,1) -> -51.25004722 | P25: -2.911874344 | Q25: -1.702084437 | R25: =IF(E25<>0,E25-'Receiving Station Data'!$C$25,0) -> 2.685333333
A26: 2011-04-02 | B26: 05:05:32 | C26: 0.212176 | D26: -49.6 | E26: -52 | F26: -47.97 | G26: -42.53 | H26: 78.74 | I26: -2.83 | J26: =VLOOKUP(H26,'Process Nbgd'!A:H,8,1) -> 857.267254 | K26: =VLOOKUP(H26,'Process Nbgd'!A:O,15,1) -> 541.0360433 | L26: =10*LOG(('Receiving Station Data'!$F$28+Nmeasured!J26+'Receiving Station Data'!$C$23)/(Nmeasured!J26+'Receiving Station Data'!$C$23)) -> 1.476807677 | M26: =10*LOG(('Receiving Station Data'!$F$28+Nmeasured!K26+'Receiving Station Data'!$C$23)/(Nmeasured!K26+'Receiving Station Data'!$C$23)) -> 2.082131659 | N26: =VLOOKUP(H26,'Process Nbgd'!A:E,5,1) -> -49.43493333 | O26: =VLOOKUP(H26,'Process Nbgd'!A:L,12,1) -> -51.25004722 | P26: -4.041874344 | Q26: -2.832084437 | R26: =IF(E26<>0,E26-'Receiving Station Data'!$C$25,0) -> 1.555333333
A27: 2011-04-02 | B27: 05:05:42 | C27: 0.212292 | D27: -52.17 | E27: -52.17 | F27: -48.14 | G27: -40.81 | H27: 78.77 | I27: -2.8 | J27: =VLOOKUP(H27,'Process Nbgd'!A:H,8,1) -> 857.267254 | K27: =VLOOKUP(H27,'Process Nbgd'!A:O,15,1) -> 541.0360433 | L27: =10*LOG(('Receiving Station Data'!$F$28+Nmeasured!J27+'Receiving Station Data'!$C$23)/(Nmeasured!J27+'Receiving Station Data'!$C$23)) -> 1.476807677 | M27: =10*LOG(('Receiving Station Data'!$F$28+Nmeasured!K27+'Receiving Station Data'!$C$23)/(Nmeasured!K27+'Receiving Station Data'!$C$23)) -> 2.082131659 | N27: =VLOOKUP(H27,'Process Nbgd'!A:E,5,1) -> -49.43493333 | O27: =VLOOKUP(H27,'Process Nbgd'!A:L,12,1) -> -51.25004722 | P27: -4.211874344 | Q27: -3.002084437 | R27: =IF(E27<>0,E27-'Receiving Station Data'!$C$25,0) -> 1.385333333
A28: 2011-04-02 | B28: 05:05:52 | C28: 0.212407 | D28: -49.64 | E28: -51.46 | F28: -48.08 | G28: -43.45 | H28: 78.81 | I28: -2.78 | J28: =VLOOKUP(H28,'Process Nbgd'!A:H,8,1) -> 864.7292524 | K28: =VLOOKUP(H28,'Process Nbgd'!A:O,15,1) -> 543.1874597 | L28: =10*LOG(('Receiving Station Data'!$F$28+Nmeasured!J28+'Receiving Station Data'!$C$23)/(Nmeasured!J28+'Receiving Station Data'!$C$23)) -> 1.466785572 | M28: =10*LOG(('Receiving Station Data'!$F$28+Nmeasured!K28+'Receiving Station Data'!$C$23)/(Nmeasured!K28+'Receiving Station Data'!$C$23)) -> 2.076309754 | N28: =VLOOKUP(H28,'Process Nbgd'!A:E,5,1) -> -49.40006667 | O28: =VLOOKUP(H28,'Process Nbgd'!A:L,12,1) -> -51.23474444 | P28: -3.526718906 | Q28: -2.30156531 | R28: =IF(E28<>0,E28-'Receiving Station Data'!$C$25,0) -> 2.095333333
A29: 2011-04-02 | B29: 05:06:02 | C29: 0.212523 | D29: -50.19 | E29: -51.29 | F29: -48.15 | G29: -40.72 | H29: 78.84 | I29: -2.75 | J29: =VLOOKUP(H29,'Process Nbgd'!A:H,8,1) -> 864.7292524 | K29: =VLOOKUP(H29,'Process Nbgd'!A:O,15,1) -> 543.1874597 | L29: =10*LOG(('Receiving Station Data'!$F$28+Nmeasured!J29+'Receiving Station Data'!$C$23)/(Nmeasured!J29+'Receiving Station Data'!$C$23)) -> 1.466785572 | M29: =10*LOG(('Receiving Station Data'!$F$28+Nmeasured!K29+'Receiving Station Data'!$C$23)/(Nmeasured!K29+'Receiving Station Data'!$C$23)) -> 2.076309754 | N29: =VLOOKUP(H29,'Process Nbgd'!A:E,5,1) -> -49.40006667 | O29: =VLOOKUP(H29,'Process Nbgd'!A:L,12,1) -> -51.23474444 | P29: -3.356718906 | Q29: -2.13156531 | R29: =IF(E29<>0,E29-'Receiving Station Data'!$C$25,0) -> 2.265333333
A30: 2011-04-02 | B30: 05:06:12 | C30: 0.212639 | D30: -50.11 | E30: -50.3 | F30: -47.79 | G30: -41.96 | H30: 78.87 | I30: -2.73 | J30: =VLOOKUP(H30,'Process Nbgd'!A:H,8,1) -> 864.7292524 | K30: =VLOOKUP(H30,'Process Nbgd'!A:O,15,1) -> 543.1874597 | L30: =10*LOG(('Receiving Station Data'!$F$28+Nmeasured!J30+'Receiving Station Data'!$C$23)/(Nmeasured!J30+'Receiving Station Data'!$C$23)) -> 1.466785572 | M30: =10*LOG(('Receiving Station Data'!$F$28+Nmeasured!K30+'Receiving Station Data'!$C$23)/(Nmeasured!K30+'Receiving Station Data'!$C$23)) -> 2.076309754 | N30: =VLOOKUP(H30,'Process Nbgd'!A:E,5,1) -> -49.40006667 | O30: =VLOOKUP(H30,'Process Nbgd'!A:L,12,1) -> -51.23474444 | P30: -2.366718906 | Q30: -1.14156531 | R30: =IF(E30<>0,E30-'Receiving Station Data'!$C$25,0) -> 3.255333333
A31: 2011-04-02 | B31: 05:06:22 | C31: 0.212755 | D31: -50.59 | E31: -51.61 | F31: -48.28 | G31: -43.89 | H31: 78.9 | I31: -2.7 | J31: =VLOOKUP(H31,'Process Nbgd'!A:H,8,1) -> 872.2513994 | K31: =VLOOKUP(H31,'Process Nbgd'!A:O,15,1) -> 545.3464702 | L31: =10*LOG(('Receiving Station Data'!$F$28+Nmeasured!J31+'Receiving Station Data'!$C$23)/(Nmeasured!J31+'Receiving Station Data'!$C$23)) -> 1.456820703 | M31: =10*LOG(('Receiving Station Data'!$F$28+Nmeasured!K31+'Receiving Station Data'!$C$23)/(Nmeasured!K31+'Receiving Station Data'!$C$23)) -> 2.070500554 | N31: =VLOOKUP(H31,'Process Nbgd'!A:E,5,1) -> -49.3652 | O31: =VLOOKUP(H31,'Process Nbgd'!A:L,12,1) -> -51.21944167 | P31: -3.701620703 | Q31: -2.461058887 | R31: =IF(E31<>0,E31-'Receiving Station Data'!$C$25,0) -> 1.945333333
A32: 2011-04-02 | B32: 05:06:32 | C32: 0.21287 | D32: -50.41 | E32: -51.53 | F32: -48.04 | G32: -41.11 | H32: 78.94 | I32: -2.67 | J32: =VLOOKUP(H32,'Process Nbgd'!A:H,8,1) -> 872.2513994 | K32: =VLOOKUP(H32,'Process Nbgd'!A:O,15,1) -> 545.3464702 | L32: =10*LOG(('Receiving Station Data'!$F$28+Nmeasured!J32+'Receiving Station Data'!$C$23)/(Nmeasured!J32+'Receiving Station Data'!$C$23)) -> 1.456820703 | M32: =10*LOG(('Receiving Station Data'!$F$28+Nmeasured!K32+'Receiving Station Data'!$C$23)/(Nmeasured!K32+'Receiving Station Data'!$C$23)) -> 2.070500554 | N32: =VLOOKUP(H32,'Process Nbgd'!A:E,5,1) -> -49.3652 | O32: =VLOOKUP(H32,'Process Nbgd'!A:L,12,1) -> -51.21944167 | P32: -3.621620703 | Q32: -2.381058887 | R32: =IF(E32<>0,E32-'Receiving Station Data'!$C$25,0) -> 2.025333333
A33: 2011-04-02 | B33: 05:06:42 | C33: 0.212986 | D33: -49.59 | E33: -51.42 | F33: -48.12 | G33: -42.25 | H33: 78.97 | I33: -2.65 | J33: =VLOOKUP(H33,'Process Nbgd'!A:H,8,1) -> 872.2513994 | K33: =VLOOKUP(H33,'Process Nbgd'!A:O,15,1) -> 545.3464702 | L33: =10*LOG(('Receiving Station Data'!$F$28+Nmeasured!J33+'Receiving Station Data'!$C$23)/(Nmeasured!J33+'Receiving Station Data'!$C$23)) -> 1.456820703 | M33: =10*LOG(('Receiving Station Data'!$F$28+Nmeasured!K33+'Receiving Station Data'!$C$23)/(Nmeasured!K33+'Receiving Station Data'!$C$23)) -> 2.070500554 | N33: =VLOOKUP(H33,'Process Nbgd'!A:E,5,1) -> -49.3652 | O33: =VLOOKUP(H33,'Process Nbgd'!A:L,12,1) -> -51.21944167 | P33: -3.511620703 | Q33: -2.271058887 | R33: =IF(E33<>0,E33-'Receiving Station Data'!$C$25,0) -> 2.135333333
A34: 2011-04-02 | B34: 05:06:52 | C34: 0.213102 | D34: -50.48 | E34: -51.57 | F34: -48.06 | G34: -41.34 | H34: 79 | I34: -2.62 | J34: =VLOOKUP(H34,'Process Nbgd'!A:H,8,1) -> 879.83418 | K34: =VLOOKUP(H34,'Process Nbgd'!A:O,15,1) -> 547.5131015 | L34: =10*LOG(('Receiving Station Data'!$F$28+Nmeasured!J34+'Receiving Station Data'!$C$23)/(Nmeasured!J34+'Receiving Station Data'!$C$23)) -> 1.446912871 | M34: =10*LOG(('Receiving Station Data'!$F$28+Nmeasured!K34+'Receiving Station Data'!$C$23)/(Nmeasured!K34+'Receiving Station Data'!$C$23)) -> 2.064704047 | N34: =VLOOKUP(H34,'Process Nbgd'!A:E,5,1) -> -49.33033333 | O34: =VLOOKUP(H34,'Process Nbgd'!A:L,12,1) -> -51.20413889 | P34: -3.686579538 | Q34: -2.430565158 | R34: =IF(E34<>0,E34-'Receiving Station Data'!$C$25,0) -> 1.985333333
A35: 2011-04-02 | B35: 05:07:02 | C35: 0.213218 | D35: -49.97 | E35: -50.81 | F35: -48.32 | G35: -40.05 | H35: 79.03 | I35: -2.6 | J35: =VLOOKUP(H35,'Process Nbgd'!A:H,8,1) -> 879.83418 | K35: =VLOOKUP(H35,'Process Nbgd'!A:O,15,1) -> 547.5131015 | L35: =10*LOG(('Receiving Station Data'!$F$28+Nmeasured!J35+'Receiving Station Data'!$C$23)/(Nmeasured!J35+'Receiving Station Data'!$C$23)) -> 1.446912871 | M35: =10*LOG(('Receiving Station Data'!$F$28+Nmeasured!K35+'Receiving Station Data'!$C$23)/(Nmeasured!K35+'Receiving Station Data'!$C$23)) -> 2.064704047 | N35: =VLOOKUP(H35,'Process Nbgd'!A:E,5,1) -> -49.33033333 | O35: =VLOOKUP(H35,'Process Nbgd'!A:L,12,1) -> -51.20413889 | P35: -2.926579538 | Q35: -1.670565158 | R35: =IF(E35<>0,E35-'Receiving Station Data'!$C$25,0) -> 2.745333333
A36: 2011-04-02 | B36: 05:07:12 | C36: 0.213333 | D36: -49.2 | E36: -51.44 | F36: -47.88 | G36: -43.98 | H36: 79.07 | I36: -2.57 | J36: =VLOOKUP(H36,'Process Nbgd'!A:H,8,1) -> 879.83418 | K36: =VLOOKUP(H36,'Process Nbgd'!A:O,15,1) -> 547.5131015 | L36: =10*LOG(('Receiving Station Data'!$F$28+Nmeasured!J36+'Receiving Station Data'!$C$23)/(Nmeasured!J36+'Receiving Station Data'!$C$23)) -> 1.446912871 | M36: =10*LOG(('Receiving Station Data'!$F$28+Nmeasured!K36+'Receiving Station Data'!$C$23)/(Nmeasured!K36+'Receiving Station Data'!$C$23)) -> 2.064704047 | N36: =VLOOKUP(H36,'Process Nbgd'!A:E,5,1) -> -49.33033333 | O36: =VLOOKUP(H36,'Process Nbgd'!A:L,12,1) -> -51.20413889 | P36: -3.556579538 | Q36: -2.300565158 | R36: =IF(E36<>0,E36-'Receiving Station Data'!$C$25,0) -> 2.115333333
A37: 2011-04-02 | B37: 05:07:22 | C37: 0.213449 | D37: -50.27 | E37: -50.66 | F37: -47.94 | G37: -41.48 | H37: 79.1 | I37: -2.54 | J37: =VLOOKUP(H37,'Process Nbgd'!A:H,8,1) -> 887.4780827 | K37: =VLOOKUP(H37,'Process Nbgd'!A:O,15,1) -> 549.6873807 | L37: =10*LOG(('Receiving Station Data'!$F$28+Nmeasured!J37+'Receiving Station Data'!$C$23)/(Nmeasured!J37+'Receiving Station Data'!$C$23)) -> 1.437061882 | M37: =10*LOG(('Receiving Station Data'!$F$28+Nmeasured!K37+'Receiving Station Data'!$C$23)/(Nmeasured!K37+'Receiving Station Data'!$C$23)) -> 2.058920222 | N37: =VLOOKUP(H37,'Process Nbgd'!A:E,5,1) -> -49.29546667 | O37: =VLOOKUP(H37,'Process Nbgd'!A:L,12,1) -> -51.18883611 | P37: -2.801595215 | Q37: -1.530084111 | R37: =IF(E37<>0,E37-'Receiving Station Data'!$C$25,0) -> 2.895333333
A38: 2011-04-02 | B38: 05:07:32 | C38: 0.213565 | D38: -50.48 | E38: -51.17 | F38: -48.29 | G38: -41.6 | H38: 79.13 | I38: -2.52 | J38: =VLOOKUP(H38,'Process Nbgd'!A:H,8,1) -> 887.4780827 | K38: =VLOOKUP(H38,'Process Nbgd'!A:O,15,1) -> 549.6873807 | L38: =10*LOG(('Receiving Station Data'!$F$28+Nmeasured!J38+'Receiving Station Data'!$C$23)/(Nmeasured!J38+'Receiving Station Data'!$C$23)) -> 1.437061882 | M38: =10*LOG(('Receiving Station Data'!$F$28+Nmeasured!K38+'Receiving Station Data'!$C$23)/(Nmeasured!K38+'Receiving Station Data'!$C$23)) -> 2.058920222 | N38: =VLOOKUP(H38,'Process Nbgd'!A:E,5,1) -> -49.29546667 | O38: =VLOOKUP(H38,'Process Nbgd'!A:L,12,1) -> -51.18883611 | P38: -3.311595215 | Q38: -2.040084111 | R38: =IF(E38<>0,E38-'Receiving Station Data'!$C$25,0) -> 2.385333333
A39: 2011-04-02 | B39: 05:07:42 | C39: 0.213681 | D39: -52.6 | E39: -52.6 | F39: -48.92 | G39: -42.81 | H39: 79.16 | I39: -2.49 | J39: =VLOOKUP(H39,'Process Nbgd'!A:H,8,1) -> 887.4780827 | K39: =VLOOKUP(H39,'Process Nbgd'!A:O,15,1) -> 549.6873807 | L39: =10*LOG(('Receiving Station Data'!$F$28+Nmeasured!J39+'Receiving Station Data'!$C$23)/(Nmeasured!J39+'Receiving Station Data'!$C$23)) -> 1.437061882 | M39: =10*LOG(('Receiving Station Data'!$F$28+Nmeasured!K39+'Receiving Station Data'!$C$23)/(Nmeasured!K39+'Receiving Station Data'!$C$23)) -> 2.058920222 | N39: =VLOOKUP(H39,'Process Nbgd'!A:E,5,1) -> -49.29546667 | O39: =VLOOKUP(H39,'Process Nbgd'!A:L,12,1) -> -51.18883611 | P39: -4.741595215 | Q39: -3.470084111 | R39: =IF(E39<>0,E39-'Receiving Station Data'!$C$25,0) -> 0.9553333333
A40: 2011-04-02 | B40: 05:07:52 | C40: 0.213796 | D40: -50.95 | E40: -50.95 | F40: -48.67 | G40: -44.58 | H40: 79.2 | I40: -2.47 | J40: =VLOOKUP(H40,'Process Nbgd'!A:H,8,1) -> 895.1836003 | K40: =VLOOKUP(H40,'Process Nbgd'!A:O,15,1) -> 551.8693346 | L40: =10*LOG(('Receiving Station Data'!$F$28+Nmeasured!J40+'Receiving Station Data'!$C$23)/(Nmeasured!J40+'Receiving Station Data'!$C$23)) -> 1.427267535 | M40: =10*LOG(('Receiving Station Data'!$F$28+Nmeasured!K40+'Receiving Station Data'!$C$23)/(Nmeasured!K40+'Receiving Station Data'!$C$23)) -> 2.05314907 | N40: =VLOOKUP(H40,'Process Nbgd'!A:E,5,1) -> -49.2606 | O40: =VLOOKUP(H40,'Process Nbgd'!A:L,12,1) -> -51.17353333 | P40: -3.116667535 | Q40: -1.829615736 | R40: =IF(E40<>0,E40-'Receiving Station Data'!$C$25,0) -> 2.605333333
A41: 2011-04-02 | B41: 05:08:02 | C41: 0.213912 | D41: -50.28 | E41: -52.35 | F41: -48.05 | G41: -41.7 | H41: 79.23 | I41: -2.44 | J41: =VLOOKUP(H41,'Process Nbgd'!A:H,8,1) -> 895.1836003 | K41: =VLOOKUP(H41,'Process Nbgd'!A:O,15,1) -> 551.8693346 | L41: =10*LOG(('Receiving Station Data'!$F$28+Nmeasured!J41+'Receiving Station Data'!$C$23)/(Nmeasured!J41+'Receiving Station Data'!$C$23)) -> 1.427267535 | M41: =10*LOG(('Receiving Station Data'!$F$28+Nmeasured!K41+'Receiving Station Data'!$C$23)/(Nmeasured!K41+'Receiving Station Data'!$C$23)) -> 2.05314907 | N41: =VLOOKUP(H41,'Process Nbgd'!A:E,5,1) -> -49.2606 | O41: =VLOOKUP(H41,'Process Nbgd'!A:L,12,1) -> -51.17353333 | P41: -4.516667535 | Q41: -3.229615736 | R41: =IF(E41<>0,E41-'Receiving Station Data'!$C$25,0) -> 1.205333333
A42: 2011-04-02 | B42: 05:08:12 | C42: 0.214028 | D42: -49.93 | E42: -51.44 | F42: -47.78 | G42: -40.18 | H42: 79.26 | I42: -2.41 | J42: =VLOOKUP(H42,'Process Nbgd'!A:H,8,1) -> 895.1836003 | K42: =VLOOKUP(H42,'Process Nbgd'!A:O,15,1) -> 551.8693346 | L42: =10*LOG(('Receiving Station Data'!$F$28+Nmeasured!J42+'Receiving Station Data'!$C$23)/(Nmeasured!J42+'Receiving Station Data'!$C$23)) -> 1.427267535 | M42: =10*LOG(('Receiving Station Data'!$F$28+Nmeasured!K42+'Receiving Station Data'!$C$23)/(Nmeasured!K42+'Receiving Station Data'!$C$23)) -> 2.05314907 | N42: =VLOOKUP(H42,'Process Nbgd'!A:E,5,1) -> -49.2606 | O42: =VLOOKUP(H42,'Process Nbgd'!A:L,12,1) -> -51.17353333 | P42: -3.606667535 | Q42: -2.319615736 | R42: =IF(E42<>0,E42-'Receiving Station Data'!$C$25,0) -> 2.115333333
A43: 2011-04-02 | B43: 05:08:22 | C43: 0.214144 | D43: -51.04 | E43: -51.04 | F43: -47.59 | G43: -42.06 | H43: 79.29 | I43: -2.39 | J43: =VLOOKUP(H43,'Process Nbgd'!A:H,8,1) -> 895.1836003 | K43: =VLOOKUP(H43,'Process Nbgd'!A:O,15,1) -> 551.8693346 | L43: =10*LOG(('Receiving Station Data'!$F$28+Nmeasured!J43+'Receiving Station Data'!$C$23)/(Nmeasured!J43+'Receiving Station Data'!$C$23)) -> 1.427267535 | M43: =10*LOG(('Receiving Station Data'!$F$28+Nmeasured!K43+'Receiving Station Data'!$C$23)/(Nmeasured!K43+'Receiving Station Data'!$C$23)) -> 2.05314907 | N43: =VLOOKUP(H43,'Process Nbgd'!A:E,5,1) -> -49.2606 | O43: =VLOOKUP(H43,'Process Nbgd'!A:L,12,1) -> -51.17353333 | P43: -3.206667535 | Q43: -1.919615736 | R43: =IF(E43<>0,E43-'Receiving Station Data'!$C$25,0) -> 2.515333333
A44: 2011-04-02 | B44: 05:08:32 | C44: 0.214259 | D44: -50.4 | E44: -51.28 | F44: -48.43 | G44: -42.23 | H44: 79.32 | I44: -2.36 | J44: =VLOOKUP(H44,'Process Nbgd'!A:H,8,1) -> 902.9512295 | K44: =VLOOKUP(H44,'Process Nbgd'!A:O,15,1) -> 554.0589905 | L44: =10*LOG(('Receiving Station Data'!$F$28+Nmeasured!J44+'Receiving Station Data'!$C$23)/(Nmeasured!J44+'Receiving Station Data'!$C$23)) -> 1.417529633 | M44: =10*LOG(('Receiving Station Data'!$F$28+Nmeasured!K44+'Receiving Station Data'!$C$23)/(Nmeasured!K44+'Receiving Station Data'!$C$23)) -> 2.047390577 | N44: =VLOOKUP(H44,'Process Nbgd'!A:E,5,1) -> -49.22573333 | O44: =VLOOKUP(H44,'Process Nbgd'!A:L,12,1) -> -51.15823056 | P44: -3.471796299 | Q44: -2.169160022 | R44: =IF(E44<>0,E44-'Receiving Station Data'!$C$25,0) -> 2.275333333
A45: 2011-04-02 | B45: 05:08:42 | C45: 0.214375 | D45: -49.29 | E45: -51.11 | F45: -47.15 | G45: -40.24 | H45: 79.36 | I45: -2.34 | J45: =VLOOKUP(H45,'Process Nbgd'!A:H,8,1) -> 902.9512295 | K45: =VLOOKUP(H45,'Process Nbgd'!A:O,15,1) -> 554.0589905 | L45: =10*LOG(('Receiving Station Data'!$F$28+Nmeasured!J45+'Receiving Station Data'!$C$23)/(Nmeasured!J45+'Receiving Station Data'!$C$23)) -> 1.417529633 | M45: =10*LOG(('Receiving Station Data'!$F$28+Nmeasured!K45+'Receiving Station Data'!$C$23)/(Nmeasured!K45+'Receiving Station Data'!$C$23)) -> 2.047390577 | N45: =VLOOKUP(H45,'Process Nbgd'!A:E,5,1) -> -49.22573333 | O45: =VLOOKUP(H45,'Process Nbgd'!A:L,12,1) -> -51.15823056 | P45: -3.301796299 | Q45: -1.999160022 | R45: =IF(E45<>0,E45-'Receiving Station Data'!$C$25,0) -> 2.445333333
A46: 2011-04-02 | B46: 05:08:52 | C46: 0.214491 | D46: -50.04 | E46: -51.4 | F46: -47.7 | G46: -40.84 | H46: 79.39 | I46: -2.31 | J46: =VLOOKUP(H46,'Process Nbgd'!A:H,8,1) -> 902.9512295 | K46: =VLOOKUP(H46,'Process Nbgd'!A:O,15,1) -> 554.0589905 | L46: =10*LOG(('Receiving Station Data'!$F$28+Nmeasured!J46+'Receiving Station Data'!$C$23)/(Nmeasured!J46+'Receiving Station Data'!$C$23)) -> 1.417529633 | M46: =10*LOG(('Receiving Station Data'!$F$28+Nmeasured!K46+'Receiving Station Data'!$C$23)/(Nmeasured!K46+'Receiving Station Data'!$C$23)) -> 2.047390577 | N46: =VLOOKUP(H46,'Process Nbgd'!A:E,5,1) -> -49.22573333 | O46: =VLOOKUP(H46,'Process Nbgd'!A:L,12,1) -> -51.15823056 | P46: -3.591796299 | Q46: -2.289160022 | R46: =IF(E46<>0,E46-'Receiving Station Data'!$C$25,0) -> 2.155333333
A47: 2011-04-02 | B47: 05:09:02 | C47: 0.214606 | D47: -50.93 | E47: -51.22 | F47: -48.58 | G47: -43.08 | H47: 79.42 | I47: -2.28 | J47: =VLOOKUP(H47,'Process Nbgd'!A:H,8,1) -> 910.781471 | K47: =VLOOKUP(H47,'Process Nbgd'!A:O,15,1) -> 556.2563754 | L47: =10*LOG(('Receiving Station Data'!$F$28+Nmeasured!J47+'Receiving Station Data'!$C$23)/(Nmeasured!J47+'Receiving Station Data'!$C$23)) -> 1.407847975 | M47: =10*LOG(('Receiving Station Data'!$F$28+Nmeasured!K47+'Receiving Station Data'!$C$23)/(Nmeasured!K47+'Receiving Station Data'!$C$23)) -> 2.041644735 | N47: =VLOOKUP(H47,'Process Nbgd'!A:E,5,1) -> -49.19086667 | O47: =VLOOKUP(H47,'Process Nbgd'!A:L,12,1) -> -51.14292778 | P47: -3.436981308 | Q47: -2.118716957 | R47: =IF(E47<>0,E47-'Receiving Station Data'!$C$25,0) -> 2.335333333
A48: 2011-04-02 | B48: 05:09:12 | C48: 0.214722 | D48: -51.72 | E48: -51.72 | F48: -48.73 | G48: -43.23 | H48: 79.45 | I48: -2.26 | J48: =VLOOKUP(H48,'Process Nbgd'!A:H,8,1) -> 910.781471 | K48: =VLOOKUP(H48,'Process Nbgd'!A:O,15,1) -> 556.2563754 | L48: =10*LOG(('Receiving Station Data'!$F$28+Nmeasured!J48+'Receiving Station Data'!$C$23)/(Nmeasured!J48+'Receiving Station Data'!$C$23)) -> 1.407847975 | M48: =10*LOG(('Receiving Station Data'!$F$28+Nmeasured!K48+'Receiving Station Data'!$C$23)/(Nmeasured!K48+'Receiving Station Data'!$C$23)) -> 2.041644735 | N48: =VLOOKUP(H48,'Process Nbgd'!A:E,5,1) -> -49.19086667 | O48: =VLOOKUP(H48,'Process Nbgd'!A:L,12,1) -> -51.14292778 | P48: -3.936981308 | Q48: -2.618716957 | R48: =IF(E48<>0,E48-'Receiving Station Data'!$C$25,0) -> 1.835333333
A49: 2011-04-02 | B49: 05:09:22 | C49: 0.214838 | D49: -49.95 | E49: -51.18 | F49: -47.6 | G49: -40.99 | H49: 79.49 | I49: -2.23 | J49: =VLOOKUP(H49,'Process Nbgd'!A:H,8,1) -> 910.781471 | K49: =VLOOKUP(H49,'Process Nbgd'!A:O,15,1) -> 556.2563754 | L49: =10*LOG(('Receiving Station Data'!$F$28+Nmeasured!J49+'Receiving Station Data'!$C$23)/(Nmeasured!J49+'Receiving Station Data'!$C$23)) -> 1.407847975 | M49: =10*LOG(('Receiving Station Data'!$F$28+Nmeasured!K49+'Receiving Station Data'!$C$23)/(Nmeasured!K49+'Receiving Station Data'!$C$23)) -> 2.041644735 | N49: =VLOOKUP(H49,'Process Nbgd'!A:E,5,1) -> -49.19086667 | O49: =VLOOKUP(H49,'Process Nbgd'!A:L,12,1) -> -51.14292778 | P49: -3.396981308 | Q49: -2.078716957 | R49: =IF(E49<>0,E49-'Receiving Station Data'!$C$25,0) -> 2.375333333
A50: 2011-04-02 | B50: 05:09:32 | C50: 0.214954 | D50: -51.48 | E50: -51.48 | F50: -48.52 | G50: -44.31 | H50: 79.52 | I50: -2.21 | J50: =VLOOKUP(H50,'Process Nbgd'!A:H,8,1) -> 918.6748293 | K50: =VLOOKUP(H50,'Process Nbgd'!A:O,15,1) -> 558.4615166 | L50: =10*LOG(('Receiving Station Data'!$F$28+Nmeasured!J50+'Receiving Station Data'!$C$23)/(Nmeasured!J50+'Receiving Station Data'!$C$23)) -> 1.398222361 | M50: =10*LOG(('Receiving Station Data'!$F$28+Nmeasured!K50+'Receiving Station Data'!$C$23)/(Nmeasured!K50+'Receiving Station Data'!$C$23)) -> 2.035911531 | N50: =VLOOKUP(H50,'Process Nbgd'!A:E,5,1) -> -49.156 | O50: =VLOOKUP(H50,'Process Nbgd'!A:L,12,1) -> -51.127625 | P50: -3.722222361 | Q50: -2.388286531 | R50: =IF(E50<>0,E50-'Receiving Station Data'!$C$25,0) -> 2.075333333
A51: 2011-04-02 | B51: 05:09:42 | C51: 0.215069 | D51: -49.27 | E51: -50.98 | F51: -48.05 | G51: -41.28 | H51: 79.55 | I51: -2.18 | J51: =VLOOKUP(H51,'Process Nbgd'!A:H,8,1) -> 918.6748293 | K51: =VLOOKUP(H51,'Process Nbgd'!A:O,15,1) -> 558.4615166 | L51: =10*LOG(('Receiving Station Data'!$F$28+Nmeasured!J51+'Receiving Station Data'!$C$23)/(Nmeasured!J51+'Receiving Station Data'!$C$23)) -> 1.398222361 | M51: =10*LOG(('Receiving Station Data'!$F$28+Nmeasured!K51+'Receiving Station Data'!$C$23)/(Nmeasured!K51+'Receiving Station Data'!$C$23)) -> 2.035911531 | N51: =VLOOKUP(H51,'Process Nbgd'!A:E,5,1) -> -49.156 | O51: =VLOOKUP(H51,'Process Nbgd'!A:L,12,1) -> -51.127625 | P51: -3.222222361 | Q51: -1.888286531 | R51: =IF(E51<>0,E51-'Receiving Station Data'!$C$25,0) -> 2.575333333
A52: 2011-04-02 | B52: 05:09:52 | C52: 0.215185 | D52: -50.1 | E52: -51.83 | F52: -47.5 | G52: -41.71 | H52: 79.58 | I52: -2.15 | J52: =VLOOKUP(H52,'Process Nbgd'!A:H,8,1) -> 918.6748293 | K52: =VLOOKUP(H52,'Process Nbgd'!A:O,15,1) -> 558.4615166 | L52: =10*LOG(('Receiving Station Data'!$F$28+Nmeasured!J52+'Receiving Station Data'!$C$23)/(Nmeasured!J52+'Receiving Station Data'!$C$23)) -> 1.398222361 | M52: =10*LOG(('Receiving Station Data'!$F$28+Nmeasured!K52+'Receiving Station Data'!$C$23)/(Nmeasured!K52+'Receiving Station Data'!$C$23)) -> 2.035911531 | N52: =VLOOKUP(H52,'Process Nbgd'!A:E,5,1) -> -49.156 | O52: =VLOOKUP(H52,'Process Nbgd'!A:L,12,1) -> -51.127625 | P52: -4.072222361 | Q52: -2.738286531 | R52: =IF(E52<>0,E52-'Receiving Station Data'!$C$25,0) -> 1.725333333
A53: 2011-04-02 | B53: 05:10:02 | C53: 0.215301 | D53: -50.87 | E53: -51.26 | F53: -48.57 | G53: -42.32 | H53: 79.62 | I53: -2.13 | J53: =VLOOKUP(H53,'Process Nbgd'!A:H,8,1) -> 926.6318133 | K53: =VLOOKUP(H53,'Process Nbgd'!A:O,15,1) -> 560.6744416 | L53: =10*LOG(('Receiving Station Data'!$F$28+Nmeasured!J53+'Receiving Station Data'!$C$23)/(Nmeasured!J53+'Receiving Station Data'!$C$23)) -> 1.38865259 | M53: =10*LOG(('Receiving Station Data'!$F$28+Nmeasured!K53+'Receiving Station Data'!$C$23)/(Nmeasured!K53+'Receiving Station Data'!$C$23)) -> 2.030190954 | N53: =VLOOKUP(H53,'Process Nbgd'!A:E,5,1) -> -49.12113333 | O53: =VLOOKUP(H53,'Process Nbgd'!A:L,12,1) -> -51.11232222 | P53: -3.527519257 | Q53: -2.177868732 | R53: =IF(E53<>0,E53-'Receiving Station Data'!$C$25,0) -> 2.295333333
A54: 2011-04-02 | B54: 05:10:12 | C54: 0.215417 | D54: -48.38 | E54: -52.51 | F54: -47.3 | G54: -40.05 | H54: 79.65 | I54: -2.1 | J54: =VLOOKUP(H54,'Process Nbgd'!A:H,8,1) -> 926.6318133 | K54: =VLOOKUP(H54,'Process Nbgd'!A:O,15,1) -> 560.6744416 | L54: =10*LOG(('Receiving Station Data'!$F$28+Nmeasured!J54+'Receiving Station Data'!$C$23)/(Nmeasured!J54+'Receiving Station Data'!$C$23)) -> 1.38865259 | M54: =10*LOG(('Receiving Station Data'!$F$28+Nmeasured!K54+'Receiving Station Data'!$C$23)/(Nmeasured!K54+'Receiving Station Data'!$C$23)) -> 2.030190954 | N54: =VLOOKUP(H54,'Process Nbgd'!A:E,5,1) -> -49.12113333 | O54: =VLOOKUP(H54,'Process Nbgd'!A:L,12,1) -> -51.11232222 | P54: -4.777519257 | Q54: -3.427868732 | R54: =IF(E54<>0,E54-'Receiving Station Data'!$C$25,0) -> 1.045333333
A55: 2011-04-02 | B55: 05:10:22 | C55: 0.215532 | D55: -49.12 | E55: -49.8 | F55: -47.94 | G55: -40.56 | H55: 79.68 | I55: -2.08 | J55: =VLOOKUP(H55,'Process Nbgd'!A:H,8,1) -> 926.6318133 | K55: =VLOOKUP(H55,'Process Nbgd'!A:O,15,1) -> 560.6744416 | L55: =10*LOG(('Receiving Station Data'!$F$28+Nmeasured!J55+'Receiving Station Data'!$C$23)/(Nmeasured!J55+'Receiving Station Data'!$C$23)) -> 1.38865259 | M55: =10*LOG(('Receiving Station Data'!$F$28+Nmeasured!K55+'Receiving Station Data'!$C$23)/(Nmeasured!K55+'Receiving Station Data'!$C$23)) -> 2.030190954 | N55: =VLOOKUP(H55,'Process Nbgd'!A:E,5,1) -> -49.12113333 | O55: =VLOOKUP(H55,'Process Nbgd'!A:L,12,1) -> -51.11232222 | P55: -2.067519257 | Q55: -0.717868732 | R55: =IF(E55<>0,E55-'Receiving Station Data'!$C$25,0) -> 3.755333333
A56: 2011-04-02 | B56: 05:10:32 | C56: 0.215648 | D56: -48.83 | E56: -50.25 | F56: -47.56 | G56: -40.51 | H56: 79.71 | I56: -2.05 | J56: =VLOOKUP(H56,'Process Nbgd'!A:H,8,1) -> 934.6529359 | K56: =VLOOKUP(H56,'Process Nbgd'!A:O,15,1) -> 562.8951778 | L56: =10*LOG(('Receiving Station Data'!$F$28+Nmeasured!J56+'Receiving Station Data'!$C$23)/(Nmeasured!J56+'Receiving Station Data'!$C$23)) -> 1.379138461 | M56: =10*LOG(('Receiving Station Data'!$F$28+Nmeasured!K56+'Receiving Station Data'!$C$23)/(Nmeasured!K56+'Receiving Station Data'!$C$23)) -> 2.024482994 | N56: =VLOOKUP(H56,'Process Nbgd'!A:E,5,1) -> -49.08626667 | O56: =VLOOKUP(H56,'Process Nbgd'!A:L,12,1) -> -51.09701944 | P56: -2.542871794 | Q56: -1.177463549 | R56: =IF(E56<>0,E56-'Receiving Station Data'!$C$25,0) -> 3.305333333
A57: 2011-04-02 | B57: 05:10:42 | C57: 0.215764 | D57: -49.16 | E57: -50.48 | F57: -47.23 | G57: -41.36 | H57: 79.75 | I57: -2.02 | J57: =VLOOKUP(H57,'Process Nbgd'!A:H,8,1) -> 934.6529359 | K57: =VLOOKUP(H57,'Process Nbgd'!A:O,15,1) -> 562.8951778 | L57: =10*LOG(('Receiving Station Data'!$F$28+Nmeasured!J57+'Receiving Station Data'!$C$23)/(Nmeasured!J57+'Receiving Station Data'!$C$23)) -> 1.379138461 | M57: =10*LOG(('Receiving Station Data'!$F$28+Nmeasured!K57+'Receiving Station Data'!$C$23)/(Nmeasured!K57+'Receiving Station Data'!$C$23)) -> 2.024482994 | N57: =VLOOKUP(H57,'Process Nbgd'!A:E,5,1) -> -49.08626667 | O57: =VLOOKUP(H57,'Process Nbgd'!A:L,12,1) -> -51.09701944 | P57: -2.772871794 | Q57: -1.407463549 | R57: =IF(E57<>0,E57-'Receiving Station Data'!$C$25,0) -> 3.075333333
A58: 2011-04-02 | B58: 05:10:52 | C58: 0.21588 | D58: -50 | E58: -50.41 | F58: -47.68 | G58: -41.54 | H58: 79.78 | I58: -2 | J58: =VLOOKUP(H58,'Process Nbgd'!A:H,8,1) -> 934.6529359 | K58: =VLOOKUP(H58,'Process Nbgd'!A:O,15,1) -> 562.8951778 | L58: =10*LOG(('Receiving Station Data'!$F$28+Nmeasured!J58+'Receiving Station Data'!$C$23)/(Nmeasured!J58+'Receiving Station Data'!$C$23)) -> 1.379138461 | M58: =10*LOG(('Receiving Station Data'!$F$28+Nmeasured!K58+'Receiving Station Data'!$C$23)/(Nmeasured!K58+'Receiving Station Data'!$C$23)) -> 2.024482994 | N58: =VLOOKUP(H58,'Process Nbgd'!A:E,5,1) -> -49.08626667 | O58: =VLOOKUP(H58,'Process Nbgd'!A:L,12,1) -> -51.09701944 | P58: -2.702871794 | Q58: -1.337463549 | R58: =IF(E58<>0,E58-'Receiving Station Data'!$C$25,0) -> 3.145333333
A59: 2011-04-02 | B59: 05:11:02 | C59: 0.215995 | D59: -49.03 | E59: -50.7 | F59: -47.34 | G59: -41.46 | H59: 79.81 | I59: -1.97 | J59: =VLOOKUP(H59,'Process Nbgd'!A:H,8,1) -> 942.738714 | K59: =VLOOKUP(H59,'Process Nbgd'!A:O,15,1) -> 565.1237528 | L59: =10*LOG(('Receiving Station Data'!$F$28+Nmeasured!J59+'Receiving Station Data'!$C$23)/(Nmeasured!J59+'Receiving Station Data'!$C$23)) -> 1.36967977 | M59: =10*LOG(('Receiving Station Data'!$F$28+Nmeasured!K59+'Receiving Station Data'!$C$23)/(Nmeasured!K59+'Receiving Station Data'!$C$23)) -> 2.018787638 | N59: =VLOOKUP(H59,'Process Nbgd'!A:E,5,1) -> -49.0514 | O59: =VLOOKUP(H59,'Process Nbgd'!A:L,12,1) -> -51.08171667 | P59: -3.01827977 | Q59: -1.637070972 | R59: =IF(E59<>0,E59-'Receiving Station Data'!$C$25,0) -> 2.855333333
A60: 2011-04-02 | B60: 05:11:12 | C60: 0.216111 | D60: -49.85 | E60: -50.88 | F60: -47.31 | G60: -40.44 | H60: 79.84 | I60: -1.95 | J60: =VLOOKUP(H60,'Process Nbgd'!A:H,8,1) -> 942.738714 | K60: =VLOOKUP(H60,'Process Nbgd'!A:O,15,1) -> 565.1237528 | L60: =10*LOG(('Receiving Station Data'!$F$28+Nmeasured!J60+'Receiving Station Data'!$C$23)/(Nmeasured!J60+'Receiving Station Data'!$C$23)) -> 1.36967977 | M60: =10*LOG(('Receiving Station Data'!$F$28+Nmeasured!K60+'Receiving Station Data'!$C$23)/(Nmeasured!K60+'Receiving Station Data'!$C$23)) -> 2.018787638 | N60: =VLOOKUP(H60,'Process Nbgd'!A:E,5,1) -> -49.0514 | O60: =VLOOKUP(H60,'Process Nbgd'!A:L,12,1) -> -51.08171667 | P60: -3.19827977 | Q60: -1.817070972 | R60: =IF(E60<>0,E60-'Receiving Station Data'!$C$25,0) -> 2.675333333
A61: 2011-04-02 | B61: 05:11:22 | C61: 0.216227 | D61: -50.1 | E61: -51.05 | F61: -48 | G61: -43.72 | H61: 79.88 | I61: -1.92 | J61: =VLOOKUP(H61,'Process Nbgd'!A:H,8,1) -> 942.738714 | K61: =VLOOKUP(H61,'Process Nbgd'!A:O,15,1) -> 565.1237528 | L61: =10*LOG(('Receiving Station Data'!$F$28+Nmeasured!J61+'Receiving Station Data'!$C$23)/(Nmeasured!J61+'Receiving Station Data'!$C$23)) -> 1.36967977 | M61: =10*LOG(('Receiving Station Data'!$F$28+Nmeasured!K61+'Receiving Station Data'!$C$23)/(Nmeasured!K61+'Receiving Station Data'!$C$23)) -> 2.018787638 | N61: =VLOOKUP(H61,'Process Nbgd'!A:E,5,1) -> -49.0514 | O61: =VLOOKUP(H61,'Process Nbgd'!A:L,12,1) -> -51.08171667 | P61: -3.36827977 | Q61: -1.987070972 | R61: =IF(E61<>0,E61-'Receiving Station Data'!$C$25,0) -> 2.505333333
A62: 2011-04-02 | B62: 05:11:32 | C62: 0.216343 | D62: -50.32 | E62: -52.68 | F62: -48.51 | G62: -42.53 | H62: 79.91 | I62: -1.89 | J62: =VLOOKUP(H62,'Process Nbgd'!A:H,8,1) -> 950.8896688 | K62: =VLOOKUP(H62,'Process Nbgd'!A:O,15,1) -> 567.3601942 | L62: =10*LOG(('Receiving Station Data'!$F$28+Nmeasured!J62+'Receiving Station Data'!$C$23)/(Nmeasured!J62+'Receiving Station Data'!$C$23)) -> 1.360276314 | M62: =10*LOG(('Receiving Station Data'!$F$28+Nmeasured!K62+'Receiving Station Data'!$C$23)/(Nmeasured!K62+'Receiving Station Data'!$C$23)) -> 2.013104876 | N62: =VLOOKUP(H62,'Process Nbgd'!A:E,5,1) -> -49.01653333 | O62: =VLOOKUP(H62,'Process Nbgd'!A:L,12,1) -> -51.06641389 | P62: -5.023742981 | Q62: -3.626690987 | R62: =IF(E62<>0,E62-'Receiving Station Data'!$C$25,0) -> 0.8753333333
A63: 2011-04-02 | B63: 05:11:42 | C63: 0.216458 | D63: -49.6 | E63: -50.22 | F63: -47.16 | G63: -41.55 | H63: 79.94 | I63: -1.87 | J63: =VLOOKUP(H63,'Process Nbgd'!A:H,8,1) -> 950.8896688 | K63: =VLOOKUP(H63,'Process Nbgd'!A:O,15,1) -> 567.3601942 | L63: =10*LOG(('Receiving Station Data'!$F$28+Nmeasured!J63+'Receiving Station Data'!$C$23)/(Nmeasured!J63+'Receiving Station Data'!$C$23)) -> 1.360276314 | M63: =10*LOG(('Receiving Station Data'!$F$28+Nmeasured!K63+'Receiving Station Data'!$C$23)/(Nmeasured!K63+'Receiving Station Data'!$C$23)) -> 2.013104876 | N63: =VLOOKUP(H63,'Process Nbgd'!A:E,5,1) -> -49.01653333 | O63: =VLOOKUP(H63,'Process Nbgd'!A:L,12,1) -> -51.06641389 | P63: -2.563742981 | Q63: -1.166690987 | R63: =IF(E63<>0,E63-'Receiving Station Data'!$C$25,0) -> 3.335333333
A64: 2011-04-02 | B64: 05:11:52 | C64: 0.216574 | D64: -49.76 | E64: -50.64 | F64: -48.15 | G64: -41.07 | H64: 79.97 | I64: -1.84 | J64: =VLOOKUP(H64,'Process Nbgd'!A:H,8,1) -> 950.8896688 | K64: =VLOOKUP(H64,'Process Nbgd'!A:O,15,1) -> 567.3601942 | L64: =10*LOG(('Receiving Station Data'!$F$28+Nmeasured!J64+'Receiving Station Data'!$C$23)/(Nmeasured!J64+'Receiving Station Data'!$C$23)) -> 1.360276314 | M64: =10*LOG(('Receiving Station Data'!$F$28+Nmeasured!K64+'Receiving Station Data'!$C$23)/(Nmeasured!K64+'Receiving Station Data'!$C$23)) -> 2.013104876 | N64: =VLOOKUP(H64,'Process Nbgd'!A:E,5,1) -> -49.01653333 | O64: =VLOOKUP(H64,'Process Nbgd'!A:L,12,1) -> -51.06641389 | P64: -2.983742981 | Q64: -1.586690987 | R64: =IF(E64<>0,E64-'Receiving Station Data'!$C$25,0) -> 2.915333333
A65: 2011-04-02 | B65: 05:12:02 | C65: 0.21669 | D65: -49.82 | E65: -51.42 | F65: -47.51 | G65: -42.87 | H65: 80 | I65: -1.81 | J65: =VLOOKUP(H65,'Process Nbgd'!A:H,8,1) -> 959.1063257 | K65: =VLOOKUP(H65,'Process Nbgd'!A:O,15,1) -> 569.6045298 | L65: =10*LOG(('Receiving Station Data'!$F$28+Nmeasured!J65+'Receiving Station Data'!$C$23)/(Nmeasured!J65+'Receiving Station Data'!$C$23)) -> 1.35092789 | M65: =10*LOG(('Receiving Station Data'!$F$28+Nmeasured!K65+'Receiving Station Data'!$C$23)/(Nmeasured!K65+'Receiving Station Data'!$C$23)) -> 2.007434696 | N65: =VLOOKUP(H65,'Process Nbgd'!A:E,5,1) -> -48.98166667 | O65: =VLOOKUP(H65,'Process Nbgd'!A:L,12,1) -> -51.05111111 | P65: -3.789261223 | Q65: -2.376323585 | R65: =IF(E65<>0,E65-'Receiving Station Data'!$C$25,0) -> 2.135333333
A66: 2011-04-02 | B66: 05:12:12 | C66: 0.216806 | D66: -49.77 | E66: -51.49 | F66: -46.72 | G66: -39.97 | H66: 80.04 | I66: -1.79 | J66: =VLOOKUP(H66,'Process Nbgd'!A:H,8,1) -> 959.1063257 | K66: =VLOOKUP(H66,'Process Nbgd'!A:O,15,1) -> 569.6045298 | L66: =10*LOG(('Receiving Station Data'!$F$28+Nmeasured!J66+'Receiving Station Data'!$C$23)/(Nmeasured!J66+'Receiving Station Data'!$C$23)) -> 1.35092789 | M66: =10*LOG(('Receiving Station Data'!$F$28+Nmeasured!K66+'Receiving Station Data'!$C$23)/(Nmeasured!K66+'Receiving Station Data'!$C$23)) -> 2.007434696 | N66: =VLOOKUP(H66,'Process Nbgd'!A:E,5,1) -> -48.98166667 | O66: =VLOOKUP(H66,'Process Nbgd'!A:L,12,1) -> -51.05111111 | P66: -3.859261223 | Q66: -2.446323585 | R66: =IF(E66<>0,E66-'Receiving Station Data'!$C$25,0) -> 2.065333333
A67: 2011-04-02 | B67: 05:12:22 | C67: =ROUND(B67,6) -> 0.216921 | D67: -49.47 | E67: -50.79 | F67: -47.97 | G67: -42.3 | H67: 80.07 | I67: -1.76 | J67: =VLOOKUP(H67,'Process Nbgd'!A:H,8,1) -> 959.1063257 | K67: =VLOOKUP(H67,'Process Nbgd'!A:O,15,1) -> 569.6045298 | L67: =10*LOG(('Receiving Station Data'!$F$28+Nmeasured!J67+'Receiving Station Data'!$C$23)/(Nmeasured!J67+'Receiving Station Data'!$C$23)) -> 1.35092789 | M67: =10*LOG(('Receiving Station Data'!$F$28+Nmeasured!K67+'Receiving Station Data'!$C$23)/(Nmeasured!K67+'Receiving Station Data'!$C$23)) -> 2.007434696 | N67: =VLOOKUP(H67,'Process Nbgd'!A:E,5,1) -> -48.98166667 | O67: =VLOOKUP(H67,'Process Nbgd'!A:L,12,1) -> -51.05111111 | P67: =E67-N67-L67 -> -3.159261223 | Q67: =E67-O67-M67 -> -1.746323585 | R67: =IF(E67<>0,E67-'Receiving Station Data'!$C$25,0) -> 2.765333333
A68: 2011-04-02 | B68: 05:12:32 | C68: 0.217037 | D68: -48.73 | E68: -50.66 | F68: -47.09 | G68: -42.5 | H68: 80.1 | I68: -1.74 | J68: =VLOOKUP(H68,'Process Nbgd'!A:H,8,1) -> 952.6344502 | K68: =VLOOKUP(H68,'Process Nbgd'!A:O,15,1) -> 568.4481717 | L68: =10*LOG(('Receiving Station Data'!$F$28+Nmeasured!J68+'Receiving Station Data'!$C$23)/(Nmeasured!J68+'Receiving Station Data'!$C$23)) -> 1.358280314 | M68: =10*LOG(('Receiving Station Data'!$F$28+Nmeasured!K68+'Receiving Station Data'!$C$23)/(Nmeasured!K68+'Receiving Station Data'!$C$23)) -> 2.0103521 | N68: =VLOOKUP(H68,'Process Nbgd'!A:E,5,1) -> -49.00910606 | O68: =VLOOKUP(H68,'Process Nbgd'!A:L,12,1) -> -51.05898889 | P68: -3.009174253 | Q68: -1.611363211 | R68: =IF(E68<>0,E68-'Receiving Station Data'!$C$25,0) -> 2.895333333
A69: 2011-04-02 | B69: 05:12:42 | C69: 0.217153 | D69: -49.32 | E69: -50.9 | F69: -47.52 | G69: -42.79 | H69: 80.13 | I69: -1.71 | J69: =VLOOKUP(H69,'Process Nbgd'!A:H,8,1) -> 952.6344502 | K69: =VLOOKUP(H69,'Process Nbgd'!A:O,15,1) -> 568.4481717 | L69: =10*LOG(('Receiving Station Data'!$F$28+Nmeasured!J69+'Receiving Station Data'!$C$23)/(Nmeasured!J69+'Receiving Station Data'!$C$23)) -> 1.358280314 | M69: =10*LOG(('Receiving Station Data'!$F$28+Nmeasured!K69+'Receiving Station Data'!$C$23)/(Nmeasured!K69+'Receiving Station Data'!$C$23)) -> 2.0103521 | N69: =VLOOKUP(H69,'Process Nbgd'!A:E,5,1) -> -49.00910606 | O69: =VLOOKUP(H69,'Process Nbgd'!A:L,12,1) -> -51.05898889 | P69: -3.249174253 | Q69: -1.851363211 | R69: =IF(E69<>0,E69-'Receiving Station Data'!$C$25,0) -> 2.655333333
A70: 2011-04-02 | B70: 05:12:52 | C70: 0.217269 | D70: -51.15 | E70: -51.15 | F70: -48.6 | G70: -40.24 | H70: 80.17 | I70: -1.68 | J70: =VLOOKUP(H70,'Process Nbgd'!A:H,8,1) -> 952.6344502 | K70: =VLOOKUP(H70,'Process Nbgd'!A:O,15,1) -> 568.4481717 | L70: =10*LOG(('Receiving Station Data'!$F$28+Nmeasured!J70+'Receiving Station Data'!$C$23)/(Nmeasured!J70+'Receiving Station Data'!$C$23)) -> 1.358280314 | M70: =10*LOG(('Receiving Station Data'!$F$28+Nmeasured!K70+'Receiving Station Data'!$C$23)/(Nmeasured!K70+'Receiving Station Data'!$C$23)) -> 2.0103521 | N70: =VLOOKUP(H70,'Process Nbgd'!A:E,5,1) -> -49.00910606 | O70: =VLOOKUP(H70,'Process Nbgd'!A:L,12,1) -> -51.05898889 | P70: -3.499174253 | Q70: -2.101363211 | R70: =IF(E70<>0,E70-'Receiving Station Data'!$C$25,0) -> 2.405333333
A71: 2011-04-02 | B71: 05:13:02 | C71: 0.217384 | D71: -49.95 | E71: -50.98 | F71: -47.51 | G71: -40.79 | H71: 80.2 | I71: -1.66 | J71: =VLOOKUP(H71,'Process Nbgd'!A:H,8,1) -> 946.203336 | K71: =VLOOKUP(H71,'Process Nbgd'!A:O,15,1) -> 567.2939093 | L71: =10*LOG(('Receiving Station Data'!$F$28+Nmeasured!J71+'Receiving Station Data'!$C$23)/(Nmeasured!J71+'Receiving Station Data'!$C$23)) -> 1.365666793 | M71: =10*LOG(('Receiving Station Data'!$F$28+Nmeasured!K71+'Receiving Station Data'!$C$23)/(Nmeasured!K71+'Receiving Station Data'!$C$23)) -> 2.013272837 | N71: =VLOOKUP(H71,'Process Nbgd'!A:E,5,1) -> -49.03654545 | O71: =VLOOKUP(H71,'Process Nbgd'!A:L,12,1) -> -51.06686667 | P71: -3.309121339 | Q71: -1.92640617 | R71: =IF(E71<>0,E71-'Receiving Station Data'!$C$25,0) -> 2.575333333
A72: 2011-04-02 | B72: 05:13:12 | C72: 0.2175 | D72: -50.31 | E72: -50.85 | F72: -48.02 | G72: -42.44 | H72: 80.23 | I72: -1.63 | J72: =VLOOKUP(H72,'Process Nbgd'!A:H,8,1) -> 946.203336 | K72: =VLOOKUP(H72,'Process Nbgd'!A:O,15,1) -> 567.2939093 | L72: =10*LOG(('Receiving Station Data'!$F$28+Nmeasured!J72+'Receiving Station Data'!$C$23)/(Nmeasured!J72+'Receiving Station Data'!$C$23)) -> 1.365666793 | M72: =10*LOG(('Receiving Station Data'!$F$28+Nmeasured!K72+'Receiving Station Data'!$C$23)/(Nmeasured!K72+'Receiving Station Data'!$C$23)) -> 2.013272837 | N72: =VLOOKUP(H72,'Process Nbgd'!A:E,5,1) -> -49.03654545 | O72: =VLOOKUP(H72,'Process Nbgd'!A:L,12,1) -> -51.06686667 | P72: -3.179121339 | Q72: -1.79640617 | R72: =IF(E72<>0,E72-'Receiving Station Data'!$C$25,0) -> 2.705333333
A73: 2011-04-02 | B73: 05:13:22 | C73: 0.217616 | D73: -50.56 | E73: -50.96 | F73: -48.07 | G73: -40.7 | H73: 80.26 | I73: -1.61 | J73: =VLOOKUP(H73,'Process Nbgd'!A:H,8,1) -> 946.203336 | K73: =VLOOKUP(H73,'Process Nbgd'!A:O,15,1) -> 567.2939093 | L73: =10*LOG(('Receiving Station Data'!$F$28+Nmeasured!J73+'Receiving Station Data'!$C$23)/(Nmeasured!J73+'Receiving Station Data'!$C$23)) -> 1.365666793 | M73: =10*LOG(('Receiving Station Data'!$F$28+Nmeasured!K73+'Receiving Station Data'!$C$23)/(Nmeasured!K73+'Receiving Station Data'!$C$23)) -> 2.013272837 | N73: =VLOOKUP(H73,'Process Nbgd'!A:E,5,1) -> -49.03654545 | O73: =VLOOKUP(H73,'Process Nbgd'!A:L,12,1) -> -51.06686667 | P73: -3.289121339 | Q73: -1.90640617 | R73: =IF(E73<>0,E73-'Receiving Station Data'!$C$25,0) -> 2.595333333
A74: 2011-04-02 | B74: 05:13:32 | C74: 0.217731 | D74: -49.68 | E74: -50.19 | F74: -47.35 | G74: -41.09 | H74: 80.3 | I74: -1.58 | J74: =VLOOKUP(H74,'Process Nbgd'!A:H,8,1) -> 939.8127266 | K74: =VLOOKUP(H74,'Process Nbgd'!A:O,15,1) -> 566.1417387 | L74: =10*LOG(('Receiving Station Data'!$F$28+Nmeasured!J74+'Receiving Station Data'!$C$23)/(Nmeasured!J74+'Receiving Station Data'!$C$23)) -> 1.373087429 | M74: =10*LOG(('Receiving Station Data'!$F$28+Nmeasured!K74+'Receiving Station Data'!$C$23)/(Nmeasured!K74+'Receiving Station Data'!$C$23)) -> 2.016196908 | N74: =VLOOKUP(H74,'Process Nbgd'!A:E,5,1) -> -49.06398485 | O74: =VLOOKUP(H74,'Process Nbgd'!A:L,12,1) -> -51.07474444 | P74: -2.49910258 | Q74: -1.131452464 | R74: =IF(E74<>0,E74-'Receiving Station Data'!$C$25,0) -> 3.365333333
A75: 2011-04-02 | B75: 05:13:42 | C75: 0.217847 | D75: -51.53 | E75: -52.19 | F75: -48.22 | G75: -42.43 | H75: 80.33 | I75: -1.55 | J75: =VLOOKUP(H75,'Process Nbgd'!A:H,8,1) -> 939.8127266 | K75: =VLOOKUP(H75,'Process Nbgd'!A:O,15,1) -> 566.1417387 | L75: =10*LOG(('Receiving Station Data'!$F$28+Nmeasured!J75+'Receiving Station Data'!$C$23)/(Nmeasured!J75+'Receiving Station Data'!$C$23)) -> 1.373087429 | M75: =10*LOG(('Receiving Station Data'!$F$28+Nmeasured!K75+'Receiving Station Data'!$C$23)/(Nmeasured!K75+'Receiving Station Data'!$C$23)) -> 2.016196908 | N75: =VLOOKUP(H75,'Process Nbgd'!A:E,5,1) -> -49.06398485 | O75: =VLOOKUP(H75,'Process Nbgd'!A:L,12,1) -> -51.07474444 | P75: -4.49910258 | Q75: -3.131452464 | R75: =IF(E75<>0,E75-'Receiving Station Data'!$C$25,0) -> 1.365333333
A76: 2011-04-02 | B76: 05:13:52 | C76: 0.217963 | D76: -49.68 | E76: -51.01 | F76: -48.61 | G76: -42.42 | H76: 80.36 | I76: -1.53 | J76: =VLOOKUP(H76,'Process Nbgd'!A:H,8,1) -> 939.8127266 | K76: =VLOOKUP(H76,'Process Nbgd'!A:O,15,1) -> 566.1417387 | L76: =10*LOG(('Receiving Station Data'!$F$28+Nmeasured!J76+'Receiving Station Data'!$C$23)/(Nmeasured!J76+'Receiving Station Data'!$C$23)) -> 1.373087429 | M76: =10*LOG(('Receiving Station Data'!$F$28+Nmeasured!K76+'Receiving Station Data'!$C$23)/(Nmeasured!K76+'Receiving Station Data'!$C$23)) -> 2.016196908 | N76: =VLOOKUP(H76,'Process Nbgd'!A:E,5,1) -> -49.06398485 | O76: =VLOOKUP(H76,'Process Nbgd'!A:L,12,1) -> -51.07474444 | P76: -3.31910258 | Q76: -1.951452464 | R76: =IF(E76<>0,E76-'Receiving Station Data'!$C$25,0) -> 2.545333333
A77: 2011-04-02 | B77: 05:14:02 | C77: 0.218079 | D77: -50.03 | E77: -50.7 | F77: -47.57 | G77: -41.66 | H77: 80.39 | I77: -1.5 | J77: =VLOOKUP(H77,'Process Nbgd'!A:H,8,1) -> 939.8127266 | K77: =VLOOKUP(H77,'Process Nbgd'!A:O,15,1) -> 566.1417387 | L77: =10*LOG(('Receiving Station Data'!$F$28+Nmeasured!J77+'Receiving Station Data'!$C$23)/(Nmeasured!J77+'Receiving Station Data'!$C$23)) -> 1.373087429 | M77: =10*LOG(('Receiving Station Data'!$F$28+Nmeasured!K77+'Receiving Station Data'!$C$23)/(Nmeasured!K77+'Receiving Station Data'!$C$23)) -> 2.016196908 | N77: =VLOOKUP(H77,'Process Nbgd'!A:E,5,1) -> -49.06398485 | O77: =VLOOKUP(H77,'Process Nbgd'!A:L,12,1) -> -51.07474444 | P77: -3.00910258 | Q77: -1.641452464 | R77: =IF(E77<>0,E77-'Receiving Station Data'!$C$25,0) -> 2.855333333
A78: 2011-04-02 | B78: 05:14:12 | C78: 0.218194 | D78: -50.74 | E78: -51.71 | F78: -47.93 | G78: -40.66 | H78: 80.42 | I78: -1.48 | J78: =VLOOKUP(H78,'Process Nbgd'!A:H,8,1) -> 933.4623667 | K78: =VLOOKUP(H78,'Process Nbgd'!A:O,15,1) -> 564.9916561 | L78: =10*LOG(('Receiving Station Data'!$F$28+Nmeasured!J78+'Receiving Station Data'!$C$23)/(Nmeasured!J78+'Receiving Station Data'!$C$23)) -> 1.380542319 | M78: =10*LOG(('Receiving Station Data'!$F$28+Nmeasured!K78+'Receiving Station Data'!$C$23)/(Nmeasured!K78+'Receiving Station Data'!$C$23)) -> 2.019124315 | N78: =VLOOKUP(H78,'Process Nbgd'!A:E,5,1) -> -49.09142424 | O78: =VLOOKUP(H78,'Process Nbgd'!A:L,12,1) -> -51.08262222 | P78: -3.999118077 | Q78: -2.646502093 | R78: =IF(E78<>0,E78-'Receiving Station Data'!$C$25,0) -> 1.845333333
A79: 2011-04-02 | B79: 05:14:22 | C79: 0.21831 | D79: -50.1 | E79: -50.39 | F79: -47.44 | G79: -41.47 | H79: 80.46 | I79: -1.45 | J79: =VLOOKUP(H79,'Process Nbgd'!A:H,8,1) -> 933.4623667 | K79: =VLOOKUP(H79,'Process Nbgd'!A:O,15,1) -> 564.9916561 | L79: =10*LOG(('Receiving Station Data'!$F$28+Nmeasured!J79+'Receiving Station Data'!$C$23)/(Nmeasured!J79+'Receiving Station Data'!$C$23)) -> 1.380542319 | M79: =10*LOG(('Receiving Station Data'!$F$28+Nmeasured!K79+'Receiving Station Data'!$C$23)/(Nmeasured!K79+'Receiving Station Data'!$C$23)) -> 2.019124315 | N79: =VLOOKUP(H79,'Process Nbgd'!A:E,5,1) -> -49.09142424 | O79: =VLOOKUP(H79,'Process Nbgd'!A:L,12,1) -> -51.08262222 | P79: -2.679118077 | Q79: -1.326502093 | R79: =IF(E79<>0,E79-'Receiving Station Data'!$C$25,0) -> 3.165333333
A80: 2011-04-02 | B80: 05:14:32 | C80: 0.218426 | D80: -48.42 | E80: -50.61 | F80: -47.17 | G80: -39.53 | H80: 80.49 | I80: -1.42 | J80: =VLOOKUP(H80,'Process Nbgd'!A:H,8,1) -> 933.4623667 | K80: =VLOOKUP(H80,'Process Nbgd'!A:O,15,1) -> 564.9916561 | L80: =10*LOG(('Receiving Station Data'!$F$28+Nmeasured!J80+'Receiving Station Data'!$C$23)/(Nmeasured!J80+'Receiving Station Data'!$C$23)) -> 1.380542319 | M80: =10*LOG(('Receiving Station Data'!$F$28+Nmeasured!K80+'Receiving Station Data'!$C$23)/(Nmeasured!K80+'Receiving Station Data'!$C$23)) -> 2.019124315 | N80: =VLOOKUP(H80,'Process Nbgd'!A:E,5,1) -> -49.09142424 | O80: =VLOOKUP(H80,'Process Nbgd'!A:L,12,1) -> -51.08262222 | P80: -2.899118077 | Q80: -1.546502093 | R80: =IF(E80<>0,E80-'Receiving Station Data'!$C$25,0) -> 2.945333333
A81: 2011-04-02 | B81: 05:14:42 | C81: 0.218542 | D81: -49.69 | E81: -52.05 | F81: -46.69 | G81: -39.91 | H81: 80.52 | I81: -1.4 | J81: =VLOOKUP(H81,'Process Nbgd'!A:H,8,1) -> 927.1520028 | K81: =VLOOKUP(H81,'Process Nbgd'!A:O,15,1) -> 563.8436579 | L81: =10*LOG(('Receiving Station Data'!$F$28+Nmeasured!J81+'Receiving Station Data'!$C$23)/(Nmeasured!J81+'Receiving Station Data'!$C$23)) -> 1.388031563 | M81: =10*LOG(('Receiving Station Data'!$F$28+Nmeasured!K81+'Receiving Station Data'!$C$23)/(Nmeasured!K81+'Receiving Station Data'!$C$23)) -> 2.02205506 | N81: =VLOOKUP(H81,'Process Nbgd'!A:E,5,1) -> -49.11886364 | O81: =VLOOKUP(H81,'Process Nbgd'!A:L,12,1) -> -51.0905 | P81: -4.319167927 | Q81: -2.98155506 | R81: =IF(E81<>0,E81-'Receiving Station Data'!$C$25,0) -> 1.505333333
A82: 2011-04-02 | B82: 05:14:52 | C82: 0.218657 | D82: -49.3 | E82: -51.54 | F82: -47.53 | G82: -40.38 | H82: 80.55 | I82: -1.37 | J82: =VLOOKUP(H82,'Process Nbgd'!A:H,8,1) -> 927.1520028 | K82: =VLOOKUP(H82,'Process Nbgd'!A:O,15,1) -> 563.8436579 | L82: =10*LOG(('Receiving Station Data'!$F$28+Nmeasured!J82+'Receiving Station Data'!$C$23)/(Nmeasured!J82+'Receiving Station Data'!$C$23)) -> 1.388031563 | M82: =10*LOG(('Receiving Station Data'!$F$28+Nmeasured!K82+'Receiving Station Data'!$C$23)/(Nmeasured!K82+'Receiving Station Data'!$C$23)) -> 2.02205506 | N82: =VLOOKUP(H82,'Process Nbgd'!A:E,5,1) -> -49.11886364 | O82: =VLOOKUP(H82,'Process Nbgd'!A:L,12,1) -> -51.0905 | P82: -3.809167927 | Q82: -2.47155506 | R82: =IF(E82<>0,E82-'Receiving Station Data'!$C$25,0) -> 2.015333333
A83: 2011-04-02 | B83: 05:15:02 | C83: 0.218773 | D83: -49.79 | E83: -50.97 | F83: -47.81 | G83: -41.19 | H83: 80.59 | I83: -1.34 | J83: =VLOOKUP(H83,'Process Nbgd'!A:H,8,1) -> 927.1520028 | K83: =VLOOKUP(H83,'Process Nbgd'!A:O,15,1) -> 563.8436579 | L83: =10*LOG(('Receiving Station Data'!$F$28+Nmeasured!J83+'Receiving Station Data'!$C$23)/(Nmeasured!J83+'Receiving Station Data'!$C$23)) -> 1.388031563 | M83: =10*LOG(('Receiving Station Data'!$F$28+Nmeasured!K83+'Receiving Station Data'!$C$23)/(Nmeasured!K83+'Receiving Station Data'!$C$23)) -> 2.02205506 | N83: =VLOOKUP(H83,'Process Nbgd'!A:E,5,1) -> -49.11886364 | O83: =VLOOKUP(H83,'Process Nbgd'!A:L,12,1) -> -51.0905 | P83: -3.239167927 | Q83: -1.90155506 | R83: =IF(E83<>0,E83-'Receiving Station Data'!$C$25,0) -> 2.585333333
A84: 2011-04-02 | B84: 05:15:12 | C84: 0.218889 | D84: -49.39 | E84: -52.46 | F84: -47.81 | G84: -41.87 | H84: 80.62 | I84: -1.32 | J84: =VLOOKUP(H84,'Process Nbgd'!A:H,8,1) -> 920.8813832 | K84: =VLOOKUP(H84,'Process Nbgd'!A:O,15,1) -> 562.6977401 | L84: =10*LOG(('Receiving Station Data'!$F$28+Nmeasured!J84+'Receiving Station Data'!$C$23)/(Nmeasured!J84+'Receiving Station Data'!$C$23)) -> 1.39555526 | M84: =10*LOG(('Receiving Station Data'!$F$28+Nmeasured!K84+'Receiving Station Data'!$C$23)/(Nmeasured!K84+'Receiving Station Data'!$C$23)) -> 2.024989144 | N84: =VLOOKUP(H84,'Process Nbgd'!A:E,5,1) -> -49.14630303 | O84: =VLOOKUP(H84,'Process Nbgd'!A:L,12,1) -> -51.09837778 | P84: -4.70925223 | Q84: -3.386611367 | R84: =IF(E84<>0,E84-'Receiving Station Data'!$C$25,0) -> 1.095333333
A85: 2011-04-02 | B85: 05:15:22 | C85: 0.219005 | D85: -48.47 | E85: -50.71 | F85: -46.94 | G85: -40 | H85: 80.65 | I85: -1.29 | J85: =VLOOKUP(H85,'Process Nbgd'!A:H,8,1) -> 920.8813832 | K85: =VLOOKUP(H85,'Process Nbgd'!A:O,15,1) -> 562.6977401 | L85: =10*LOG(('Receiving Station Data'!$F$28+Nmeasured!J85+'Receiving Station Data'!$C$23)/(Nmeasured!J85+'Receiving Station Data'!$C$23)) -> 1.39555526 | M85: =10*LOG(('Receiving Station Data'!$F$28+Nmeasured!K85+'Receiving Station Data'!$C$23)/(Nmeasured!K85+'Receiving Station Data'!$C$23)) -> 2.024989144 | N85: =VLOOKUP(H85,'Process Nbgd'!A:E,5,1) -> -49.14630303 | O85: =VLOOKUP(H85,'Process Nbgd'!A:L,12,1) -> -51.09837778 | P85: -2.95925223 | Q85: -1.636611367 | R85: =IF(E85<>0,E85-'Receiving Station Data'!$C$25,0) -> 2.845333333
A86: 2011-04-02 | B86: 05:15:32 | C86: 0.21912 | D86: -49.45 | E86: -51.08 | F86: -47.83 | G86: -42.41 | H86: 80.68 | I86: -1.27 | J86: =VLOOKUP(H86,'Process Nbgd'!A:H,8,1) -> 920.8813832 | K86: =VLOOKUP(H86,'Process Nbgd'!A:O,15,1) -> 562.6977401 | L86: =10*LOG(('Receiving Station Data'!$F$28+Nmeasured!J86+'Receiving Station Data'!$C$23)/(Nmeasured!J86+'Receiving Station Data'!$C$23)) -> 1.39555526 | M86: =10*LOG(('Receiving Station Data'!$F$28+Nmeasured!K86+'Receiving Station Data'!$C$23)/(Nmeasured!K86+'Receiving Station Data'!$C$23)) -> 2.024989144 | N86: =VLOOKUP(H86,'Process Nbgd'!A:E,5,1) -> -49.14630303 | O86: =VLOOKUP(H86,'Process Nbgd'!A:L,12,1) -> -51.09837778 | P86: -3.32925223 | Q86: -2.006611367 | R86: =IF(E86<>0,E86-'Receiving Station Data'!$C$25,0) -> 2.475333333
A87: 2011-04-02 | B87: 05:15:42 | C87: 0.219236 | D87: -49.86 | E87: -51.33 | F87: -47.47 | G87: -41.41 | H87: 80.71 | I87: -1.24 | J87: =VLOOKUP(H87,'Process Nbgd'!A:H,8,1) -> 914.6502573 | K87: =VLOOKUP(H87,'Process Nbgd'!A:O,15,1) -> 561.5538991 | L87: =10*LOG(('Receiving Station Data'!$F$28+Nmeasured!J87+'Receiving Station Data'!$C$23)/(Nmeasured!J87+'Receiving Station Data'!$C$23)) -> 1.403113508 | M87: =10*LOG(('Receiving Station Data'!$F$28+Nmeasured!K87+'Receiving Station Data'!$C$23)/(Nmeasured!K87+'Receiving Station Data'!$C$23)) -> 2.027926569 | N87: =VLOOKUP(H87,'Process Nbgd'!A:E,5,1) -> -49.17374242 | O87: =VLOOKUP(H87,'Process Nbgd'!A:L,12,1) -> -51.10625556 | P87: -3.559371083 | Q87: -2.251671014 | R87: =IF(E87<>0,E87-'Receiving Station Data'!$C$25,0) -> 2.225333333
A88: 2011-04-02 | B88: 05:15:52 | C88: 0.219352 | D88: -50.36 | E88: -51.11 | F88: -48.35 | G88: -42.3 | H88: 80.75 | I88: -1.21 | J88: =VLOOKUP(H88,'Process Nbgd'!A:H,8,1) -> 914.6502573 | K88: =VLOOKUP(H88,'Process Nbgd'!A:O,15,1) -> 561.5538991 | L88: =10*LOG(('Receiving Station Data'!$F$28+Nmeasured!J88+'Receiving Station Data'!$C$23)/(Nmeasured!J88+'Receiving Station Data'!$C$23)) -> 1.403113508 | M88: =10*LOG(('Receiving Station Data'!$F$28+Nmeasured!K88+'Receiving Station Data'!$C$23)/(Nmeasured!K88+'Receiving Station Data'!$C$23)) -> 2.027926569 | N88: =VLOOKUP(H88,'Process Nbgd'!A:E,5,1) -> -49.17374242 | O88: =VLOOKUP(H88,'Process Nbgd'!A:L,12,1) -> -51.10625556 | P88: -3.339371083 | Q88: -2.031671014 | R88: =IF(E88<>0,E88-'Receiving Station Data'!$C$25,0) -> 2.445333333
A89: 2011-04-02 | B89: 05:16:02 | C89: 0.219468 | D89: -48.92 | E89: -51.18 | F89: -46.98 | G89: -40.89 | H89: 80.78 | I89: -1.19 | J89: =VLOOKUP(H89,'Process Nbgd'!A:H,8,1) -> 914.6502573 | K89: =VLOOKUP(H89,'Process Nbgd'!A:O,15,1) -> 561.5538991 | L89: =10*LOG(('Receiving Station Data'!$F$28+Nmeasured!J89+'Receiving Station Data'!$C$23)/(Nmeasured!J89+'Receiving Station Data'!$C$23)) -> 1.403113508 | M89: =10*LOG(('Receiving Station Data'!$F$28+Nmeasured!K89+'Receiving Station Data'!$C$23)/(Nmeasured!K89+'Receiving Station Data'!$C$23)) -> 2.027926569 | N89: =VLOOKUP(H89,'Process Nbgd'!A:E,5,1) -> -49.17374242 | O89: =VLOOKUP(H89,'Process Nbgd'!A:L,12,1) -> -51.10625556 | P89: -3.409371083 | Q89: -2.101671014 | R89: =IF(E89<>0,E89-'Receiving Station Data'!$C$25,0) -> 2.375333333
A90: 2011-04-02 | B90: 05:16:12 | C90: 0.219583 | D90: -51.22 | E90: -51.26 | F90: -48.28 | G90: -41.15 | H90: 80.81 | I90: -1.16 | J90: =VLOOKUP(H90,'Process Nbgd'!A:H,8,1) -> 908.4583766 | K90: =VLOOKUP(H90,'Process Nbgd'!A:O,15,1) -> 560.412131 | L90: =10*LOG(('Receiving Station Data'!$F$28+Nmeasured!J90+'Receiving Station Data'!$C$23)/(Nmeasured!J90+'Receiving Station Data'!$C$23)) -> 1.410706404 | M90: =10*LOG(('Receiving Station Data'!$F$28+Nmeasured!K90+'Receiving Station Data'!$C$23)/(Nmeasured!K90+'Receiving Station Data'!$C$23)) -> 2.030867336 | N90: =VLOOKUP(H90,'Process Nbgd'!A:E,5,1) -> -49.20118182 | O90: =VLOOKUP(H90,'Process Nbgd'!A:L,12,1) -> -51.11413333 | P90: -3.469524586 | Q90: -2.176734003 | R90: =IF(E90<>0,E90-'Receiving Station Data'!$C$25,0) -> 2.295333333
A91: 2011-04-02 | B91: 05:16:22 | C91: 0.219699 | D91: -51.05 | E91: -51.05 | F91: -48.05 | G91: -40.2 | H91: 80.84 | I91: -1.14 | J91: =VLOOKUP(H91,'Process Nbgd'!A:H,8,1) -> 908.4583766 | K91: =VLOOKUP(H91,'Process Nbgd'!A:O,15,1) -> 560.412131 | L91: =10*LOG(('Receiving Station Data'!$F$28+Nmeasured!J91+'Receiving Station Data'!$C$23)/(Nmeasured!J91+'Receiving Station Data'!$C$23)) -> 1.410706404 | M91: =10*LOG(('Receiving Station Data'!$F$28+Nmeasured!K91+'Receiving Station Data'!$C$23)/(Nmeasured!K91+'Receiving Station Data'!$C$23)) -> 2.030867336 | N91: =VLOOKUP(H91,'Process Nbgd'!A:E,5,1) -> -49.20118182 | O91: =VLOOKUP(H91,'Process Nbgd'!A:L,12,1) -> -51.11413333 | P91: -3.259524586 | Q91: -1.966734003 | R91: =IF(E91<>0,E91-'Receiving Station Data'!$C$25,0) -> 2.505333333
A92: 2011-04-02 | B92: 05:16:32 | C92: 0.219815 | D92: -49.37 | E92: -51.84 | F92: -47.12 | G92: -41.07 | H92: 80.88 | I92: -1.11 | J92: =VLOOKUP(H92,'Process Nbgd'!A:H,8,1) -> 908.4583766 | K92: =VLOOKUP(H92,'Process Nbgd'!A:O,15,1) -> 560.412131 | L92: =10*LOG(('Receiving Station Data'!$F$28+Nmeasured!J92+'Receiving Station Data'!$C$23)/(Nmeasured!J92+'Receiving Station Data'!$C$23)) -> 1.410706404 | M92: =10*LOG(('Receiving Station Data'!$F$28+Nmeasured!K92+'Receiving Station Data'!$C$23)/(Nmeasured!K92+'Receiving Station Data'!$C$23)) -> 2.030867336 | N92: =VLOOKUP(H92,'Process Nbgd'!A:E,5,1) -> -49.20118182 | O92: =VLOOKUP(H92,'Process Nbgd'!A:L,12,1) -> -51.11413333 | P92: -4.049524586 | Q92: -2.756734003 | R92: =IF(E92<>0,E92-'Receiving Station Data'!$C$25,0) -> 1.715333333
A93: 2011-04-02 | B93: 05:16:42 | C93: 0.219931 | D93: -49.34 | E93: -50.82 | F93: -46.57 | G93: -40.83 | H93: 80.91 | I93: -1.08 | J93: =VLOOKUP(H93,'Process Nbgd'!A:H,8,1) -> 902.3054938 | K93: =VLOOKUP(H93,'Process Nbgd'!A:O,15,1) -> 559.2724321 | L93: =10*LOG(('Receiving Station Data'!$F$28+Nmeasured!J93+'Receiving Station Data'!$C$23)/(Nmeasured!J93+'Receiving Station Data'!$C$23)) -> 1.418334048 | M93: =10*LOG(('Receiving Station Data'!$F$28+Nmeasured!K93+'Receiving Station Data'!$C$23)/(Nmeasured!K93+'Receiving Station Data'!$C$23)) -> 2.033811447 | N93: =VLOOKUP(H93,'Process Nbgd'!A:E,5,1) -> -49.22862121 | O93: =VLOOKUP(H93,'Process Nbgd'!A:L,12,1) -> -51.12201111 | P93: -3.009712836 | Q93: -1.731800336 | R93: =IF(E93<>0,E93-'Receiving Station Data'!$C$25,0) -> 2.735333333
A94: 2011-04-02 | B94: 05:16:52 | C94: 0.220046 | D94: -49.2 | E94: -50.96 | F94: -47.93 | G94: -42.03 | H94: 80.94 | I94: -1.06 | J94: =VLOOKUP(H94,'Process Nbgd'!A:H,8,1) -> 902.3054938 | K94: =VLOOKUP(H94,'Process Nbgd'!A:O,15,1) -> 559.2724321 | L94: =10*LOG(('Receiving Station Data'!$F$28+Nmeasured!J94+'Receiving Station Data'!$C$23)/(Nmeasured!J94+'Receiving Station Data'!$C$23)) -> 1.418334048 | M94: =10*LOG(('Receiving Station Data'!$F$28+Nmeasured!K94+'Receiving Station Data'!$C$23)/(Nmeasured!K94+'Receiving Station Data'!$C$23)) -> 2.033811447 | N94: =VLOOKUP(H94,'Process Nbgd'!A:E,5,1) -> -49.22862121 | O94: =VLOOKUP(H94,'Process Nbgd'!A:L,12,1) -> -51.12201111 | P94: -3.149712836 | Q94: -1.871800336 | R94: =IF(E94<>0,E94-'Receiving Station Data'!$C$25,0) -> 2.595333333
A95: 2011-04-02 | B95: 05:17:02 | C95: 0.220162 | D95: -50.39 | E95: -50.9 | F95: -48.18 | G95: -42.4 | H95: 80.97 | I95: -1.03 | J95: =VLOOKUP(H95,'Process Nbgd'!A:H,8,1) -> 902.3054938 | K95: =VLOOKUP(H95,'Process Nbgd'!A:O,15,1) -> 559.2724321 | L95: =10*LOG(('Receiving Station Data'!$F$28+Nmeasured!J95+'Receiving Station Data'!$C$23)/(Nmeasured!J95+'Receiving Station Data'!$C$23)) -> 1.418334048 | M95: =10*LOG(('Receiving Station Data'!$F$28+Nmeasured!K95+'Receiving Station Data'!$C$23)/(Nmeasured!K95+'Receiving Station Data'!$C$23)) -> 2.033811447 | N95: =VLOOKUP(H95,'Process Nbgd'!A:E,5,1) -> -49.22862121 | O95: =VLOOKUP(H95,'Process Nbgd'!A:L,12,1) -> -51.12201111 | P95: -3.089712836 | Q95: -1.811800336 | R95: =IF(E95<>0,E95-'Receiving Station Data'!$C$25,0) -> 2.655333333
A96: 2011-04-02 | B96: 05:17:12 | C96: 0.220278 | D96: -48.08 | E96: -50.49 | F96: -46.58 | G96: -39.82 | H96: 81.01 | I96: -1.01 | J96: =VLOOKUP(H96,'Process Nbgd'!A:H,8,1) -> 896.1913634 | K96: =VLOOKUP(H96,'Process Nbgd'!A:O,15,1) -> 558.1347987 | L96: =10*LOG(('Receiving Station Data'!$F$28+Nmeasured!J96+'Receiving Station Data'!$C$23)/(Nmeasured!J96+'Receiving Station Data'!$C$23)) -> 1.425996537 | M96: =10*LOG(('Receiving Station Data'!$F$28+Nmeasured!K96+'Receiving Station Data'!$C$23)/(Nmeasured!K96+'Receiving Station Data'!$C$23)) -> 2.036758903 | N96: =VLOOKUP(H96,'Process Nbgd'!A:E,5,1) -> -49.25606061 | O96: =VLOOKUP(H96,'Process Nbgd'!A:L,12,1) -> -51.12988889 | P96: -2.659935931 | Q96: -1.396870015 | R96: =IF(E96<>0,E96-'Receiving Station Data'!$C$25,0) -> 3.065333333
A97: 2011-04-02 | B97: 05:17:22 | C97: 0.220394 | D97: -49.04 | E97: -51.23 | F97: -47.05 | G97: -39.29 | H97: 81.04 | I97: -0.98 | J97: =VLOOKUP(H97,'Process Nbgd'!A:H,8,1) -> 896.1913634 | K97: =VLOOKUP(H97,'Process Nbgd'!A:O,15,1) -> 558.1347987 | L97: =10*LOG(('Receiving Station Data'!$F$28+Nmeasured!J97+'Receiving Station Data'!$C$23)/(Nmeasured!J97+'Receiving Station Data'!$C$23)) -> 1.425996537 | M97: =10*LOG(('Receiving Station Data'!$F$28+Nmeasured!K97+'Receiving Station Data'!$C$23)/(Nmeasured!K97+'Receiving Station Data'!$C$23)) -> 2.036758903 | N97: =VLOOKUP(H97,'Process Nbgd'!A:E,5,1) -> -49.25606061 | O97: =VLOOKUP(H97,'Process Nbgd'!A:L,12,1) -> -51.12988889 | P97: -3.399935931 | Q97: -2.136870015 | R97: =IF(E97<>0,E97-'Receiving Station Data'!$C$25,0) -> 2.325333333
A98: 2011-04-02 | B98: 05:17:32 | C98: 0.220509 | D98: -49.32 | E98: -51.39 | F98: -47.9 | G98: -42.42 | H98: 81.07 | I98: -0.95 | J98: =VLOOKUP(H98,'Process Nbgd'!A:H,8,1) -> 896.1913634 | K98: =VLOOKUP(H98,'Process Nbgd'!A:O,15,1) -> 558.1347987 | L98: =10*LOG(('Receiving Station Data'!$F$28+Nmeasured!J98+'Receiving Station Data'!$C$23)/(Nmeasured!J98+'Receiving Station Data'!$C$23)) -> 1.425996537 | M98: =10*LOG(('Receiving Station Data'!$F$28+Nmeasured!K98+'Receiving Station Data'!$C$23)/(Nmeasured!K98+'Receiving Station Data'!$C$23)) -> 2.036758903 | N98: =VLOOKUP(H98,'Process Nbgd'!A:E,5,1) -> -49.25606061 | O98: =VLOOKUP(H98,'Process Nbgd'!A:L,12,1) -> -51.12988889 | P98: -3.559935931 | Q98: -2.296870015 | R98: =IF(E98<>0,E98-'Receiving Station Data'!$C$25,0) -> 2.165333333
A99: 2011-04-02 | B99: 05:17:42 | C99: 0.220625 | D99: -50.79 | E99: -51.47 | F99: -48.44 | G99: -42.51 | H99: 81.1 | I99: -0.93 | J99: =VLOOKUP(H99,'Process Nbgd'!A:H,8,1) -> 890.1157411 | K99: =VLOOKUP(H99,'Process Nbgd'!A:O,15,1) -> 556.999227 | L99: =10*LOG(('Receiving Station Data'!$F$28+Nmeasured!J99+'Receiving Station Data'!$C$23)/(Nmeasured!J99+'Receiving Station Data'!$C$23)) -> 1.433693968 | M99: =10*LOG(('Receiving Station Data'!$F$28+Nmeasured!K99+'Receiving Station Data'!$C$23)/(Nmeasured!K99+'Receiving Station Data'!$C$23)) -> 2.039709707 | N99: =VLOOKUP(H99,'Process Nbgd'!A:E,5,1) -> -49.2835 | O99: =VLOOKUP(H99,'Process Nbgd'!A:L,12,1) -> -51.13776667 | P99: -3.620193968 | Q99: -2.37194304 | R99: =IF(E99<>0,E99-'Receiving Station Data'!$C$25,0) -> 2.085333333
A100: 2011-04-02 | B100: 05:17:52 | C100: 0.220741 | D100: -50.39 | E100: -51.31 | F100: -49.05 | G100: -44.14 | H100: 81.13 | I100: -0.9 | J100: =VLOOKUP(H100,'Process Nbgd'!A:H,8,1) -> 890.1157411 | K100: =VLOOKUP(H100,'Process Nbgd'!A:O,15,1) -> 556.999227 | L100: =10*LOG(('Receiving Station Data'!$F$28+Nmeasured!J100+'Receiving Station Data'!$C$23)/(Nmeasured!J100+'Receiving Station Data'!$C$23)) -> 1.433693968 | M100: =10*LOG(('Receiving Station Data'!$F$28+Nmeasured!K100+'Receiving Station Data'!$C$23)/(Nmeasured!K100+'Receiving Station Data'!$C$23)) -> 2.039709707 | N100: =VLOOKUP(H100,'Process Nbgd'!A:E,5,1) -> -49.2835 | O100: =VLOOKUP(H100,'Process Nbgd'!A:L,12,1) -> -51.13776667 | P100: -3.460193968 | Q100: -2.21194304 | R100: =IF(E100<>0,E100-'Receiving Station Data'!$C$25,0) -> 2.245333333
A101: 2011-04-02 | B101: 05:18:02 | C101: 0.220856 | D101: -48.97 | E101: -51.12 | F101: -48.09 | G101: -42.18 | H101: 81.17 | I101: -0.87 | J101: =VLOOKUP(H101,'Process Nbgd'!A:H,8,1) -> 890.1157411 | K101: =VLOOKUP(H101,'Process Nbgd'!A:O,15,1) -> 556.999227 | L101: =10*LOG(('Receiving Station Data'!$F$28+Nmeasured!J101+'Receiving Station Data'!$C$23)/(Nmeasured!J101+'Receiving Station Data'!$C$23)) -> 1.433693968 | M101: =10*LOG(('Receiving Station Data'!$F$28+Nmeasured!K101+'Receiving Station Data'!$C$23)/(Nmeasured!K101+'Receiving Station Data'!$C$23)) -> 2.039709707 | N101: =VLOOKUP(H101,'Process Nbgd'!A:E,5,1) -> -49.2835 | O101: =VLOOKUP(H101,'Process Nbgd'!A:L,12,1) -> -51.13776667 | P101: -3.270193968 | Q101: -2.02194304 | R101: =IF(E101<>0,E101-'Receiving Station Data'!$C$25,0) -> 2.435333333
A102: 2011-04-02 | B102: 05:18:12 | C102: 0.220972 | D102: -49.85 | E102: -51.01 | F102: -47.8 | G102: -42.62 | H102: 81.2 | I102: -0.85 | J102: =VLOOKUP(H102,'Process Nbgd'!A:H,8,1) -> 884.0783846 | K102: =VLOOKUP(H102,'Process Nbgd'!A:O,15,1) -> 555.8657133 | L102: =10*LOG(('Receiving Station Data'!$F$28+Nmeasured!J102+'Receiving Station Data'!$C$23)/(Nmeasured!J102+'Receiving Station Data'!$C$23)) -> 1.441426438 | M102: =10*LOG(('Receiving Station Data'!$F$28+Nmeasured!K102+'Receiving Station Data'!$C$23)/(Nmeasured!K102+'Receiving Station Data'!$C$23)) -> 2.042663858 | N102: =VLOOKUP(H102,'Process Nbgd'!A:E,5,1) -> -49.31093939 | O102: =VLOOKUP(H102,'Process Nbgd'!A:L,12,1) -> -51.14564444 | P102: -3.140487044 | Q102: -1.907019414 | R102: =IF(E102<>0,E102-'Receiving Station Data'!$C$25,0) -> 2.545333333
A103: 2011-04-02 | B103: 05:18:22 | C103: 0.221088 | D103: -50.4 | E103: -51.44 | F103: -47.77 | G103: -41.83 | H103: 81.23 | I103: -0.82 | J103: =VLOOKUP(H103,'Process Nbgd'!A:H,8,1) -> 884.0783846 | K103: =VLOOKUP(H103,'Process Nbgd'!A:O,15,1) -> 555.8657133 | L103: =10*LOG(('Receiving Station Data'!$F$28+Nmeasured!J103+'Receiving Station Data'!$C$23)/(Nmeasured!J103+'Receiving Station Data'!$C$23)) -> 1.441426438 | M103: =10*LOG(('Receiving Station Data'!$F$28+Nmeasured!K103+'Receiving Station Data'!$C$23)/(Nmeasured!K103+'Receiving Station Data'!$C$23)) -> 2.042663858 | N103: =VLOOKUP(H103,'Process Nbgd'!A:E,5,1) -> -49.31093939 | O103: =VLOOKUP(H103,'Process Nbgd'!A:L,12,1) -> -51.14564444 | P103: -3.570487044 | Q103: -2.337019414 | R103: =IF(E103<>0,E103-'Receiving Station Data'!$C$25,0) -> 2.115333333
A104: 2011-04-02 | B104: 05:18:32 | C104: 0.221204 | D104: -49.63 | E104: -51.08 | F104: -47.45 | G104: -41.25 | H104: 81.26 | I104: -0.8 | J104: =VLOOKUP(H104,'Process Nbgd'!A:H,8,1) -> 884.0783846 | K104: =VLOOKUP(H104,'Process Nbgd'!A:O,15,1) -> 555.8657133 | L104: =10*LOG(('Receiving Station Data'!$F$28+Nmeasured!J104+'Receiving Station Data'!$C$23)/(Nmeasured!J104+'Receiving Station Data'!$C$23)) -> 1.441426438 | M104: =10*LOG(('Receiving Station Data'!$F$28+Nmeasured!K104+'Receiving Station Data'!$C$23)/(Nmeasured!K104+'Receiving Station Data'!$C$23)) -> 2.042663858 | N104: =VLOOKUP(H104,'Process Nbgd'!A:E,5,1) -> -49.31093939 | O104: =VLOOKUP(H104,'Process Nbgd'!A:L,12,1) -> -51.14564444 | P104: -3.210487044 | Q104: -1.977019414 | R104: =IF(E104<>0,E104-'Receiving Station Data'!$C$25,0) -> 2.475333333
A105: 2011-04-02 | B105: 05:18:42 | C105: 0.221319 | D105: -52.1 | E105: -52.1 | F105: -48.49 | G105: -41.47 | H105: 81.3 | I105: -0.77 | J105: =VLOOKUP(H105,'Process Nbgd'!A:H,8,1) -> 878.0790527 | K105: =VLOOKUP(H105,'Process Nbgd'!A:O,15,1) -> 554.7342538 | L105: =10*LOG(('Receiving Station Data'!$F$28+Nmeasured!J105+'Receiving Station Data'!$C$23)/(Nmeasured!J105+'Receiving Station Data'!$C$23)) -> 1.449194043 | M105: =10*LOG(('Receiving Station Data'!$F$28+Nmeasured!K105+'Receiving Station Data'!$C$23)/(Nmeasured!K105+'Receiving Station Data'!$C$23)) -> 2.045621359 | N105: =VLOOKUP(H105,'Process Nbgd'!A:E,5,1) -> -49.33837879 | O105: =VLOOKUP(H105,'Process Nbgd'!A:L,12,1) -> -51.15352222 | P105: -4.210815255 | Q105: -2.992099137 | R105: =IF(E105<>0,E105-'Receiving Station Data'!$C$25,0) -> 1.455333333
A106: 2011-04-02 | B106: 05:18:52 | C106: 0.221435 | D106: -49.36 | E106: -50.94 | F106: -47.86 | G106: -41.58 | H106: 81.33 | I106: -0.74 | J106: =VLOOKUP(H106,'Process Nbgd'!A:H,8,1) -> 878.0790527 | K106: =VLOOKUP(H106,'Process Nbgd'!A:O,15,1) -> 554.7342538 | L106: =10*LOG(('Receiving Station Data'!$F$28+Nmeasured!J106+'Receiving Station Data'!$C$23)/(Nmeasured!J106+'Receiving Station Data'!$C$23)) -> 1.449194043 | M106: =10*LOG(('Receiving Station Data'!$F$28+Nmeasured!K106+'Receiving Station Data'!$C$23)/(Nmeasured!K106+'Receiving Station Data'!$C$23)) -> 2.045621359 | N106: =VLOOKUP(H106,'Process Nbgd'!A:E,5,1) -> -49.33837879 | O106: =VLOOKUP(H106,'Process Nbgd'!A:L,12,1) -> -51.15352222 | P106: -3.050815255 | Q106: -1.832099137 | R106: =IF(E106<>0,E106-'Receiving Station Data'!$C$25,0) -> 2.615333333
A107: 2011-04-02 | B107: 05:19:02 | C107: 0.221551 | D107: -49.23 | E107: -50.94 | F107: -47.89 | G107: -41.8 | H107: 81.36 | I107: -0.72 | J107: =VLOOKUP(H107,'Process Nbgd'!A:H,8,1) -> 878.0790527 | K107: =VLOOKUP(H107,'Process Nbgd'!A:O,15,1) -> 554.7342538 | L107: =10*LOG(('Receiving Station Data'!$F$28+Nmeasured!J107+'Receiving Station Data'!$C$23)/(Nmeasured!J107+'Receiving Station Data'!$C$23)) -> 1.449194043 | M107: =10*LOG(('Receiving Station Data'!$F$28+Nmeasured!K107+'Receiving Station Data'!$C$23)/(Nmeasured!K107+'Receiving Station Data'!$C$23)) -> 2.045621359 | N107: =VLOOKUP(H107,'Process Nbgd'!A:E,5,1) -> -49.33837879 | O107: =VLOOKUP(H107,'Process Nbgd'!A:L,12,1) -> -51.15352222 | P107: -3.050815255 | Q107: -1.832099137 | R107: =IF(E107<>0,E107-'Receiving Station Data'!$C$25,0) -> 2.615333333
A108: 2011-04-02 | B108: 05:19:12 | C108: 0.221667 | D108: -50.36 | E108: -50.81 | F108: -47.61 | G108: -40.53 | H108: 81.39 | I108: -0.69 | J108: =VLOOKUP(H108,'Process Nbgd'!A:H,8,1) -> 878.0790527 | K108: =VLOOKUP(H108,'Process Nbgd'!A:O,15,1) -> 554.7342538 | L108: =10*LOG(('Receiving Station Data'!$F$28+Nmeasured!J108+'Receiving Station Data'!$C$23)/(Nmeasured!J108+'Receiving Station Data'!$C$23)) -> 1.449194043 | M108: =10*LOG(('Receiving Station Data'!$F$28+Nmeasured!K108+'Receiving Station Data'!$C$23)/(Nmeasured!K108+'Receiving Station Data'!$C$23)) -> 2.045621359 | N108: =VLOOKUP(H108,'Process Nbgd'!A:E,5,1) -> -49.33837879 | O108: =VLOOKUP(H108,'Process Nbgd'!A:L,12,1) -> -51.15352222 | P108: -2.920815255 | Q108: -1.702099137 | R108: =IF(E108<>0,E108-'Receiving Station Data'!$C$25,0) -> 2.745333333
A109: 2011-04-02 | B109: 05:19:22 | C109: 0.221782 | D109: -50.33 | E109: -50.57 | F109: -48.08 | G109: -41.08 | H109: 81.42 | I109: -0.66 | J109: =VLOOKUP(H109,'Process Nbgd'!A:H,8,1) -> 872.1175061 | K109: =VLOOKUP(H109,'Process Nbgd'!A:O,15,1) -> 553.6048448 | L109: =10*LOG(('Receiving Station Data'!$F$28+Nmeasured!J109+'Receiving Station Data'!$C$23)/(Nmeasured!J109+'Receiving Station Data'!$C$23)) -> 1.456996881 | M109: =10*LOG(('Receiving Station Data'!$F$28+Nmeasured!K109+'Receiving Station Data'!$C$23)/(Nmeasured!K109+'Receiving Station Data'!$C$23)) -> 2.048582212 | N109: =VLOOKUP(H109,'Process Nbgd'!A:E,5,1) -> -49.36581818 | O109: =VLOOKUP(H109,'Process Nbgd'!A:L,12,1) -> -51.1614 | P109: -2.661178699 | Q109: -1.457182212 | R109: =IF(E109<>0,E109-'Receiving Station Data'!$C$25,0) -> 2.985333333
A110: 2011-04-02 | B110: 05:19:32 | C110: 0.221898 | D110: -49.9 | E110: -51.85 | F110: -47.53 | G110: -39 | H110: 81.46 | I110: -0.64 | J110: =VLOOKUP(H110,'Process Nbgd'!A:H,8,1) -> 872.1175061 | K110: =VLOOKUP(H110,'Process Nbgd'!A:O,15,1) -> 553.6048448 | L110: =10*LOG(('Receiving Station Data'!$F$28+Nmeasured!J110+'Receiving Station Data'!$C$23)/(Nmeasured!J110+'Receiving Station Data'!$C$23)) -> 1.456996881 | M110: =10*LOG(('Receiving Station Data'!$F$28+Nmeasured!K110+'Receiving Station Data'!$C$23)/(Nmeasured!K110+'Receiving Station Data'!$C$23)) -> 2.048582212 | N110: =VLOOKUP(H110,'Process Nbgd'!A:E,5,1) -> -49.36581818 | O110: =VLOOKUP(H110,'Process Nbgd'!A:L,12,1) -> -51.1614 | P110: -3.941178699 | Q110: -2.737182212 | R110: =IF(E110<>0,E110-'Receiving Station Data'!$C$25,0) -> 1.705333333
A111: 2011-04-02 | B111: 05:19:42 | C111: 0.222014 | D111: -49.02 | E111: -51.6 | F111: -47.58 | G111: -41.75 | H111: 81.49 | I111: -0.61 | J111: =VLOOKUP(H111,'Process Nbgd'!A:H,8,1) -> 872.1175061 | K111: =VLOOKUP(H111,'Process Nbgd'!A:O,15,1) -> 553.6048448 | L111: =10*LOG(('Receiving Station Data'!$F$28+Nmeasured!J111+'Receiving Station Data'!$C$23)/(Nmeasured!J111+'Receiving Station Data'!$C$23)) -> 1.456996881 | M111: =10*LOG(('Receiving Station Data'!$F$28+Nmeasured!K111+'Receiving Station Data'!$C$23)/(Nmeasured!K111+'Receiving Station Data'!$C$23)) -> 2.048582212 | N111: =VLOOKUP(H111,'Process Nbgd'!A:E,5,1) -> -49.36581818 | O111: =VLOOKUP(H111,'Process Nbgd'!A:L,12,1) -> -51.1614 | P111: -3.691178699 | Q111: -2.487182212 | R111: =IF(E111<>0,E111-'Receiving Station Data'!$C$25,0) -> 1.955333333
A112: 2011-04-02 | B112: 05:19:52 | C112: 0.22213 | D112: -50.73 | E112: -50.82 | F112: -47.98 | G112: -42.42 | H112: 81.52 | I112: -0.59 | J112: =VLOOKUP(H112,'Process Nbgd'!A:H,8,1) -> 866.1935067 | K112: =VLOOKUP(H112,'Process Nbgd'!A:O,15,1) -> 552.4774826 | L112: =10*LOG(('Receiving Station Data'!$F$28+Nmeasured!J112+'Receiving Station Data'!$C$23)/(Nmeasured!J112+'Receiving Station Data'!$C$23)) -> 1.464835048 | M112: =10*LOG(('Receiving Station Data'!$F$28+Nmeasured!K112+'Receiving Station Data'!$C$23)/(Nmeasured!K112+'Receiving Station Data'!$C$23)) -> 2.051546418 | N112: =VLOOKUP(H112,'Process Nbgd'!A:E,5,1) -> -49.39325758 | O112: =VLOOKUP(H112,'Process Nbgd'!A:L,12,1) -> -51.16927778 | P112: -2.891577472 | Q112: -1.70226864 | R112: =IF(E112<>0,E112-'Receiving Station Data'!$C$25,0) -> 2.735333333
A113: 2011-04-02 | B113: 05:20:02 | C113: 0.222245 | D113: -49.78 | E113: -51.15 | F113: -47.26 | G113: -40.93 | H113: 81.55 | I113: -0.56 | J113: =VLOOKUP(H113,'Process Nbgd'!A:H,8,1) -> 866.1935067 | K113: =VLOOKUP(H113,'Process Nbgd'!A:O,15,1) -> 552.4774826 | L113: =10*LOG(('Receiving Station Data'!$F$28+Nmeasured!J113+'Receiving Station Data'!$C$23)/(Nmeasured!J113+'Receiving Station Data'!$C$23)) -> 1.464835048 | M113: =10*LOG(('Receiving Station Data'!$F$28+Nmeasured!K113+'Receiving Station Data'!$C$23)/(Nmeasured!K113+'Receiving Station Data'!$C$23)) -> 2.051546418 | N113: =VLOOKUP(H113,'Process Nbgd'!A:E,5,1) -> -49.39325758 | O113: =VLOOKUP(H113,'Process Nbgd'!A:L,12,1) -> -51.16927778 | P113: -3.221577472 | Q113: -2.03226864 | R113: =IF(E113<>0,E113-'Receiving Station Data'!$C$25,0) -> 2.405333333
A114: 2011-04-02 | B114: 05:20:12 | C114: 0.222361 | D114: -48.82 | E114: -52.18 | F114: -47.32 | G114: -42.71 | H114: 81.59 | I114: -0.53 | J114: =VLOOKUP(H114,'Process Nbgd'!A:H,8,1) -> 866.1935067 | K114: =VLOOKUP(H114,'Process Nbgd'!A:O,15,1) -> 552.4774826 | L114: =10*LOG(('Receiving Station Data'!$F$28+Nmeasured!J114+'Receiving Station Data'!$C$23)/(Nmeasured!J114+'Receiving Station Data'!$C$23)) -> 1.464835048 | M114: =10*LOG(('Receiving Station Data'!$F$28+Nmeasured!K114+'Receiving Station Data'!$C$23)/(Nmeasured!K114+'Receiving Station Data'!$C$23)) -> 2.051546418 | N114: =VLOOKUP(H114,'Process Nbgd'!A:E,5,1) -> -49.39325758 | O114: =VLOOKUP(H114,'Process Nbgd'!A:L,12,1) -> -51.16927778 | P114: -4.251577472 | Q114: -3.06226864 | R114: =IF(E114<>0,E114-'Receiving Station Data'!$C$25,0) -> 1.375333333
A115: 2011-04-02 | B115: 05:20:22 | C115: 0.222477 | D115: -48.87 | E115: -50.64 | F115: -47.19 | G115: -41.68 | H115: 81.62 | I115: -0.51 | J115: =VLOOKUP(H115,'Process Nbgd'!A:H,8,1) -> 860.3068181 | K115: =VLOOKUP(H115,'Process Nbgd'!A:O,15,1) -> 551.3521636 | L115: =10*LOG(('Receiving Station Data'!$F$28+Nmeasured!J115+'Receiving Station Data'!$C$23)/(Nmeasured!J115+'Receiving Station Data'!$C$23)) -> 1.472708638 | M115: =10*LOG(('Receiving Station Data'!$F$28+Nmeasured!K115+'Receiving Station Data'!$C$23)/(Nmeasured!K115+'Receiving Station Data'!$C$23)) -> 2.054513978 | N115: =VLOOKUP(H115,'Process Nbgd'!A:E,5,1) -> -49.42069697 | O115: =VLOOKUP(H115,'Process Nbgd'!A:L,12,1) -> -51.17715556 | P115: -2.692011668 | Q115: -1.517358422 | R115: =IF(E115<>0,E115-'Receiving Station Data'!$C$25,0) -> 2.915333333
A116: 2011-04-02 | B116: 05:20:32 | C116: 0.222593 | D116: -48.19 | E116: -50.21 | F116: -47.26 | G116: -41.06 | H116: 81.65 | I116: -0.48 | J116: =VLOOKUP(H116,'Process Nbgd'!A:H,8,1) -> 860.3068181 | K116: =VLOOKUP(H116,'Process Nbgd'!A:O,15,1) -> 551.3521636 | L116: =10*LOG(('Receiving Station Data'!$F$28+Nmeasured!J116+'Receiving Station Data'!$C$23)/(Nmeasured!J116+'Receiving Station Data'!$C$23)) -> 1.472708638 | M116: =10*LOG(('Receiving Station Data'!$F$28+Nmeasured!K116+'Receiving Station Data'!$C$23)/(Nmeasured!K116+'Receiving Station Data'!$C$23)) -> 2.054513978 | N116: =VLOOKUP(H116,'Process Nbgd'!A:E,5,1) -> -49.42069697 | O116: =VLOOKUP(H116,'Process Nbgd'!A:L,12,1) -> -51.17715556 | P116: -2.262011668 | Q116: -1.087358422 | R116: =IF(E116<>0,E116-'Receiving Station Data'!$C$25,0) -> 3.345333333
A117: 2011-04-02 | B117: 05:20:42 | C117: 0.222708 | D117: -50.71 | E117: -50.71 | F117: -47.78 | G117: -41.52 | H117: 81.68 | I117: -0.46 | J117: =VLOOKUP(H117,'Process Nbgd'!A:H,8,1) -> 860.3068181 | K117: =VLOOKUP(H117,'Process Nbgd'!A:O,15,1) -> 551.3521636 | L117: =10*LOG(('Receiving Station Data'!$F$28+Nmeasured!J117+'Receiving Station Data'!$C$23)/(Nmeasured!J117+'Receiving Station Data'!$C$23)) -> 1.472708638 | M117: =10*LOG(('Receiving Station Data'!$F$28+Nmeasured!K117+'Receiving Station Data'!$C$23)/(Nmeasured!K117+'Receiving Station Data'!$C$23)) -> 2.054513978 | N117: =VLOOKUP(H117,'Process Nbgd'!A:E,5,1) -> -49.42069697 | O117: =VLOOKUP(H117,'Process Nbgd'!A:L,12,1) -> -51.17715556 | P117: -2.762011668 | Q117: -1.587358422 | R117: =IF(E117<>0,E117-'Receiving Station Data'!$C$25,0) -> 2.845333333
A118: 2011-04-02 | B118: 05:20:52 | C118: 0.222824 | D118: -49.9 | E118: -50.95 | F118: -47.8 | G118: -42.3 | H118: 81.71 | I118: -0.43 | J118: =VLOOKUP(H118,'Process Nbgd'!A:H,8,1) -> 854.4572052 | K118: =VLOOKUP(H118,'Process Nbgd'!A:O,15,1) -> 550.2288839 | L118: =10*LOG(('Receiving Station Data'!$F$28+Nmeasured!J118+'Receiving Station Data'!$C$23)/(Nmeasured!J118+'Receiving Station Data'!$C$23)) -> 1.480617748 | M118: =10*LOG(('Receiving Station Data'!$F$28+Nmeasured!K118+'Receiving Station Data'!$C$23)/(Nmeasured!K118+'Receiving Station Data'!$C$23)) -> 2.057484894 | N118: =VLOOKUP(H118,'Process Nbgd'!A:E,5,1) -> -49.44813636 | O118: =VLOOKUP(H118,'Process Nbgd'!A:L,12,1) -> -51.18503333 | P118: -2.982481385 | Q118: -1.822451561 | R118: =IF(E118<>0,E118-'Receiving Station Data'!$C$25,0) -> 2.605333333
A119: 2011-04-02 | B119: 05:21:02 | C119: 0.22294 | D119: -49.24 | E119: -50.92 | F119: -47.67 | G119: -41.06 | H119: 81.75 | I119: -0.4 | J119: =VLOOKUP(H119,'Process Nbgd'!A:H,8,1) -> 854.4572052 | K119: =VLOOKUP(H119,'Process Nbgd'!A:O,15,1) -> 550.2288839 | L119: =10*LOG(('Receiving Station Data'!$F$28+Nmeasured!J119+'Receiving Station Data'!$C$23)/(Nmeasured!J119+'Receiving Station Data'!$C$23)) -> 1.480617748 | M119: =10*LOG(('Receiving Station Data'!$F$28+Nmeasured!K119+'Receiving Station Data'!$C$23)/(Nmeasured!K119+'Receiving Station Data'!$C$23)) -> 2.057484894 | N119: =VLOOKUP(H119,'Process Nbgd'!A:E,5,1) -> -49.44813636 | O119: =VLOOKUP(H119,'Process Nbgd'!A:L,12,1) -> -51.18503333 | P119: -2.952481385 | Q119: -1.792451561 | R119: =IF(E119<>0,E119-'Receiving Station Data'!$C$25,0) -> 2.635333333
A120: 2011-04-02 | B120: 05:21:12 | C120: 0.223056 | D120: -48.62 | E120: -51.14 | F120: -46.72 | G120: -41.58 | H120: 81.78 | I120: -0.38 | J120: =VLOOKUP(H120,'Process Nbgd'!A:H,8,1) -> 854.4572052 | K120: =VLOOKUP(H120,'Process Nbgd'!A:O,15,1) -> 550.2288839 | L120: =10*LOG(('Receiving Station Data'!$F$28+Nmeasured!J120+'Receiving Station Data'!$C$23)/(Nmeasured!J120+'Receiving Station Data'!$C$23)) -> 1.480617748 | M120: =10*LOG(('Receiving Station Data'!$F$28+Nmeasured!K120+'Receiving Station Data'!$C$23)/(Nmeasured!K120+'Receiving Station Data'!$C$23)) -> 2.057484894 | N120: =VLOOKUP(H120,'Process Nbgd'!A:E,5,1) -> -49.44813636 | O120: =VLOOKUP(H120,'Process Nbgd'!A:L,12,1) -> -51.18503333 | P120: -3.172481385 | Q120: -2.012451561 | R120: =IF(E120<>0,E120-'Receiving Station Data'!$C$25,0) -> 2.415333333
A121: 2011-04-02 | B121: 05:21:22 | C121: 0.223171 | D121: -49.06 | E121: -50.28 | F121: -46.82 | G121: -41.03 | H121: 81.81 | I121: -0.35 | J121: =VLOOKUP(H121,'Process Nbgd'!A:H,8,1) -> 848.6444345 | K121: =VLOOKUP(H121,'Process Nbgd'!A:O,15,1) -> 549.10764 | L121: =10*LOG(('Receiving Station Data'!$F$28+Nmeasured!J121+'Receiving Station Data'!$C$23)/(Nmeasured!J121+'Receiving Station Data'!$C$23)) -> 1.488562473 | M121: =10*LOG(('Receiving Station Data'!$F$28+Nmeasured!K121+'Receiving Station Data'!$C$23)/(Nmeasured!K121+'Receiving Station Data'!$C$23)) -> 2.060459168 | N121: =VLOOKUP(H121,'Process Nbgd'!A:E,5,1) -> -49.47557576 | O121: =VLOOKUP(H121,'Process Nbgd'!A:L,12,1) -> -51.19291111 | P121: -2.292986716 | Q121: -1.147548056 | R121: =IF(E121<>0,E121-'Receiving Station Data'!$C$25,0) -> 3.275333333
A122: 2011-04-02 | B122: 05:21:32 | C122: 0.223287 | D122: -47.64 | E122: -50.65 | F122: -46.12 | G122: -41.14 | H122: 81.84 | I122: -0.32 | J122: =VLOOKUP(H122,'Process Nbgd'!A:H,8,1) -> 848.6444345 | K122: =VLOOKUP(H122,'Process Nbgd'!A:O,15,1) -> 549.10764 | L122: =10*LOG(('Receiving Station Data'!$F$28+Nmeasured!J122+'Receiving Station Data'!$C$23)/(Nmeasured!J122+'Receiving Station Data'!$C$23)) -> 1.488562473 | M122: =10*LOG(('Receiving Station Data'!$F$28+Nmeasured!K122+'Receiving Station Data'!$C$23)/(Nmeasured!K122+'Receiving Station Data'!$C$23)) -> 2.060459168 | N122: =VLOOKUP(H122,'Process Nbgd'!A:E,5,1) -> -49.47557576 | O122: =VLOOKUP(H122,'Process Nbgd'!A:L,12,1) -> -51.19291111 | P122: -2.662986716 | Q122: -1.517548056 | R122: =IF(E122<>0,E122-'Receiving Station Data'!$C$25,0) -> 2.905333333
A123: 2011-04-02 | B123: 05:21:42 | C123: 0.223403 | D123: -50.16 | E123: -51.49 | F123: -47.09 | G123: -40.4 | H123: 81.88 | I123: -0.3 | J123: =VLOOKUP(H123,'Process Nbgd'!A:H,8,1) -> 848.6444345 | K123: =VLOOKUP(H123,'Process Nbgd'!A:O,15,1) -> 549.10764 | L123: =10*LOG(('Receiving Station Data'!$F$28+Nmeasured!J123+'Receiving Station Data'!$C$23)/(Nmeasured!J123+'Receiving Station Data'!$C$23)) -> 1.488562473 | M123: =10*LOG(('Receiving Station Data'!$F$28+Nmeasured!K123+'Receiving Station Data'!$C$23)/(Nmeasured!K123+'Receiving Station Data'!$C$23)) -> 2.060459168 | N123: =VLOOKUP(H123,'Process Nbgd'!A:E,5,1) -> -49.47557576 | O123: =VLOOKUP(H123,'Process Nbgd'!A:L,12,1) -> -51.19291111 | P123: -3.502986716 | Q123: -2.357548056 | R123: =IF(E123<>0,E123-'Receiving Station Data'!$C$25,0) -> 2.065333333
A124: 2011-04-02 | B124: 05:21:52 | C124: 0.223519 | D124: -48.97 | E124: -50.87 | F124: -47.54 | G124: -43.12 | H124: 81.91 | I124: -0.27 | J124: =VLOOKUP(H124,'Process Nbgd'!A:H,8,1) -> 842.8682741 | K124: =VLOOKUP(H124,'Process Nbgd'!A:O,15,1) -> 547.988428 | L124: =10*LOG(('Receiving Station Data'!$F$28+Nmeasured!J124+'Receiving Station Data'!$C$23)/(Nmeasured!J124+'Receiving Station Data'!$C$23)) -> 1.496542908 | M124: =10*LOG(('Receiving Station Data'!$F$28+Nmeasured!K124+'Receiving Station Data'!$C$23)/(Nmeasured!K124+'Receiving Station Data'!$C$23)) -> 2.0634368 | N124: =VLOOKUP(H124,'Process Nbgd'!A:E,5,1) -> -49.50301515 | O124: =VLOOKUP(H124,'Process Nbgd'!A:L,12,1) -> -51.20078889 | P124: -2.863527757 | Q124: -1.732647911 | R124: =IF(E124<>0,E124-'Receiving Station Data'!$C$25,0) -> 2.685333333
A125: 2011-04-02 | B125: 05:22:02 | C125: 0.223634 | D125: -48.56 | E125: -50.77 | F125: -47.12 | G125: -41.25 | H125: 81.94 | I125: -0.25 | J125: =VLOOKUP(H125,'Process Nbgd'!A:H,8,1) -> 842.8682741 | K125: =VLOOKUP(H125,'Process Nbgd'!A:O,15,1) -> 547.988428 | L125: =10*LOG(('Receiving Station Data'!$F$28+Nmeasured!J125+'Receiving Station Data'!$C$23)/(Nmeasured!J125+'Receiving Station Data'!$C$23)) -> 1.496542908 | M125: =10*LOG(('Receiving Station Data'!$F$28+Nmeasured!K125+'Receiving Station Data'!$C$23)/(Nmeasured!K125+'Receiving Station Data'!$C$23)) -> 2.0634368 | N125: =VLOOKUP(H125,'Process Nbgd'!A:E,5,1) -> -49.50301515 | O125: =VLOOKUP(H125,'Process Nbgd'!A:L,12,1) -> -51.20078889 | P125: -2.763527757 | Q125: -1.632647911 | R125: =IF(E125<>0,E125-'Receiving Station Data'!$C$25,0) -> 2.785333333
A126: 2011-04-02 | B126: 05:22:12 | C126: 0.22375 | D126: -49.09 | E126: -50.64 | F126: -46.47 | G126: -39.79 | H126: 81.97 | I126: -0.22 | J126: =VLOOKUP(H126,'Process Nbgd'!A:H,8,1) -> 842.8682741 | K126: =VLOOKUP(H126,'Process Nbgd'!A:O,15,1) -> 547.988428 | L126: =10*LOG(('Receiving Station Data'!$F$28+Nmeasured!J126+'Receiving Station Data'!$C$23)/(Nmeasured!J126+'Receiving Station Data'!$C$23)) -> 1.496542908 | M126: =10*LOG(('Receiving Station Data'!$F$28+Nmeasured!K126+'Receiving Station Data'!$C$23)/(Nmeasured!K126+'Receiving Station Data'!$C$23)) -> 2.0634368 | N126: =VLOOKUP(H126,'Process Nbgd'!A:E,5,1) -> -49.50301515 | O126: =VLOOKUP(H126,'Process Nbgd'!A:L,12,1) -> -51.20078889 | P126: -2.633527757 | Q126: -1.502647911 | R126: =IF(E126<>0,E126-'Receiving Station Data'!$C$25,0) -> 2.915333333
A127: 2011-04-02 | B127: 05:22:22 | C127: 0.223866 | D127: -48.37 | E127: -50.33 | F127: -46.24 | G127: -40.95 | H127: 82 | I127: -0.19 | J127: =VLOOKUP(H127,'Process Nbgd'!A:H,8,1) -> 837.1284933 | K127: =VLOOKUP(H127,'Process Nbgd'!A:O,15,1) -> 546.8712444 | L127: =10*LOG(('Receiving Station Data'!$F$28+Nmeasured!J127+'Receiving Station Data'!$C$23)/(Nmeasured!J127+'Receiving Station Data'!$C$23)) -> 1.504559147 | M127: =10*LOG(('Receiving Station Data'!$F$28+Nmeasured!K127+'Receiving Station Data'!$C$23)/(Nmeasured!K127+'Receiving Station Data'!$C$23)) -> 2.066417793 | N127: =VLOOKUP(H127,'Process Nbgd'!A:E,5,1) -> -49.53045455 | O127: =VLOOKUP(H127,'Process Nbgd'!A:L,12,1) -> -51.20866667 | P127: -2.304104602 | Q127: -1.187751126 | R127: =IF(E127<>0,E127-'Receiving Station Data'!$C$25,0) -> 3.225333333
A128: 2011-04-02 | B128: 05:22:32 | C128: 0.223981 | D128: -48.97 | E128: -49.85 | F128: -45.51 | G128: -38.89 | H128: 82.04 | I128: -0.17 | J128: =VLOOKUP(H128,'Process Nbgd'!A:H,8,1) -> 837.1284933 | K128: =VLOOKUP(H128,'Process Nbgd'!A:O,15,1) -> 546.8712444 | L128: =10*LOG(('Receiving Station Data'!$F$28+Nmeasured!J128+'Receiving Station Data'!$C$23)/(Nmeasured!J128+'Receiving Station Data'!$C$23)) -> 1.504559147 | M128: =10*LOG(('Receiving Station Data'!$F$28+Nmeasured!K128+'Receiving Station Data'!$C$23)/(Nmeasured!K128+'Receiving Station Data'!$C$23)) -> 2.066417793 | N128: =VLOOKUP(H128,'Process Nbgd'!A:E,5,1) -> -49.53045455 | O128: =VLOOKUP(H128,'Process Nbgd'!A:L,12,1) -> -51.20866667 | P128: -1.824104602 | Q128: -0.7077511261 | R128: =IF(E128<>0,E128-'Receiving Station Data'!$C$25,0) -> 3.705333333
A129: 2011-04-02 | B129: 05:22:42 | C129: 0.224097 | D129: -47.55 | E129: -49.3 | F129: -46.52 | G129: -41.25 | H129: 82.07 | I129: -0.14 | J129: =VLOOKUP(H129,'Process Nbgd'!A:H,8,1) -> 837.1284933 | K129: =VLOOKUP(H129,'Process Nbgd'!A:O,15,1) -> 546.8712444 | L129: =10*LOG(('Receiving Station Data'!$F$28+Nmeasured!J129+'Receiving Station Data'!$C$23)/(Nmeasured!J129+'Receiving Station Data'!$C$23)) -> 1.504559147 | M129: =10*LOG(('Receiving Station Data'!$F$28+Nmeasured!K129+'Receiving Station Data'!$C$23)/(Nmeasured!K129+'Receiving Station Data'!$C$23)) -> 2.066417793 | N129: =VLOOKUP(H129,'Process Nbgd'!A:E,5,1) -> -49.53045455 | O129: =VLOOKUP(H129,'Process Nbgd'!A:L,12,1) -> -51.20866667 | P129: -1.274104602 | Q129: -0.1577511261 | R129: =IF(E129<>0,E129-'Receiving Station Data'!$C$25,0) -> 4.255333333
A130: 2011-04-02 | B130: 05:22:52 | C130: 0.224213 | D130: -48.35 | E130: -49.44 | F130: -46.12 | G130: -38.75 | H130: 82.1 | I130: -0.11 | J130: =VLOOKUP(H130,'Process Nbgd'!A:H,8,1) -> 831.4248629 | K130: =VLOOKUP(H130,'Process Nbgd'!A:O,15,1) -> 545.7560854 | L130: =10*LOG(('Receiving Station Data'!$F$28+Nmeasured!J130+'Receiving Station Data'!$C$23)/(Nmeasured!J130+'Receiving Station Data'!$C$23)) -> 1.512611285 | M130: =10*LOG(('Receiving Station Data'!$F$28+Nmeasured!K130+'Receiving Station Data'!$C$23)/(Nmeasured!K130+'Receiving Station Data'!$C$23)) -> 2.069402147 | N130: =VLOOKUP(H130,'Process Nbgd'!A:E,5,1) -> -49.55789394 | O130: =VLOOKUP(H130,'Process Nbgd'!A:L,12,1) -> -51.21654444 | P130: -1.394717346 | Q130: -0.292857703 | R130: =IF(E130<>0,E130-'Receiving Station Data'!$C$25,0) -> 4.115333333
A131: 2011-04-02 | B131: 05:23:02 | C131: =ROUND(B131,6) -> 0.224329 | D131: -48.95 | E131: -50.3 | F131: -46.44 | G131: -40.84 | H131: 82.13 | I131: -0.09 | J131: =VLOOKUP(H131,'Process Nbgd'!A:H,8,1) -> 831.4248629 | K131: =VLOOKUP(H131,'Process Nbgd'!A:O,15,1) -> 545.7560854 | L131: =10*LOG(('Receiving Station Data'!$F$28+Nmeasured!J131+'Receiving Station Data'!$C$23)/(Nmeasured!J131+'Receiving Station Data'!$C$23)) -> 1.512611285 | M131: =10*LOG(('Receiving Station Data'!$F$28+Nmeasured!K131+'Receiving Station Data'!$C$23)/(Nmeasured!K131+'Receiving Station Data'!$C$23)) -> 2.069402147 | N131: =VLOOKUP(H131,'Process Nbgd'!A:E,5,1) -> -49.55789394 | O131: =VLOOKUP(H131,'Process Nbgd'!A:L,12,1) -> -51.21654444 | P131: =E131-N131-L131 -> -2.254717346 | Q131: =E131-O131-M131 -> -1.152857703 | R131: =IF(E131<>0,E131-'Receiving Station Data'!$C$25,0) -> 3.255333333
A132: 2011-04-02 | B132: 05:23:12 | C132: 0.224444 | D132: -48.39 | E132: -49.25 | F132: -46.07 | G132: -40.16 | H132: 82.17 | I132: -0.06 | J132: =VLOOKUP(H132,'Process Nbgd'!A:H,8,1) -> 831.4248629 | K132: =VLOOKUP(H132,'Process Nbgd'!A:O,15,1) -> 545.7560854 | L132: =10*LOG(('Receiving Station Data'!$F$28+Nmeasured!J132+'Receiving Station Data'!$C$23)/(Nmeasured!J132+'Receiving Station Data'!$C$23)) -> 1.512611285 | M132: =10*LOG(('Receiving Station Data'!$F$28+Nmeasured!K132+'Receiving Station Data'!$C$23)/(Nmeasured!K132+'Receiving Station Data'!$C$23)) -> 2.069402147 | N132: =VLOOKUP(H132,'Process Nbgd'!A:E,5,1) -> -49.55789394 | O132: =VLOOKUP(H132,'Process Nbgd'!A:L,12,1) -> -51.21654444 | P132: -1.204717346 | Q132: -0.102857703 | R132: =IF(E132<>0,E132-'Receiving Station Data'!$C$25,0) -> 4.305333333
A133: 2011-04-02 | B133: 05:23:22 | C133: 0.22456 | D133: -47.76 | E133: -48.67 | F133: -45.33 | G133: -38.02 | H133: 82.2 | I133: -0.04 | J133: =VLOOKUP(H133,'Process Nbgd'!A:H,8,1) -> 825.7571554 | K133: =VLOOKUP(H133,'Process Nbgd'!A:O,15,1) -> 544.6429474 | L133: =10*LOG(('Receiving Station Data'!$F$28+Nmeasured!J133+'Receiving Station Data'!$C$23)/(Nmeasured!J133+'Receiving Station Data'!$C$23)) -> 1.520699415 | M133: =10*LOG(('Receiving Station Data'!$F$28+Nmeasured!K133+'Receiving Station Data'!$C$23)/(Nmeasured!K133+'Receiving Station Data'!$C$23)) -> 2.072389866 | N133: =VLOOKUP(H133,'Process Nbgd'!A:E,5,1) -> -49.58533333 | O133: =VLOOKUP(H133,'Process Nbgd'!A:L,12,1) -> -51.22442222 | P133: -0.6053660813 | Q133: 0.4820323567 | R133: =IF(E133<>0,E133-'Receiving Station Data'!$C$25,0) -> 4.885333333
A134: 2011-04-02 | B134: 05:23:32 | C134: 0.224676 | D134: -46.97 | E134: -49.81 | F134: -44.92 | G134: -38.59 | H134: 82.23 | I134: -0.01 | J134: =VLOOKUP(H134,'Process Nbgd'!A:H,8,1) -> 825.7571554 | K134: =VLOOKUP(H134,'Process Nbgd'!A:O,15,1) -> 544.6429474 | L134: =10*LOG(('Receiving Station Data'!$F$28+Nmeasured!J134+'Receiving Station Data'!$C$23)/(Nmeasured!J134+'Receiving Station Data'!$C$23)) -> 1.520699415 | M134: =10*LOG(('Receiving Station Data'!$F$28+Nmeasured!K134+'Receiving Station Data'!$C$23)/(Nmeasured!K134+'Receiving Station Data'!$C$23)) -> 2.072389866 | N134: =VLOOKUP(H134,'Process Nbgd'!A:E,5,1) -> -49.58533333 | O134: =VLOOKUP(H134,'Process Nbgd'!A:L,12,1) -> -51.22442222 | P134: -1.745366081 | Q134: -0.6579676433 | R134: =IF(E134<>0,E134-'Receiving Station Data'!$C$25,0) -> 3.745333333
A135: 2011-04-02 | B135: 05:23:42 | C135: 0.224792 | D135: -46.69 | E135: -49.34 | F135: -44.77 | G135: -39.01 | H135: 82.26 | I135: 0.02 | J135: =VLOOKUP(H135,'Process Nbgd'!A:H,8,1) -> 825.7571554 | K135: =VLOOKUP(H135,'Process Nbgd'!A:O,15,1) -> 544.6429474 | L135: =10*LOG(('Receiving Station Data'!$F$28+Nmeasured!J135+'Receiving Station Data'!$C$23)/(Nmeasured!J135+'Receiving Station Data'!$C$23)) -> 1.520699415 | M135: =10*LOG(('Receiving Station Data'!$F$28+Nmeasured!K135+'Receiving Station Data'!$C$23)/(Nmeasured!K135+'Receiving Station Data'!$C$23)) -> 2.072389866 | N135: =VLOOKUP(H135,'Process Nbgd'!A:E,5,1) -> -49.58533333 | O135: =VLOOKUP(H135,'Process Nbgd'!A:L,12,1) -> -51.22442222 | P135: -1.275366081 | Q135: -0.1879676433 | R135: =IF(E135<>0,E135-'Receiving Station Data'!$C$25,0) -> 4.215333333
A136: 2011-04-02 | B136: 05:23:52 | C136: 0.224907 | D136: -48.18 | E136: -48.18 | F136: -45.7 | G136: -39.09 | H136: 82.29 | I136: 0.04 | J136: =VLOOKUP(H136,'Process Nbgd'!A:H,8,1) -> 825.7571554 | K136: =VLOOKUP(H136,'Process Nbgd'!A:O,15,1) -> 544.6429474 | L136: =10*LOG(('Receiving Station Data'!$F$28+Nmeasured!J136+'Receiving Station Data'!$C$23)/(Nmeasured!J136+'Receiving Station Data'!$C$23)) -> 1.520699415 | M136: =10*LOG(('Receiving Station Data'!$F$28+Nmeasured!K136+'Receiving Station Data'!$C$23)/(Nmeasured!K136+'Receiving Station Data'!$C$23)) -> 2.072389866 | N136: =VLOOKUP(H136,'Process Nbgd'!A:E,5,1) -> -49.58533333 | O136: =VLOOKUP(H136,'Process Nbgd'!A:L,12,1) -> -51.22442222 | P136: -0.1153660813 | Q136: 0.9720323567 | R136: =IF(E136<>0,E136-'Receiving Station Data'!$C$25,0) -> 5.375333333
A137: 2011-04-02 | B137: 05:24:02 | C137: 0.225023 | D137: -48.67 | E137: -49.17 | F137: -46.54 | G137: -38.69 | H137: 82.33 | I137: 0.07 | J137: =VLOOKUP(H137,'Process Nbgd'!A:H,8,1) -> 820.1251445 | K137: =VLOOKUP(H137,'Process Nbgd'!A:O,15,1) -> 543.5318267 | L137: =10*LOG(('Receiving Station Data'!$F$28+Nmeasured!J137+'Receiving Station Data'!$C$23)/(Nmeasured!J137+'Receiving Station Data'!$C$23)) -> 1.52882363 | M137: =10*LOG(('Receiving Station Data'!$F$28+Nmeasured!K137+'Receiving Station Data'!$C$23)/(Nmeasured!K137+'Receiving Station Data'!$C$23)) -> 2.075380948 | N137: =VLOOKUP(H137,'Process Nbgd'!A:E,5,1) -> -49.61277273 | O137: =VLOOKUP(H137,'Process Nbgd'!A:L,12,1) -> -51.2323 | P137: -1.086050903 | Q137: -0.01308094844 | R137: =IF(E137<>0,E137-'Receiving Station Data'!$C$25,0) -> 4.385333333
A138: 2011-04-02 | B138: 05:24:12 | C138: 0.225139 | D138: -46.89 | E138: -48.46 | F138: -45.26 | G138: -37.88 | H138: 82.36 | I138: 0.1 | J138: =VLOOKUP(H138,'Process Nbgd'!A:H,8,1) -> 820.1251445 | K138: =VLOOKUP(H138,'Process Nbgd'!A:O,15,1) -> 543.5318267 | L138: =10*LOG(('Receiving Station Data'!$F$28+Nmeasured!J138+'Receiving Station Data'!$C$23)/(Nmeasured!J138+'Receiving Station Data'!$C$23)) -> 1.52882363 | M138: =10*LOG(('Receiving Station Data'!$F$28+Nmeasured!K138+'Receiving Station Data'!$C$23)/(Nmeasured!K138+'Receiving Station Data'!$C$23)) -> 2.075380948 | N138: =VLOOKUP(H138,'Process Nbgd'!A:E,5,1) -> -49.61277273 | O138: =VLOOKUP(H138,'Process Nbgd'!A:L,12,1) -> -51.2323 | P138: -0.3760509028 | Q138: 0.6969190516 | R138: =IF(E138<>0,E138-'Receiving Station Data'!$C$25,0) -> 5.095333333
A139: 2011-04-02 | B139: 05:24:22 | C139: 0.225255 | D139: -47.42 | E139: -48.24 | F139: -45.65 | G139: -39.11 | H139: 82.39 | I139: 0.12 | J139: =VLOOKUP(H139,'Process Nbgd'!A:H,8,1) -> 820.1251445 | K139: =VLOOKUP(H139,'Process Nbgd'!A:O,15,1) -> 543.5318267 | L139: =10*LOG(('Receiving Station Data'!$F$28+Nmeasured!J139+'Receiving Station Data'!$C$23)/(Nmeasured!J139+'Receiving Station Data'!$C$23)) -> 1.52882363 | M139: =10*LOG(('Receiving Station Data'!$F$28+Nmeasured!K139+'Receiving Station Data'!$C$23)/(Nmeasured!K139+'Receiving Station Data'!$C$23)) -> 2.075380948 | N139: =VLOOKUP(H139,'Process Nbgd'!A:E,5,1) -> -49.61277273 | O139: =VLOOKUP(H139,'Process Nbgd'!A:L,12,1) -> -51.2323 | P139: -0.1560509028 | Q139: 0.9169190516 | R139: =IF(E139<>0,E139-'Receiving Station Data'!$C$25,0) -> 5.315333333
A140: 2011-04-02 | B140: 05:24:32 | C140: 0.22537 | D140: -46.85 | E140: -48.44 | F140: -44.89 | G140: -37.68 | H140: 82.42 | I140: 0.15 | J140: =VLOOKUP(H140,'Process Nbgd'!A:H,8,1) -> 814.5286053 | K140: =VLOOKUP(H140,'Process Nbgd'!A:O,15,1) -> 542.4227197 | L140: =10*LOG(('Receiving Station Data'!$F$28+Nmeasured!J140+'Receiving Station Data'!$C$23)/(Nmeasured!J140+'Receiving Station Data'!$C$23)) -> 1.536984024 | M140: =10*LOG(('Receiving Station Data'!$F$28+Nmeasured!K140+'Receiving Station Data'!$C$23)/(Nmeasured!K140+'Receiving Station Data'!$C$23)) -> 2.078375398 | N140: =VLOOKUP(H140,'Process Nbgd'!A:E,5,1) -> -49.64021212 | O140: =VLOOKUP(H140,'Process Nbgd'!A:L,12,1) -> -51.24017778 | P140: -0.336771903 | Q140: 0.7218023801 | R140: =IF(E140<>0,E140-'Receiving Station Data'!$C$25,0) -> 5.115333333
A141: 2011-04-02 | B141: 05:24:42 | C141: 0.225486 | D141: -47.19 | E141: -47.66 | F141: -44.9 | G141: -39.12 | H141: 82.45 | I141: 0.17 | J141: =VLOOKUP(H141,'Process Nbgd'!A:H,8,1) -> 814.5286053 | K141: =VLOOKUP(H141,'Process Nbgd'!A:O,15,1) -> 542.4227197 | L141: =10*LOG(('Receiving Station Data'!$F$28+Nmeasured!J141+'Receiving Station Data'!$C$23)/(Nmeasured!J141+'Receiving Station Data'!$C$23)) -> 1.536984024 | M141: =10*LOG(('Receiving Station Data'!$F$28+Nmeasured!K141+'Receiving Station Data'!$C$23)/(Nmeasured!K141+'Receiving Station Data'!$C$23)) -> 2.078375398 | N141: =VLOOKUP(H141,'Process Nbgd'!A:E,5,1) -> -49.64021212 | O141: =VLOOKUP(H141,'Process Nbgd'!A:L,12,1) -> -51.24017778 | P141: 0.443228097 | Q141: 1.50180238 | R141: =IF(E141<>0,E141-'Receiving Station Data'!$C$25,0) -> 5.895333333
A142: 2011-04-02 | B142: 05:24:52 | C142: 0.225602 | D142: -47.49 | E142: -47.99 | F142: -44.1 | G142: -37.88 | H142: 82.49 | I142: 0.2 | J142: =VLOOKUP(H142,'Process Nbgd'!A:H,8,1) -> 814.5286053 | K142: =VLOOKUP(H142,'Process Nbgd'!A:O,15,1) -> 542.4227197 | L142: =10*LOG(('Receiving Station Data'!$F$28+Nmeasured!J142+'Receiving Station Data'!$C$23)/(Nmeasured!J142+'Receiving Station Data'!$C$23)) -> 1.536984024 | M142: =10*LOG(('Receiving Station Data'!$F$28+Nmeasured!K142+'Receiving Station Data'!$C$23)/(Nmeasured!K142+'Receiving Station Data'!$C$23)) -> 2.078375398 | N142: =VLOOKUP(H142,'Process Nbgd'!A:E,5,1) -> -49.64021212 | O142: =VLOOKUP(H142,'Process Nbgd'!A:L,12,1) -> -51.24017778 | P142: 0.113228097 | Q142: 1.17180238 | R142: =IF(E142<>0,E142-'Receiving Station Data'!$C$25,0) -> 5.565333333
A143: 2011-04-02 | B143: 05:25:02 | C143: 0.225718 | D143: -45.72 | E143: -47.23 | F143: -43.5 | G143: -37.67 | H143: 82.52 | I143: 0.23 | J143: =VLOOKUP(H143,'Process Nbgd'!A:H,8,1) -> 808.9673144 | K143: =VLOOKUP(H143,'Process Nbgd'!A:O,15,1) -> 541.3156227 | L143: =10*LOG(('Receiving Station Data'!$F$28+Nmeasured!J143+'Receiving Station Data'!$C$23)/(Nmeasured!J143+'Receiving Station Data'!$C$23)) -> 1.54518069 | M143: =10*LOG(('Receiving Station Data'!$F$28+Nmeasured!K143+'Receiving Station Data'!$C$23)/(Nmeasured!K143+'Receiving Station Data'!$C$23)) -> 2.081373215 | N143: =VLOOKUP(H143,'Process Nbgd'!A:E,5,1) -> -49.66765152 | O143: =VLOOKUP(H143,'Process Nbgd'!A:L,12,1) -> -51.24805556 | P143: 0.8924708252 | Q143: 1.936682341 | R143: =IF(E143<>0,E143-'Receiving Station Data'!$C$25,0) -> 6.325333333
A144: 2011-04-02 | B144: 05:25:12 | C144: 0.225833 | D144: -46.03 | E144: -47.26 | F144: -43.41 | G144: -36.03 | H144: 82.55 | I144: 0.25 | J144: =VLOOKUP(H144,'Process Nbgd'!A:H,8,1) -> 808.9673144 | K144: =VLOOKUP(H144,'Process Nbgd'!A:O,15,1) -> 541.3156227 | L144: =10*LOG(('Receiving Station Data'!$F$28+Nmeasured!J144+'Receiving Station Data'!$C$23)/(Nmeasured!J144+'Receiving Station Data'!$C$23)) -> 1.54518069 | M144: =10*LOG(('Receiving Station Data'!$F$28+Nmeasured!K144+'Receiving Station Data'!$C$23)/(Nmeasured!K144+'Receiving Station Data'!$C$23)) -> 2.081373215 | N144: =VLOOKUP(H144,'Process Nbgd'!A:E,5,1) -> -49.66765152 | O144: =VLOOKUP(H144,'Process Nbgd'!A:L,12,1) -> -51.24805556 | P144: 0.8624708252 | Q144: 1.906682341 | R144: =IF(E144<>0,E144-'Receiving Station Data'!$C$25,0) -> 6.295333333
A145: 2011-04-02 | B145: 05:25:22 | C145: 0.225949 | D145: -45.78 | E145: -47.14 | F145: -44.41 | G145: -38.38 | H145: 82.58 | I145: 0.28 | J145: =VLOOKUP(H145,'Process Nbgd'!A:H,8,1) -> 808.9673144 | K145: =VLOOKUP(H145,'Process Nbgd'!A:O,15,1) -> 541.3156227 | L145: =10*LOG(('Receiving Station Data'!$F$28+Nmeasured!J145+'Receiving Station Data'!$C$23)/(Nmeasured!J145+'Receiving Station Data'!$C$23)) -> 1.54518069 | M145: =10*LOG(('Receiving Station Data'!$F$28+Nmeasured!K145+'Receiving Station Data'!$C$23)/(Nmeasured!K145+'Receiving Station Data'!$C$23)) -> 2.081373215 | N145: =VLOOKUP(H145,'Process Nbgd'!A:E,5,1) -> -49.66765152 | O145: =VLOOKUP(H145,'Process Nbgd'!A:L,12,1) -> -51.24805556 | P145: 0.9824708252 | Q145: 2.026682341 | R145: =IF(E145<>0,E145-'Receiving Station Data'!$C$25,0) -> 6.415333333
A146: 2011-04-02 | B146: 05:25:32 | C146: 0.226065 | D146: -47.45 | E146: -47.45 | F146: -44.53 | G146: -38.85 | H146: 82.62 | I146: 0.31 | J146: =VLOOKUP(H146,'Process Nbgd'!A:H,8,1) -> 803.4410498 | K146: =VLOOKUP(H146,'Process Nbgd'!A:O,15,1) -> 540.2105321 | L146: =10*LOG(('Receiving Station Data'!$F$28+Nmeasured!J146+'Receiving Station Data'!$C$23)/(Nmeasured!J146+'Receiving Station Data'!$C$23)) -> 1.55341372 | M146: =10*LOG(('Receiving Station Data'!$F$28+Nmeasured!K146+'Receiving Station Data'!$C$23)/(Nmeasured!K146+'Receiving Station Data'!$C$23)) -> 2.084374401 | N146: =VLOOKUP(H146,'Process Nbgd'!A:E,5,1) -> -49.69509091 | O146: =VLOOKUP(H146,'Process Nbgd'!A:L,12,1) -> -51.25593333 | P146: 0.6916771895 | Q146: 1.721558932 | R146: =IF(E146<>0,E146-'Receiving Station Data'!$C$25,0) -> 6.105333333
A147: 2011-04-02 | B147: 05:25:42 | C147: 0.226181 | D147: -45.34 | E147: -47.14 | F147: -43.26 | G147: -37.03 | H147: 82.65 | I147: 0.33 | J147: =VLOOKUP(H147,'Process Nbgd'!A:H,8,1) -> 803.4410498 | K147: =VLOOKUP(H147,'Process Nbgd'!A:O,15,1) -> 540.2105321 | L147: =10*LOG(('Receiving Station Data'!$F$28+Nmeasured!J147+'Receiving Station Data'!$C$23)/(Nmeasured!J147+'Receiving Station Data'!$C$23)) -> 1.55341372 | M147: =10*LOG(('Receiving Station Data'!$F$28+Nmeasured!K147+'Receiving Station Data'!$C$23)/(Nmeasured!K147+'Receiving Station Data'!$C$23)) -> 2.084374401 | N147: =VLOOKUP(H147,'Process Nbgd'!A:E,5,1) -> -49.69509091 | O147: =VLOOKUP(H147,'Process Nbgd'!A:L,12,1) -> -51.25593333 | P147: 1.00167719 | Q147: 2.031558932 | R147: =IF(E147<>0,E147-'Receiving Station Data'!$C$25,0) -> 6.415333333
A148: 2011-04-02 | B148: 05:25:52 | C148: 0.226296 | D148: -44.48 | E148: -47.62 | F148: -42.17 | G148: -36.98 | H148: 82.68 | I148: 0.36 | J148: =VLOOKUP(H148,'Process Nbgd'!A:H,8,1) -> 803.4410498 | K148: =VLOOKUP(H148,'Process Nbgd'!A:O,15,1) -> 540.2105321 | L148: =10*LOG(('Receiving Station Data'!$F$28+Nmeasured!J148+'Receiving Station Data'!$C$23)/(Nmeasured!J148+'Receiving Station Data'!$C$23)) -> 1.55341372 | M148: =10*LOG(('Receiving Station Data'!$F$28+Nmeasured!K148+'Receiving Station Data'!$C$23)/(Nmeasured!K148+'Receiving Station Data'!$C$23)) -> 2.084374401 | N148: =VLOOKUP(H148,'Process Nbgd'!A:E,5,1) -> -49.69509091 | O148: =VLOOKUP(H148,'Process Nbgd'!A:L,12,1) -> -51.25593333 | P148: 0.5216771895 | Q148: 1.551558932 | R148: =IF(E148<>0,E148-'Receiving Station Data'!$C$25,0) -> 5.935333333
A149: 2011-04-02 | B149: 05:26:02 | C149: 0.226412 | D149: -43.69 | E149: -46.94 | F149: -42.31 | G149: -36.46 | H149: 82.71 | I149: 0.38 | J149: =VLOOKUP(H149,'Process Nbgd'!A:H,8,1) -> 797.949591 | K149: =VLOOKUP(H149,'Process Nbgd'!A:O,15,1) -> 539.1074442 | L149: =10*LOG(('Receiving Station Data'!$F$28+Nmeasured!J149+'Receiving Station Data'!$C$23)/(Nmeasured!J149+'Receiving Station Data'!$C$23)) -> 1.561683205 | M149: =10*LOG(('Receiving Station Data'!$F$28+Nmeasured!K149+'Receiving Station Data'!$C$23)/(Nmeasured!K149+'Receiving Station Data'!$C$23)) -> 2.087378958 | N149: =VLOOKUP(H149,'Process Nbgd'!A:E,5,1) -> -49.7225303 | O149: =VLOOKUP(H149,'Process Nbgd'!A:L,12,1) -> -51.26381111 | P149: 1.220847098 | Q149: 2.236432153 | R149: =IF(E149<>0,E149-'Receiving Station Data'!$C$25,0) -> 6.615333333
A150: 2011-04-02 | B150: 05:26:12 | C150: 0.226528 | D150: -45.3 | E150: -45.39 | F150: -42.61 | G150: -35.66 | H150: 82.74 | I150: 0.41 | J150: =VLOOKUP(H150,'Process Nbgd'!A:H,8,1) -> 797.949591 | K150: =VLOOKUP(H150,'Process Nbgd'!A:O,15,1) -> 539.1074442 | L150: =10*LOG(('Receiving Station Data'!$F$28+Nmeasured!J150+'Receiving Station Data'!$C$23)/(Nmeasured!J150+'Receiving Station Data'!$C$23)) -> 1.561683205 | M150: =10*LOG(('Receiving Station Data'!$F$28+Nmeasured!K150+'Receiving Station Data'!$C$23)/(Nmeasured!K150+'Receiving Station Data'!$C$23)) -> 2.087378958 | N150: =VLOOKUP(H150,'Process Nbgd'!A:E,5,1) -> -49.7225303 | O150: =VLOOKUP(H150,'Process Nbgd'!A:L,12,1) -> -51.26381111 | P150: 2.770847098 | Q150: 3.786432153 | R150: =IF(E150<>0,E150-'Receiving Station Data'!$C$25,0) -> 8.165333333
A151: 2011-04-02 | B151: 05:26:22 | C151: 0.226644 | D151: -44.96 | E151: -45.33 | F151: -43.72 | G151: -38.64 | H151: 82.78 | I151: 0.44 | J151: =VLOOKUP(H151,'Process Nbgd'!A:H,8,1) -> 797.949591 | K151: =VLOOKUP(H151,'Process Nbgd'!A:O,15,1) -> 539.1074442 | L151: =10*LOG(('Receiving Station Data'!$F$28+Nmeasured!J151+'Receiving Station Data'!$C$23)/(Nmeasured!J151+'Receiving Station Data'!$C$23)) -> 1.561683205 | M151: =10*LOG(('Receiving Station Data'!$F$28+Nmeasured!K151+'Receiving Station Data'!$C$23)/(Nmeasured!K151+'Receiving Station Data'!$C$23)) -> 2.087378958 | N151: =VLOOKUP(H151,'Process Nbgd'!A:E,5,1) -> -49.7225303 | O151: =VLOOKUP(H151,'Process Nbgd'!A:L,12,1) -> -51.26381111 | P151: 2.830847098 | Q151: 3.846432153 | R151: =IF(E151<>0,E151-'Receiving Station Data'!$C$25,0) -> 8.225333333
A152: 2011-04-02 | B152: 05:26:32 | C152: 0.226759 | D152: -45.32 | E152: -46.03 | F152: -42.5 | G152: -35.46 | H152: 82.81 | I152: 0.46 | J152: =VLOOKUP(H152,'Process Nbgd'!A:H,8,1) -> 792.4927186 | K152: =VLOOKUP(H152,'Process Nbgd'!A:O,15,1) -> 538.0063554 | L152: =10*LOG(('Receiving Station Data'!$F$28+Nmeasured!J152+'Receiving Station Data'!$C$23)/(Nmeasured!J152+'Receiving Station Data'!$C$23)) -> 1.569989238 | M152: =10*LOG(('Receiving Station Data'!$F$28+Nmeasured!K152+'Receiving Station Data'!$C$23)/(Nmeasured!K152+'Receiving Station Data'!$C$23)) -> 2.090386887 | N152: =VLOOKUP(H152,'Process Nbgd'!A:E,5,1) -> -49.7499697 | O152: =VLOOKUP(H152,'Process Nbgd'!A:L,12,1) -> -51.27168889 | P152: 2.149980459 | Q152: 3.151302002 | R152: =IF(E152<>0,E152-'Receiving Station Data'!$C$25,0) -> 7.525333333
A153: 2011-04-02 | B153: 05:26:42 | C153: 0.226875 | D153: -43.97 | E153: -44.97 | F153: -40.92 | G153: -35.55 | H153: 82.84 | I153: 0.49 | J153: =VLOOKUP(H153,'Process Nbgd'!A:H,8,1) -> 792.4927186 | K153: =VLOOKUP(H153,'Process Nbgd'!A:O,15,1) -> 538.0063554 | L153: =10*LOG(('Receiving Station Data'!$F$28+Nmeasured!J153+'Receiving Station Data'!$C$23)/(Nmeasured!J153+'Receiving Station Data'!$C$23)) -> 1.569989238 | M153: =10*LOG(('Receiving Station Data'!$F$28+Nmeasured!K153+'Receiving Station Data'!$C$23)/(Nmeasured!K153+'Receiving Station Data'!$C$23)) -> 2.090386887 | N153: =VLOOKUP(H153,'Process Nbgd'!A:E,5,1) -> -49.7499697 | O153: =VLOOKUP(H153,'Process Nbgd'!A:L,12,1) -> -51.27168889 | P153: 3.209980459 | Q153: 4.211302002 | R153: =IF(E153<>0,E153-'Receiving Station Data'!$C$25,0) -> 8.585333333
A154: 2011-04-02 | B154: 05:26:52 | C154: 0.226991 | D154: -44.98 | E154: -45.33 | F154: -42.74 | G154: -36.52 | H154: 82.87 | I154: 0.52 | J154: =VLOOKUP(H154,'Process Nbgd'!A:H,8,1) -> 792.4927186 | K154: =VLOOKUP(H154,'Process Nbgd'!A:O,15,1) -> 538.0063554 | L154: =10*LOG(('Receiving Station Data'!$F$28+Nmeasured!J154+'Receiving Station Data'!$C$23)/(Nmeasured!J154+'Receiving Station Data'!$C$23)) -> 1.569989238 | M154: =10*LOG(('Receiving Station Data'!$F$28+Nmeasured!K154+'Receiving Station Data'!$C$23)/(Nmeasured!K154+'Receiving Station Data'!$C$23)) -> 2.090386887 | N154: =VLOOKUP(H154,'Process Nbgd'!A:E,5,1) -> -49.7499697 | O154: =VLOOKUP(H154,'Process Nbgd'!A:L,12,1) -> -51.27168889 | P154: 2.849980459 | Q154: 3.851302002 | R154: =IF(E154<>0,E154-'Receiving Station Data'!$C$25,0) -> 8.225333333
A155: 2011-04-02 | B155: 05:27:02 | C155: 0.227106 | D155: -44.57 | E155: -46.22 | F155: -42.24 | G155: -35.91 | H155: 82.9 | I155: 0.54 | J155: =VLOOKUP(H155,'Process Nbgd'!A:H,8,1) -> 787.070215 | K155: =VLOOKUP(H155,'Process Nbgd'!A:O,15,1) -> 536.9072621 | L155: =10*LOG(('Receiving Station Data'!$F$28+Nmeasured!J155+'Receiving Station Data'!$C$23)/(Nmeasured!J155+'Receiving Station Data'!$C$23)) -> 1.57833191 | M155: =10*LOG(('Receiving Station Data'!$F$28+Nmeasured!K155+'Receiving Station Data'!$C$23)/(Nmeasured!K155+'Receiving Station Data'!$C$23)) -> 2.09339819 | N155: =VLOOKUP(H155,'Process Nbgd'!A:E,5,1) -> -49.77740909 | O155: =VLOOKUP(H155,'Process Nbgd'!A:L,12,1) -> -51.27956667 | P155: 1.979077181 | Q155: 2.966168477 | R155: =IF(E155<>0,E155-'Receiving Station Data'!$C$25,0) -> 7.335333333
A156: 2011-04-02 | B156: 05:27:12 | C156: 0.227222 | D156: -44.74 | E156: -46.65 | F156: -42.61 | G156: -37.16 | H156: 82.94 | I156: 0.57 | J156: =VLOOKUP(H156,'Process Nbgd'!A:H,8,1) -> 787.070215 | K156: =VLOOKUP(H156,'Process Nbgd'!A:O,15,1) -> 536.9072621 | L156: =10*LOG(('Receiving Station Data'!$F$28+Nmeasured!J156+'Receiving Station Data'!$C$23)/(Nmeasured!J156+'Receiving Station Data'!$C$23)) -> 1.57833191 | M156: =10*LOG(('Receiving Station Data'!$F$28+Nmeasured!K156+'Receiving Station Data'!$C$23)/(Nmeasured!K156+'Receiving Station Data'!$C$23)) -> 2.09339819 | N156: =VLOOKUP(H156,'Process Nbgd'!A:E,5,1) -> -49.77740909 | O156: =VLOOKUP(H156,'Process Nbgd'!A:L,12,1) -> -51.27956667 | P156: 1.549077181 | Q156: 2.536168477 | R156: =IF(E156<>0,E156-'Receiving Station Data'!$C$25,0) -> 6.905333333
A157: 2011-04-02 | B157: 05:27:22 | C157: 0.227338 | D157: -46.13 | E157: -46.13 | F157: -43.91 | G157: -37.25 | H157: 82.97 | I157: 0.59 | J157: =VLOOKUP(H157,'Process Nbgd'!A:H,8,1) -> 787.070215 | K157: =VLOOKUP(H157,'Process Nbgd'!A:O,15,1) -> 536.9072621 | L157: =10*LOG(('Receiving Station Data'!$F$28+Nmeasured!J157+'Receiving Station Data'!$C$23)/(Nmeasured!J157+'Receiving Station Data'!$C$23)) -> 1.57833191 | M157: =10*LOG(('Receiving Station Data'!$F$28+Nmeasured!K157+'Receiving Station Data'!$C$23)/(Nmeasured!K157+'Receiving Station Data'!$C$23)) -> 2.09339819 | N157: =VLOOKUP(H157,'Process Nbgd'!A:E,5,1) -> -49.77740909 | O157: =VLOOKUP(H157,'Process Nbgd'!A:L,12,1) -> -51.27956667 | P157: 2.069077181 | Q157: 3.056168477 | R157: =IF(E157<>0,E157-'Receiving Station Data'!$C$25,0) -> 7.425333333
A158: 2011-04-02 | B158: 05:27:32 | C158: 0.227454 | D158: -45.11 | E158: -46.57 | F158: -43.32 | G158: -38.95 | H158: 83 | I158: 0.62 | J158: =VLOOKUP(H158,'Process Nbgd'!A:H,8,1) -> 781.6818635 | K158: =VLOOKUP(H158,'Process Nbgd'!A:O,15,1) -> 535.8101606 | L158: =10*LOG(('Receiving Station Data'!$F$28+Nmeasured!J158+'Receiving Station Data'!$C$23)/(Nmeasured!J158+'Receiving Station Data'!$C$23)) -> 1.586711311 | M158: =10*LOG(('Receiving Station Data'!$F$28+Nmeasured!K158+'Receiving Station Data'!$C$23)/(Nmeasured!K158+'Receiving Station Data'!$C$23)) -> 2.096412867 | N158: =VLOOKUP(H158,'Process Nbgd'!A:E,5,1) -> -49.80484848 | O158: =VLOOKUP(H158,'Process Nbgd'!A:L,12,1) -> -51.28744444 | P158: 1.648137174 | Q158: 2.621031577 | R158: =IF(E158<>0,E158-'Receiving Station Data'!$C$25,0) -> 6.985333333
A159: 2011-04-02 | B159: 05:27:42 | C159: 0.227569 | D159: -46.91 | E159: -46.91 | F159: -44.32 | G159: -37.61 | H159: 83.03 | I159: 0.65 | J159: =VLOOKUP(H159,'Process Nbgd'!A:H,8,1) -> 781.6818635 | K159: =VLOOKUP(H159,'Process Nbgd'!A:O,15,1) -> 535.8101606 | L159: =10*LOG(('Receiving Station Data'!$F$28+Nmeasured!J159+'Receiving Station Data'!$C$23)/(Nmeasured!J159+'Receiving Station Data'!$C$23)) -> 1.586711311 | M159: =10*LOG(('Receiving Station Data'!$F$28+Nmeasured!K159+'Receiving Station Data'!$C$23)/(Nmeasured!K159+'Receiving Station Data'!$C$23)) -> 2.096412867 | N159: =VLOOKUP(H159,'Process Nbgd'!A:E,5,1) -> -49.80484848 | O159: =VLOOKUP(H159,'Process Nbgd'!A:L,12,1) -> -51.28744444 | P159: 1.308137174 | Q159: 2.281031577 | R159: =IF(E159<>0,E159-'Receiving Station Data'!$C$25,0) -> 6.645333333
A160: 2011-04-02 | B160: 05:27:52 | C160: 0.227685 | D160: -44.94 | E160: -46.85 | F160: -43.04 | G160: -38.26 | H160: 83.07 | I160: 0.67 | J160: =VLOOKUP(H160,'Process Nbgd'!A:H,8,1) -> 781.6818635 | K160: =VLOOKUP(H160,'Process Nbgd'!A:O,15,1) -> 535.8101606 | L160: =10*LOG(('Receiving Station Data'!$F$28+Nmeasured!J160+'Receiving Station Data'!$C$23)/(Nmeasured!J160+'Receiving Station Data'!$C$23)) -> 1.586711311 | M160: =10*LOG(('Receiving Station Data'!$F$28+Nmeasured!K160+'Receiving Station Data'!$C$23)/(Nmeasured!K160+'Receiving Station Data'!$C$23)) -> 2.096412867 | N160: =VLOOKUP(H160,'Process Nbgd'!A:E,5,1) -> -49.80484848 | O160: =VLOOKUP(H160,'Process Nbgd'!A:L,12,1) -> -51.28744444 | P160: 1.368137174 | Q160: 2.341031577 | R160: =IF(E160<>0,E160-'Receiving Station Data'!$C$25,0) -> 6.705333333
A161: 2011-04-02 | B161: 05:28:02 | C161: 0.227801 | D161: -45.53 | E161: -47.1 | F161: -43.47 | G161: -36.61 | H161: 83.1 | I161: 0.7 | J161: =VLOOKUP(H161,'Process Nbgd'!A:H,8,1) -> 776.3274492 | K161: =VLOOKUP(H161,'Process Nbgd'!A:O,15,1) -> 534.7150474 | L161: =10*LOG(('Receiving Station Data'!$F$28+Nmeasured!J161+'Receiving Station Data'!$C$23)/(Nmeasured!J161+'Receiving Station Data'!$C$23)) -> 1.595127533 | M161: =10*LOG(('Receiving Station Data'!$F$28+Nmeasured!K161+'Receiving Station Data'!$C$23)/(Nmeasured!K161+'Receiving Station Data'!$C$23)) -> 2.099430921 | N161: =VLOOKUP(H161,'Process Nbgd'!A:E,5,1) -> -49.83228788 | O161: =VLOOKUP(H161,'Process Nbgd'!A:L,12,1) -> -51.29532222 | P161: 1.137160346 | Q161: 2.095891301 | R161: =IF(E161<>0,E161-'Receiving Station Data'!$C$25,0) -> 6.455333333
A162: 2011-04-02 | B162: 05:28:12 | C162: 0.227917 | D162: -45.54 | E162: -47.36 | F162: -43.1 | G162: -37.32 | H162: 83.13 | I162: 0.73 | J162: =VLOOKUP(H162,'Process Nbgd'!A:H,8,1) -> 776.3274492 | K162: =VLOOKUP(H162,'Process Nbgd'!A:O,15,1) -> 534.7150474 | L162: =10*LOG(('Receiving Station Data'!$F$28+Nmeasured!J162+'Receiving Station Data'!$C$23)/(Nmeasured!J162+'Receiving Station Data'!$C$23)) -> 1.595127533 | M162: =10*LOG(('Receiving Station Data'!$F$28+Nmeasured!K162+'Receiving Station Data'!$C$23)/(Nmeasured!K162+'Receiving Station Data'!$C$23)) -> 2.099430921 | N162: =VLOOKUP(H162,'Process Nbgd'!A:E,5,1) -> -49.83228788 | O162: =VLOOKUP(H162,'Process Nbgd'!A:L,12,1) -> -51.29532222 | P162: 0.8771603462 | Q162: 1.835891301 | R162: =IF(E162<>0,E162-'Receiving Station Data'!$C$25,0) -> 6.195333333
A163: 2011-04-02 | B163: 05:28:22 | C163: 0.228032 | D163: -45.28 | E163: -46.54 | F163: -43.5 | G163: -37.97 | H163: 83.16 | I163: 0.75 | J163: =VLOOKUP(H163,'Process Nbgd'!A:H,8,1) -> 776.3274492 | K163: =VLOOKUP(H163,'Process Nbgd'!A:O,15,1) -> 534.7150474 | L163: =10*LOG(('Receiving Station Data'!$F$28+Nmeasured!J163+'Receiving Station Data'!$C$23)/(Nmeasured!J163+'Receiving Station Data'!$C$23)) -> 1.595127533 | M163: =10*LOG(('Receiving Station Data'!$F$28+Nmeasured!K163+'Receiving Station Data'!$C$23)/(Nmeasured!K163+'Receiving Station Data'!$C$23)) -> 2.099430921 | N163: =VLOOKUP(H163,'Process Nbgd'!A:E,5,1) -> -49.83228788 | O163: =VLOOKUP(H163,'Process Nbgd'!A:L,12,1) -> -51.29532222 | P163: 1.697160346 | Q163: 2.655891301 | R163: =IF(E163<>0,E163-'Receiving Station Data'!$C$25,0) -> 7.015333333
A164: 2011-04-02 | B164: 05:28:32 | C164: 0.228148 | D164: -45.11 | E164: -45.67 | F164: -42.84 | G164: -36.47 | H164: 83.19 | I164: 0.78 | J164: =VLOOKUP(H164,'Process Nbgd'!A:H,8,1) -> 776.3274492 | K164: =VLOOKUP(H164,'Process Nbgd'!A:O,15,1) -> 534.7150474 | L164: =10*LOG(('Receiving Station Data'!$F$28+Nmeasured!J164+'Receiving Station Data'!$C$23)/(Nmeasured!J164+'Receiving Station Data'!$C$23)) -> 1.595127533 | M164: =10*LOG(('Receiving Station Data'!$F$28+Nmeasured!K164+'Receiving Station Data'!$C$23)/(Nmeasured!K164+'Receiving Station Data'!$C$23)) -> 2.099430921 | N164: =VLOOKUP(H164,'Process Nbgd'!A:E,5,1) -> -49.83228788 | O164: =VLOOKUP(H164,'Process Nbgd'!A:L,12,1) -> -51.29532222 | P164: 2.567160346 | Q164: 3.525891301 | R164: =IF(E164<>0,E164-'Receiving Station Data'!$C$25,0) -> 7.885333333
A165: 2011-04-02 | B165: 05:28:42 | C165: 0.228264 | D165: -42.55 | E165: -46.5 | F165: -41.02 | G165: -35.53 | H165: 83.23 | I165: 0.8 | J165: =VLOOKUP(H165,'Process Nbgd'!A:H,8,1) -> 771.0067582 | K165: =VLOOKUP(H165,'Process Nbgd'!A:O,15,1) -> 533.6219189 | L165: =10*LOG(('Receiving Station Data'!$F$28+Nmeasured!J165+'Receiving Station Data'!$C$23)/(Nmeasured!J165+'Receiving Station Data'!$C$23)) -> 1.603580664 | M165: =10*LOG(('Receiving Station Data'!$F$28+Nmeasured!K165+'Receiving Station Data'!$C$23)/(Nmeasured!K165+'Receiving Station Data'!$C$23)) -> 2.102452353 | N165: =VLOOKUP(H165,'Process Nbgd'!A:E,5,1) -> -49.85972727 | O165: =VLOOKUP(H165,'Process Nbgd'!A:L,12,1) -> -51.3032 | P165: 1.756146609 | Q165: 2.700747647 | R165: =IF(E165<>0,E165-'Receiving Station Data'!$C$25,0) -> 7.055333333
A166: 2011-04-02 | B166: 05:28:52 | C166: 0.22838 | D166: -43.01 | E166: -45.63 | F166: -40.01 | G166: -31.9 | H166: 83.26 | I166: 0.83 | J166: =VLOOKUP(H166,'Process Nbgd'!A:H,8,1) -> 771.0067582 | K166: =VLOOKUP(H166,'Process Nbgd'!A:O,15,1) -> 533.6219189 | L166: =10*LOG(('Receiving Station Data'!$F$28+Nmeasured!J166+'Receiving Station Data'!$C$23)/(Nmeasured!J166+'Receiving Station Data'!$C$23)) -> 1.603580664 | M166: =10*LOG(('Receiving Station Data'!$F$28+Nmeasured!K166+'Receiving Station Data'!$C$23)/(Nmeasured!K166+'Receiving Station Data'!$C$23)) -> 2.102452353 | N166: =VLOOKUP(H166,'Process Nbgd'!A:E,5,1) -> -49.85972727 | O166: =VLOOKUP(H166,'Process Nbgd'!A:L,12,1) -> -51.3032 | P166: 2.626146609 | Q166: 3.570747647 | R166: =IF(E166<>0,E166-'Receiving Station Data'!$C$25,0) -> 7.925333333
A167: 2011-04-02 | B167: 05:29:02 | C167: 0.228495 | D167: -45.39 | E167: -45.39 | F167: -43.38 | G167: -36.99 | H167: 83.29 | I167: 0.86 | J167: =VLOOKUP(H167,'Process Nbgd'!A:H,8,1) -> 771.0067582 | K167: =VLOOKUP(H167,'Process Nbgd'!A:O,15,1) -> 533.6219189 | L167: =10*LOG(('Receiving Station Data'!$F$28+Nmeasured!J167+'Receiving Station Data'!$C$23)/(Nmeasured!J167+'Receiving Station Data'!$C$23)) -> 1.603580664 | M167: =10*LOG(('Receiving Station Data'!$F$28+Nmeasured!K167+'Receiving Station Data'!$C$23)/(Nmeasured!K167+'Receiving Station Data'!$C$23)) -> 2.102452353 | N167: =VLOOKUP(H167,'Process Nbgd'!A:E,5,1) -> -49.85972727 | O167: =VLOOKUP(H167,'Process Nbgd'!A:L,12,1) -> -51.3032 | P167: 2.866146609 | Q167: 3.810747647 | R167: =IF(E167<>0,E167-'Receiving Station Data'!$C$25,0) -> 8.165333333
A168: 2011-04-02 | B168: 05:29:12 | C168: 0.228611 | D168: -45.41 | E168: -46.99 | F168: -43.56 | G168: -39.59 | H168: 83.32 | I168: 0.88 | J168: =VLOOKUP(H168,'Process Nbgd'!A:H,8,1) -> 765.7195782 | K168: =VLOOKUP(H168,'Process Nbgd'!A:O,15,1) -> 532.5307714 | L168: =10*LOG(('Receiving Station Data'!$F$28+Nmeasured!J168+'Receiving Station Data'!$C$23)/(Nmeasured!J168+'Receiving Station Data'!$C$23)) -> 1.612070795 | M168: =10*LOG(('Receiving Station Data'!$F$28+Nmeasured!K168+'Receiving Station Data'!$C$23)/(Nmeasured!K168+'Receiving Station Data'!$C$23)) -> 2.105477165 | N168: =VLOOKUP(H168,'Process Nbgd'!A:E,5,1) -> -49.88716667 | O168: =VLOOKUP(H168,'Process Nbgd'!A:L,12,1) -> -51.31107778 | P168: 1.285095872 | Q168: 2.215600613 | R168: =IF(E168<>0,E168-'Receiving Station Data'!$C$25,0) -> 6.565333333
A169: 2011-04-02 | B169: 05:29:22 | C169: 0.228727 | D169: -46.4 | E169: -46.4 | F169: -43.58 | G169: -37.6 | H169: 83.35 | I169: 0.91 | J169: =VLOOKUP(H169,'Process Nbgd'!A:H,8,1) -> 765.7195782 | K169: =VLOOKUP(H169,'Process Nbgd'!A:O,15,1) -> 532.5307714 | L169: =10*LOG(('Receiving Station Data'!$F$28+Nmeasured!J169+'Receiving Station Data'!$C$23)/(Nmeasured!J169+'Receiving Station Data'!$C$23)) -> 1.612070795 | M169: =10*LOG(('Receiving Station Data'!$F$28+Nmeasured!K169+'Receiving Station Data'!$C$23)/(Nmeasured!K169+'Receiving Station Data'!$C$23)) -> 2.105477165 | N169: =VLOOKUP(H169,'Process Nbgd'!A:E,5,1) -> -49.88716667 | O169: =VLOOKUP(H169,'Process Nbgd'!A:L,12,1) -> -51.31107778 | P169: 1.875095872 | Q169: 2.805600613 | R169: =IF(E169<>0,E169-'Receiving Station Data'!$C$25,0) -> 7.155333333
A170: 2011-04-02 | B170: 05:29:32 | C170: 0.228843 | D170: -47.31 | E170: -47.31 | F170: -44.99 | G170: -39.79 | H170: 83.39 | I170: 0.94 | J170: =VLOOKUP(H170,'Process Nbgd'!A:H,8,1) -> 765.7195782 | K170: =VLOOKUP(H170,'Process Nbgd'!A:O,15,1) -> 532.5307714 | L170: =10*LOG(('Receiving Station Data'!$F$28+Nmeasured!J170+'Receiving Station Data'!$C$23)/(Nmeasured!J170+'Receiving Station Data'!$C$23)) -> 1.612070795 | M170: =10*LOG(('Receiving Station Data'!$F$28+Nmeasured!K170+'Receiving Station Data'!$C$23)/(Nmeasured!K170+'Receiving Station Data'!$C$23)) -> 2.105477165 | N170: =VLOOKUP(H170,'Process Nbgd'!A:E,5,1) -> -49.88716667 | O170: =VLOOKUP(H170,'Process Nbgd'!A:L,12,1) -> -51.31107778 | P170: 0.9650958716 | Q170: 1.895600613 | R170: =IF(E170<>0,E170-'Receiving Station Data'!$C$25,0) -> 6.245333333
A171: 2011-04-02 | B171: 05:29:42 | C171: 0.228958 | D171: -44.96 | E171: -47.15 | F171: -42.41 | G171: -37.01 | H171: 83.42 | I171: 0.96 | J171: =VLOOKUP(H171,'Process Nbgd'!A:H,8,1) -> 760.4656981 | K171: =VLOOKUP(H171,'Process Nbgd'!A:O,15,1) -> 531.4416014 | L171: =10*LOG(('Receiving Station Data'!$F$28+Nmeasured!J171+'Receiving Station Data'!$C$23)/(Nmeasured!J171+'Receiving Station Data'!$C$23)) -> 1.620598015 | M171: =10*LOG(('Receiving Station Data'!$F$28+Nmeasured!K171+'Receiving Station Data'!$C$23)/(Nmeasured!K171+'Receiving Station Data'!$C$23)) -> 2.108505357 | N171: =VLOOKUP(H171,'Process Nbgd'!A:E,5,1) -> -49.91460606 | O171: =VLOOKUP(H171,'Process Nbgd'!A:L,12,1) -> -51.31895556 | P171: 1.144008046 | Q171: 2.060450199 | R171: =IF(E171<>0,E171-'Receiving Station Data'!$C$25,0) -> 6.405333333
A172: 2011-04-02 | B172: 05:29:52 | C172: 0.229074 | D172: -47.57 | E172: -47.57 | F172: -45.09 | G172: -39.79 | H172: 83.45 | I172: 0.99 | J172: =VLOOKUP(H172,'Process Nbgd'!A:H,8,1) -> 760.4656981 | K172: =VLOOKUP(H172,'Process Nbgd'!A:O,15,1) -> 531.4416014 | L172: =10*LOG(('Receiving Station Data'!$F$28+Nmeasured!J172+'Receiving Station Data'!$C$23)/(Nmeasured!J172+'Receiving Station Data'!$C$23)) -> 1.620598015 | M172: =10*LOG(('Receiving Station Data'!$F$28+Nmeasured!K172+'Receiving Station Data'!$C$23)/(Nmeasured!K172+'Receiving Station Data'!$C$23)) -> 2.108505357 | N172: =VLOOKUP(H172,'Process Nbgd'!A:E,5,1) -> -49.91460606 | O172: =VLOOKUP(H172,'Process Nbgd'!A:L,12,1) -> -51.31895556 | P172: 0.7240080455 | Q172: 1.640450199 | R172: =IF(E172<>0,E172-'Receiving Station Data'!$C$25,0) -> 5.985333333
A173: 2011-04-02 | B173: 05:30:02 | C173: 0.22919 | D173: -45.41 | E173: -47.36 | F173: -43.84 | G173: -37.89 | H173: 83.48 | I173: 1.02 | J173: =VLOOKUP(H173,'Process Nbgd'!A:H,8,1) -> 760.4656981 | K173: =VLOOKUP(H173,'Process Nbgd'!A:O,15,1) -> 531.4416014 | L173: =10*LOG(('Receiving Station Data'!$F$28+Nmeasured!J173+'Receiving Station Data'!$C$23)/(Nmeasured!J173+'Receiving Station Data'!$C$23)) -> 1.620598015 | M173: =10*LOG(('Receiving Station Data'!$F$28+Nmeasured!K173+'Receiving Station Data'!$C$23)/(Nmeasured!K173+'Receiving Station Data'!$C$23)) -> 2.108505357 | N173: =VLOOKUP(H173,'Process Nbgd'!A:E,5,1) -> -49.91460606 | O173: =VLOOKUP(H173,'Process Nbgd'!A:L,12,1) -> -51.31895556 | P173: 0.9340080455 | Q173: 1.850450199 | R173: =IF(E173<>0,E173-'Receiving Station Data'!$C$25,0) -> 6.195333333
A174: 2011-04-02 | B174: 05:30:12 | C174: 0.229306 | D174: -47.27 | E174: -47.69 | F174: -44.58 | G174: -37.37 | H174: 83.52 | I174: 1.04 | J174: =VLOOKUP(H174,'Process Nbgd'!A:H,8,1) -> 755.2449082 | K174: =VLOOKUP(H174,'Process Nbgd'!A:O,15,1) -> 530.3544053 | L174: =10*LOG(('Receiving Station Data'!$F$28+Nmeasured!J174+'Receiving Station Data'!$C$23)/(Nmeasured!J174+'Receiving Station Data'!$C$23)) -> 1.629162413 | M174: =10*LOG(('Receiving Station Data'!$F$28+Nmeasured!K174+'Receiving Station Data'!$C$23)/(Nmeasured!K174+'Receiving Station Data'!$C$23)) -> 2.111536931 | N174: =VLOOKUP(H174,'Process Nbgd'!A:E,5,1) -> -49.94204545 | O174: =VLOOKUP(H174,'Process Nbgd'!A:L,12,1) -> -51.32683333 | P174: 0.6228830418 | Q174: 1.525296402 | R174: =IF(E174<>0,E174-'Receiving Station Data'!$C$25,0) -> 5.865333333
A175: 2011-04-02 | B175: 05:30:22 | C175: 0.229421 | D175: -46.29 | E175: -46.36 | F175: -44.6 | G175: -39.29 | H175: 83.55 | I175: 1.07 | J175: =VLOOKUP(H175,'Process Nbgd'!A:H,8,1) -> 755.2449082 | K175: =VLOOKUP(H175,'Process Nbgd'!A:O,15,1) -> 530.3544053 | L175: =10*LOG(('Receiving Station Data'!$F$28+Nmeasured!J175+'Receiving Station Data'!$C$23)/(Nmeasured!J175+'Receiving Station Data'!$C$23)) -> 1.629162413 | M175: =10*LOG(('Receiving Station Data'!$F$28+Nmeasured!K175+'Receiving Station Data'!$C$23)/(Nmeasured!K175+'Receiving Station Data'!$C$23)) -> 2.111536931 | N175: =VLOOKUP(H175,'Process Nbgd'!A:E,5,1) -> -49.94204545 | O175: =VLOOKUP(H175,'Process Nbgd'!A:L,12,1) -> -51.32683333 | P175: 1.952883042 | Q175: 2.855296402 | R175: =IF(E175<>0,E175-'Receiving Station Data'!$C$25,0) -> 7.195333333
A176: 2011-04-02 | B176: 05:30:32 | C176: 0.229537 | D176: -47.36 | E176: -47.36 | F176: -44.87 | G176: -38.61 | H176: 83.58 | I176: 1.09 | J176: =VLOOKUP(H176,'Process Nbgd'!A:H,8,1) -> 755.2449082 | K176: =VLOOKUP(H176,'Process Nbgd'!A:O,15,1) -> 530.3544053 | L176: =10*LOG(('Receiving Station Data'!$F$28+Nmeasured!J176+'Receiving Station Data'!$C$23)/(Nmeasured!J176+'Receiving Station Data'!$C$23)) -> 1.629162413 | M176: =10*LOG(('Receiving Station Data'!$F$28+Nmeasured!K176+'Receiving Station Data'!$C$23)/(Nmeasured!K176+'Receiving Station Data'!$C$23)) -> 2.111536931 | N176: =VLOOKUP(H176,'Process Nbgd'!A:E,5,1) -> -49.94204545 | O176: =VLOOKUP(H176,'Process Nbgd'!A:L,12,1) -> -51.32683333 | P176: 0.9528830418 | Q176: 1.855296402 | R176: =IF(E176<>0,E176-'Receiving Station Data'!$C$25,0) -> 6.195333333
A177: 2011-04-02 | B177: 05:30:42 | C177: 0.229653 | D177: -46.27 | E177: -48.1 | F177: -44.4 | G177: -38.66 | H177: 83.61 | I177: 1.12 | J177: =VLOOKUP(H177,'Process Nbgd'!A:H,8,1) -> 750.057 | K177: =VLOOKUP(H177,'Process Nbgd'!A:O,15,1) -> 529.2691795 | L177: =10*LOG(('Receiving Station Data'!$F$28+Nmeasured!J177+'Receiving Station Data'!$C$23)/(Nmeasured!J177+'Receiving Station Data'!$C$23)) -> 1.637764077 | M177: =10*LOG(('Receiving Station Data'!$F$28+Nmeasured!K177+'Receiving Station Data'!$C$23)/(Nmeasured!K177+'Receiving Station Data'!$C$23)) -> 2.114571889 | N177: =VLOOKUP(H177,'Process Nbgd'!A:E,5,1) -> -49.96948485 | O177: =VLOOKUP(H177,'Process Nbgd'!A:L,12,1) -> -51.33471111 | P177: 0.231720772 | Q177: 1.120139222 | R177: =IF(E177<>0,E177-'Receiving Station Data'!$C$25,0) -> 5.455333333
A178: 2011-04-02 | B178: 05:30:52 | C178: 0.229769 | D178: -47.8 | E178: -48.26 | F178: -44.87 | G178: -36.93 | H178: 83.64 | I178: 1.15 | J178: =VLOOKUP(H178,'Process Nbgd'!A:H,8,1) -> 750.057 | K178: =VLOOKUP(H178,'Process Nbgd'!A:O,15,1) -> 529.2691795 | L178: =10*LOG(('Receiving Station Data'!$F$28+Nmeasured!J178+'Receiving Station Data'!$C$23)/(Nmeasured!J178+'Receiving Station Data'!$C$23)) -> 1.637764077 | M178: =10*LOG(('Receiving Station Data'!$F$28+Nmeasured!K178+'Receiving Station Data'!$C$23)/(Nmeasured!K178+'Receiving Station Data'!$C$23)) -> 2.114571889 | N178: =VLOOKUP(H178,'Process Nbgd'!A:E,5,1) -> -49.96948485 | O178: =VLOOKUP(H178,'Process Nbgd'!A:L,12,1) -> -51.33471111 | P178: 0.07172077195 | Q178: 0.9601392222 | R178: =IF(E178<>0,E178-'Receiving Station Data'!$C$25,0) -> 5.295333333
A179: 2011-04-02 | B179: 05:31:02 | C179: 0.229884 | D179: -47.18 | E179: -47.92 | F179: -44.62 | G179: -39.02 | H179: 83.68 | I179: 1.17 | J179: =VLOOKUP(H179,'Process Nbgd'!A:H,8,1) -> 750.057 | K179: =VLOOKUP(H179,'Process Nbgd'!A:O,15,1) -> 529.2691795 | L179: =10*LOG(('Receiving Station Data'!$F$28+Nmeasured!J179+'Receiving Station Data'!$C$23)/(Nmeasured!J179+'Receiving Station Data'!$C$23)) -> 1.637764077 | M179: =10*LOG(('Receiving Station Data'!$F$28+Nmeasured!K179+'Receiving Station Data'!$C$23)/(Nmeasured!K179+'Receiving Station Data'!$C$23)) -> 2.114571889 | N179: =VLOOKUP(H179,'Process Nbgd'!A:E,5,1) -> -49.96948485 | O179: =VLOOKUP(H179,'Process Nbgd'!A:L,12,1) -> -51.33471111 | P179: 0.411720772 | Q179: 1.300139222 | R179: =IF(E179<>0,E179-'Receiving Station Data'!$C$25,0) -> 5.635333333
A180: 2011-04-02 | B180: 05:31:12 | C180: 0.23 | D180: -46.85 | E180: -48.9 | F180: -45.16 | G180: -39.53 | H180: 83.71 | I180: 1.2 | J180: =VLOOKUP(H180,'Process Nbgd'!A:H,8,1) -> 744.9017666 | K180: =VLOOKUP(H180,'Process Nbgd'!A:O,15,1) -> 528.1859204 | L180: =10*LOG(('Receiving Station Data'!$F$28+Nmeasured!J180+'Receiving Station Data'!$C$23)/(Nmeasured!J180+'Receiving Station Data'!$C$23)) -> 1.646403094 | M180: =10*LOG(('Receiving Station Data'!$F$28+Nmeasured!K180+'Receiving Station Data'!$C$23)/(Nmeasured!K180+'Receiving Station Data'!$C$23)) -> 2.117610232 | N180: =VLOOKUP(H180,'Process Nbgd'!A:E,5,1) -> -49.99692424 | O180: =VLOOKUP(H180,'Process Nbgd'!A:L,12,1) -> -51.34258889 | P180: -0.5494788519 | Q180: 0.3249786572 | R180: =IF(E180<>0,E180-'Receiving Station Data'!$C$25,0) -> 4.655333333
A181: 2011-04-02 | B181: 05:31:22 | C181: 0.230116 | D181: -47.44 | E181: -48.94 | F181: -45.49 | G181: -38.5 | H181: 83.74 | I181: 1.23 | J181: =VLOOKUP(H181,'Process Nbgd'!A:H,8,1) -> 744.9017666 | K181: =VLOOKUP(H181,'Process Nbgd'!A:O,15,1) -> 528.1859204 | L181: =10*LOG(('Receiving Station Data'!$F$28+Nmeasured!J181+'Receiving Station Data'!$C$23)/(Nmeasured!J181+'Receiving Station Data'!$C$23)) -> 1.646403094 | M181: =10*LOG(('Receiving Station Data'!$F$28+Nmeasured!K181+'Receiving Station Data'!$C$23)/(Nmeasured!K181+'Receiving Station Data'!$C$23)) -> 2.117610232 | N181: =VLOOKUP(H181,'Process Nbgd'!A:E,5,1) -> -49.99692424 | O181: =VLOOKUP(H181,'Process Nbgd'!A:L,12,1) -> -51.34258889 | P181: -0.5894788519 | Q181: 0.2849786572 | R181: =IF(E181<>0,E181-'Receiving Station Data'!$C$25,0) -> 4.615333333
A182: 2011-04-02 | B182: 05:31:32 | C182: 0.230231 | D182: -47.91 | E182: -47.91 | F182: -45.56 | G182: -39.09 | H182: 83.77 | I182: 1.25 | J182: =VLOOKUP(H182,'Process Nbgd'!A:H,8,1) -> 744.9017666 | K182: =VLOOKUP(H182,'Process Nbgd'!A:O,15,1) -> 528.1859204 | L182: =10*LOG(('Receiving Station Data'!$F$28+Nmeasured!J182+'Receiving Station Data'!$C$23)/(Nmeasured!J182+'Receiving Station Data'!$C$23)) -> 1.646403094 | M182: =10*LOG(('Receiving Station Data'!$F$28+Nmeasured!K182+'Receiving Station Data'!$C$23)/(Nmeasured!K182+'Receiving Station Data'!$C$23)) -> 2.117610232 | N182: =VLOOKUP(H182,'Process Nbgd'!A:E,5,1) -> -49.99692424 | O182: =VLOOKUP(H182,'Process Nbgd'!A:L,12,1) -> -51.34258889 | P182: 0.4405211481 | Q182: 1.314978657 | R182: =IF(E182<>0,E182-'Receiving Station Data'!$C$25,0) -> 5.645333333
A183: 2011-04-02 | B183: 05:31:42 | C183: 0.230347 | D183: -46.64 | E183: -48.91 | F183: -45.26 | G183: -39.32 | H183: 83.8 | I183: 1.28 | J183: =VLOOKUP(H183,'Process Nbgd'!A:H,8,1) -> 739.779002 | K183: =VLOOKUP(H183,'Process Nbgd'!A:O,15,1) -> 527.1046244 | L183: =10*LOG(('Receiving Station Data'!$F$28+Nmeasured!J183+'Receiving Station Data'!$C$23)/(Nmeasured!J183+'Receiving Station Data'!$C$23)) -> 1.655079554 | M183: =10*LOG(('Receiving Station Data'!$F$28+Nmeasured!K183+'Receiving Station Data'!$C$23)/(Nmeasured!K183+'Receiving Station Data'!$C$23)) -> 2.120651961 | N183: =VLOOKUP(H183,'Process Nbgd'!A:E,5,1) -> -50.02436364 | O183: =VLOOKUP(H183,'Process Nbgd'!A:L,12,1) -> -51.35046667 | P183: -0.5407159172 | Q183: 0.3198147057 | R183: =IF(E183<>0,E183-'Receiving Station Data'!$C$25,0) -> 4.645333333
A184: 2011-04-02 | B184: 05:31:52 | C184: 0.230463 | D184: -48.27 | E184: -48.84 | F184: -46.14 | G184: -40.56 | H184: 83.84 | I184: 1.3 | J184: =VLOOKUP(H184,'Process Nbgd'!A:H,8,1) -> 739.779002 | K184: =VLOOKUP(H184,'Process Nbgd'!A:O,15,1) -> 527.1046244 | L184: =10*LOG(('Receiving Station Data'!$F$28+Nmeasured!J184+'Receiving Station Data'!$C$23)/(Nmeasured!J184+'Receiving Station Data'!$C$23)) -> 1.655079554 | M184: =10*LOG(('Receiving Station Data'!$F$28+Nmeasured!K184+'Receiving Station Data'!$C$23)/(Nmeasured!K184+'Receiving Station Data'!$C$23)) -> 2.120651961 | N184: =VLOOKUP(H184,'Process Nbgd'!A:E,5,1) -> -50.02436364 | O184: =VLOOKUP(H184,'Process Nbgd'!A:L,12,1) -> -51.35046667 | P184: -0.4707159172 | Q184: 0.3898147057 | R184: =IF(E184<>0,E184-'Receiving Station Data'!$C$25,0) -> 4.715333333
A185: 2011-04-02 | B185: 05:32:02 | C185: 0.230579 | D185: -48.28 | E185: -48.69 | F185: -45.37 | G185: -39.47 | H185: 83.87 | I185: 1.33 | J185: =VLOOKUP(H185,'Process Nbgd'!A:H,8,1) -> 739.779002 | K185: =VLOOKUP(H185,'Process Nbgd'!A:O,15,1) -> 527.1046244 | L185: =10*LOG(('Receiving Station Data'!$F$28+Nmeasured!J185+'Receiving Station Data'!$C$23)/(Nmeasured!J185+'Receiving Station Data'!$C$23)) -> 1.655079554 | M185: =10*LOG(('Receiving Station Data'!$F$28+Nmeasured!K185+'Receiving Station Data'!$C$23)/(Nmeasured!K185+'Receiving Station Data'!$C$23)) -> 2.120651961 | N185: =VLOOKUP(H185,'Process Nbgd'!A:E,5,1) -> -50.02436364 | O185: =VLOOKUP(H185,'Process Nbgd'!A:L,12,1) -> -51.35046667 | P185: -0.3207159172 | Q185: 0.5398147057 | R185: =IF(E185<>0,E185-'Receiving Station Data'!$C$25,0) -> 4.865333333
A186: 2011-04-02 | B186: 05:32:12 | C186: 0.230694 | D186: -46.73 | E186: -49.13 | F186: -45.27 | G186: -38.52 | H186: 83.9 | I186: 1.36 | J186: =VLOOKUP(H186,'Process Nbgd'!A:H,8,1) -> 734.6885017 | K186: =VLOOKUP(H186,'Process Nbgd'!A:O,15,1) -> 526.0252881 | L186: =10*LOG(('Receiving Station Data'!$F$28+Nmeasured!J186+'Receiving Station Data'!$C$23)/(Nmeasured!J186+'Receiving Station Data'!$C$23)) -> 1.663793541 | M186: =10*LOG(('Receiving Station Data'!$F$28+Nmeasured!K186+'Receiving Station Data'!$C$23)/(Nmeasured!K186+'Receiving Station Data'!$C$23)) -> 2.123697078 | N186: =VLOOKUP(H186,'Process Nbgd'!A:E,5,1) -> -50.05180303 | O186: =VLOOKUP(H186,'Process Nbgd'!A:L,12,1) -> -51.35834444 | P186: -0.741990511 | Q186: 0.1046473665 | R186: =IF(E186<>0,E186-'Receiving Station Data'!$C$25,0) -> 4.425333333
A187: 2011-04-02 | B187: 05:32:22 | C187: 0.23081 | D187: -48.05 | E187: -49.41 | F187: -46.12 | G187: -39.6 | H187: 83.93 | I187: 1.38 | J187: =VLOOKUP(H187,'Process Nbgd'!A:H,8,1) -> 734.6885017 | K187: =VLOOKUP(H187,'Process Nbgd'!A:O,15,1) -> 526.0252881 | L187: =10*LOG(('Receiving Station Data'!$F$28+Nmeasured!J187+'Receiving Station Data'!$C$23)/(Nmeasured!J187+'Receiving Station Data'!$C$23)) -> 1.663793541 | M187: =10*LOG(('Receiving Station Data'!$F$28+Nmeasured!K187+'Receiving Station Data'!$C$23)/(Nmeasured!K187+'Receiving Station Data'!$C$23)) -> 2.123697078 | N187: =VLOOKUP(H187,'Process Nbgd'!A:E,5,1) -> -50.05180303 | O187: =VLOOKUP(H187,'Process Nbgd'!A:L,12,1) -> -51.35834444 | P187: -1.021990511 | Q187: -0.1753526335 | R187: =IF(E187<>0,E187-'Receiving Station Data'!$C$25,0) -> 4.145333333
A188: 2011-04-02 | B188: 05:32:32 | C188: 0.230926 | D188: -48.8 | E188: -49.3 | F188: -46.11 | G188: -39.37 | H188: 83.97 | I188: 1.41 | J188: =VLOOKUP(H188,'Process Nbgd'!A:H,8,1) -> 734.6885017 | K188: =VLOOKUP(H188,'Process Nbgd'!A:O,15,1) -> 526.0252881 | L188: =10*LOG(('Receiving Station Data'!$F$28+Nmeasured!J188+'Receiving Station Data'!$C$23)/(Nmeasured!J188+'Receiving Station Data'!$C$23)) -> 1.663793541 | M188: =10*LOG(('Receiving Station Data'!$F$28+Nmeasured!K188+'Receiving Station Data'!$C$23)/(Nmeasured!K188+'Receiving Station Data'!$C$23)) -> 2.123697078 | N188: =VLOOKUP(H188,'Process Nbgd'!A:E,5,1) -> -50.05180303 | O188: =VLOOKUP(H188,'Process Nbgd'!A:L,12,1) -> -51.35834444 | P188: -0.911990511 | Q188: -0.06535263349 | R188: =IF(E188<>0,E188-'Receiving Station Data'!$C$25,0) -> 4.255333333
A189: 2011-04-02 | B189: 05:32:42 | C189: 0.231042 | D189: -47.47 | E189: -49.9 | F189: -45.7 | G189: -39.17 | H189: 84 | I189: 1.44 | J189: =VLOOKUP(H189,'Process Nbgd'!A:H,8,1) -> 729.6300627 | K189: =VLOOKUP(H189,'Process Nbgd'!A:O,15,1) -> 524.9479079 | L189: =10*LOG(('Receiving Station Data'!$F$28+Nmeasured!J189+'Receiving Station Data'!$C$23)/(Nmeasured!J189+'Receiving Station Data'!$C$23)) -> 1.672545144 | M189: =10*LOG(('Receiving Station Data'!$F$28+Nmeasured!K189+'Receiving Station Data'!$C$23)/(Nmeasured!K189+'Receiving Station Data'!$C$23)) -> 2.126745584 | N189: =VLOOKUP(H189,'Process Nbgd'!A:E,5,1) -> -50.07924242 | O189: =VLOOKUP(H189,'Process Nbgd'!A:L,12,1) -> -51.36622222 | P189: -1.49330272 | Q189: -0.6605233619 | R189: =IF(E189<>0,E189-'Receiving Station Data'!$C$25,0) -> 3.655333333
A190: 2011-04-02 | B190: 05:32:52 | C190: 0.231157 | D190: -48.53 | E190: -49.26 | F190: -46.03 | G190: -38.61 | H190: 84.03 | I190: 1.46 | J190: =VLOOKUP(H190,'Process Nbgd'!A:H,8,1) -> 729.6300627 | K190: =VLOOKUP(H190,'Process Nbgd'!A:O,15,1) -> 524.9479079 | L190: =10*LOG(('Receiving Station Data'!$F$28+Nmeasured!J190+'Receiving Station Data'!$C$23)/(Nmeasured!J190+'Receiving Station Data'!$C$23)) -> 1.672545144 | M190: =10*LOG(('Receiving Station Data'!$F$28+Nmeasured!K190+'Receiving Station Data'!$C$23)/(Nmeasured!K190+'Receiving Station Data'!$C$23)) -> 2.126745584 | N190: =VLOOKUP(H190,'Process Nbgd'!A:E,5,1) -> -50.07924242 | O190: =VLOOKUP(H190,'Process Nbgd'!A:L,12,1) -> -51.36622222 | P190: -0.85330272 | Q190: -0.0205233619 | R190: =IF(E190<>0,E190-'Receiving Station Data'!$C$25,0) -> 4.295333333
A191: 2011-04-02 | B191: 05:33:02 | C191: 0.231273 | D191: -47.38 | E191: -48.9 | F191: -45.63 | G191: -39.27 | H191: 84.06 | I191: 1.49 | J191: =VLOOKUP(H191,'Process Nbgd'!A:H,8,1) -> 729.6300627 | K191: =VLOOKUP(H191,'Process Nbgd'!A:O,15,1) -> 524.9479079 | L191: =10*LOG(('Receiving Station Data'!$F$28+Nmeasured!J191+'Receiving Station Data'!$C$23)/(Nmeasured!J191+'Receiving Station Data'!$C$23)) -> 1.672545144 | M191: =10*LOG(('Receiving Station Data'!$F$28+Nmeasured!K191+'Receiving Station Data'!$C$23)/(Nmeasured!K191+'Receiving Station Data'!$C$23)) -> 2.126745584 | N191: =VLOOKUP(H191,'Process Nbgd'!A:E,5,1) -> -50.07924242 | O191: =VLOOKUP(H191,'Process Nbgd'!A:L,12,1) -> -51.36622222 | P191: -0.49330272 | Q191: 0.3394766381 | R191: =IF(E191<>0,E191-'Receiving Station Data'!$C$25,0) -> 4.655333333
A192: 2011-04-02 | B192: 05:33:12 | C192: 0.231389 | D192: -50.31 | E192: -50.31 | F192: -46.38 | G192: -38.62 | H192: 84.09 | I192: 1.52 | J192: =VLOOKUP(H192,'Process Nbgd'!A:H,8,1) -> 729.6300627 | K192: =VLOOKUP(H192,'Process Nbgd'!A:O,15,1) -> 524.9479079 | L192: =10*LOG(('Receiving Station Data'!$F$28+Nmeasured!J192+'Receiving Station Data'!$C$23)/(Nmeasured!J192+'Receiving Station Data'!$C$23)) -> 1.672545144 | M192: =10*LOG(('Receiving Station Data'!$F$28+Nmeasured!K192+'Receiving Station Data'!$C$23)/(Nmeasured!K192+'Receiving Station Data'!$C$23)) -> 2.126745584 | N192: =VLOOKUP(H192,'Process Nbgd'!A:E,5,1) -> -50.07924242 | O192: =VLOOKUP(H192,'Process Nbgd'!A:L,12,1) -> -51.36622222 | P192: -1.90330272 | Q192: -1.070523362 | R192: =IF(E192<>0,E192-'Receiving Station Data'!$C$25,0) -> 3.245333333
A193: 2011-04-02 | B193: 05:33:22 | C193: 0.231505 | D193: -50.69 | E193: -50.69 | F193: -47.73 | G193: -42.49 | H193: 84.13 | I193: 1.54 | J193: =VLOOKUP(H193,'Process Nbgd'!A:H,8,1) -> 724.6034829 | K193: =VLOOKUP(H193,'Process Nbgd'!A:O,15,1) -> 523.8724802 | L193: =10*LOG(('Receiving Station Data'!$F$28+Nmeasured!J193+'Receiving Station Data'!$C$23)/(Nmeasured!J193+'Receiving Station Data'!$C$23)) -> 1.681334449 | M193: =10*LOG(('Receiving Station Data'!$F$28+Nmeasured!K193+'Receiving Station Data'!$C$23)/(Nmeasured!K193+'Receiving Station Data'!$C$23)) -> 2.129797481 | N193: =VLOOKUP(H193,'Process Nbgd'!A:E,5,1) -> -50.10668182 | O193: =VLOOKUP(H193,'Process Nbgd'!A:L,12,1) -> -51.3741 | P193: -2.26465263 | Q193: -1.445697481 | R193: =IF(E193<>0,E193-'Receiving Station Data'!$C$25,0) -> 2.865333333
A194: 2011-04-02 | B194: 05:33:32 | C194: 0.23162 | D194: -48.48 | E194: -49.41 | F194: -45.97 | G194: -37.97 | H194: 84.16 | I194: 1.57 | J194: =VLOOKUP(H194,'Process Nbgd'!A:H,8,1) -> 724.6034829 | K194: =VLOOKUP(H194,'Process Nbgd'!A:O,15,1) -> 523.8724802 | L194: =10*LOG(('Receiving Station Data'!$F$28+Nmeasured!J194+'Receiving Station Data'!$C$23)/(Nmeasured!J194+'Receiving Station Data'!$C$23)) -> 1.681334449 | M194: =10*LOG(('Receiving Station Data'!$F$28+Nmeasured!K194+'Receiving Station Data'!$C$23)/(Nmeasured!K194+'Receiving Station Data'!$C$23)) -> 2.129797481 | N194: =VLOOKUP(H194,'Process Nbgd'!A:E,5,1) -> -50.10668182 | O194: =VLOOKUP(H194,'Process Nbgd'!A:L,12,1) -> -51.3741 | P194: -0.9846526304 | Q194: -0.1656974809 | R194: =IF(E194<>0,E194-'Receiving Station Data'!$C$25,0) -> 4.145333333
A195: 2011-04-02 | B195: 05:33:42 | C195: =ROUND(B195,6) -> 0.231736 | D195: -51.22 | E195: -51.22 | F195: -47.5 | G195: -41.99 | H195: 84.19 | I195: 1.59 | J195: =VLOOKUP(H195,'Process Nbgd'!A:H,8,1) -> 724.6034829 | K195: =VLOOKUP(H195,'Process Nbgd'!A:O,15,1) -> 523.8724802 | L195: =10*LOG(('Receiving Station Data'!$F$28+Nmeasured!J195+'Receiving Station Data'!$C$23)/(Nmeasured!J195+'Receiving Station Data'!$C$23)) -> 1.681334449 | M195: =10*LOG(('Receiving Station Data'!$F$28+Nmeasured!K195+'Receiving Station Data'!$C$23)/(Nmeasured!K195+'Receiving Station Data'!$C$23)) -> 2.129797481 | N195: =VLOOKUP(H195,'Process Nbgd'!A:E,5,1) -> -50.10668182 | O195: =VLOOKUP(H195,'Process Nbgd'!A:L,12,1) -> -51.3741 | P195: =E195-N195-L195 -> -2.79465263 | Q195: =E195-O195-M195 -> -1.975697481 | R195: =IF(E195<>0,E195-'Receiving Station Data'!$C$25,0) -> 2.335333333
A196: 2011-04-02 | B196: 05:33:52 | C196: 0.231852 | D196: -48.47 | E196: -50.06 | F196: -46.79 | G196: -40.51 | H196: 84.22 | I196: 1.62 | J196: =VLOOKUP(H196,'Process Nbgd'!A:H,8,1) -> 719.6085617 | K196: =VLOOKUP(H196,'Process Nbgd'!A:O,15,1) -> 522.7990014 | L196: =10*LOG(('Receiving Station Data'!$F$28+Nmeasured!J196+'Receiving Station Data'!$C$23)/(Nmeasured!J196+'Receiving Station Data'!$C$23)) -> 1.69016154 | M196: =10*LOG(('Receiving Station Data'!$F$28+Nmeasured!K196+'Receiving Station Data'!$C$23)/(Nmeasured!K196+'Receiving Station Data'!$C$23)) -> 2.13285277 | N196: =VLOOKUP(H196,'Process Nbgd'!A:E,5,1) -> -50.13412121 | O196: =VLOOKUP(H196,'Process Nbgd'!A:L,12,1) -> -51.38197778 | P196: -1.616040328 | Q196: -0.8108749918 | R196: =IF(E196<>0,E196-'Receiving Station Data'!$C$25,0) -> 3.495333333
A197: 2011-04-02 | B197: 05:34:02 | C197: 0.231968 | D197: -48.54 | E197: -49.04 | F197: -46.05 | G197: -38.23 | H197: 84.25 | I197: 1.65 | J197: =VLOOKUP(H197,'Process Nbgd'!A:H,8,1) -> 719.6085617 | K197: =VLOOKUP(H197,'Process Nbgd'!A:O,15,1) -> 522.7990014 | L197: =10*LOG(('Receiving Station Data'!$F$28+Nmeasured!J197+'Receiving Station Data'!$C$23)/(Nmeasured!J197+'Receiving Station Data'!$C$23)) -> 1.69016154 | M197: =10*LOG(('Receiving Station Data'!$F$28+Nmeasured!K197+'Receiving Station Data'!$C$23)/(Nmeasured!K197+'Receiving Station Data'!$C$23)) -> 2.13285277 | N197: =VLOOKUP(H197,'Process Nbgd'!A:E,5,1) -> -50.13412121 | O197: =VLOOKUP(H197,'Process Nbgd'!A:L,12,1) -> -51.38197778 | P197: -0.5960403278 | Q197: 0.2091250082 | R197: =IF(E197<>0,E197-'Receiving Station Data'!$C$25,0) -> 4.515333333
A198: 2011-04-02 | B198: 05:34:12 | C198: 0.232083 | D198: -49.02 | E198: -49.89 | F198: -45.85 | G198: -38.14 | H198: 84.29 | I198: 1.67 | J198: =VLOOKUP(H198,'Process Nbgd'!A:H,8,1) -> 719.6085617 | K198: =VLOOKUP(H198,'Process Nbgd'!A:O,15,1) -> 522.7990014 | L198: =10*LOG(('Receiving Station Data'!$F$28+Nmeasured!J198+'Receiving Station Data'!$C$23)/(Nmeasured!J198+'Receiving Station Data'!$C$23)) -> 1.69016154 | M198: =10*LOG(('Receiving Station Data'!$F$28+Nmeasured!K198+'Receiving Station Data'!$C$23)/(Nmeasured!K198+'Receiving Station Data'!$C$23)) -> 2.13285277 | N198: =VLOOKUP(H198,'Process Nbgd'!A:E,5,1) -> -50.13412121 | O198: =VLOOKUP(H198,'Process Nbgd'!A:L,12,1) -> -51.38197778 | P198: -1.446040328 | Q198: -0.6408749918 | R198: =IF(E198<>0,E198-'Receiving Station Data'!$C$25,0) -> 3.665333333
A199: 2011-04-02 | B199: 05:34:22 | C199: 0.232199 | D199: -48.43 | E199: -49.68 | F199: -46.38 | G199: -38.87 | H199: 84.32 | I199: 1.7 | J199: =VLOOKUP(H199,'Process Nbgd'!A:H,8,1) -> 714.6450997 | K199: =VLOOKUP(H199,'Process Nbgd'!A:O,15,1) -> 521.7274681 | L199: =10*LOG(('Receiving Station Data'!$F$28+Nmeasured!J199+'Receiving Station Data'!$C$23)/(Nmeasured!J199+'Receiving Station Data'!$C$23)) -> 1.699026503 | M199: =10*LOG(('Receiving Station Data'!$F$28+Nmeasured!K199+'Receiving Station Data'!$C$23)/(Nmeasured!K199+'Receiving Station Data'!$C$23)) -> 2.135911452 | N199: =VLOOKUP(H199,'Process Nbgd'!A:E,5,1) -> -50.16156061 | O199: =VLOOKUP(H199,'Process Nbgd'!A:L,12,1) -> -51.38985556 | P199: -1.217465897 | Q199: -0.4260558961 | R199: =IF(E199<>0,E199-'Receiving Station Data'!$C$25,0) -> 3.875333333
A200: 2011-04-02 | B200: 05:34:32 | C200: 0.232315 | D200: -49.71 | E200: -50.31 | F200: -46.82 | G200: -38.33 | H200: 84.35 | I200: 1.73 | J200: =VLOOKUP(H200,'Process Nbgd'!A:H,8,1) -> 714.6450997 | K200: =VLOOKUP(H200,'Process Nbgd'!A:O,15,1) -> 521.7274681 | L200: =10*LOG(('Receiving Station Data'!$F$28+Nmeasured!J200+'Receiving Station Data'!$C$23)/(Nmeasured!J200+'Receiving Station Data'!$C$23)) -> 1.699026503 | M200: =10*LOG(('Receiving Station Data'!$F$28+Nmeasured!K200+'Receiving Station Data'!$C$23)/(Nmeasured!K200+'Receiving Station Data'!$C$23)) -> 2.135911452 | N200: =VLOOKUP(H200,'Process Nbgd'!A:E,5,1) -> -50.16156061 | O200: =VLOOKUP(H200,'Process Nbgd'!A:L,12,1) -> -51.38985556 | P200: -1.847465897 | Q200: -1.056055896 | R200: =IF(E200<>0,E200-'Receiving Station Data'!$C$25,0) -> 3.245333333
... 4300 more rows

Sheet Sun Az-El
A1: Date | B1: UTC | C1: Lat | D1: Long | E1: M | F1: C | G1: L | H1: R | I1: EqT | J1: DEC | K1: Hsol | L1: ah | M1: al | N1: az | O1: azc1 | P1: azc2 | Q1: Oz | R1: Azimuth | S1: Elevation
A2: 2011-04-02 | B2: 05:01:32 | C2: =IF('Receiving Station Data'!$C$7<0,-(ABS('Receiving Station Data'!$C$7)+('Receiving Station Data'!$C$8/60)+('Receiving Station Data'!$C$9/3600)),(ABS('Receiving Station Data'!$C$7)+'Receiving Station Data'!$C$8/60)+('Receiving Station Data'!$C$9/3600)) -> 50.60944444 | D2: =IF('Receiving Station Data'!$C$11<0,-(ABS('Receiving Station Data'!$C$11)+('Receiving Station Data'!$C$12/60)+('Receiving Station Data'!$C$13/3600)),(ABS('Receiving Station Data'!$C$11)+'Receiving Station Data'!$C$12/60)+('Receiving Station Data'!$C$13/3600)) -> -4.006111111 | E2: =357.5291+0.98560028*((B2+A2)-36526) -> 4407.567033 | F2: =1.9148*SIN(E2*(PI()/180))+0.02*SIN(2*E2*(PI()/180)+0.0003*SIN(3*E2*(PI()/180))) -> 1.914776363 | G2: =280.47+F2+0.98560028*(A2+B2-36526) -> 4332.42271 | H2: =-2.468*SIN(2*G2*(PI()/180))+0.053*SIN(4*G2*(PI()/180))-0.0014*SIN(6*G2*(PI()/180)) -> -0.997916799 | I2: =4*(F2+H2) -> 3.667438255 | J2: =ASIN(SIN(23.43929*(PI()/180))*SIN(G2*(PI()/180))) -> 0.08567555783 | K2: =B2*24-(D2/15)-(I2/60) -> 5.231505659 | L2: =K2*(PI()/12)+PI() -> 4.511197632 | M2: =(SIN(C2*(PI()/180))*COS(L2))-(COS(C2*(PI()/180))*TAN(J2)) -> -0.2089449026 | N2: =ATAN(SIN(L2)/M2) -> 1.360697034 | O2: =IF(M2<0,N2,N2+PI()) -> 1.360697034 | P2: =IF(O2<0,O2+2*PI(),O2) -> 1.360697034 | Q2: =ACOS(SIN(C2*(PI()/180))*SIN(J2)+COS(C2*(PI()/180))*COS(J2)*COS(L2)) -> 1.631052314 | R2: =IF(B2<>0,P2*(180/PI()),"") -> 77.96219723 | S2: =IF(B2<>0,90-Q2*(180/PI()),"") -> -3.452413745
A3: 2011-04-02 | B3: 05:01:42 | C3: =IF('Receiving Station Data'!$C$7<0,-(ABS('Receiving Station Data'!$C$7)+('Receiving Station Data'!$C$8/60)+('Receiving Station Data'!$C$9/3600)),(ABS('Receiving Station Data'!$C$7)+'Receiving Station Data'!$C$8/60)+('Receiving Station Data'!$C$9/3600)) -> 50.60944444 | D3: =IF('Receiving Station Data'!$C$11<0,-(ABS('Receiving Station Data'!$C$11)+('Receiving Station Data'!$C$12/60)+('Receiving Station Data'!$C$13/3600)),(ABS('Receiving Station Data'!$C$11)+'Receiving Station Data'!$C$12/60)+('Receiving Station Data'!$C$13/3600)) -> -4.006111111 | E3: =357.5291+0.98560028*((B3+A3)-36526) -> 4407.567147 | F3: =1.9148*SIN(E3*(PI()/180))+0.02*SIN(2*E3*(PI()/180)+0.0003*SIN(3*E3*(PI()/180))) -> 1.914776445 | G3: =280.47+F3+0.98560028*(A3+B3-36526) -> 4332.422824 | H3: =-2.468*SIN(2*G3*(PI()/180))+0.053*SIN(4*G3*(PI()/180))-0.0014*SIN(6*G3*(PI()/180)) -> -0.9979254545 | I3: =4*(F3+H3) -> 3.667403963 | J3: =ASIN(SIN(23.43929*(PI()/180))*SIN(G3*(PI()/180))) -> 0.08567633465 | K3: =B3*24-(D3/15)-(I3/60) -> 5.234284008 | L3: =K3*(PI()/12)+PI() -> 4.511925002 | M3: =(SIN(C3*(PI()/180))*COS(L3))-(COS(C3*(PI()/180))*TAN(J3)) -> -0.2083945578 | N3: =ATAN(SIN(L3)/M3) -> 1.361264467 | O3: =IF(M3<0,N3,N3+PI()) -> 1.361264467 | P3: =IF(O3<0,O3+2*PI(),O3) -> 1.361264467 | Q3: =ACOS(SIN(C3*(PI()/180))*SIN(J3)+COS(C3*(PI()/180))*COS(J3)*COS(L3)) -> 1.630600238 | R3: =IF(B3<>0,P3*(180/PI()),"") -> 77.99470874 | S3: =IF(B3<>0,90-Q3*(180/PI()),"") -> -3.426511696
A4: 2011-04-02 | B4: 05:01:52 | C4: =IF('Receiving Station Data'!$C$7<0,-(ABS('Receiving Station Data'!$C$7)+('Receiving Station Data'!$C$8/60)+('Receiving Station Data'!$C$9/3600)),(ABS('Receiving Station Data'!$C$7)+'Receiving Station Data'!$C$8/60)+('Receiving Station Data'!$C$9/3600)) -> 50.60944444 | D4: =IF('Receiving Station Data'!$C$11<0,-(ABS('Receiving Station Data'!$C$11)+('Receiving Station Data'!$C$12/60)+('Receiving Station Data'!$C$13/3600)),(ABS('Receiving Station Data'!$C$11)+'Receiving Station Data'!$C$12/60)+('Receiving Station Data'!$C$13/3600)) -> -4.006111111 | E4: 4407.567262 | F4: 1.914776528 | G4: 4332.422938 | H4: -0.99793411 | I4: 3.667369671 | J4: 0.08567711148 | K4: 5.237062357 | L4: 4.512652373 | M4: -0.2078441315 | N4: 1.361831841 | O4: 1.361831841 | P4: 1.361831841 | Q4: 1.630148107 | R4: 78.02721687 | S4: -3.400606529
A5: 2011-04-02 | B5: 05:02:02 | C5: =IF('Receiving Station Data'!$C$7<0,-(ABS('Receiving Station Data'!$C$7)+('Receiving Station Data'!$C$8/60)+('Receiving Station Data'!$C$9/3600)),(ABS('Receiving Station Data'!$C$7)+'Receiving Station Data'!$C$8/60)+('Receiving Station Data'!$C$9/3600)) -> 50.60944444 | D5: =IF('Receiving Station Data'!$C$11<0,-(ABS('Receiving Station Data'!$C$11)+('Receiving Station Data'!$C$12/60)+('Receiving Station Data'!$C$13/3600)),(ABS('Receiving Station Data'!$C$11)+'Receiving Station Data'!$C$12/60)+('Receiving Station Data'!$C$13/3600)) -> -4.006111111 | E5: 4407.567376 | F5: 1.91477661 | G5: 4332.423052 | H5: -0.9979427655 | I5: 3.667335379 | J5: 0.08567788831 | K5: 5.239840707 | L5: 4.513379743 | M5: -0.2072936242 | N5: 1.362399156 | O5: 1.362399156 | P5: 1.362399156 | Q5: 1.629695923 | R5: 78.05972163 | S5: -3.374698252
A6: 2011-04-02 | B6: 05:02:12 | C6: =IF('Receiving Station Data'!$C$7<0,-(ABS('Receiving Station Data'!$C$7)+('Receiving Station Data'!$C$8/60)+('Receiving Station Data'!$C$9/3600)),(ABS('Receiving Station Data'!$C$7)+'Receiving Station Data'!$C$8/60)+('Receiving Station Data'!$C$9/3600)) -> 50.60944444 | D6: =IF('Receiving Station Data'!$C$11<0,-(ABS('Receiving Station Data'!$C$11)+('Receiving Station Data'!$C$12/60)+('Receiving Station Data'!$C$13/3600)),(ABS('Receiving Station Data'!$C$11)+'Receiving Station Data'!$C$12/60)+('Receiving Station Data'!$C$13/3600)) -> -4.006111111 | E6: 4407.56749 | F6: 1.914776693 | G6: 4332.423166 | H6: -0.9979514209 | I6: 3.667301087 | J6: 0.08567866514 | K6: 5.242619056 | L6: 4.514107113 | M6: -0.206743036 | N6: 1.362966412 | O6: 1.362966412 | P6: 1.362966412 | Q6: 1.629243684 | R6: 78.09222305 | S6: -3.348786873
A7: 2011-04-02 | B7: 05:02:22 | C7: =IF('Receiving Station Data'!$C$7<0,-(ABS('Receiving Station Data'!$C$7)+('Receiving Station Data'!$C$8/60)+('Receiving Station Data'!$C$9/3600)),(ABS('Receiving Station Data'!$C$7)+'Receiving Station Data'!$C$8/60)+('Receiving Station Data'!$C$9/3600)) -> 50.60944444 | D7: =IF('Receiving Station Data'!$C$11<0,-(ABS('Receiving Station Data'!$C$11)+('Receiving Station Data'!$C$12/60)+('Receiving Station Data'!$C$13/3600)),(ABS('Receiving Station Data'!$C$11)+'Receiving Station Data'!$C$12/60)+('Receiving Station Data'!$C$13/3600)) -> -4.006111111 | E7: 4407.567604 | F7: 1.914776775 | G7: 4332.423281 | H7: -0.9979600764 | I7: 3.667266795 | J7: 0.08567944196 | K7: 5.245397405 | L7: 4.514834483 | M7: -0.2061923672 | N7: 1.363533611 | O7: 1.363533611 | P7: 1.363533611 | Q7: 1.628791391 | R7: 78.12472112 | S7: -3.322872401
A8: 2011-04-02 | B8: 05:02:32 | C8: =IF('Receiving Station Data'!$C$7<0,-(ABS('Receiving Station Data'!$C$7)+('Receiving Station Data'!$C$8/60)+('Receiving Station Data'!$C$9/3600)),(ABS('Receiving Station Data'!$C$7)+'Receiving Station Data'!$C$8/60)+('Receiving Station Data'!$C$9/3600)) -> 50.60944444 | D8: =IF('Receiving Station Data'!$C$11<0,-(ABS('Receiving Station Data'!$C$11)+('Receiving Station Data'!$C$12/60)+('Receiving Station Data'!$C$13/3600)),(ABS('Receiving Station Data'!$C$11)+'Receiving Station Data'!$C$12/60)+('Receiving Station Data'!$C$13/3600)) -> -4.006111111 | E8: 4407.567718 | F8: 1.914776857 | G8: 4332.423395 | H8: -0.9979687318 | I8: 3.667232503 | J8: 0.08568021879 | K8: 5.248175755 | L8: 4.515561853 | M8: -0.2056416182 | N8: 1.364100751 | O8: 1.364100751 | P8: 1.364100751 | Q8: 1.628339044 | R8: 78.15721588 | S8: -3.296954845
A9: 2011-04-02 | B9: 05:02:42 | C9: =IF('Receiving Station Data'!$C$7<0,-(ABS('Receiving Station Data'!$C$7)+('Receiving Station Data'!$C$8/60)+('Receiving Station Data'!$C$9/3600)),(ABS('Receiving Station Data'!$C$7)+'Receiving Station Data'!$C$8/60)+('Receiving Station Data'!$C$9/3600)) -> 50.60944444 | D9: =IF('Receiving Station Data'!$C$11<0,-(ABS('Receiving Station Data'!$C$11)+('Receiving Station Data'!$C$12/60)+('Receiving Station Data'!$C$13/3600)),(ABS('Receiving Station Data'!$C$11)+'Receiving Station Data'!$C$12/60)+('Receiving Station Data'!$C$13/3600)) -> -4.006111111 | E9: 4407.567832 | F9: 1.91477694 | G9: 4332.423509 | H9: -0.9979773872 | I9: 3.667198211 | J9: 0.08568099562 | K9: 5.250954104 | L9: 4.516289223 | M9: -0.2050907893 | N9: 1.364667834 | O9: 1.364667834 | P9: 1.364667834 | Q9: 1.627886644 | R9: 78.18970732 | S9: -3.271034214
A10: 2011-04-02 | B10: 05:02:52 | C10: =IF('Receiving Station Data'!$C$7<0,-(ABS('Receiving Station Data'!$C$7)+('Receiving Station Data'!$C$8/60)+('Receiving Station Data'!$C$9/3600)),(ABS('Receiving Station Data'!$C$7)+'Receiving Station Data'!$C$8/60)+('Receiving Station Data'!$C$9/3600)) -> 50.60944444 | D10: =IF('Receiving Station Data'!$C$11<0,-(ABS('Receiving Station Data'!$C$11)+('Receiving Station Data'!$C$12/60)+('Receiving Station Data'!$C$13/3600)),(ABS('Receiving Station Data'!$C$11)+'Receiving Station Data'!$C$12/60)+('Receiving Station Data'!$C$13/3600)) -> -4.006111111 | E10: 4407.567946 | F10: 1.914777022 | G10: 4332.423623 | H10: -0.9979860426 | I10: 3.667163919 | J10: 0.08568177244 | K10: 5.253732453 | L10: 4.517016593 | M10: -0.2045398806 | N10: 1.365234859 | O10: 1.365234859 | P10: 1.365234859 | Q10: 1.62743419 | R10: 78.22219546 | S10: -3.245110516
A11: 2011-04-02 | B11: 05:03:02 | C11: =IF('Receiving Station Data'!$C$7<0,-(ABS('Receiving Station Data'!$C$7)+('Receiving Station Data'!$C$8/60)+('Receiving Station Data'!$C$9/3600)),(ABS('Receiving Station Data'!$C$7)+'Receiving Station Data'!$C$8/60)+('Receiving Station Data'!$C$9/3600)) -> 50.60944444 | D11: =IF('Receiving Station Data'!$C$11<0,-(ABS('Receiving Station Data'!$C$11)+('Receiving Station Data'!$C$12/60)+('Receiving Station Data'!$C$13/3600)),(ABS('Receiving Station Data'!$C$11)+'Receiving Station Data'!$C$12/60)+('Receiving Station Data'!$C$13/3600)) -> -4.006111111 | E11: 4407.56806 | F11: 1.914777105 | G11: 4332.423737 | H11: -0.997994698 | I11: 3.667129627 | J11: 0.08568254927 | K11: 5.256510803 | L11: 4.517743964 | M11: -0.2039888926 | N11: 1.365801827 | O11: 1.365801827 | P11: 1.365801827 | Q11: 1.626981683 | R11: 78.25468031 | S11: -3.21918376
A12: 2011-04-02 | B12: 05:03:12 | C12: =IF('Receiving Station Data'!$C$7<0,-(ABS('Receiving Station Data'!$C$7)+('Receiving Station Data'!$C$8/60)+('Receiving Station Data'!$C$9/3600)),(ABS('Receiving Station Data'!$C$7)+'Receiving Station Data'!$C$8/60)+('Receiving Station Data'!$C$9/3600)) -> 50.60944444 | D12: =IF('Receiving Station Data'!$C$11<0,-(ABS('Receiving Station Data'!$C$11)+('Receiving Station Data'!$C$12/60)+('Receiving Station Data'!$C$13/3600)),(ABS('Receiving Station Data'!$C$11)+'Receiving Station Data'!$C$12/60)+('Receiving Station Data'!$C$13/3600)) -> -4.006111111 | E12: 4407.568174 | F12: 1.914777187 | G12: 4332.423851 | H12: -0.9980033533 | I12: 3.667095335 | J12: 0.08568332609 | K12: 5.259289152 | L12: 4.518471334 | M12: -0.2034378256 | N12: 1.366368737 | O12: 1.366368737 | P12: 1.366368737 | Q12: 1.626529122 | R12: 78.2871619 | S12: -3.193253955
A13: 2011-04-02 | B13: 05:03:22 | C13: =IF('Receiving Station Data'!$C$7<0,-(ABS('Receiving Station Data'!$C$7)+('Receiving Station Data'!$C$8/60)+('Receiving Station Data'!$C$9/3600)),(ABS('Receiving Station Data'!$C$7)+'Receiving Station Data'!$C$8/60)+('Receiving Station Data'!$C$9/3600)) -> 50.60944444 | D13: =IF('Receiving Station Data'!$C$11<0,-(ABS('Receiving Station Data'!$C$11)+('Receiving Station Data'!$C$12/60)+('Receiving Station Data'!$C$13/3600)),(ABS('Receiving Station Data'!$C$11)+'Receiving Station Data'!$C$12/60)+('Receiving Station Data'!$C$13/3600)) -> -4.006111111 | E13: 4407.568288 | F13: 1.91477727 | G13: 4332.423965 | H13: -0.9980120087 | I13: 3.667061044 | J13: 0.08568410292 | K13: 5.262067501 | L13: 4.519198704 | M13: -0.2028866797 | N13: 1.366935591 | O13: 1.366935591 | P13: 1.366935591 | Q13: 1.626076509 | R13: 78.31964022 | S13: -3.167321108
A14: 2011-04-02 | B14: 05:03:32 | C14: =IF('Receiving Station Data'!$C$7<0,-(ABS('Receiving Station Data'!$C$7)+('Receiving Station Data'!$C$8/60)+('Receiving Station Data'!$C$9/3600)),(ABS('Receiving Station Data'!$C$7)+'Receiving Station Data'!$C$8/60)+('Receiving Station Data'!$C$9/3600)) -> 50.60944444 | D14: =IF('Receiving Station Data'!$C$11<0,-(ABS('Receiving Station Data'!$C$11)+('Receiving Station Data'!$C$12/60)+('Receiving Station Data'!$C$13/3600)),(ABS('Receiving Station Data'!$C$11)+'Receiving Station Data'!$C$12/60)+('Receiving Station Data'!$C$13/3600)) -> -4.006111111 | E14: 4407.568402 | F14: 1.914777352 | G14: 4332.42408 | H14: -0.998020664 | I14: 3.667026752 | J14: 0.08568487974 | K14: 5.26484585 | L14: 4.519926074 | M14: -0.2023354553 | N14: 1.367502388 | O14: 1.367502388 | P14: 1.367502388 | Q14: 1.625623842 | R14: 78.3521153 | S14: -3.141385229
A15: 2011-04-02 | B15: 05:03:42 | C15: =IF('Receiving Station Data'!$C$7<0,-(ABS('Receiving Station Data'!$C$7)+('Receiving Station Data'!$C$8/60)+('Receiving Station Data'!$C$9/3600)),(ABS('Receiving Station Data'!$C$7)+'Receiving Station Data'!$C$8/60)+('Receiving Station Data'!$C$9/3600)) -> 50.60944444 | D15: =IF('Receiving Station Data'!$C$11<0,-(ABS('Receiving Station Data'!$C$11)+('Receiving Station Data'!$C$12/60)+('Receiving Station Data'!$C$13/3600)),(ABS('Receiving Station Data'!$C$11)+'Receiving Station Data'!$C$12/60)+('Receiving Station Data'!$C$13/3600)) -> -4.006111111 | E15: 4407.568516 | F15: 1.914777434 | G15: 4332.424194 | H15: -0.9980293193 | I15: 3.66699246 | J15: 0.08568565656 | K15: 5.2676242 | L15: 4.520653444 | M15: -0.2017841527 | N15: 1.368069129 | O15: 1.368069129 | P15: 1.368069129 | Q15: 1.625171123 | R15: 78.38458715 | S15: -3.115446326
A16: 2011-04-02 | B16: 05:03:52 | C16: =IF('Receiving Station Data'!$C$7<0,-(ABS('Receiving Station Data'!$C$7)+('Receiving Station Data'!$C$8/60)+('Receiving Station Data'!$C$9/3600)),(ABS('Receiving Station Data'!$C$7)+'Receiving Station Data'!$C$8/60)+('Receiving Station Data'!$C$9/3600)) -> 50.60944444 | D16: =IF('Receiving Station Data'!$C$11<0,-(ABS('Receiving Station Data'!$C$11)+('Receiving Station Data'!$C$12/60)+('Receiving Station Data'!$C$13/3600)),(ABS('Receiving Station Data'!$C$11)+'Receiving Station Data'!$C$12/60)+('Receiving Station Data'!$C$13/3600)) -> -4.006111111 | E16: 4407.56863 | F16: 1.914777517 | G16: 4332.424308 | H16: -0.9980379746 | I16: 3.666958169 | J16: 0.08568643339 | K16: 5.270402549 | L16: 4.521380814 | M16: -0.2012327722 | N16: 1.368635813 | O16: 1.368635813 | P16: 1.368635813 | Q16: 1.624718351 | R16: 78.41705577 | S16: -3.089504409
A17: 2011-04-02 | B17: 05:04:02 | C17: =IF('Receiving Station Data'!$C$7<0,-(ABS('Receiving Station Data'!$C$7)+('Receiving Station Data'!$C$8/60)+('Receiving Station Data'!$C$9/3600)),(ABS('Receiving Station Data'!$C$7)+'Receiving Station Data'!$C$8/60)+('Receiving Station Data'!$C$9/3600)) -> 50.60944444 | D17: =IF('Receiving Station Data'!$C$11<0,-(ABS('Receiving Station Data'!$C$11)+('Receiving Station Data'!$C$12/60)+('Receiving Station Data'!$C$13/3600)),(ABS('Receiving Station Data'!$C$11)+'Receiving Station Data'!$C$12/60)+('Receiving Station Data'!$C$13/3600)) -> -4.006111111 | E17: 4407.568745 | F17: 1.914777599 | G17: 4332.424422 | H17: -0.9980466299 | I17: 3.666923877 | J17: 0.08568721021 | K17: 5.273180898 | L17: 4.522108185 | M17: -0.200681314 | N17: 1.369202441 | O17: 1.369202441 | P17: 1.369202441 | Q17: 1.624265527 | R17: 78.44952119 | S17: -3.063559484
A18: 2011-04-02 | B18: 05:04:12 | C18: =IF('Receiving Station Data'!$C$7<0,-(ABS('Receiving Station Data'!$C$7)+('Receiving Station Data'!$C$8/60)+('Receiving Station Data'!$C$9/3600)),(ABS('Receiving Station Data'!$C$7)+'Receiving Station Data'!$C$8/60)+('Receiving Station Data'!$C$9/3600)) -> 50.60944444 | D18: =IF('Receiving Station Data'!$C$11<0,-(ABS('Receiving Station Data'!$C$11)+('Receiving Station Data'!$C$12/60)+('Receiving Station Data'!$C$13/3600)),(ABS('Receiving Station Data'!$C$11)+'Receiving Station Data'!$C$12/60)+('Receiving Station Data'!$C$13/3600)) -> -4.006111111 | E18: 4407.568859 | F18: 1.914777682 | G18: 4332.424536 | H18: -0.9980552852 | I18: 3.666889585 | J18: 0.08568798703 | K18: 5.275959248 | L18: 4.522835555 | M18: -0.2001297786 | N18: 1.369769014 | O18: 1.369769014 | P18: 1.369769014 | Q18: 1.62381265 | R18: 78.48198342 | S18: -3.037611562
A19: 2011-04-02 | B19: 05:04:22 | C19: =IF('Receiving Station Data'!$C$7<0,-(ABS('Receiving Station Data'!$C$7)+('Receiving Station Data'!$C$8/60)+('Receiving Station Data'!$C$9/3600)),(ABS('Receiving Station Data'!$C$7)+'Receiving Station Data'!$C$8/60)+('Receiving Station Data'!$C$9/3600)) -> 50.60944444 | D19: =IF('Receiving Station Data'!$C$11<0,-(ABS('Receiving Station Data'!$C$11)+('Receiving Station Data'!$C$12/60)+('Receiving Station Data'!$C$13/3600)),(ABS('Receiving Station Data'!$C$11)+'Receiving Station Data'!$C$12/60)+('Receiving Station Data'!$C$13/3600)) -> -4.006111111 | E19: 4407.568973 | F19: 1.914777764 | G19: 4332.42465 | H19: -0.9980639405 | I19: 3.666855294 | J19: 0.08568876386 | K19: 5.278737597 | L19: 4.523562925 | M19: -0.1995781661 | N19: 1.370335531 | O19: 1.370335531 | P19: 1.370335531 | Q19: 1.623359721 | R19: 78.51444247 | S19: -3.011660651
A20: 2011-04-02 | B20: 05:04:32 | C20: =IF('Receiving Station Data'!$C$7<0,-(ABS('Receiving Station Data'!$C$7)+('Receiving Station Data'!$C$8/60)+('Receiving Station Data'!$C$9/3600)),(ABS('Receiving Station Data'!$C$7)+'Receiving Station Data'!$C$8/60)+('Receiving Station Data'!$C$9/3600)) -> 50.60944444 | D20: =IF('Receiving Station Data'!$C$11<0,-(ABS('Receiving Station Data'!$C$11)+('Receiving Station Data'!$C$12/60)+('Receiving Station Data'!$C$13/3600)),(ABS('Receiving Station Data'!$C$11)+'Receiving Station Data'!$C$12/60)+('Receiving Station Data'!$C$13/3600)) -> -4.006111111 | E20: 4407.569087 | F20: 1.914777846 | G20: 4332.424765 | H20: -0.9980725957 | I20: 3.666821002 | J20: 0.08568954068 | K20: 5.281515946 | L20: 4.524290295 | M20: -0.1990264768 | N20: 1.370901993 | O20: 1.370901993 | P20: 1.370901993 | Q20: 1.62290674 | R20: 78.54689835 | S20: -2.985706759
A21: 2011-04-02 | B21: 05:04:42 | C21: =IF('Receiving Station Data'!$C$7<0,-(ABS('Receiving Station Data'!$C$7)+('Receiving Station Data'!$C$8/60)+('Receiving Station Data'!$C$9/3600)),(ABS('Receiving Station Data'!$C$7)+'Receiving Station Data'!$C$8/60)+('Receiving Station Data'!$C$9/3600)) -> 50.60944444 | D21: =IF('Receiving Station Data'!$C$11<0,-(ABS('Receiving Station Data'!$C$11)+('Receiving Station Data'!$C$12/60)+('Receiving Station Data'!$C$13/3600)),(ABS('Receiving Station Data'!$C$11)+'Receiving Station Data'!$C$12/60)+('Receiving Station Data'!$C$13/3600)) -> -4.006111111 | E21: 4407.569201 | F21: 1.914777929 | G21: 4332.424879 | H21: -0.9980812509 | I21: 3.666786711 | J21: 0.0856903175 | K21: 5.284294296 | L21: 4.525017665 | M21: -0.1984747111 | N21: 1.3714684 | O21: 1.3714684 | P21: 1.3714684 | Q21: 1.622453707 | R21: 78.57935107 | S21: -2.959749895
A22: 2011-04-02 | B22: 05:04:52 | C22: =IF('Receiving Station Data'!$C$7<0,-(ABS('Receiving Station Data'!$C$7)+('Receiving Station Data'!$C$8/60)+('Receiving Station Data'!$C$9/3600)),(ABS('Receiving Station Data'!$C$7)+'Receiving Station Data'!$C$8/60)+('Receiving Station Data'!$C$9/3600)) -> 50.60944444 | D22: =IF('Receiving Station Data'!$C$11<0,-(ABS('Receiving Station Data'!$C$11)+('Receiving Station Data'!$C$12/60)+('Receiving Station Data'!$C$13/3600)),(ABS('Receiving Station Data'!$C$11)+'Receiving Station Data'!$C$12/60)+('Receiving Station Data'!$C$13/3600)) -> -4.006111111 | E22: 4407.569315 | F22: 1.914778011 | G22: 4332.424993 | H22: -0.9980899062 | I22: 3.666752419 | J22: 0.08569109432 | K22: 5.287072645 | L22: 4.525745035 | M22: -0.1979228692 | N22: 1.372034752 | O22: 1.372034752 | P22: 1.372034752 | Q22: 1.622000623 | R22: 78.61180066 | S22: -2.933790067
A23: 2011-04-02 | B23: 05:05:02 | C23: =IF('Receiving Station Data'!$C$7<0,-(ABS('Receiving Station Data'!$C$7)+('Receiving Station Data'!$C$8/60)+('Receiving Station Data'!$C$9/3600)),(ABS('Receiving Station Data'!$C$7)+'Receiving Station Data'!$C$8/60)+('Receiving Station Data'!$C$9/3600)) -> 50.60944444 | D23: =IF('Receiving Station Data'!$C$11<0,-(ABS('Receiving Station Data'!$C$11)+('Receiving Station Data'!$C$12/60)+('Receiving Station Data'!$C$13/3600)),(ABS('Receiving Station Data'!$C$11)+'Receiving Station Data'!$C$12/60)+('Receiving Station Data'!$C$13/3600)) -> -4.006111111 | E23: 4407.569429 | F23: 1.914778093 | G23: 4332.425107 | H23: -0.9980985614 | I23: 3.666718128 | J23: 0.08569187114 | K23: 5.289850994 | L23: 4.526472405 | M23: -0.1973709514 | N23: 1.37260105 | O23: 1.37260105 | P23: 1.37260105 | Q23: 1.621547487 | R23: 78.64424712 | S23: -2.907827284
A24: 2011-04-02 | B24: 05:05:12 | C24: =IF('Receiving Station Data'!$C$7<0,-(ABS('Receiving Station Data'!$C$7)+('Receiving Station Data'!$C$8/60)+('Receiving Station Data'!$C$9/3600)),(ABS('Receiving Station Data'!$C$7)+'Receiving Station Data'!$C$8/60)+('Receiving Station Data'!$C$9/3600)) -> 50.60944444 | D24: =IF('Receiving Station Data'!$C$11<0,-(ABS('Receiving Station Data'!$C$11)+('Receiving Station Data'!$C$12/60)+('Receiving Station Data'!$C$13/3600)),(ABS('Receiving Station Data'!$C$11)+'Receiving Station Data'!$C$12/60)+('Receiving Station Data'!$C$13/3600)) -> -4.006111111 | E24: 4407.569543 | F24: 1.914778176 | G24: 4332.425221 | H24: -0.9981072166 | I24: 3.666683836 | J24: 0.08569264797 | K24: 5.292629343 | L24: 4.527199776 | M24: -0.1968189581 | N24: 1.373167293 | O24: 1.373167293 | P24: 1.373167293 | Q24: 1.6210943 | R24: 78.67669046 | S24: -2.881861556
A25: 2011-04-02 | B25: 05:05:22 | C25: =IF('Receiving Station Data'!$C$7<0,-(ABS('Receiving Station Data'!$C$7)+('Receiving Station Data'!$C$8/60)+('Receiving Station Data'!$C$9/3600)),(ABS('Receiving Station Data'!$C$7)+'Receiving Station Data'!$C$8/60)+('Receiving Station Data'!$C$9/3600)) -> 50.60944444 | D25: =IF('Receiving Station Data'!$C$11<0,-(ABS('Receiving Station Data'!$C$11)+('Receiving Station Data'!$C$12/60)+('Receiving Station Data'!$C$13/3600)),(ABS('Receiving Station Data'!$C$11)+'Receiving Station Data'!$C$12/60)+('Receiving Station Data'!$C$13/3600)) -> -4.006111111 | E25: 4407.569657 | F25: 1.914778258 | G25: 4332.425335 | H25: -0.9981158717 | I25: 3.666649545 | J25: 0.08569342479 | K25: 5.295407693 | L25: 4.527927146 | M25: -0.1962668894 | N25: 1.373733482 | O25: 1.373733482 | P25: 1.373733482 | Q25: 1.620641061 | R25: 78.7091307 | S25: -2.855892889
A26: 2011-04-02 | B26: 05:05:32 | C26: =IF('Receiving Station Data'!$C$7<0,-(ABS('Receiving Station Data'!$C$7)+('Receiving Station Data'!$C$8/60)+('Receiving Station Data'!$C$9/3600)),(ABS('Receiving Station Data'!$C$7)+'Receiving Station Data'!$C$8/60)+('Receiving Station Data'!$C$9/3600)) -> 50.60944444 | D26: =IF('Receiving Station Data'!$C$11<0,-(ABS('Receiving Station Data'!$C$11)+('Receiving Station Data'!$C$12/60)+('Receiving Station Data'!$C$13/3600)),(ABS('Receiving Station Data'!$C$11)+'Receiving Station Data'!$C$12/60)+('Receiving Station Data'!$C$13/3600)) -> -4.006111111 | E26: 4407.569771 | F26: 1.91477834 | G26: 4332.42545 | H26: -0.9981245269 | I26: 3.666615253 | J26: 0.08569420161 | K26: 5.298186042 | L26: 4.528654516 | M26: -0.1957147458 | N26: 1.374299617 | O26: 1.374299617 | P26: 1.374299617 | Q26: 1.620187771 | R26: 78.74156786 | S26: -2.829921294
A27: 2011-04-02 | B27: 05:05:42 | C27: =IF('Receiving Station Data'!$C$7<0,-(ABS('Receiving Station Data'!$C$7)+('Receiving Station Data'!$C$8/60)+('Receiving Station Data'!$C$9/3600)),(ABS('Receiving Station Data'!$C$7)+'Receiving Station Data'!$C$8/60)+('Receiving Station Data'!$C$9/3600)) -> 50.60944444 | D27: =IF('Receiving Station Data'!$C$11<0,-(ABS('Receiving Station Data'!$C$11)+('Receiving Station Data'!$C$12/60)+('Receiving Station Data'!$C$13/3600)),(ABS('Receiving Station Data'!$C$11)+'Receiving Station Data'!$C$12/60)+('Receiving Station Data'!$C$13/3600)) -> -4.006111111 | E27: 4407.569885 | F27: 1.914778423 | G27: 4332.425564 | H27: -0.998133182 | I27: 3.666580962 | J27: 0.08569497843 | K27: 5.300964391 | L27: 4.529381886 | M27: -0.1951625275 | N27: 1.374865699 | O27: 1.374865699 | P27: 1.374865699 | Q27: 1.61973443 | R27: 78.77400194 | S27: -2.803946777
A28: 2011-04-02 | B28: 05:05:52 | C28: =IF('Receiving Station Data'!$C$7<0,-(ABS('Receiving Station Data'!$C$7)+('Receiving Station Data'!$C$8/60)+('Receiving Station Data'!$C$9/3600)),(ABS('Receiving Station Data'!$C$7)+'Receiving Station Data'!$C$8/60)+('Receiving Station Data'!$C$9/3600)) -> 50.60944444 | D28: =IF('Receiving Station Data'!$C$11<0,-(ABS('Receiving Station Data'!$C$11)+('Receiving Station Data'!$C$12/60)+('Receiving Station Data'!$C$13/3600)),(ABS('Receiving Station Data'!$C$11)+'Receiving Station Data'!$C$12/60)+('Receiving Station Data'!$C$13/3600)) -> -4.006111111 | E28: 4407.569999 | F28: 1.914778505 | G28: 4332.425678 | H28: -0.9981418372 | I28: 3.666546671 | J28: 0.08569575525 | K28: 5.303742741 | L28: 4.530109256 | M28: -0.1946102347 | N28: 1.375431727 | O28: 1.375431727 | P28: 1.375431727 | Q28: 1.619281038 | R28: 78.80643296 | S28: -2.777969349
A29: 2011-04-02 | B29: 05:06:02 | C29: =IF('Receiving Station Data'!$C$7<0,-(ABS('Receiving Station Data'!$C$7)+('Receiving Station Data'!$C$8/60)+('Receiving Station Data'!$C$9/3600)),(ABS('Receiving Station Data'!$C$7)+'Receiving Station Data'!$C$8/60)+('Receiving Station Data'!$C$9/3600)) -> 50.60944444 | D29: =IF('Receiving Station Data'!$C$11<0,-(ABS('Receiving Station Data'!$C$11)+('Receiving Station Data'!$C$12/60)+('Receiving Station Data'!$C$13/3600)),(ABS('Receiving Station Data'!$C$11)+'Receiving Station Data'!$C$12/60)+('Receiving Station Data'!$C$13/3600)) -> -4.006111111 | E29: 4407.570113 | F29: 1.914778587 | G29: 4332.425792 | H29: -0.9981504923 | I29: 3.666512379 | J29: 0.08569653207 | K29: 5.30652109 | L29: 4.530836626 | M29: -0.1940578679 | N29: 1.375997702 | O29: 1.375997702 | P29: 1.375997702 | Q29: 1.618827596 | R29: 78.83886093 | S29: -2.751989018
A30: 2011-04-02 | B30: 05:06:12 | C30: =IF('Receiving Station Data'!$C$7<0,-(ABS('Receiving Station Data'!$C$7)+('Receiving Station Data'!$C$8/60)+('Receiving Station Data'!$C$9/3600)),(ABS('Receiving Station Data'!$C$7)+'Receiving Station Data'!$C$8/60)+('Receiving Station Data'!$C$9/3600)) -> 50.60944444 | D30: =IF('Receiving Station Data'!$C$11<0,-(ABS('Receiving Station Data'!$C$11)+('Receiving Station Data'!$C$12/60)+('Receiving Station Data'!$C$13/3600)),(ABS('Receiving Station Data'!$C$11)+'Receiving Station Data'!$C$12/60)+('Receiving Station Data'!$C$13/3600)) -> -4.006111111 | E30: 4407.570227 | F30: 1.914778669 | G30: 4332.425906 | H30: -0.9981591474 | I30: 3.666478088 | J30: 0.08569730888 | K30: 5.309299439 | L30: 4.531563996 | M30: -0.1935054272 | N30: 1.376563624 | O30: 1.376563624 | P30: 1.376563624 | Q30: 1.618374103 | R30: 78.87128586 | S30: -2.726005792
A31: 2011-04-02 | B31: 05:06:22 | C31: =IF('Receiving Station Data'!$C$7<0,-(ABS('Receiving Station Data'!$C$7)+('Receiving Station Data'!$C$8/60)+('Receiving Station Data'!$C$9/3600)),(ABS('Receiving Station Data'!$C$7)+'Receiving Station Data'!$C$8/60)+('Receiving Station Data'!$C$9/3600)) -> 50.60944444 | D31: =IF('Receiving Station Data'!$C$11<0,-(ABS('Receiving Station Data'!$C$11)+('Receiving Station Data'!$C$12/60)+('Receiving Station Data'!$C$13/3600)),(ABS('Receiving Station Data'!$C$11)+'Receiving Station Data'!$C$12/60)+('Receiving Station Data'!$C$13/3600)) -> -4.006111111 | E31: 4407.570342 | F31: 1.914778752 | G31: 4332.42602 | H31: -0.9981678025 | I31: 3.666443797 | J31: 0.0856980857 | K31: 5.312077789 | L31: 4.532291367 | M31: -0.192952913 | N31: 1.377129493 | O31: 1.377129493 | P31: 1.377129493 | Q31: 1.61792056 | R31: 78.90370778 | S31: -2.700019679
A32: 2011-04-02 | B32: 05:06:32 | C32: =IF('Receiving Station Data'!$C$7<0,-(ABS('Receiving Station Data'!$C$7)+('Receiving Station Data'!$C$8/60)+('Receiving Station Data'!$C$9/3600)),(ABS('Receiving Station Data'!$C$7)+'Receiving Station Data'!$C$8/60)+('Receiving Station Data'!$C$9/3600)) -> 50.60944444 | D32: =IF('Receiving Station Data'!$C$11<0,-(ABS('Receiving Station Data'!$C$11)+('Receiving Station Data'!$C$12/60)+('Receiving Station Data'!$C$13/3600)),(ABS('Receiving Station Data'!$C$11)+'Receiving Station Data'!$C$12/60)+('Receiving Station Data'!$C$13/3600)) -> -4.006111111 | E32: 4407.570456 | F32: 1.914778834 | G32: 4332.426134 | H32: -0.9981764575 | I32: 3.666409506 | J32: 0.08569886252 | K32: 5.314856138 | L32: 4.533018737 | M32: -0.1924003255 | N32: 1.377695309 | O32: 1.377695309 | P32: 1.377695309 | Q32: 1.617466967 | R32: 78.93612668 | S32: -2.674030689
A33: 2011-04-02 | B33: 05:06:42 | C33: =IF('Receiving Station Data'!$C$7<0,-(ABS('Receiving Station Data'!$C$7)+('Receiving Station Data'!$C$8/60)+('Receiving Station Data'!$C$9/3600)),(ABS('Receiving Station Data'!$C$7)+'Receiving Station Data'!$C$8/60)+('Receiving Station Data'!$C$9/3600)) -> 50.60944444 | D33: =IF('Receiving Station Data'!$C$11<0,-(ABS('Receiving Station Data'!$C$11)+('Receiving Station Data'!$C$12/60)+('Receiving Station Data'!$C$13/3600)),(ABS('Receiving Station Data'!$C$11)+'Receiving Station Data'!$C$12/60)+('Receiving Station Data'!$C$13/3600)) -> -4.006111111 | E33: 4407.57057 | F33: 1.914778916 | G33: 4332.426249 | H33: -0.9981851126 | I33: 3.666375214 | J33: 0.08569963934 | K33: 5.317634487 | L33: 4.533746107 | M33: -0.1918476651 | N33: 1.378261074 | O33: 1.378261074 | P33: 1.378261074 | Q33: 1.617013323 | R33: 78.96854259 | S33: -2.64803883
A34: 2011-04-02 | B34: 05:06:52 | C34: =IF('Receiving Station Data'!$C$7<0,-(ABS('Receiving Station Data'!$C$7)+('Receiving Station Data'!$C$8/60)+('Receiving Station Data'!$C$9/3600)),(ABS('Receiving Station Data'!$C$7)+'Receiving Station Data'!$C$8/60)+('Receiving Station Data'!$C$9/3600)) -> 50.60944444 | D34: =IF('Receiving Station Data'!$C$11<0,-(ABS('Receiving Station Data'!$C$11)+('Receiving Station Data'!$C$12/60)+('Receiving Station Data'!$C$13/3600)),(ABS('Receiving Station Data'!$C$11)+'Receiving Station Data'!$C$12/60)+('Receiving Station Data'!$C$13/3600)) -> -4.006111111 | E34: 4407.570684 | F34: 1.914778998 | G34: 4332.426363 | H34: -0.9981937676 | I34: 3.666340923 | J34: 0.08570041616 | K34: 5.320412836 | L34: 4.534473477 | M34: -0.191294932 | N34: 1.378826786 | O34: 1.378826786 | P34: 1.378826786 | Q34: 1.61655963 | R34: 79.00095551 | S34: -2.62204411
A35: 2011-04-02 | B35: 05:07:02 | C35: =IF('Receiving Station Data'!$C$7<0,-(ABS('Receiving Station Data'!$C$7)+('Receiving Station Data'!$C$8/60)+('Receiving Station Data'!$C$9/3600)),(ABS('Receiving Station Data'!$C$7)+'Receiving Station Data'!$C$8/60)+('Receiving Station Data'!$C$9/3600)) -> 50.60944444 | D35: =IF('Receiving Station Data'!$C$11<0,-(ABS('Receiving Station Data'!$C$11)+('Receiving Station Data'!$C$12/60)+('Receiving Station Data'!$C$13/3600)),(ABS('Receiving Station Data'!$C$11)+'Receiving Station Data'!$C$12/60)+('Receiving Station Data'!$C$13/3600)) -> -4.006111111 | E35: 4407.570798 | F35: 1.914779081 | G35: 4332.426477 | H35: -0.9982024226 | I35: 3.666306632 | J35: 0.08570119297 | K35: 5.323191186 | L35: 4.535200847 | M35: -0.1907421266 | N35: 1.379392446 | O35: 1.379392446 | P35: 1.379392446 | Q35: 1.616105886 | R35: 79.03336547 | S35: -2.596046539
A36: 2011-04-02 | B36: 05:07:12 | C36: =IF('Receiving Station Data'!$C$7<0,-(ABS('Receiving Station Data'!$C$7)+('Receiving Station Data'!$C$8/60)+('Receiving Station Data'!$C$9/3600)),(ABS('Receiving Station Data'!$C$7)+'Receiving Station Data'!$C$8/60)+('Receiving Station Data'!$C$9/3600)) -> 50.60944444 | D36: =IF('Receiving Station Data'!$C$11<0,-(ABS('Receiving Station Data'!$C$11)+('Receiving Station Data'!$C$12/60)+('Receiving Station Data'!$C$13/3600)),(ABS('Receiving Station Data'!$C$11)+'Receiving Station Data'!$C$12/60)+('Receiving Station Data'!$C$13/3600)) -> -4.006111111 | E36: 4407.570912 | F36: 1.914779163 | G36: 4332.426591 | H36: -0.9982110777 | I36: 3.666272341 | J36: 0.08570196979 | K36: 5.325969535 | L36: 4.535928217 | M36: -0.1901892491 | N36: 1.379958055 | O36: 1.379958055 | P36: 1.379958055 | Q36: 1.615652094 | R36: 79.06577247 | S36: -2.570046124
A37: 2011-04-02 | B37: 05:07:22 | C37: =IF('Receiving Station Data'!$C$7<0,-(ABS('Receiving Station Data'!$C$7)+('Receiving Station Data'!$C$8/60)+('Receiving Station Data'!$C$9/3600)),(ABS('Receiving Station Data'!$C$7)+'Receiving Station Data'!$C$8/60)+('Receiving Station Data'!$C$9/3600)) -> 50.60944444 | D37: =IF('Receiving Station Data'!$C$11<0,-(ABS('Receiving Station Data'!$C$11)+('Receiving Station Data'!$C$12/60)+('Receiving Station Data'!$C$13/3600)),(ABS('Receiving Station Data'!$C$11)+'Receiving Station Data'!$C$12/60)+('Receiving Station Data'!$C$13/3600)) -> -4.006111111 | E37: 4407.571026 | F37: 1.914779245 | G37: 4332.426705 | H37: -0.9982197327 | I37: 3.66623805 | J37: 0.08570274661 | K37: 5.328747884 | L37: 4.536655587 | M37: -0.1896362998 | N37: 1.380523613 | O37: 1.380523613 | P37: 1.380523613 | Q37: 1.615198251 | R37: 79.09817653 | S37: -2.544042874
A38: 2011-04-02 | B38: 05:07:32 | C38: =IF('Receiving Station Data'!$C$7<0,-(ABS('Receiving Station Data'!$C$7)+('Receiving Station Data'!$C$8/60)+('Receiving Station Data'!$C$9/3600)),(ABS('Receiving Station Data'!$C$7)+'Receiving Station Data'!$C$8/60)+('Receiving Station Data'!$C$9/3600)) -> 50.60944444 | D38: =IF('Receiving Station Data'!$C$11<0,-(ABS('Receiving Station Data'!$C$11)+('Receiving Station Data'!$C$12/60)+('Receiving Station Data'!$C$13/3600)),(ABS('Receiving Station Data'!$C$11)+'Receiving Station Data'!$C$12/60)+('Receiving Station Data'!$C$13/3600)) -> -4.006111111 | E38: 4407.57114 | F38: 1.914779327 | G38: 4332.426819 | H38: -0.9982283876 | I38: 3.666203759 | J38: 0.08570352342 | K38: 5.331526234 | L38: 4.537382958 | M38: -0.189083279 | N38: 1.381089119 | O38: 1.381089119 | P38: 1.381089119 | Q38: 1.61474436 | R38: 79.13057766 | S38: -2.518036798
A39: 2011-04-02 | B39: 05:07:42 | C39: =IF('Receiving Station Data'!$C$7<0,-(ABS('Receiving Station Data'!$C$7)+('Receiving Station Data'!$C$8/60)+('Receiving Station Data'!$C$9/3600)),(ABS('Receiving Station Data'!$C$7)+'Receiving Station Data'!$C$8/60)+('Receiving Station Data'!$C$9/3600)) -> 50.60944444 | D39: =IF('Receiving Station Data'!$C$11<0,-(ABS('Receiving Station Data'!$C$11)+('Receiving Station Data'!$C$12/60)+('Receiving Station Data'!$C$13/3600)),(ABS('Receiving Station Data'!$C$11)+'Receiving Station Data'!$C$12/60)+('Receiving Station Data'!$C$13/3600)) -> -4.006111111 | E39: 4407.571254 | F39: 1.91477941 | G39: 4332.426934 | H39: -0.9982370426 | I39: 3.666169468 | J39: 0.08570430024 | K39: 5.334304583 | L39: 4.538110328 | M39: -0.1885301871 | N39: 1.381654575 | O39: 1.381654575 | P39: 1.381654575 | Q39: 1.614290419 | R39: 79.16297587 | S39: -2.492027904
A40: 2011-04-02 | B40: 05:07:52 | C40: =IF('Receiving Station Data'!$C$7<0,-(ABS('Receiving Station Data'!$C$7)+('Receiving Station Data'!$C$8/60)+('Receiving Station Data'!$C$9/3600)),(ABS('Receiving Station Data'!$C$7)+'Receiving Station Data'!$C$8/60)+('Receiving Station Data'!$C$9/3600)) -> 50.60944444 | D40: =IF('Receiving Station Data'!$C$11<0,-(ABS('Receiving Station Data'!$C$11)+('Receiving Station Data'!$C$12/60)+('Receiving Station Data'!$C$13/3600)),(ABS('Receiving Station Data'!$C$11)+'Receiving Station Data'!$C$12/60)+('Receiving Station Data'!$C$13/3600)) -> -4.006111111 | E40: 4407.571368 | F40: 1.914779492 | G40: 4332.427048 | H40: -0.9982456976 | I40: 3.666135177 | J40: 0.08570507706 | K40: 5.337082932 | L40: 4.538837698 | M40: -0.1879770242 | N40: 1.382219979 | O40: 1.382219979 | P40: 1.382219979 | Q40: 1.613836429 | R40: 79.19537118 | S40: -2.466016201
A41: 2011-04-02 | B41: 05:08:02 | C41: =IF('Receiving Station Data'!$C$7<0,-(ABS('Receiving Station Data'!$C$7)+('Receiving Station Data'!$C$8/60)+('Receiving Station Data'!$C$9/3600)),(ABS('Receiving Station Data'!$C$7)+'Receiving Station Data'!$C$8/60)+('Receiving Station Data'!$C$9/3600)) -> 50.60944444 | D41: =IF('Receiving Station Data'!$C$11<0,-(ABS('Receiving Station Data'!$C$11)+('Receiving Station Data'!$C$12/60)+('Receiving Station Data'!$C$13/3600)),(ABS('Receiving Station Data'!$C$11)+'Receiving Station Data'!$C$12/60)+('Receiving Station Data'!$C$13/3600)) -> -4.006111111 | E41: 4407.571482 | F41: 1.914779574 | G41: 4332.427162 | H41: -0.9982543525 | I41: 3.666100886 | J41: 0.08570585387 | K41: 5.339861282 | L41: 4.539565068 | M41: -0.1874237907 | N41: 1.382785334 | O41: 1.382785334 | P41: 1.382785334 | Q41: 1.61338239 | R41: 79.22776359 | S41: -2.440001698
A42: 2011-04-02 | B42: 05:08:12 | C42: =IF('Receiving Station Data'!$C$7<0,-(ABS('Receiving Station Data'!$C$7)+('Receiving Station Data'!$C$8/60)+('Receiving Station Data'!$C$9/3600)),(ABS('Receiving Station Data'!$C$7)+'Receiving Station Data'!$C$8/60)+('Receiving Station Data'!$C$9/3600)) -> 50.60944444 | D42: =IF('Receiving Station Data'!$C$11<0,-(ABS('Receiving Station Data'!$C$11)+('Receiving Station Data'!$C$12/60)+('Receiving Station Data'!$C$13/3600)),(ABS('Receiving Station Data'!$C$11)+'Receiving Station Data'!$C$12/60)+('Receiving Station Data'!$C$13/3600)) -> -4.006111111 | E42: 4407.571596 | F42: 1.914779656 | G42: 4332.427276 | H42: -0.9982630074 | I42: 3.666066595 | J42: 0.08570663069 | K42: 5.342639631 | L42: 4.540292438 | M42: -0.186870487 | N42: 1.383350638 | O42: 1.383350638 | P42: 1.383350638 | Q42: 1.612928303 | R42: 79.26015314 | S42: -2.413984402
A43: 2011-04-02 | B43: 05:08:22 | C43: =IF('Receiving Station Data'!$C$7<0,-(ABS('Receiving Station Data'!$C$7)+('Receiving Station Data'!$C$8/60)+('Receiving Station Data'!$C$9/3600)),(ABS('Receiving Station Data'!$C$7)+'Receiving Station Data'!$C$8/60)+('Receiving Station Data'!$C$9/3600)) -> 50.60944444 | D43: =IF('Receiving Station Data'!$C$11<0,-(ABS('Receiving Station Data'!$C$11)+('Receiving Station Data'!$C$12/60)+('Receiving Station Data'!$C$13/3600)),(ABS('Receiving Station Data'!$C$11)+'Receiving Station Data'!$C$12/60)+('Receiving Station Data'!$C$13/3600)) -> -4.006111111 | E43: 4407.57171 | F43: 1.914779738 | G43: 4332.42739 | H43: -0.9982716623 | I43: 3.666032304 | J43: 0.0857074075 | K43: 5.34541798 | L43: 4.541019808 | M43: -0.1863171132 | N43: 1.383915892 | O43: 1.383915892 | P43: 1.383915892 | Q43: 1.612474167 | R43: 79.29253981 | S43: -2.387964323
A44: 2011-04-02 | B44: 05:08:32 | C44: =IF('Receiving Station Data'!$C$7<0,-(ABS('Receiving Station Data'!$C$7)+('Receiving Station Data'!$C$8/60)+('Receiving Station Data'!$C$9/3600)),(ABS('Receiving Station Data'!$C$7)+'Receiving Station Data'!$C$8/60)+('Receiving Station Data'!$C$9/3600)) -> 50.60944444 | D44: =IF('Receiving Station Data'!$C$11<0,-(ABS('Receiving Station Data'!$C$11)+('Receiving Station Data'!$C$12/60)+('Receiving Station Data'!$C$13/3600)),(ABS('Receiving Station Data'!$C$11)+'Receiving Station Data'!$C$12/60)+('Receiving Station Data'!$C$13/3600)) -> -4.006111111 | E44: 4407.571825 | F44: 1.914779821 | G44: 4332.427504 | H44: -0.9982803172 | I44: 3.665998013 | J44: 0.08570818431 | K44: 5.348196329 | L44: 4.541747178 | M44: -0.1857636696 | N44: 1.384481096 | O44: 1.384481096 | P44: 1.384481096 | Q44: 1.612019982 | R44: 79.32492364 | S44: -2.361941468
A45: 2011-04-02 | B45: 05:08:42 | C45: =IF('Receiving Station Data'!$C$7<0,-(ABS('Receiving Station Data'!$C$7)+('Receiving Station Data'!$C$8/60)+('Receiving Station Data'!$C$9/3600)),(ABS('Receiving Station Data'!$C$7)+'Receiving Station Data'!$C$8/60)+('Receiving Station Data'!$C$9/3600)) -> 50.60944444 | D45: =IF('Receiving Station Data'!$C$11<0,-(ABS('Receiving Station Data'!$C$11)+('Receiving Station Data'!$C$12/60)+('Receiving Station Data'!$C$13/3600)),(ABS('Receiving Station Data'!$C$11)+'Receiving Station Data'!$C$12/60)+('Receiving Station Data'!$C$13/3600)) -> -4.006111111 | E45: 4407.571939 | F45: 1.914779903 | G45: 4332.427618 | H45: -0.9982889721 | I45: 3.665963722 | J45: 0.08570896113 | K45: 5.350974679 | L45: 4.542474549 | M45: -0.1852101567 | N45: 1.385046251 | O45: 1.385046251 | P45: 1.385046251 | Q45: 1.611565749 | R45: 79.35730463 | S45: -2.335915848
A46: 2011-04-02 | B46: 05:08:52 | C46: =IF('Receiving Station Data'!$C$7<0,-(ABS('Receiving Station Data'!$C$7)+('Receiving Station Data'!$C$8/60)+('Receiving Station Data'!$C$9/3600)),(ABS('Receiving Station Data'!$C$7)+'Receiving Station Data'!$C$8/60)+('Receiving Station Data'!$C$9/3600)) -> 50.60944444 | D46: =IF('Receiving Station Data'!$C$11<0,-(ABS('Receiving Station Data'!$C$11)+('Receiving Station Data'!$C$12/60)+('Receiving Station Data'!$C$13/3600)),(ABS('Receiving Station Data'!$C$11)+'Receiving Station Data'!$C$12/60)+('Receiving Station Data'!$C$13/3600)) -> -4.006111111 | E46: 4407.572053 | F46: 1.914779985 | G46: 4332.427733 | H46: -0.998297627 | I46: 3.665929431 | J46: 0.08570973794 | K46: 5.353753028 | L46: 4.543201919 | M46: -0.1846565746 | N46: 1.385611357 | O46: 1.385611357 | P46: 1.385611357 | Q46: 1.611111468 | R46: 79.3896828 | S46: -2.309887469
A47: 2011-04-02 | B47: 05:09:02 | C47: =IF('Receiving Station Data'!$C$7<0,-(ABS('Receiving Station Data'!$C$7)+('Receiving Station Data'!$C$8/60)+('Receiving Station Data'!$C$9/3600)),(ABS('Receiving Station Data'!$C$7)+'Receiving Station Data'!$C$8/60)+('Receiving Station Data'!$C$9/3600)) -> 50.60944444 | D47: =IF('Receiving Station Data'!$C$11<0,-(ABS('Receiving Station Data'!$C$11)+('Receiving Station Data'!$C$12/60)+('Receiving Station Data'!$C$13/3600)),(ABS('Receiving Station Data'!$C$11)+'Receiving Station Data'!$C$12/60)+('Receiving Station Data'!$C$13/3600)) -> -4.006111111 | E47: 4407.572167 | F47: 1.914780067 | G47: 4332.427847 | H47: -0.9983062818 | I47: 3.665895141 | J47: 0.08571051475 | K47: 5.356531377 | L47: 4.543929289 | M47: -0.1841029236 | N47: 1.386176413 | O47: 1.386176413 | P47: 1.386176413 | Q47: 1.61065714 | R47: 79.42205815 | S47: -2.283856341
A48: 2011-04-02 | B48: 05:09:12 | C48: =IF('Receiving Station Data'!$C$7<0,-(ABS('Receiving Station Data'!$C$7)+('Receiving Station Data'!$C$8/60)+('Receiving Station Data'!$C$9/3600)),(ABS('Receiving Station Data'!$C$7)+'Receiving Station Data'!$C$8/60)+('Receiving Station Data'!$C$9/3600)) -> 50.60944444 | D48: =IF('Receiving Station Data'!$C$11<0,-(ABS('Receiving Station Data'!$C$11)+('Receiving Station Data'!$C$12/60)+('Receiving Station Data'!$C$13/3600)),(ABS('Receiving Station Data'!$C$11)+'Receiving Station Data'!$C$12/60)+('Receiving Station Data'!$C$13/3600)) -> -4.006111111 | E48: 4407.572281 | F48: 1.914780149 | G48: 4332.427961 | H48: -0.9983149367 | I48: 3.66586085 | J48: 0.08571129157 | K48: 5.359309727 | L48: 4.544656659 | M48: -0.1835492041 | N48: 1.386741421 | O48: 1.386741421 | P48: 1.386741421 | Q48: 1.610202763 | R48: 79.45443071 | S48: -2.257822473
A49: 2011-04-02 | B49: 05:09:22 | C49: =IF('Receiving Station Data'!$C$7<0,-(ABS('Receiving Station Data'!$C$7)+('Receiving Station Data'!$C$8/60)+('Receiving Station Data'!$C$9/3600)),(ABS('Receiving Station Data'!$C$7)+'Receiving Station Data'!$C$8/60)+('Receiving Station Data'!$C$9/3600)) -> 50.60944444 | D49: =IF('Receiving Station Data'!$C$11<0,-(ABS('Receiving Station Data'!$C$11)+('Receiving Station Data'!$C$12/60)+('Receiving Station Data'!$C$13/3600)),(ABS('Receiving Station Data'!$C$11)+'Receiving Station Data'!$C$12/60)+('Receiving Station Data'!$C$13/3600)) -> -4.006111111 | E49: 4407.572395 | F49: 1.914780231 | G49: 4332.428075 | H49: -0.9983235915 | I49: 3.665826559 | J49: 0.08571206838 | K49: 5.362088076 | L49: 4.545384029 | M49: -0.1829954163 | N49: 1.38730638 | O49: 1.38730638 | P49: 1.38730638 | Q49: 1.609748338 | R49: 79.48680048 | S49: -2.231785872
A50: 2011-04-02 | B50: 05:09:32 | C50: =IF('Receiving Station Data'!$C$7<0,-(ABS('Receiving Station Data'!$C$7)+('Receiving Station Data'!$C$8/60)+('Receiving Station Data'!$C$9/3600)),(ABS('Receiving Station Data'!$C$7)+'Receiving Station Data'!$C$8/60)+('Receiving Station Data'!$C$9/3600)) -> 50.60944444 | D50: =IF('Receiving Station Data'!$C$11<0,-(ABS('Receiving Station Data'!$C$11)+('Receiving Station Data'!$C$12/60)+('Receiving Station Data'!$C$13/3600)),(ABS('Receiving Station Data'!$C$11)+'Receiving Station Data'!$C$12/60)+('Receiving Station Data'!$C$13/3600)) -> -4.006111111 | E50: 4407.572509 | F50: 1.914780313 | G50: 4332.428189 | H50: -0.9983322463 | I50: 3.665792268 | J50: 0.08571284519 | K50: 5.364866425 | L50: 4.546111399 | M50: -0.1824415606 | N50: 1.387871291 | O50: 1.387871291 | P50: 1.387871291 | Q50: 1.609293866 | R50: 79.51916748 | S50: -2.205746547
A51: 2011-04-02 | B51: 05:09:42 | C51: =IF('Receiving Station Data'!$C$7<0,-(ABS('Receiving Station Data'!$C$7)+('Receiving Station Data'!$C$8/60)+('Receiving Station Data'!$C$9/3600)),(ABS('Receiving Station Data'!$C$7)+'Receiving Station Data'!$C$8/60)+('Receiving Station Data'!$C$9/3600)) -> 50.60944444 | D51: =IF('Receiving Station Data'!$C$11<0,-(ABS('Receiving Station Data'!$C$11)+('Receiving Station Data'!$C$12/60)+('Receiving Station Data'!$C$13/3600)),(ABS('Receiving Station Data'!$C$11)+'Receiving Station Data'!$C$12/60)+('Receiving Station Data'!$C$13/3600)) -> -4.006111111 | E51: 4407.572623 | F51: 1.914780396 | G51: 4332.428303 | H51: -0.9983409011 | I51: 3.665757978 | J51: 0.085713622 | K51: 5.367644774 | L51: 4.546838769 | M51: -0.1818876372 | N51: 1.388436154 | O51: 1.388436154 | P51: 1.388436154 | Q51: 1.608839347 | R51: 79.55153173 | S51: -2.179704507
A52: 2011-04-02 | B52: 05:09:52 | C52: =IF('Receiving Station Data'!$C$7<0,-(ABS('Receiving Station Data'!$C$7)+('Receiving Station Data'!$C$8/60)+('Receiving Station Data'!$C$9/3600)),(ABS('Receiving Station Data'!$C$7)+'Receiving Station Data'!$C$8/60)+('Receiving Station Data'!$C$9/3600)) -> 50.60944444 | D52: =IF('Receiving Station Data'!$C$11<0,-(ABS('Receiving Station Data'!$C$11)+('Receiving Station Data'!$C$12/60)+('Receiving Station Data'!$C$13/3600)),(ABS('Receiving Station Data'!$C$11)+'Receiving Station Data'!$C$12/60)+('Receiving Station Data'!$C$13/3600)) -> -4.006111111 | E52: 4407.572737 | F52: 1.914780478 | G52: 4332.428418 | H52: -0.9983495559 | I52: 3.665723687 | J52: 0.08571439882 | K52: 5.370423124 | L52: 4.54756614 | M52: -0.1813336464 | N52: 1.389000968 | O52: 1.389000968 | P52: 1.389000968 | Q52: 1.608384781 | R52: 79.58389322 | S52: -2.15365976
A53: 2011-04-02 | B53: 05:10:02 | C53: =IF('Receiving Station Data'!$C$7<0,-(ABS('Receiving Station Data'!$C$7)+('Receiving Station Data'!$C$8/60)+('Receiving Station Data'!$C$9/3600)),(ABS('Receiving Station Data'!$C$7)+'Receiving Station Data'!$C$8/60)+('Receiving Station Data'!$C$9/3600)) -> 50.60944444 | D53: =IF('Receiving Station Data'!$C$11<0,-(ABS('Receiving Station Data'!$C$11)+('Receiving Station Data'!$C$12/60)+('Receiving Station Data'!$C$13/3600)),(ABS('Receiving Station Data'!$C$11)+'Receiving Station Data'!$C$12/60)+('Receiving Station Data'!$C$13/3600)) -> -4.006111111 | E53: 4407.572851 | F53: 1.91478056 | G53: 4332.428532 | H53: -0.9983582106 | I53: 3.665689396 | J53: 0.08571517563 | K53: 5.373201473 | L53: 4.54829351 | M53: -0.1807795885 | N53: 1.389565735 | O53: 1.389565735 | P53: 1.389565735 | Q53: 1.607930167 | R53: 79.61625199 | S53: -2.127612315
A54: 2011-04-02 | B54: 05:10:12 | C54: =IF('Receiving Station Data'!$C$7<0,-(ABS('Receiving Station Data'!$C$7)+('Receiving Station Data'!$C$8/60)+('Receiving Station Data'!$C$9/3600)),(ABS('Receiving Station Data'!$C$7)+'Receiving Station Data'!$C$8/60)+('Receiving Station Data'!$C$9/3600)) -> 50.60944444 | D54: =IF('Receiving Station Data'!$C$11<0,-(ABS('Receiving Station Data'!$C$11)+('Receiving Station Data'!$C$12/60)+('Receiving Station Data'!$C$13/3600)),(ABS('Receiving Station Data'!$C$11)+'Receiving Station Data'!$C$12/60)+('Receiving Station Data'!$C$13/3600)) -> -4.006111111 | E54: 4407.572965 | F54: 1.914780642 | G54: 4332.428646 | H54: -0.9983668654 | I54: 3.665655106 | J54: 0.08571595244 | K54: 5.375979822 | L54: 4.54902088 | M54: -0.1802254638 | N54: 1.390130455 | O54: 1.390130455 | P54: 1.390130455 | Q54: 1.607475506 | R54: 79.64860804 | S54: -2.10156218
A55: 2011-04-02 | B55: 05:10:22 | C55: =IF('Receiving Station Data'!$C$7<0,-(ABS('Receiving Station Data'!$C$7)+('Receiving Station Data'!$C$8/60)+('Receiving Station Data'!$C$9/3600)),(ABS('Receiving Station Data'!$C$7)+'Receiving Station Data'!$C$8/60)+('Receiving Station Data'!$C$9/3600)) -> 50.60944444 | D55: =IF('Receiving Station Data'!$C$11<0,-(ABS('Receiving Station Data'!$C$11)+('Receiving Station Data'!$C$12/60)+('Receiving Station Data'!$C$13/3600)),(ABS('Receiving Station Data'!$C$11)+'Receiving Station Data'!$C$12/60)+('Receiving Station Data'!$C$13/3600)) -> -4.006111111 | E55: 4407.573079 | F55: 1.914780724 | G55: 4332.42876 | H55: -0.9983755201 | I55: 3.665620815 | J55: 0.08571672925 | K55: 5.378758172 | L55: 4.54974825 | M55: -0.1796712726 | N55: 1.390695127 | O55: 1.390695127 | P55: 1.390695127 | Q55: 1.607020799 | R55: 79.68096138 | S55: -2.075509364
A56: 2011-04-02 | B56: 05:10:32 | C56: =IF('Receiving Station Data'!$C$7<0,-(ABS('Receiving Station Data'!$C$7)+('Receiving Station Data'!$C$8/60)+('Receiving Station Data'!$C$9/3600)),(ABS('Receiving Station Data'!$C$7)+'Receiving Station Data'!$C$8/60)+('Receiving Station Data'!$C$9/3600)) -> 50.60944444 | D56: =IF('Receiving Station Data'!$C$11<0,-(ABS('Receiving Station Data'!$C$11)+('Receiving Station Data'!$C$12/60)+('Receiving Station Data'!$C$13/3600)),(ABS('Receiving Station Data'!$C$11)+'Receiving Station Data'!$C$12/60)+('Receiving Station Data'!$C$13/3600)) -> -4.006111111 | E56: 4407.573193 | F56: 1.914780806 | G56: 4332.428874 | H56: -0.9983841748 | I56: 3.665586525 | J56: 0.08571750606 | K56: 5.381536521 | L56: 4.55047562 | M56: -0.1791170152 | N56: 1.391259753 | O56: 1.391259753 | P56: 1.391259753 | Q56: 1.606566045 | R56: 79.71331203 | S56: -2.049453875
A57: 2011-04-02 | B57: 05:10:42 | C57: =IF('Receiving Station Data'!$C$7<0,-(ABS('Receiving Station Data'!$C$7)+('Receiving Station Data'!$C$8/60)+('Receiving Station Data'!$C$9/3600)),(ABS('Receiving Station Data'!$C$7)+'Receiving Station Data'!$C$8/60)+('Receiving Station Data'!$C$9/3600)) -> 50.60944444 | D57: =IF('Receiving Station Data'!$C$11<0,-(ABS('Receiving Station Data'!$C$11)+('Receiving Station Data'!$C$12/60)+('Receiving Station Data'!$C$13/3600)),(ABS('Receiving Station Data'!$C$11)+'Receiving Station Data'!$C$12/60)+('Receiving Station Data'!$C$13/3600)) -> -4.006111111 | E57: 4407.573307 | F57: 1.914780888 | G57: 4332.428988 | H57: -0.9983928295 | I57: 3.665552234 | J57: 0.08571828287 | K57: 5.38431487 | L57: 4.55120299 | M57: -0.1785626919 | N57: 1.391824331 | O57: 1.391824331 | P57: 1.391824331 | Q57: 1.606111244 | R57: 79.74566001 | S57: -2.023395722
A58: 2011-04-02 | B58: 05:10:52 | C58: =IF('Receiving Station Data'!$C$7<0,-(ABS('Receiving Station Data'!$C$7)+('Receiving Station Data'!$C$8/60)+('Receiving Station Data'!$C$9/3600)),(ABS('Receiving Station Data'!$C$7)+'Receiving Station Data'!$C$8/60)+('Receiving Station Data'!$C$9/3600)) -> 50.60944444 | D58: =IF('Receiving Station Data'!$C$11<0,-(ABS('Receiving Station Data'!$C$11)+('Receiving Station Data'!$C$12/60)+('Receiving Station Data'!$C$13/3600)),(ABS('Receiving Station Data'!$C$11)+'Receiving Station Data'!$C$12/60)+('Receiving Station Data'!$C$13/3600)) -> -4.006111111 | E58: 4407.573422 | F58: 1.91478097 | G58: 4332.429103 | H58: -0.9984014842 | I58: 3.665517944 | J58: 0.08571905968 | K58: 5.387093219 | L58: 4.55193036 | M58: -0.178008303 | N58: 1.392388863 | O58: 1.392388863 | P58: 1.392388863 | Q58: 1.605656397 | R58: 79.77800531 | S58: -1.997334914
A59: 2011-04-02 | B59: 05:11:02 | C59: =IF('Receiving Station Data'!$C$7<0,-(ABS('Receiving Station Data'!$C$7)+('Receiving Station Data'!$C$8/60)+('Receiving Station Data'!$C$9/3600)),(ABS('Receiving Station Data'!$C$7)+'Receiving Station Data'!$C$8/60)+('Receiving Station Data'!$C$9/3600)) -> 50.60944444 | D59: =IF('Receiving Station Data'!$C$11<0,-(ABS('Receiving Station Data'!$C$11)+('Receiving Station Data'!$C$12/60)+('Receiving Station Data'!$C$13/3600)),(ABS('Receiving Station Data'!$C$11)+'Receiving Station Data'!$C$12/60)+('Receiving Station Data'!$C$13/3600)) -> -4.006111111 | E59: 4407.573536 | F59: 1.914781052 | G59: 4332.429217 | H59: -0.9984101389 | I59: 3.665483653 | J59: 0.08571983649 | K59: 5.389871569 | L59: 4.552657731 | M59: -0.1774538488 | N59: 1.392953349 | O59: 1.392953349 | P59: 1.392953349 | Q59: 1.605201504 | R59: 79.81034797 | S59: -1.971271458
A60: 2011-04-02 | B60: 05:11:12 | C60: =IF('Receiving Station Data'!$C$7<0,-(ABS('Receiving Station Data'!$C$7)+('Receiving Station Data'!$C$8/60)+('Receiving Station Data'!$C$9/3600)),(ABS('Receiving Station Data'!$C$7)+'Receiving Station Data'!$C$8/60)+('Receiving Station Data'!$C$9/3600)) -> 50.60944444 | D60: =IF('Receiving Station Data'!$C$11<0,-(ABS('Receiving Station Data'!$C$11)+('Receiving Station Data'!$C$12/60)+('Receiving Station Data'!$C$13/3600)),(ABS('Receiving Station Data'!$C$11)+'Receiving Station Data'!$C$12/60)+('Receiving Station Data'!$C$13/3600)) -> -4.006111111 | E60: 4407.57365 | F60: 1.914781134 | G60: 4332.429331 | H60: -0.9984187935 | I60: 3.665449363 | J60: 0.08572061329 | K60: 5.392649918 | L60: 4.553385101 | M60: -0.1768993295 | N60: 1.393517789 | O60: 1.393517789 | P60: 1.393517789 | Q60: 1.604746565 | R60: 79.84268799 | S60: -1.945205364
A61: 2011-04-02 | B61: 05:11:22 | C61: =IF('Receiving Station Data'!$C$7<0,-(ABS('Receiving Station Data'!$C$7)+('Receiving Station Data'!$C$8/60)+('Receiving Station Data'!$C$9/3600)),(ABS('Receiving Station Data'!$C$7)+'Receiving Station Data'!$C$8/60)+('Receiving Station Data'!$C$9/3600)) -> 50.60944444 | D61: =IF('Receiving Station Data'!$C$11<0,-(ABS('Receiving Station Data'!$C$11)+('Receiving Station Data'!$C$12/60)+('Receiving Station Data'!$C$13/3600)),(ABS('Receiving Station Data'!$C$11)+'Receiving Station Data'!$C$12/60)+('Receiving Station Data'!$C$13/3600)) -> -4.006111111 | E61: 4407.573764 | F61: 1.914781216 | G61: 4332.429445 | H61: -0.9984274482 | I61: 3.665415072 | J61: 0.0857213901 | K61: 5.395428267 | L61: 4.554112471 | M61: -0.1763447454 | N61: 1.394082183 | O61: 1.394082183 | P61: 1.394082183 | Q61: 1.60429158 | R61: 79.87502538 | S61: -1.919136639
A62: 2011-04-02 | B62: 05:11:32 | C62: =IF('Receiving Station Data'!$C$7<0,-(ABS('Receiving Station Data'!$C$7)+('Receiving Station Data'!$C$8/60)+('Receiving Station Data'!$C$9/3600)),(ABS('Receiving Station Data'!$C$7)+'Receiving Station Data'!$C$8/60)+('Receiving Station Data'!$C$9/3600)) -> 50.60944444 | D62: =IF('Receiving Station Data'!$C$11<0,-(ABS('Receiving Station Data'!$C$11)+('Receiving Station Data'!$C$12/60)+('Receiving Station Data'!$C$13/3600)),(ABS('Receiving Station Data'!$C$11)+'Receiving Station Data'!$C$12/60)+('Receiving Station Data'!$C$13/3600)) -> -4.006111111 | E62: 4407.573878 | F62: 1.914781298 | G62: 4332.429559 | H62: -0.9984361028 | I62: 3.665380782 | J62: 0.08572216691 | K62: 5.398206617 | L62: 4.554839841 | M62: -0.175790097 | N62: 1.394646531 | O62: 1.394646531 | P62: 1.394646531 | Q62: 1.603836549 | R62: 79.90736015 | S62: -1.893065293
A63: 2011-04-02 | B63: 05:11:42 | C63: =IF('Receiving Station Data'!$C$7<0,-(ABS('Receiving Station Data'!$C$7)+('Receiving Station Data'!$C$8/60)+('Receiving Station Data'!$C$9/3600)),(ABS('Receiving Station Data'!$C$7)+'Receiving Station Data'!$C$8/60)+('Receiving Station Data'!$C$9/3600)) -> 50.60944444 | D63: =IF('Receiving Station Data'!$C$11<0,-(ABS('Receiving Station Data'!$C$11)+('Receiving Station Data'!$C$12/60)+('Receiving Station Data'!$C$13/3600)),(ABS('Receiving Station Data'!$C$11)+'Receiving Station Data'!$C$12/60)+('Receiving Station Data'!$C$13/3600)) -> -4.006111111 | E63: 4407.573992 | F63: 1.91478138 | G63: 4332.429673 | H63: -0.9984447574 | I63: 3.665346492 | J63: 0.08572294372 | K63: 5.400984966 | L63: 4.555567211 | M63: -0.1752353843 | N63: 1.395210834 | O63: 1.395210834 | P63: 1.395210834 | Q63: 1.603381473 | R63: 79.93969233 | S63: -1.866991334
A64: 2011-04-02 | B64: 05:11:52 | C64: =IF('Receiving Station Data'!$C$7<0,-(ABS('Receiving Station Data'!$C$7)+('Receiving Station Data'!$C$8/60)+('Receiving Station Data'!$C$9/3600)),(ABS('Receiving Station Data'!$C$7)+'Receiving Station Data'!$C$8/60)+('Receiving Station Data'!$C$9/3600)) -> 50.60944444 | D64: =IF('Receiving Station Data'!$C$11<0,-(ABS('Receiving Station Data'!$C$11)+('Receiving Station Data'!$C$12/60)+('Receiving Station Data'!$C$13/3600)),(ABS('Receiving Station Data'!$C$11)+'Receiving Station Data'!$C$12/60)+('Receiving Station Data'!$C$13/3600)) -> -4.006111111 | E64: 4407.574106 | F64: 1.914781462 | G64: 4332.429787 | H64: -0.998453412 | I64: 3.665312201 | J64: 0.08572372053 | K64: 5.403763315 | L64: 4.556294581 | M64: -0.1746806078 | N64: 1.395775092 | O64: 1.395775092 | P64: 1.395775092 | Q64: 1.602926351 | R64: 79.97202192 | S64: -1.84091477
A65: 2011-04-02 | B65: 05:12:02 | C65: =IF('Receiving Station Data'!$C$7<0,-(ABS('Receiving Station Data'!$C$7)+('Receiving Station Data'!$C$8/60)+('Receiving Station Data'!$C$9/3600)),(ABS('Receiving Station Data'!$C$7)+'Receiving Station Data'!$C$8/60)+('Receiving Station Data'!$C$9/3600)) -> 50.60944444 | D65: =IF('Receiving Station Data'!$C$11<0,-(ABS('Receiving Station Data'!$C$11)+('Receiving Station Data'!$C$12/60)+('Receiving Station Data'!$C$13/3600)),(ABS('Receiving Station Data'!$C$11)+'Receiving Station Data'!$C$12/60)+('Receiving Station Data'!$C$13/3600)) -> -4.006111111 | E65: 4407.57422 | F65: 1.914781544 | G65: 4332.429902 | H65: -0.9984620666 | I65: 3.665277911 | J65: 0.08572449733 | K65: 5.406541664 | L65: 4.557021951 | M65: -0.1741257678 | N65: 1.396339305 | O65: 1.396339305 | P65: 1.396339305 | Q65: 1.602471184 | R65: 80.00434894 | S65: -1.81483561
A66: 2011-04-02 | B66: 05:12:12 | C66: =IF('Receiving Station Data'!$C$7<0,-(ABS('Receiving Station Data'!$C$7)+('Receiving Station Data'!$C$8/60)+('Receiving Station Data'!$C$9/3600)),(ABS('Receiving Station Data'!$C$7)+'Receiving Station Data'!$C$8/60)+('Receiving Station Data'!$C$9/3600)) -> 50.60944444 | D66: =IF('Receiving Station Data'!$C$11<0,-(ABS('Receiving Station Data'!$C$11)+('Receiving Station Data'!$C$12/60)+('Receiving Station Data'!$C$13/3600)),(ABS('Receiving Station Data'!$C$11)+'Receiving Station Data'!$C$12/60)+('Receiving Station Data'!$C$13/3600)) -> -4.006111111 | E66: 4407.574334 | F66: 1.914781626 | G66: 4332.430016 | H66: -0.9984707212 | I66: 3.665243621 | J66: 0.08572527414 | K66: 5.409320014 | L66: 4.557749322 | M66: -0.1735708645 | N66: 1.396903473 | O66: 1.396903473 | P66: 1.396903473 | Q66: 1.602015971 | R66: 80.0366734 | S66: -1.788753862
A67: 2011-04-02 | B67: 05:12:22 | C67: =IF('Receiving Station Data'!$C$7<0,-(ABS('Receiving Station Data'!$C$7)+('Receiving Station Data'!$C$8/60)+('Receiving Station Data'!$C$9/3600)),(ABS('Receiving Station Data'!$C$7)+'Receiving Station Data'!$C$8/60)+('Receiving Station Data'!$C$9/3600)) -> 50.60944444 | D67: =IF('Receiving Station Data'!$C$11<0,-(ABS('Receiving Station Data'!$C$11)+('Receiving Station Data'!$C$12/60)+('Receiving Station Data'!$C$13/3600)),(ABS('Receiving Station Data'!$C$11)+'Receiving Station Data'!$C$12/60)+('Receiving Station Data'!$C$13/3600)) -> -4.006111111 | E67: =357.5291+0.98560028*((B67+A67)-36526) -> 4407.574448 | F67: =1.9148*SIN(E67*(PI()/180))+0.02*SIN(2*E67*(PI()/180)+0.0003*SIN(3*E67*(PI()/180))) -> 1.914781708 | G67: =280.47+F67+0.98560028*(A67+B67-36526) -> 4332.43013 | H67: =-2.468*SIN(2*G67*(PI()/180))+0.053*SIN(4*G67*(PI()/180))-0.0014*SIN(6*G67*(PI()/180)) -> -0.9984793757 | I67: =4*(F67+H67) -> 3.665209331 | J67: =ASIN(SIN(23.43929*(PI()/180))*SIN(G67*(PI()/180))) -> 0.08572605095 | K67: =B67*24-(D67/15)-(I67/60) -> 5.412098363 | L67: =K67*(PI()/12)+PI() -> 4.558476692 | M67: =(SIN(C67*(PI()/180))*COS(L67))-(COS(C67*(PI()/180))*TAN(J67)) -> -0.1730158982 | N67: =ATAN(SIN(L67)/M67) -> 1.397467597 | O67: =IF(M67<0,N67,N67+PI()) -> 1.397467597 | P67: =IF(O67<0,O67+2*PI(),O67) -> 1.397467597 | Q67: =ACOS(SIN(C67*(PI()/180))*SIN(J67)+COS(C67*(PI()/180))*COS(J67)*COS(L67)) -> 1.601560714 | R67: =IF(B67<>0,P67*(180/PI()),"") -> 80.06899532 | S67: =IF(B67<>0,90-Q67*(180/PI()),"") -> -1.762669535
A68: 2011-04-02 | B68: 05:12:32 | C68: =IF('Receiving Station Data'!$C$7<0,-(ABS('Receiving Station Data'!$C$7)+('Receiving Station Data'!$C$8/60)+('Receiving Station Data'!$C$9/3600)),(ABS('Receiving Station Data'!$C$7)+'Receiving Station Data'!$C$8/60)+('Receiving Station Data'!$C$9/3600)) -> 50.60944444 | D68: =IF('Receiving Station Data'!$C$11<0,-(ABS('Receiving Station Data'!$C$11)+('Receiving Station Data'!$C$12/60)+('Receiving Station Data'!$C$13/3600)),(ABS('Receiving Station Data'!$C$11)+'Receiving Station Data'!$C$12/60)+('Receiving Station Data'!$C$13/3600)) -> -4.006111111 | E68: 4407.574562 | F68: 1.91478179 | G68: 4332.430244 | H68: -0.9984880303 | I68: 3.66517504 | J68: 0.08572682775 | K68: 5.414876712 | L68: 4.559204062 | M68: -0.1724608692 | N68: 1.398031677 | O68: 1.398031677 | P68: 1.398031677 | Q68: 1.601105412 | R68: 80.1013147 | S68: -1.736582637
A69: 2011-04-02 | B69: 05:12:42 | C69: =IF('Receiving Station Data'!$C$7<0,-(ABS('Receiving Station Data'!$C$7)+('Receiving Station Data'!$C$8/60)+('Receiving Station Data'!$C$9/3600)),(ABS('Receiving Station Data'!$C$7)+'Receiving Station Data'!$C$8/60)+('Receiving Station Data'!$C$9/3600)) -> 50.60944444 | D69: =IF('Receiving Station Data'!$C$11<0,-(ABS('Receiving Station Data'!$C$11)+('Receiving Station Data'!$C$12/60)+('Receiving Station Data'!$C$13/3600)),(ABS('Receiving Station Data'!$C$11)+'Receiving Station Data'!$C$12/60)+('Receiving Station Data'!$C$13/3600)) -> -4.006111111 | E69: 4407.574676 | F69: 1.914781872 | G69: 4332.430358 | H69: -0.9984966848 | I69: 3.66514075 | J69: 0.08572760456 | K69: 5.417655062 | L69: 4.559931432 | M69: -0.1719057778 | N69: 1.398595712 | O69: 1.398595712 | P69: 1.398595712 | Q69: 1.600650065 | R69: 80.13363156 | S69: -1.710493177
A70: 2011-04-02 | B70: 05:12:52 | C70: =IF('Receiving Station Data'!$C$7<0,-(ABS('Receiving Station Data'!$C$7)+('Receiving Station Data'!$C$8/60)+('Receiving Station Data'!$C$9/3600)),(ABS('Receiving Station Data'!$C$7)+'Receiving Station Data'!$C$8/60)+('Receiving Station Data'!$C$9/3600)) -> 50.60944444 | D70: =IF('Receiving Station Data'!$C$11<0,-(ABS('Receiving Station Data'!$C$11)+('Receiving Station Data'!$C$12/60)+('Receiving Station Data'!$C$13/3600)),(ABS('Receiving Station Data'!$C$11)+'Receiving Station Data'!$C$12/60)+('Receiving Station Data'!$C$13/3600)) -> -4.006111111 | E70: 4407.57479 | F70: 1.914781954 | G70: 4332.430472 | H70: -0.9985053393 | I70: 3.66510646 | J70: 0.08572838136 | K70: 5.420433411 | L70: 4.560658802 | M70: -0.1713506243 | N70: 1.399159704 | O70: 1.399159704 | P70: 1.399159704 | Q70: 1.600194673 | R70: 80.16594591 | S70: -1.684401163
A71: 2011-04-02 | B71: 05:13:02 | C71: =IF('Receiving Station Data'!$C$7<0,-(ABS('Receiving Station Data'!$C$7)+('Receiving Station Data'!$C$8/60)+('Receiving Station Data'!$C$9/3600)),(ABS('Receiving Station Data'!$C$7)+'Receiving Station Data'!$C$8/60)+('Receiving Station Data'!$C$9/3600)) -> 50.60944444 | D71: =IF('Receiving Station Data'!$C$11<0,-(ABS('Receiving Station Data'!$C$11)+('Receiving Station Data'!$C$12/60)+('Receiving Station Data'!$C$13/3600)),(ABS('Receiving Station Data'!$C$11)+'Receiving Station Data'!$C$12/60)+('Receiving Station Data'!$C$13/3600)) -> -4.006111111 | E71: 4407.574905 | F71: 1.914782036 | G71: 4332.430587 | H71: -0.9985139938 | I71: 3.66507217 | J71: 0.08572915817 | K71: 5.42321176 | L71: 4.561386172 | M71: -0.1707954091 | N71: 1.399723652 | O71: 1.399723652 | P71: 1.399723652 | Q71: 1.599739237 | R71: 80.19825777 | S71: -1.658306604
A72: 2011-04-02 | B72: 05:13:12 | C72: =IF('Receiving Station Data'!$C$7<0,-(ABS('Receiving Station Data'!$C$7)+('Receiving Station Data'!$C$8/60)+('Receiving Station Data'!$C$9/3600)),(ABS('Receiving Station Data'!$C$7)+'Receiving Station Data'!$C$8/60)+('Receiving Station Data'!$C$9/3600)) -> 50.60944444 | D72: =IF('Receiving Station Data'!$C$11<0,-(ABS('Receiving Station Data'!$C$11)+('Receiving Station Data'!$C$12/60)+('Receiving Station Data'!$C$13/3600)),(ABS('Receiving Station Data'!$C$11)+'Receiving Station Data'!$C$12/60)+('Receiving Station Data'!$C$13/3600)) -> -4.006111111 | E72: 4407.575019 | F72: 1.914782118 | G72: 4332.430701 | H72: -0.9985226483 | I72: 3.66503788 | J72: 0.08572993497 | K72: 5.425990109 | L72: 4.562113542 | M72: -0.1702401323 | N72: 1.400287557 | O72: 1.400287557 | P72: 1.400287557 | Q72: 1.599283757 | R72: 80.23056715 | S72: -1.632209509
A73: 2011-04-02 | B73: 05:13:22 | C73: =IF('Receiving Station Data'!$C$7<0,-(ABS('Receiving Station Data'!$C$7)+('Receiving Station Data'!$C$8/60)+('Receiving Station Data'!$C$9/3600)),(ABS('Receiving Station Data'!$C$7)+'Receiving Station Data'!$C$8/60)+('Receiving Station Data'!$C$9/3600)) -> 50.60944444 | D73: =IF('Receiving Station Data'!$C$11<0,-(ABS('Receiving Station Data'!$C$11)+('Receiving Station Data'!$C$12/60)+('Receiving Station Data'!$C$13/3600)),(ABS('Receiving Station Data'!$C$11)+'Receiving Station Data'!$C$12/60)+('Receiving Station Data'!$C$13/3600)) -> -4.006111111 | E73: 4407.575133 | F73: 1.9147822 | G73: 4332.430815 | H73: -0.9985313028 | I73: 3.66500359 | J73: 0.08573071178 | K73: 5.428768459 | L73: 4.562840913 | M73: -0.1696847943 | N73: 1.400851419 | O73: 1.400851419 | P73: 1.400851419 | Q73: 1.598828232 | R73: 80.26287406 | S73: -1.606109885
A74: 2011-04-02 | B74: 05:13:32 | C74: =IF('Receiving Station Data'!$C$7<0,-(ABS('Receiving Station Data'!$C$7)+('Receiving Station Data'!$C$8/60)+('Receiving Station Data'!$C$9/3600)),(ABS('Receiving Station Data'!$C$7)+'Receiving Station Data'!$C$8/60)+('Receiving Station Data'!$C$9/3600)) -> 50.60944444 | D74: =IF('Receiving Station Data'!$C$11<0,-(ABS('Receiving Station Data'!$C$11)+('Receiving Station Data'!$C$12/60)+('Receiving Station Data'!$C$13/3600)),(ABS('Receiving Station Data'!$C$11)+'Receiving Station Data'!$C$12/60)+('Receiving Station Data'!$C$13/3600)) -> -4.006111111 | E74: 4407.575247 | F74: 1.914782282 | G74: 4332.430929 | H74: -0.9985399572 | I74: 3.6649693 | J74: 0.08573148858 | K74: 5.431546808 | L74: 4.563568283 | M74: -0.1691293954 | N74: 1.401415239 | O74: 1.401415239 | P74: 1.401415239 | Q74: 1.598372664 | R74: 80.29517852 | S74: -1.580007741
A75: 2011-04-02 | B75: 05:13:42 | C75: =IF('Receiving Station Data'!$C$7<0,-(ABS('Receiving Station Data'!$C$7)+('Receiving Station Data'!$C$8/60)+('Receiving Station Data'!$C$9/3600)),(ABS('Receiving Station Data'!$C$7)+'Receiving Station Data'!$C$8/60)+('Receiving Station Data'!$C$9/3600)) -> 50.60944444 | D75: =IF('Receiving Station Data'!$C$11<0,-(ABS('Receiving Station Data'!$C$11)+('Receiving Station Data'!$C$12/60)+('Receiving Station Data'!$C$13/3600)),(ABS('Receiving Station Data'!$C$11)+'Receiving Station Data'!$C$12/60)+('Receiving Station Data'!$C$13/3600)) -> -4.006111111 | E75: 4407.575361 | F75: 1.914782364 | G75: 4332.431043 | H75: -0.9985486117 | I75: 3.66493501 | J75: 0.08573226538 | K75: 5.434325157 | L75: 4.564295653 | M75: -0.1685739358 | N75: 1.401979015 | O75: 1.401979015 | P75: 1.401979015 | Q75: 1.597917052 | R75: 80.32748054 | S75: -1.553903086
A76: 2011-04-02 | B76: 05:13:52 | C76: =IF('Receiving Station Data'!$C$7<0,-(ABS('Receiving Station Data'!$C$7)+('Receiving Station Data'!$C$8/60)+('Receiving Station Data'!$C$9/3600)),(ABS('Receiving Station Data'!$C$7)+'Receiving Station Data'!$C$8/60)+('Receiving Station Data'!$C$9/3600)) -> 50.60944444 | D76: =IF('Receiving Station Data'!$C$11<0,-(ABS('Receiving Station Data'!$C$11)+('Receiving Station Data'!$C$12/60)+('Receiving Station Data'!$C$13/3600)),(ABS('Receiving Station Data'!$C$11)+'Receiving Station Data'!$C$12/60)+('Receiving Station Data'!$C$13/3600)) -> -4.006111111 | E76: 4407.575475 | F76: 1.914782446 | G76: 4332.431157 | H76: -0.9985572661 | I76: 3.66490072 | J76: 0.08573304219 | K76: 5.437103507 | L76: 4.565023023 | M76: -0.1680184159 | N76: 1.402542749 | O76: 1.402542749 | P76: 1.402542749 | Q76: 1.597461396 | R76: 80.35978013 | S76: -1.527795927
A77: 2011-04-02 | B77: 05:14:02 | C77: =IF('Receiving Station Data'!$C$7<0,-(ABS('Receiving Station Data'!$C$7)+('Receiving Station Data'!$C$8/60)+('Receiving Station Data'!$C$9/3600)),(ABS('Receiving Station Data'!$C$7)+'Receiving Station Data'!$C$8/60)+('Receiving Station Data'!$C$9/3600)) -> 50.60944444 | D77: =IF('Receiving Station Data'!$C$11<0,-(ABS('Receiving Station Data'!$C$11)+('Receiving Station Data'!$C$12/60)+('Receiving Station Data'!$C$13/3600)),(ABS('Receiving Station Data'!$C$11)+'Receiving Station Data'!$C$12/60)+('Receiving Station Data'!$C$13/3600)) -> -4.006111111 | E77: 4407.575589 | F77: 1.914782528 | G77: 4332.431271 | H77: -0.9985659205 | I77: 3.66486643 | J77: 0.08573381899 | K77: 5.439881856 | L77: 4.565750393 | M77: -0.167462836 | N77: 1.403106442 | O77: 1.403106442 | P77: 1.403106442 | Q77: 1.597005697 | R77: 80.39207731 | S77: -1.501686275
A78: 2011-04-02 | B78: 05:14:12 | C78: =IF('Receiving Station Data'!$C$7<0,-(ABS('Receiving Station Data'!$C$7)+('Receiving Station Data'!$C$8/60)+('Receiving Station Data'!$C$9/3600)),(ABS('Receiving Station Data'!$C$7)+'Receiving Station Data'!$C$8/60)+('Receiving Station Data'!$C$9/3600)) -> 50.60944444 | D78: =IF('Receiving Station Data'!$C$11<0,-(ABS('Receiving Station Data'!$C$11)+('Receiving Station Data'!$C$12/60)+('Receiving Station Data'!$C$13/3600)),(ABS('Receiving Station Data'!$C$11)+'Receiving Station Data'!$C$12/60)+('Receiving Station Data'!$C$13/3600)) -> -4.006111111 | E78: 4407.575703 | F78: 1.91478261 | G78: 4332.431386 | H78: -0.9985745749 | I78: 3.66483214 | J78: 0.08573459579 | K78: 5.442660205 | L78: 4.566477763 | M78: -0.1669071964 | N78: 1.403670092 | O78: 1.403670092 | P78: 1.403670092 | Q78: 1.596549954 | R78: 80.42437209 | S78: -1.475574136
A79: 2011-04-02 | B79: 05:14:22 | C79: =IF('Receiving Station Data'!$C$7<0,-(ABS('Receiving Station Data'!$C$7)+('Receiving Station Data'!$C$8/60)+('Receiving Station Data'!$C$9/3600)),(ABS('Receiving Station Data'!$C$7)+'Receiving Station Data'!$C$8/60)+('Receiving Station Data'!$C$9/3600)) -> 50.60944444 | D79: =IF('Receiving Station Data'!$C$11<0,-(ABS('Receiving Station Data'!$C$11)+('Receiving Station Data'!$C$12/60)+('Receiving Station Data'!$C$13/3600)),(ABS('Receiving Station Data'!$C$11)+'Receiving Station Data'!$C$12/60)+('Receiving Station Data'!$C$13/3600)) -> -4.006111111 | E79: 4407.575817 | F79: 1.914782692 | G79: 4332.4315 | H79: -0.9985832293 | I79: 3.66479785 | J79: 0.0857353726 | K79: 5.445438554 | L79: 4.567205133 | M79: -0.1663514973 | N79: 1.4042337 | O79: 1.4042337 | P79: 1.4042337 | Q79: 1.596094168 | R79: 80.45666447 | S79: -1.44945952
A80: 2011-04-02 | B80: 05:14:32 | C80: =IF('Receiving Station Data'!$C$7<0,-(ABS('Receiving Station Data'!$C$7)+('Receiving Station Data'!$C$8/60)+('Receiving Station Data'!$C$9/3600)),(ABS('Receiving Station Data'!$C$7)+'Receiving Station Data'!$C$8/60)+('Receiving Station Data'!$C$9/3600)) -> 50.60944444 | D80: =IF('Receiving Station Data'!$C$11<0,-(ABS('Receiving Station Data'!$C$11)+('Receiving Station Data'!$C$12/60)+('Receiving Station Data'!$C$13/3600)),(ABS('Receiving Station Data'!$C$11)+'Receiving Station Data'!$C$12/60)+('Receiving Station Data'!$C$13/3600)) -> -4.006111111 | E80: 4407.575931 | F80: 1.914782774 | G80: 4332.431614 | H80: -0.9985918836 | I80: 3.66476356 | J80: 0.0857361494 | K80: 5.448216904 | L80: 4.567932504 | M80: -0.165795739 | N80: 1.404797267 | O80: 1.404797267 | P80: 1.404797267 | Q80: 1.595638339 | R80: 80.48895449 | S80: -1.423342435
A81: 2011-04-02 | B81: 05:14:42 | C81: =IF('Receiving Station Data'!$C$7<0,-(ABS('Receiving Station Data'!$C$7)+('Receiving Station Data'!$C$8/60)+('Receiving Station Data'!$C$9/3600)),(ABS('Receiving Station Data'!$C$7)+'Receiving Station Data'!$C$8/60)+('Receiving Station Data'!$C$9/3600)) -> 50.60944444 | D81: =IF('Receiving Station Data'!$C$11<0,-(ABS('Receiving Station Data'!$C$11)+('Receiving Station Data'!$C$12/60)+('Receiving Station Data'!$C$13/3600)),(ABS('Receiving Station Data'!$C$11)+'Receiving Station Data'!$C$12/60)+('Receiving Station Data'!$C$13/3600)) -> -4.006111111 | E81: 4407.576045 | F81: 1.914782856 | G81: 4332.431728 | H81: -0.998600538 | I81: 3.66472927 | J81: 0.0857369262 | K81: 5.450995253 | L81: 4.568659874 | M81: -0.1652399219 | N81: 1.405360793 | O81: 1.405360793 | P81: 1.405360793 | Q81: 1.595182467 | R81: 80.52124214 | S81: -1.397222889
A82: 2011-04-02 | B82: 05:14:52 | C82: =IF('Receiving Station Data'!$C$7<0,-(ABS('Receiving Station Data'!$C$7)+('Receiving Station Data'!$C$8/60)+('Receiving Station Data'!$C$9/3600)),(ABS('Receiving Station Data'!$C$7)+'Receiving Station Data'!$C$8/60)+('Receiving Station Data'!$C$9/3600)) -> 50.60944444 | D82: =IF('Receiving Station Data'!$C$11<0,-(ABS('Receiving Station Data'!$C$11)+('Receiving Station Data'!$C$12/60)+('Receiving Station Data'!$C$13/3600)),(ABS('Receiving Station Data'!$C$11)+'Receiving Station Data'!$C$12/60)+('Receiving Station Data'!$C$13/3600)) -> -4.006111111 | E82: 4407.576159 | F82: 1.914782937 | G82: 4332.431842 | H82: -0.9986091923 | I82: 3.66469498 | J82: 0.085737703 | K82: 5.453773602 | L82: 4.569387244 | M82: -0.1646840462 | N82: 1.405924278 | O82: 1.405924278 | P82: 1.405924278 | Q82: 1.594726552 | R82: 80.55352745 | S82: -1.371100891
A83: 2011-04-02 | B83: 05:15:02 | C83: =IF('Receiving Station Data'!$C$7<0,-(ABS('Receiving Station Data'!$C$7)+('Receiving Station Data'!$C$8/60)+('Receiving Station Data'!$C$9/3600)),(ABS('Receiving Station Data'!$C$7)+'Receiving Station Data'!$C$8/60)+('Receiving Station Data'!$C$9/3600)) -> 50.60944444 | D83: =IF('Receiving Station Data'!$C$11<0,-(ABS('Receiving Station Data'!$C$11)+('Receiving Station Data'!$C$12/60)+('Receiving Station Data'!$C$13/3600)),(ABS('Receiving Station Data'!$C$11)+'Receiving Station Data'!$C$12/60)+('Receiving Station Data'!$C$13/3600)) -> -4.006111111 | E83: 4407.576273 | F83: 1.914783019 | G83: 4332.431956 | H83: -0.9986178467 | I83: 3.664660691 | J83: 0.0857384798 | K83: 5.456551951 | L83: 4.570114614 | M83: -0.1641281122 | N83: 1.406487722 | O83: 1.406487722 | P83: 1.406487722 | Q83: 1.594270594 | R83: 80.58581042 | S83: -1.34497645
A84: 2011-04-02 | B84: 05:15:12 | C84: =IF('Receiving Station Data'!$C$7<0,-(ABS('Receiving Station Data'!$C$7)+('Receiving Station Data'!$C$8/60)+('Receiving Station Data'!$C$9/3600)),(ABS('Receiving Station Data'!$C$7)+'Receiving Station Data'!$C$8/60)+('Receiving Station Data'!$C$9/3600)) -> 50.60944444 | D84: =IF('Receiving Station Data'!$C$11<0,-(ABS('Receiving Station Data'!$C$11)+('Receiving Station Data'!$C$12/60)+('Receiving Station Data'!$C$13/3600)),(ABS('Receiving Station Data'!$C$11)+'Receiving Station Data'!$C$12/60)+('Receiving Station Data'!$C$13/3600)) -> -4.006111111 | E84: 4407.576387 | F84: 1.914783101 | G84: 4332.432071 | H84: -0.998626501 | I84: 3.664626401 | J84: 0.0857392566 | K84: 5.459330301 | L84: 4.570841984 | M84: -0.1635721203 | N84: 1.407051126 | O84: 1.407051126 | P84: 1.407051126 | Q84: 1.593814594 | R84: 80.61809108 | S84: -1.318849573
A85: 2011-04-02 | B85: 05:15:22 | C85: =IF('Receiving Station Data'!$C$7<0,-(ABS('Receiving Station Data'!$C$7)+('Receiving Station Data'!$C$8/60)+('Receiving Station Data'!$C$9/3600)),(ABS('Receiving Station Data'!$C$7)+'Receiving Station Data'!$C$8/60)+('Receiving Station Data'!$C$9/3600)) -> 50.60944444 | D85: =IF('Receiving Station Data'!$C$11<0,-(ABS('Receiving Station Data'!$C$11)+('Receiving Station Data'!$C$12/60)+('Receiving Station Data'!$C$13/3600)),(ABS('Receiving Station Data'!$C$11)+'Receiving Station Data'!$C$12/60)+('Receiving Station Data'!$C$13/3600)) -> -4.006111111 | E85: 4407.576502 | F85: 1.914783183 | G85: 4332.432185 | H85: -0.9986351553 | I85: 3.664592111 | J85: 0.0857400334 | K85: 5.46210865 | L85: 4.571569354 | M85: -0.1630160707 | N85: 1.407614489 | O85: 1.407614489 | P85: 1.407614489 | Q85: 1.593358552 | R85: 80.65036942 | S85: -1.29272027
A86: 2011-04-02 | B86: 05:15:32 | C86: =IF('Receiving Station Data'!$C$7<0,-(ABS('Receiving Station Data'!$C$7)+('Receiving Station Data'!$C$8/60)+('Receiving Station Data'!$C$9/3600)),(ABS('Receiving Station Data'!$C$7)+'Receiving Station Data'!$C$8/60)+('Receiving Station Data'!$C$9/3600)) -> 50.60944444 | D86: =IF('Receiving Station Data'!$C$11<0,-(ABS('Receiving Station Data'!$C$11)+('Receiving Station Data'!$C$12/60)+('Receiving Station Data'!$C$13/3600)),(ABS('Receiving Station Data'!$C$11)+'Receiving Station Data'!$C$12/60)+('Receiving Station Data'!$C$13/3600)) -> -4.006111111 | E86: 4407.576616 | F86: 1.914783265 | G86: 4332.432299 | H86: -0.9986438095 | I86: 3.664557822 | J86: 0.0857408102 | K86: 5.464886999 | L86: 4.572296724 | M86: -0.1624599637 | N86: 1.408177813 | O86: 1.408177813 | P86: 1.408177813 | Q86: 1.592902467 | R86: 80.68264547 | S86: -1.266588548
A87: 2011-04-02 | B87: 05:15:42 | C87: =IF('Receiving Station Data'!$C$7<0,-(ABS('Receiving Station Data'!$C$7)+('Receiving Station Data'!$C$8/60)+('Receiving Station Data'!$C$9/3600)),(ABS('Receiving Station Data'!$C$7)+'Receiving Station Data'!$C$8/60)+('Receiving Station Data'!$C$9/3600)) -> 50.60944444 | D87: =IF('Receiving Station Data'!$C$11<0,-(ABS('Receiving Station Data'!$C$11)+('Receiving Station Data'!$C$12/60)+('Receiving Station Data'!$C$13/3600)),(ABS('Receiving Station Data'!$C$11)+'Receiving Station Data'!$C$12/60)+('Receiving Station Data'!$C$13/3600)) -> -4.006111111 | E87: 4407.57673 | F87: 1.914783347 | G87: 4332.432413 | H87: -0.9986524638 | I87: 3.664523532 | J87: 0.085741587 | K87: 5.467665349 | L87: 4.573024095 | M87: -0.1619037995 | N87: 1.408741096 | O87: 1.408741096 | P87: 1.408741096 | Q87: 1.592446341 | R87: 80.71491924 | S87: -1.240454416
A88: 2011-04-02 | B88: 05:15:52 | C88: =IF('Receiving Station Data'!$C$7<0,-(ABS('Receiving Station Data'!$C$7)+('Receiving Station Data'!$C$8/60)+('Receiving Station Data'!$C$9/3600)),(ABS('Receiving Station Data'!$C$7)+'Receiving Station Data'!$C$8/60)+('Receiving Station Data'!$C$9/3600)) -> 50.60944444 | D88: =IF('Receiving Station Data'!$C$11<0,-(ABS('Receiving Station Data'!$C$11)+('Receiving Station Data'!$C$12/60)+('Receiving Station Data'!$C$13/3600)),(ABS('Receiving Station Data'!$C$11)+'Receiving Station Data'!$C$12/60)+('Receiving Station Data'!$C$13/3600)) -> -4.006111111 | E88: 4407.576844 | F88: 1.914783429 | G88: 4332.432527 | H88: -0.998661118 | I88: 3.664489242 | J88: 0.0857423638 | K88: 5.470443698 | L88: 4.573751465 | M88: -0.1613475786 | N88: 1.40930434 | O88: 1.40930434 | P88: 1.40930434 | Q88: 1.591990172 | R88: 80.74719073 | S88: -1.214317883
A89: 2011-04-02 | B89: 05:16:02 | C89: =IF('Receiving Station Data'!$C$7<0,-(ABS('Receiving Station Data'!$C$7)+('Receiving Station Data'!$C$8/60)+('Receiving Station Data'!$C$9/3600)),(ABS('Receiving Station Data'!$C$7)+'Receiving Station Data'!$C$8/60)+('Receiving Station Data'!$C$9/3600)) -> 50.60944444 | D89: =IF('Receiving Station Data'!$C$11<0,-(ABS('Receiving Station Data'!$C$11)+('Receiving Station Data'!$C$12/60)+('Receiving Station Data'!$C$13/3600)),(ABS('Receiving Station Data'!$C$11)+'Receiving Station Data'!$C$12/60)+('Receiving Station Data'!$C$13/3600)) -> -4.006111111 | E89: 4407.576958 | F89: 1.91478351 | G89: 4332.432641 | H89: -0.9986697723 | I89: 3.664454953 | J89: 0.0857431406 | K89: 5.473222047 | L89: 4.574478835 | M89: -0.1607913012 | N89: 1.409867545 | O89: 1.409867545 | P89: 1.409867545 | Q89: 1.591533962 | R89: 80.77945998 | S89: -1.188178957
A90: 2011-04-02 | B90: 05:16:12 | C90: =IF('Receiving Station Data'!$C$7<0,-(ABS('Receiving Station Data'!$C$7)+('Receiving Station Data'!$C$8/60)+('Receiving Station Data'!$C$9/3600)),(ABS('Receiving Station Data'!$C$7)+'Receiving Station Data'!$C$8/60)+('Receiving Station Data'!$C$9/3600)) -> 50.60944444 | D90: =IF('Receiving Station Data'!$C$11<0,-(ABS('Receiving Station Data'!$C$11)+('Receiving Station Data'!$C$12/60)+('Receiving Station Data'!$C$13/3600)),(ABS('Receiving Station Data'!$C$11)+'Receiving Station Data'!$C$12/60)+('Receiving Station Data'!$C$13/3600)) -> -4.006111111 | E90: 4407.577072 | F90: 1.914783592 | G90: 4332.432756 | H90: -0.9986784265 | I90: 3.664420663 | J90: 0.0857439174 | K90: 5.476000396 | L90: 4.575206205 | M90: -0.1602349676 | N90: 1.41043071 | O90: 1.41043071 | P90: 1.41043071 | Q90: 1.59107771 | R90: 80.81172698 | S90: -1.162037646
A91: 2011-04-02 | B91: 05:16:22 | C91: =IF('Receiving Station Data'!$C$7<0,-(ABS('Receiving Station Data'!$C$7)+('Receiving Station Data'!$C$8/60)+('Receiving Station Data'!$C$9/3600)),(ABS('Receiving Station Data'!$C$7)+'Receiving Station Data'!$C$8/60)+('Receiving Station Data'!$C$9/3600)) -> 50.60944444 | D91: =IF('Receiving Station Data'!$C$11<0,-(ABS('Receiving Station Data'!$C$11)+('Receiving Station Data'!$C$12/60)+('Receiving Station Data'!$C$13/3600)),(ABS('Receiving Station Data'!$C$11)+'Receiving Station Data'!$C$12/60)+('Receiving Station Data'!$C$13/3600)) -> -4.006111111 | E91: 4407.577186 | F91: 1.914783674 | G91: 4332.43287 | H91: -0.9986870807 | I91: 3.664386373 | J91: 0.0857446942 | K91: 5.478778746 | L91: 4.575933575 | M91: -0.1596785781 | N91: 1.410993837 | O91: 1.410993837 | P91: 1.410993837 | Q91: 1.590621416 | R91: 80.84399176 | S91: -1.135893959
A92: 2011-04-02 | B92: 05:16:32 | C92: =IF('Receiving Station Data'!$C$7<0,-(ABS('Receiving Station Data'!$C$7)+('Receiving Station Data'!$C$8/60)+('Receiving Station Data'!$C$9/3600)),(ABS('Receiving Station Data'!$C$7)+'Receiving Station Data'!$C$8/60)+('Receiving Station Data'!$C$9/3600)) -> 50.60944444 | D92: =IF('Receiving Station Data'!$C$11<0,-(ABS('Receiving Station Data'!$C$11)+('Receiving Station Data'!$C$12/60)+('Receiving Station Data'!$C$13/3600)),(ABS('Receiving Station Data'!$C$11)+'Receiving Station Data'!$C$12/60)+('Receiving Station Data'!$C$13/3600)) -> -4.006111111 | E92: 4407.5773 | F92: 1.914783756 | G92: 4332.432984 | H92: -0.9986957349 | I92: 3.664352084 | J92: 0.08574547099 | K92: 5.481557095 | L92: 4.576660945 | M92: -0.1591221329 | N92: 1.411556925 | O92: 1.411556925 | P92: 1.411556925 | Q92: 1.590165082 | R92: 80.87625432 | S92: -1.109747904
A93: 2011-04-02 | B93: 05:16:42 | C93: =IF('Receiving Station Data'!$C$7<0,-(ABS('Receiving Station Data'!$C$7)+('Receiving Station Data'!$C$8/60)+('Receiving Station Data'!$C$9/3600)),(ABS('Receiving Station Data'!$C$7)+'Receiving Station Data'!$C$8/60)+('Receiving Station Data'!$C$9/3600)) -> 50.60944444 | D93: =IF('Receiving Station Data'!$C$11<0,-(ABS('Receiving Station Data'!$C$11)+('Receiving Station Data'!$C$12/60)+('Receiving Station Data'!$C$13/3600)),(ABS('Receiving Station Data'!$C$11)+'Receiving Station Data'!$C$12/60)+('Receiving Station Data'!$C$13/3600)) -> -4.006111111 | E93: 4407.577414 | F93: 1.914783838 | G93: 4332.433098 | H93: -0.9987043891 | I93: 3.664317794 | J93: 0.08574624779 | K93: 5.484335444 | L93: 4.577388315 | M93: -0.1585656324 | N93: 1.412119974 | O93: 1.412119974 | P93: 1.412119974 | Q93: 1.589708706 | R93: 80.90851468 | S93: -1.08359949
A94: 2011-04-02 | B94: 05:16:52 | C94: =IF('Receiving Station Data'!$C$7<0,-(ABS('Receiving Station Data'!$C$7)+('Receiving Station Data'!$C$8/60)+('Receiving Station Data'!$C$9/3600)),(ABS('Receiving Station Data'!$C$7)+'Receiving Station Data'!$C$8/60)+('Receiving Station Data'!$C$9/3600)) -> 50.60944444 | D94: =IF('Receiving Station Data'!$C$11<0,-(ABS('Receiving Station Data'!$C$11)+('Receiving Station Data'!$C$12/60)+('Receiving Station Data'!$C$13/3600)),(ABS('Receiving Station Data'!$C$11)+'Receiving Station Data'!$C$12/60)+('Receiving Station Data'!$C$13/3600)) -> -4.006111111 | E94: 4407.577528 | F94: 1.914783919 | G94: 4332.433212 | H94: -0.9987130432 | I94: 3.664283505 | J94: 0.08574702459 | K94: 5.487113793 | L94: 4.578115685 | M94: -0.1580090769 | N94: 1.412682985 | O94: 1.412682985 | P94: 1.412682985 | Q94: 1.589252289 | R94: 80.94077285 | S94: -1.057448726
A95: 2011-04-02 | B95: 05:17:02 | C95: =IF('Receiving Station Data'!$C$7<0,-(ABS('Receiving Station Data'!$C$7)+('Receiving Station Data'!$C$8/60)+('Receiving Station Data'!$C$9/3600)),(ABS('Receiving Station Data'!$C$7)+'Receiving Station Data'!$C$8/60)+('Receiving Station Data'!$C$9/3600)) -> 50.60944444 | D95: =IF('Receiving Station Data'!$C$11<0,-(ABS('Receiving Station Data'!$C$11)+('Receiving Station Data'!$C$12/60)+('Receiving Station Data'!$C$13/3600)),(ABS('Receiving Station Data'!$C$11)+'Receiving Station Data'!$C$12/60)+('Receiving Station Data'!$C$13/3600)) -> -4.006111111 | E95: 4407.577642 | F95: 1.914784001 | G95: 4332.433326 | H95: -0.9987216974 | I95: 3.664249216 | J95: 0.08574780139 | K95: 5.489892143 | L95: 4.578843056 | M95: -0.1574524667 | N95: 1.413245959 | O95: 1.413245959 | P95: 1.413245959 | Q95: 1.588795831 | R95: 80.97302884 | S95: -1.031295619
A96: 2011-04-02 | B96: 05:17:12 | C96: =IF('Receiving Station Data'!$C$7<0,-(ABS('Receiving Station Data'!$C$7)+('Receiving Station Data'!$C$8/60)+('Receiving Station Data'!$C$9/3600)),(ABS('Receiving Station Data'!$C$7)+'Receiving Station Data'!$C$8/60)+('Receiving Station Data'!$C$9/3600)) -> 50.60944444 | D96: =IF('Receiving Station Data'!$C$11<0,-(ABS('Receiving Station Data'!$C$11)+('Receiving Station Data'!$C$12/60)+('Receiving Station Data'!$C$13/3600)),(ABS('Receiving Station Data'!$C$11)+'Receiving Station Data'!$C$12/60)+('Receiving Station Data'!$C$13/3600)) -> -4.006111111 | E96: 4407.577756 | F96: 1.914784083 | G96: 4332.43344 | H96: -0.9987303515 | I96: 3.664214926 | J96: 0.08574857818 | K96: 5.492670492 | L96: 4.579570426 | M96: -0.156895802 | N96: 1.413808894 | O96: 1.413808894 | P96: 1.413808894 | Q96: 1.588339332 | R96: 81.00528268 | S96: -1.005140178
A97: 2011-04-02 | B97: 05:17:22 | C97: =IF('Receiving Station Data'!$C$7<0,-(ABS('Receiving Station Data'!$C$7)+('Receiving Station Data'!$C$8/60)+('Receiving Station Data'!$C$9/3600)),(ABS('Receiving Station Data'!$C$7)+'Receiving Station Data'!$C$8/60)+('Receiving Station Data'!$C$9/3600)) -> 50.60944444 | D97: =IF('Receiving Station Data'!$C$11<0,-(ABS('Receiving Station Data'!$C$11)+('Receiving Station Data'!$C$12/60)+('Receiving Station Data'!$C$13/3600)),(ABS('Receiving Station Data'!$C$11)+'Receiving Station Data'!$C$12/60)+('Receiving Station Data'!$C$13/3600)) -> -4.006111111 | E97: 4407.57787 | F97: 1.914784165 | G97: 4332.433555 | H97: -0.9987390056 | I97: 3.664180637 | J97: 0.08574935498 | K97: 5.495448841 | L97: 4.580297796 | M97: -0.1563390831 | N97: 1.414371792 | O97: 1.414371792 | P97: 1.414371792 | Q97: 1.587882793 | R97: 81.03753436 | S97: -0.9789824112
A98: 2011-04-02 | B98: 05:17:32 | C98: =IF('Receiving Station Data'!$C$7<0,-(ABS('Receiving Station Data'!$C$7)+('Receiving Station Data'!$C$8/60)+('Receiving Station Data'!$C$9/3600)),(ABS('Receiving Station Data'!$C$7)+'Receiving Station Data'!$C$8/60)+('Receiving Station Data'!$C$9/3600)) -> 50.60944444 | D98: =IF('Receiving Station Data'!$C$11<0,-(ABS('Receiving Station Data'!$C$11)+('Receiving Station Data'!$C$12/60)+('Receiving Station Data'!$C$13/3600)),(ABS('Receiving Station Data'!$C$11)+'Receiving Station Data'!$C$12/60)+('Receiving Station Data'!$C$13/3600)) -> -4.006111111 | E98: 4407.577985 | F98: 1.914784247 | G98: 4332.433669 | H98: -0.9987476597 | I98: 3.664146347 | J98: 0.08575013177 | K98: 5.498227191 | L98: 4.581025166 | M98: -0.1557823104 | N98: 1.414934653 | O98: 1.414934653 | P98: 1.414934653 | Q98: 1.587426214 | R98: 81.06978391 | S98: -0.9528223275
A99: 2011-04-02 | B99: 05:17:42 | C99: =IF('Receiving Station Data'!$C$7<0,-(ABS('Receiving Station Data'!$C$7)+('Receiving Station Data'!$C$8/60)+('Receiving Station Data'!$C$9/3600)),(ABS('Receiving Station Data'!$C$7)+'Receiving Station Data'!$C$8/60)+('Receiving Station Data'!$C$9/3600)) -> 50.60944444 | D99: =IF('Receiving Station Data'!$C$11<0,-(ABS('Receiving Station Data'!$C$11)+('Receiving Station Data'!$C$12/60)+('Receiving Station Data'!$C$13/3600)),(ABS('Receiving Station Data'!$C$11)+'Receiving Station Data'!$C$12/60)+('Receiving Station Data'!$C$13/3600)) -> -4.006111111 | E99: 4407.578099 | F99: 1.914784328 | G99: 4332.433783 | H99: -0.9987563138 | I99: 3.664112058 | J99: 0.08575090857 | K99: 5.50100554 | L99: 4.581752536 | M99: -0.1552254842 | N99: 1.415497477 | O99: 1.415497477 | P99: 1.415497477 | Q99: 1.586969594 | R99: 81.10203134 | S99: -0.9266599351
A100: 2011-04-02 | B100: 05:17:52 | C100: =IF('Receiving Station Data'!$C$7<0,-(ABS('Receiving Station Data'!$C$7)+('Receiving Station Data'!$C$8/60)+('Receiving Station Data'!$C$9/3600)),(ABS('Receiving Station Data'!$C$7)+'Receiving Station Data'!$C$8/60)+('Receiving Station Data'!$C$9/3600)) -> 50.60944444 | D100: =IF('Receiving Station Data'!$C$11<0,-(ABS('Receiving Station Data'!$C$11)+('Receiving Station Data'!$C$12/60)+('Receiving Station Data'!$C$13/3600)),(ABS('Receiving Station Data'!$C$11)+'Receiving Station Data'!$C$12/60)+('Receiving Station Data'!$C$13/3600)) -> -4.006111111 | E100: 4407.578213 | F100: 1.91478441 | G100: 4332.433897 | H100: -0.9987649679 | I100: 3.664077769 | J100: 0.08575168536 | K100: 5.503783889 | L100: 4.582479906 | M100: -0.1546686046 | N100: 1.416060264 | O100: 1.416060264 | P100: 1.416060264 | Q100: 1.586512934 | R100: 81.13427666 | S100: -0.9004952425
A101: 2011-04-02 | B101: 05:18:02 | C101: =IF('Receiving Station Data'!$C$7<0,-(ABS('Receiving Station Data'!$C$7)+('Receiving Station Data'!$C$8/60)+('Receiving Station Data'!$C$9/3600)),(ABS('Receiving Station Data'!$C$7)+'Receiving Station Data'!$C$8/60)+('Receiving Station Data'!$C$9/3600)) -> 50.60944444 | D101: =IF('Receiving Station Data'!$C$11<0,-(ABS('Receiving Station Data'!$C$11)+('Receiving Station Data'!$C$12/60)+('Receiving Station Data'!$C$13/3600)),(ABS('Receiving Station Data'!$C$11)+'Receiving Station Data'!$C$12/60)+('Receiving Station Data'!$C$13/3600)) -> -4.006111111 | E101: 4407.578327 | F101: 1.914784492 | G101: 4332.434011 | H101: -0.9987736219 | I101: 3.664043479 | J101: 0.08575246216 | K101: 5.506562238 | L101: 4.583207276 | M101: -0.1541116722 | N101: 1.416623014 | O101: 1.416623014 | P101: 1.416623014 | Q101: 1.586056234 | R101: 81.16651988 | S101: -0.8743282581
A102: 2011-04-02 | B102: 05:18:12 | C102: =IF('Receiving Station Data'!$C$7<0,-(ABS('Receiving Station Data'!$C$7)+('Receiving Station Data'!$C$8/60)+('Receiving Station Data'!$C$9/3600)),(ABS('Receiving Station Data'!$C$7)+'Receiving Station Data'!$C$8/60)+('Receiving Station Data'!$C$9/3600)) -> 50.60944444 | D102: =IF('Receiving Station Data'!$C$11<0,-(ABS('Receiving Station Data'!$C$11)+('Receiving Station Data'!$C$12/60)+('Receiving Station Data'!$C$13/3600)),(ABS('Receiving Station Data'!$C$11)+'Receiving Station Data'!$C$12/60)+('Receiving Station Data'!$C$13/3600)) -> -4.006111111 | E102: 4407.578441 | F102: 1.914784574 | G102: 4332.434125 | H102: -0.998782276 | I102: 3.66400919 | J102: 0.08575323895 | K102: 5.509340588 | L102: 4.583934647 | M102: -0.153554687 | N102: 1.417185728 | O102: 1.417185728 | P102: 1.417185728 | Q102: 1.585599494 | R102: 81.19876103 | S102: -0.8481589901
A103: 2011-04-02 | B103: 05:18:22 | C103: =IF('Receiving Station Data'!$C$7<0,-(ABS('Receiving Station Data'!$C$7)+('Receiving Station Data'!$C$8/60)+('Receiving Station Data'!$C$9/3600)),(ABS('Receiving Station Data'!$C$7)+'Receiving Station Data'!$C$8/60)+('Receiving Station Data'!$C$9/3600)) -> 50.60944444 | D103: =IF('Receiving Station Data'!$C$11<0,-(ABS('Receiving Station Data'!$C$11)+('Receiving Station Data'!$C$12/60)+('Receiving Station Data'!$C$13/3600)),(ABS('Receiving Station Data'!$C$11)+'Receiving Station Data'!$C$12/60)+('Receiving Station Data'!$C$13/3600)) -> -4.006111111 | E103: 4407.578555 | F103: 1.914784655 | G103: 4332.43424 | H103: -0.99879093 | I103: 3.663974901 | J103: 0.08575401575 | K103: 5.512118937 | L103: 4.584662017 | M103: -0.1529976495 | N103: 1.417748406 | O103: 1.417748406 | P103: 1.417748406 | Q103: 1.585142714 | R103: 81.2310001 | S103: -0.8219874472
A104: 2011-04-02 | B104: 05:18:32 | C104: =IF('Receiving Station Data'!$C$7<0,-(ABS('Receiving Station Data'!$C$7)+('Receiving Station Data'!$C$8/60)+('Receiving Station Data'!$C$9/3600)),(ABS('Receiving Station Data'!$C$7)+'Receiving Station Data'!$C$8/60)+('Receiving Station Data'!$C$9/3600)) -> 50.60944444 | D104: =IF('Receiving Station Data'!$C$11<0,-(ABS('Receiving Station Data'!$C$11)+('Receiving Station Data'!$C$12/60)+('Receiving Station Data'!$C$13/3600)),(ABS('Receiving Station Data'!$C$11)+'Receiving Station Data'!$C$12/60)+('Receiving Station Data'!$C$13/3600)) -> -4.006111111 | E104: 4407.578669 | F104: 1.914784737 | G104: 4332.434354 | H104: -0.998799584 | I104: 3.663940612 | J104: 0.08575479254 | K104: 5.514897286 | L104: 4.585389387 | M104: -0.1524405598 | N104: 1.418311049 | O104: 1.418311049 | P104: 1.418311049 | Q104: 1.584685895 | R104: 81.26323712 | S104: -0.7958136377
A105: 2011-04-02 | B105: 05:18:42 | C105: =IF('Receiving Station Data'!$C$7<0,-(ABS('Receiving Station Data'!$C$7)+('Receiving Station Data'!$C$8/60)+('Receiving Station Data'!$C$9/3600)),(ABS('Receiving Station Data'!$C$7)+'Receiving Station Data'!$C$8/60)+('Receiving Station Data'!$C$9/3600)) -> 50.60944444 | D105: =IF('Receiving Station Data'!$C$11<0,-(ABS('Receiving Station Data'!$C$11)+('Receiving Station Data'!$C$12/60)+('Receiving Station Data'!$C$13/3600)),(ABS('Receiving Station Data'!$C$11)+'Receiving Station Data'!$C$12/60)+('Receiving Station Data'!$C$13/3600)) -> -4.006111111 | E105: 4407.578783 | F105: 1.914784819 | G105: 4332.434468 | H105: -0.998808238 | I105: 3.663906323 | J105: 0.08575556933 | K105: 5.517675635 | L105: 4.586116757 | M105: -0.1518834184 | N105: 1.418873655 | O105: 1.418873655 | P105: 1.418873655 | Q105: 1.584229036 | R105: 81.29547209 | S105: -0.76963757
A106: 2011-04-02 | B106: 05:18:52 | C106: =IF('Receiving Station Data'!$C$7<0,-(ABS('Receiving Station Data'!$C$7)+('Receiving Station Data'!$C$8/60)+('Receiving Station Data'!$C$9/3600)),(ABS('Receiving Station Data'!$C$7)+'Receiving Station Data'!$C$8/60)+('Receiving Station Data'!$C$9/3600)) -> 50.60944444 | D106: =IF('Receiving Station Data'!$C$11<0,-(ABS('Receiving Station Data'!$C$11)+('Receiving Station Data'!$C$12/60)+('Receiving Station Data'!$C$13/3600)),(ABS('Receiving Station Data'!$C$11)+'Receiving Station Data'!$C$12/60)+('Receiving Station Data'!$C$13/3600)) -> -4.006111111 | E106: 4407.578897 | F106: 1.9147849 | G106: 4332.434582 | H106: -0.998816892 | I106: 3.663872034 | J106: 0.08575634613 | K106: 5.520453985 | L106: 4.586844127 | M106: -0.1513262255 | N106: 1.419436226 | O106: 1.419436226 | P106: 1.419436226 | Q106: 1.583772139 | R106: 81.32770504 | S106: -0.7434592525
A107: 2011-04-02 | B107: 05:19:02 | C107: =IF('Receiving Station Data'!$C$7<0,-(ABS('Receiving Station Data'!$C$7)+('Receiving Station Data'!$C$8/60)+('Receiving Station Data'!$C$9/3600)),(ABS('Receiving Station Data'!$C$7)+'Receiving Station Data'!$C$8/60)+('Receiving Station Data'!$C$9/3600)) -> 50.60944444 | D107: =IF('Receiving Station Data'!$C$11<0,-(ABS('Receiving Station Data'!$C$11)+('Receiving Station Data'!$C$12/60)+('Receiving Station Data'!$C$13/3600)),(ABS('Receiving Station Data'!$C$11)+'Receiving Station Data'!$C$12/60)+('Receiving Station Data'!$C$13/3600)) -> -4.006111111 | E107: 4407.579011 | F107: 1.914784982 | G107: 4332.434696 | H107: -0.998825546 | I107: 3.663837744 | J107: 0.08575712292 | K107: 5.523232334 | L107: 4.587571497 | M107: -0.1507689814 | N107: 1.419998762 | O107: 1.419998762 | P107: 1.419998762 | Q107: 1.583315202 | R107: 81.35993597 | S107: -0.7172786936
A108: 2011-04-02 | B108: 05:19:12 | C108: =IF('Receiving Station Data'!$C$7<0,-(ABS('Receiving Station Data'!$C$7)+('Receiving Station Data'!$C$8/60)+('Receiving Station Data'!$C$9/3600)),(ABS('Receiving Station Data'!$C$7)+'Receiving Station Data'!$C$8/60)+('Receiving Station Data'!$C$9/3600)) -> 50.60944444 | D108: =IF('Receiving Station Data'!$C$11<0,-(ABS('Receiving Station Data'!$C$11)+('Receiving Station Data'!$C$12/60)+('Receiving Station Data'!$C$13/3600)),(ABS('Receiving Station Data'!$C$11)+'Receiving Station Data'!$C$12/60)+('Receiving Station Data'!$C$13/3600)) -> -4.006111111 | E108: 4407.579125 | F108: 1.914785064 | G108: 4332.43481 | H108: -0.9988341999 | I108: 3.663803455 | J108: 0.08575789971 | K108: 5.526010683 | L108: 4.588298867 | M108: -0.1502116864 | N108: 1.420561263 | O108: 1.420561263 | P108: 1.420561263 | Q108: 1.582858226 | R108: 81.3921649 | S108: -0.6910959018
A109: 2011-04-02 | B109: 05:19:22 | C109: =IF('Receiving Station Data'!$C$7<0,-(ABS('Receiving Station Data'!$C$7)+('Receiving Station Data'!$C$8/60)+('Receiving Station Data'!$C$9/3600)),(ABS('Receiving Station Data'!$C$7)+'Receiving Station Data'!$C$8/60)+('Receiving Station Data'!$C$9/3600)) -> 50.60944444 | D109: =IF('Receiving Station Data'!$C$11<0,-(ABS('Receiving Station Data'!$C$11)+('Receiving Station Data'!$C$12/60)+('Receiving Station Data'!$C$13/3600)),(ABS('Receiving Station Data'!$C$11)+'Receiving Station Data'!$C$12/60)+('Receiving Station Data'!$C$13/3600)) -> -4.006111111 | E109: 4407.579239 | F109: 1.914785145 | G109: 4332.434924 | H109: -0.9988428539 | I109: 3.663769166 | J109: 0.0857586765 | K109: 5.528789032 | L109: 4.589026238 | M109: -0.1496543408 | N109: 1.421123729 | O109: 1.421123729 | P109: 1.421123729 | Q109: 1.582401211 | R109: 81.42439184 | S109: -0.6649108853
A110: 2011-04-02 | B110: 05:19:32 | C110: =IF('Receiving Station Data'!$C$7<0,-(ABS('Receiving Station Data'!$C$7)+('Receiving Station Data'!$C$8/60)+('Receiving Station Data'!$C$9/3600)),(ABS('Receiving Station Data'!$C$7)+'Receiving Station Data'!$C$8/60)+('Receiving Station Data'!$C$9/3600)) -> 50.60944444 | D110: =IF('Receiving Station Data'!$C$11<0,-(ABS('Receiving Station Data'!$C$11)+('Receiving Station Data'!$C$12/60)+('Receiving Station Data'!$C$13/3600)),(ABS('Receiving Station Data'!$C$11)+'Receiving Station Data'!$C$12/60)+('Receiving Station Data'!$C$13/3600)) -> -4.006111111 | E110: 4407.579353 | F110: 1.914785227 | G110: 4332.435039 | H110: -0.9988515078 | I110: 3.663734877 | J110: 0.0857594533 | K110: 5.531567382 | L110: 4.589753608 | M110: -0.1490969449 | N110: 1.421686161 | O110: 1.421686161 | P110: 1.421686161 | Q110: 1.581944158 | R110: 81.45661681 | S110: -0.6387236528
A111: 2011-04-02 | B111: 05:19:42 | C111: =IF('Receiving Station Data'!$C$7<0,-(ABS('Receiving Station Data'!$C$7)+('Receiving Station Data'!$C$8/60)+('Receiving Station Data'!$C$9/3600)),(ABS('Receiving Station Data'!$C$7)+'Receiving Station Data'!$C$8/60)+('Receiving Station Data'!$C$9/3600)) -> 50.60944444 | D111: =IF('Receiving Station Data'!$C$11<0,-(ABS('Receiving Station Data'!$C$11)+('Receiving Station Data'!$C$12/60)+('Receiving Station Data'!$C$13/3600)),(ABS('Receiving Station Data'!$C$11)+'Receiving Station Data'!$C$12/60)+('Receiving Station Data'!$C$13/3600)) -> -4.006111111 | E111: 4407.579467 | F111: 1.914785309 | G111: 4332.435153 | H111: -0.9988601617 | I111: 3.663700588 | J111: 0.08576023009 | K111: 5.534345731 | L111: 4.590480978 | M111: -0.1485394989 | N111: 1.422248558 | O111: 1.422248558 | P111: 1.422248558 | Q111: 1.581487066 | R111: 81.48883981 | S111: -0.6125342124
A112: 2011-04-02 | B112: 05:19:52 | C112: =IF('Receiving Station Data'!$C$7<0,-(ABS('Receiving Station Data'!$C$7)+('Receiving Station Data'!$C$8/60)+('Receiving Station Data'!$C$9/3600)),(ABS('Receiving Station Data'!$C$7)+'Receiving Station Data'!$C$8/60)+('Receiving Station Data'!$C$9/3600)) -> 50.60944444 | D112: =IF('Receiving Station Data'!$C$11<0,-(ABS('Receiving Station Data'!$C$11)+('Receiving Station Data'!$C$12/60)+('Receiving Station Data'!$C$13/3600)),(ABS('Receiving Station Data'!$C$11)+'Receiving Station Data'!$C$12/60)+('Receiving Station Data'!$C$13/3600)) -> -4.006111111 | E112: 4407.579582 | F112: 1.91478539 | G112: 4332.435267 | H112: -0.9988688156 | I112: 3.663666299 | J112: 0.08576100688 | K112: 5.53712408 | L112: 4.591208348 | M112: -0.1479820033 | N112: 1.422810922 | O112: 1.422810922 | P112: 1.422810922 | Q112: 1.581029935 | R112: 81.52106087 | S112: -0.5863425728
A113: 2011-04-02 | B113: 05:20:02 | C113: =IF('Receiving Station Data'!$C$7<0,-(ABS('Receiving Station Data'!$C$7)+('Receiving Station Data'!$C$8/60)+('Receiving Station Data'!$C$9/3600)),(ABS('Receiving Station Data'!$C$7)+'Receiving Station Data'!$C$8/60)+('Receiving Station Data'!$C$9/3600)) -> 50.60944444 | D113: =IF('Receiving Station Data'!$C$11<0,-(ABS('Receiving Station Data'!$C$11)+('Receiving Station Data'!$C$12/60)+('Receiving Station Data'!$C$13/3600)),(ABS('Receiving Station Data'!$C$11)+'Receiving Station Data'!$C$12/60)+('Receiving Station Data'!$C$13/3600)) -> -4.006111111 | E113: 4407.579696 | F113: 1.914785472 | G113: 4332.435381 | H113: -0.9988774695 | I113: 3.66363201 | J113: 0.08576178367 | K113: 5.539902429 | L113: 4.591935718 | M113: -0.1474244582 | N113: 1.423373252 | O113: 1.423373252 | P113: 1.423373252 | Q113: 1.580572767 | R113: 81.55327998 | S113: -0.5601487421
A114: 2011-04-02 | B114: 05:20:12 | C114: =IF('Receiving Station Data'!$C$7<0,-(ABS('Receiving Station Data'!$C$7)+('Receiving Station Data'!$C$8/60)+('Receiving Station Data'!$C$9/3600)),(ABS('Receiving Station Data'!$C$7)+'Receiving Station Data'!$C$8/60)+('Receiving Station Data'!$C$9/3600)) -> 50.60944444 | D114: =IF('Receiving Station Data'!$C$11<0,-(ABS('Receiving Station Data'!$C$11)+('Receiving Station Data'!$C$12/60)+('Receiving Station Data'!$C$13/3600)),(ABS('Receiving Station Data'!$C$11)+'Receiving Station Data'!$C$12/60)+('Receiving Station Data'!$C$13/3600)) -> -4.006111111 | E114: 4407.57981 | F114: 1.914785554 | G114: 4332.435495 | H114: -0.9988861234 | I114: 3.663597722 | J114: 0.08576256046 | K114: 5.542680779 | L114: 4.592663088 | M114: -0.1468668639 | N114: 1.423935548 | O114: 1.423935548 | P114: 1.423935548 | Q114: 1.58011556 | R114: 81.58549718 | S114: -0.5339527289
A115: 2011-04-02 | B115: 05:20:22 | C115: =IF('Receiving Station Data'!$C$7<0,-(ABS('Receiving Station Data'!$C$7)+('Receiving Station Data'!$C$8/60)+('Receiving Station Data'!$C$9/3600)),(ABS('Receiving Station Data'!$C$7)+'Receiving Station Data'!$C$8/60)+('Receiving Station Data'!$C$9/3600)) -> 50.60944444 | D115: =IF('Receiving Station Data'!$C$11<0,-(ABS('Receiving Station Data'!$C$11)+('Receiving Station Data'!$C$12/60)+('Receiving Station Data'!$C$13/3600)),(ABS('Receiving Station Data'!$C$11)+'Receiving Station Data'!$C$12/60)+('Receiving Station Data'!$C$13/3600)) -> -4.006111111 | E115: 4407.579924 | F115: 1.914785635 | G115: 4332.435609 | H115: -0.9988947772 | I115: 3.663563433 | J115: 0.08576333725 | K115: 5.545459128 | L115: 4.593390458 | M115: -0.1463092209 | N115: 1.42449781 | O115: 1.42449781 | P115: 1.42449781 | Q115: 1.579658315 | R115: 81.61771247 | S115: -0.5077545415
A116: 2011-04-02 | B116: 05:20:32 | C116: =IF('Receiving Station Data'!$C$7<0,-(ABS('Receiving Station Data'!$C$7)+('Receiving Station Data'!$C$8/60)+('Receiving Station Data'!$C$9/3600)),(ABS('Receiving Station Data'!$C$7)+'Receiving Station Data'!$C$8/60)+('Receiving Station Data'!$C$9/3600)) -> 50.60944444 | D116: =IF('Receiving Station Data'!$C$11<0,-(ABS('Receiving Station Data'!$C$11)+('Receiving Station Data'!$C$12/60)+('Receiving Station Data'!$C$13/3600)),(ABS('Receiving Station Data'!$C$11)+'Receiving Station Data'!$C$12/60)+('Receiving Station Data'!$C$13/3600)) -> -4.006111111 | E116: 4407.580038 | F116: 1.914785717 | G116: 4332.435724 | H116: -0.9989034311 | I116: 3.663529144 | J116: 0.08576411404 | K116: 5.548237477 | L116: 4.594117828 | M116: -0.1457515292 | N116: 1.42506004 | O116: 1.42506004 | P116: 1.42506004 | Q116: 1.579201033 | R116: 81.64992586 | S116: -0.4815541883
A117: 2011-04-02 | B117: 05:20:42 | C117: =IF('Receiving Station Data'!$C$7<0,-(ABS('Receiving Station Data'!$C$7)+('Receiving Station Data'!$C$8/60)+('Receiving Station Data'!$C$9/3600)),(ABS('Receiving Station Data'!$C$7)+'Receiving Station Data'!$C$8/60)+('Receiving Station Data'!$C$9/3600)) -> 50.60944444 | D117: =IF('Receiving Station Data'!$C$11<0,-(ABS('Receiving Station Data'!$C$11)+('Receiving Station Data'!$C$12/60)+('Receiving Station Data'!$C$13/3600)),(ABS('Receiving Station Data'!$C$11)+'Receiving Station Data'!$C$12/60)+('Receiving Station Data'!$C$13/3600)) -> -4.006111111 | E117: 4407.580152 | F117: 1.914785799 | G117: 4332.435838 | H117: -0.9989120849 | I117: 3.663494855 | J117: 0.08576489083 | K117: 5.551015826 | L117: 4.594845199 | M117: -0.1451937894 | N117: 1.425622237 | O117: 1.425622237 | P117: 1.425622237 | Q117: 1.578743713 | R117: 81.68213737 | S117: -0.4553516778
A118: 2011-04-02 | B118: 05:20:52 | C118: =IF('Receiving Station Data'!$C$7<0,-(ABS('Receiving Station Data'!$C$7)+('Receiving Station Data'!$C$8/60)+('Receiving Station Data'!$C$9/3600)),(ABS('Receiving Station Data'!$C$7)+'Receiving Station Data'!$C$8/60)+('Receiving Station Data'!$C$9/3600)) -> 50.60944444 | D118: =IF('Receiving Station Data'!$C$11<0,-(ABS('Receiving Station Data'!$C$11)+('Receiving Station Data'!$C$12/60)+('Receiving Station Data'!$C$13/3600)),(ABS('Receiving Station Data'!$C$11)+'Receiving Station Data'!$C$12/60)+('Receiving Station Data'!$C$13/3600)) -> -4.006111111 | E118: 4407.580266 | F118: 1.91478588 | G118: 4332.435952 | H118: -0.9989207387 | I118: 3.663460566 | J118: 0.08576566762 | K118: 5.553794176 | L118: 4.595572569 | M118: -0.1446360016 | N118: 1.426184401 | O118: 1.426184401 | P118: 1.426184401 | Q118: 1.578286355 | R118: 81.71434701 | S118: -0.4291470182
A119: 2011-04-02 | B119: 05:21:02 | C119: =IF('Receiving Station Data'!$C$7<0,-(ABS('Receiving Station Data'!$C$7)+('Receiving Station Data'!$C$8/60)+('Receiving Station Data'!$C$9/3600)),(ABS('Receiving Station Data'!$C$7)+'Receiving Station Data'!$C$8/60)+('Receiving Station Data'!$C$9/3600)) -> 50.60944444 | D119: =IF('Receiving Station Data'!$C$11<0,-(ABS('Receiving Station Data'!$C$11)+('Receiving Station Data'!$C$12/60)+('Receiving Station Data'!$C$13/3600)),(ABS('Receiving Station Data'!$C$11)+'Receiving Station Data'!$C$12/60)+('Receiving Station Data'!$C$13/3600)) -> -4.006111111 | E119: 4407.58038 | F119: 1.914785962 | G119: 4332.436066 | H119: -0.9989293925 | I119: 3.663426277 | J119: 0.08576644441 | K119: 5.556572525 | L119: 4.596299939 | M119: -0.1440781661 | N119: 1.426746533 | O119: 1.426746533 | P119: 1.426746533 | Q119: 1.57782896 | R119: 81.74655479 | S119: -0.402940218
A120: 2011-04-02 | B120: 05:21:12 | C120: =IF('Receiving Station Data'!$C$7<0,-(ABS('Receiving Station Data'!$C$7)+('Receiving Station Data'!$C$8/60)+('Receiving Station Data'!$C$9/3600)),(ABS('Receiving Station Data'!$C$7)+'Receiving Station Data'!$C$8/60)+('Receiving Station Data'!$C$9/3600)) -> 50.60944444 | D120: =IF('Receiving Station Data'!$C$11<0,-(ABS('Receiving Station Data'!$C$11)+('Receiving Station Data'!$C$12/60)+('Receiving Station Data'!$C$13/3600)),(ABS('Receiving Station Data'!$C$11)+'Receiving Station Data'!$C$12/60)+('Receiving Station Data'!$C$13/3600)) -> -4.006111111 | E120: 4407.580494 | F120: 1.914786043 | G120: 4332.43618 | H120: -0.9989380463 | I120: 3.663391989 | J120: 0.08576722119 | K120: 5.559350874 | L120: 4.597027309 | M120: -0.1435202833 | N120: 1.427308633 | O120: 1.427308633 | P120: 1.427308633 | Q120: 1.577371528 | R120: 81.77876073 | S120: -0.3767312856
A121: 2011-04-02 | B121: 05:21:22 | C121: =IF('Receiving Station Data'!$C$7<0,-(ABS('Receiving Station Data'!$C$7)+('Receiving Station Data'!$C$8/60)+('Receiving Station Data'!$C$9/3600)),(ABS('Receiving Station Data'!$C$7)+'Receiving Station Data'!$C$8/60)+('Receiving Station Data'!$C$9/3600)) -> 50.60944444 | D121: =IF('Receiving Station Data'!$C$11<0,-(ABS('Receiving Station Data'!$C$11)+('Receiving Station Data'!$C$12/60)+('Receiving Station Data'!$C$13/3600)),(ABS('Receiving Station Data'!$C$11)+'Receiving Station Data'!$C$12/60)+('Receiving Station Data'!$C$13/3600)) -> -4.006111111 | E121: 4407.580608 | F121: 1.914786125 | G121: 4332.436294 | H121: -0.9989467 | I121: 3.6633577 | J121: 0.08576799798 | K121: 5.562129224 | L121: 4.597754679 | M121: -0.1429623534 | N121: 1.427870701 | O121: 1.427870701 | P121: 1.427870701 | Q121: 1.576914059 | R121: 81.81096485 | S121: -0.3505202294
A122: 2011-04-02 | B122: 05:21:32 | C122: =IF('Receiving Station Data'!$C$7<0,-(ABS('Receiving Station Data'!$C$7)+('Receiving Station Data'!$C$8/60)+('Receiving Station Data'!$C$9/3600)),(ABS('Receiving Station Data'!$C$7)+'Receiving Station Data'!$C$8/60)+('Receiving Station Data'!$C$9/3600)) -> 50.60944444 | D122: =IF('Receiving Station Data'!$C$11<0,-(ABS('Receiving Station Data'!$C$11)+('Receiving Station Data'!$C$12/60)+('Receiving Station Data'!$C$13/3600)),(ABS('Receiving Station Data'!$C$11)+'Receiving Station Data'!$C$12/60)+('Receiving Station Data'!$C$13/3600)) -> -4.006111111 | E122: 4407.580722 | F122: 1.914786207 | G122: 4332.436408 | H122: -0.9989553538 | I122: 3.663323411 | J122: 0.08576877477 | K122: 5.564907573 | L122: 4.598482049 | M122: -0.1424043768 | N122: 1.428432737 | O122: 1.428432737 | P122: 1.428432737 | Q122: 1.576456553 | R122: 81.84316714 | S122: -0.3243070577
A123: 2011-04-02 | B123: 05:21:42 | C123: =IF('Receiving Station Data'!$C$7<0,-(ABS('Receiving Station Data'!$C$7)+('Receiving Station Data'!$C$8/60)+('Receiving Station Data'!$C$9/3600)),(ABS('Receiving Station Data'!$C$7)+'Receiving Station Data'!$C$8/60)+('Receiving Station Data'!$C$9/3600)) -> 50.60944444 | D123: =IF('Receiving Station Data'!$C$11<0,-(ABS('Receiving Station Data'!$C$11)+('Receiving Station Data'!$C$12/60)+('Receiving Station Data'!$C$13/3600)),(ABS('Receiving Station Data'!$C$11)+'Receiving Station Data'!$C$12/60)+('Receiving Station Data'!$C$13/3600)) -> -4.006111111 | E123: 4407.580836 | F123: 1.914786288 | G123: 4332.436523 | H123: -0.9989640075 | I123: 3.663289123 | J123: 0.08576955156 | K123: 5.567685922 | L123: 4.599209419 | M123: -0.1418463536 | N123: 1.428994742 | O123: 1.428994742 | P123: 1.428994742 | Q123: 1.57599901 | R123: 81.87536764 | S123: -0.2980917789
A124: 2011-04-02 | B124: 05:21:52 | C124: =IF('Receiving Station Data'!$C$7<0,-(ABS('Receiving Station Data'!$C$7)+('Receiving Station Data'!$C$8/60)+('Receiving Station Data'!$C$9/3600)),(ABS('Receiving Station Data'!$C$7)+'Receiving Station Data'!$C$8/60)+('Receiving Station Data'!$C$9/3600)) -> 50.60944444 | D124: =IF('Receiving Station Data'!$C$11<0,-(ABS('Receiving Station Data'!$C$11)+('Receiving Station Data'!$C$12/60)+('Receiving Station Data'!$C$13/3600)),(ABS('Receiving Station Data'!$C$11)+'Receiving Station Data'!$C$12/60)+('Receiving Station Data'!$C$13/3600)) -> -4.006111111 | E124: 4407.58095 | F124: 1.91478637 | G124: 4332.436637 | H124: -0.9989726612 | I124: 3.663254834 | J124: 0.08577032834 | K124: 5.570464271 | L124: 4.59993679 | M124: -0.1412882843 | N124: 1.429556715 | O124: 1.429556715 | P124: 1.429556715 | Q124: 1.57554143 | R124: 81.90756635 | S124: -0.2718744014
A125: 2011-04-02 | B125: 05:22:02 | C125: =IF('Receiving Station Data'!$C$7<0,-(ABS('Receiving Station Data'!$C$7)+('Receiving Station Data'!$C$8/60)+('Receiving Station Data'!$C$9/3600)),(ABS('Receiving Station Data'!$C$7)+'Receiving Station Data'!$C$8/60)+('Receiving Station Data'!$C$9/3600)) -> 50.60944444 | D125: =IF('Receiving Station Data'!$C$11<0,-(ABS('Receiving Station Data'!$C$11)+('Receiving Station Data'!$C$12/60)+('Receiving Station Data'!$C$13/3600)),(ABS('Receiving Station Data'!$C$11)+'Receiving Station Data'!$C$12/60)+('Receiving Station Data'!$C$13/3600)) -> -4.006111111 | E125: 4407.581065 | F125: 1.914786451 | G125: 4332.436751 | H125: -0.9989813149 | I125: 3.663220545 | J125: 0.08577110513 | K125: 5.573242621 | L125: 4.60066416 | M125: -0.1407301691 | N125: 1.430118657 | O125: 1.430118657 | P125: 1.430118657 | Q125: 1.575083814 | R125: 81.93976328 | S125: -0.2456549336
A126: 2011-04-02 | B126: 05:22:12 | C126: =IF('Receiving Station Data'!$C$7<0,-(ABS('Receiving Station Data'!$C$7)+('Receiving Station Data'!$C$8/60)+('Receiving Station Data'!$C$9/3600)),(ABS('Receiving Station Data'!$C$7)+'Receiving Station Data'!$C$8/60)+('Receiving Station Data'!$C$9/3600)) -> 50.60944444 | D126: =IF('Receiving Station Data'!$C$11<0,-(ABS('Receiving Station Data'!$C$11)+('Receiving Station Data'!$C$12/60)+('Receiving Station Data'!$C$13/3600)),(ABS('Receiving Station Data'!$C$11)+'Receiving Station Data'!$C$12/60)+('Receiving Station Data'!$C$13/3600)) -> -4.006111111 | E126: 4407.581179 | F126: 1.914786533 | G126: 4332.436865 | H126: -0.9989899686 | I126: 3.663186257 | J126: 0.08577188192 | K126: 5.57602097 | L126: 4.60139153 | M126: -0.1401720083 | N126: 1.430680569 | O126: 1.430680569 | P126: 1.430680569 | Q126: 1.574626162 | R126: 81.97195844 | S126: -0.2194333839
A127: 2011-04-02 | B127: 05:22:22 | C127: =IF('Receiving Station Data'!$C$7<0,-(ABS('Receiving Station Data'!$C$7)+('Receiving Station Data'!$C$8/60)+('Receiving Station Data'!$C$9/3600)),(ABS('Receiving Station Data'!$C$7)+'Receiving Station Data'!$C$8/60)+('Receiving Station Data'!$C$9/3600)) -> 50.60944444 | D127: =IF('Receiving Station Data'!$C$11<0,-(ABS('Receiving Station Data'!$C$11)+('Receiving Station Data'!$C$12/60)+('Receiving Station Data'!$C$13/3600)),(ABS('Receiving Station Data'!$C$11)+'Receiving Station Data'!$C$12/60)+('Receiving Station Data'!$C$13/3600)) -> -4.006111111 | E127: 4407.581293 | F127: 1.914786614 | G127: 4332.436979 | H127: -0.9989986223 | I127: 3.663151968 | J127: 0.0857726587 | K127: 5.578799319 | L127: 4.6021189 | M127: -0.1396138023 | N127: 1.43124245 | O127: 1.43124245 | P127: 1.43124245 | Q127: 1.574168473 | R127: 82.00415186 | S127: -0.1932097606
A128: 2011-04-02 | B128: 05:22:32 | C128: =IF('Receiving Station Data'!$C$7<0,-(ABS('Receiving Station Data'!$C$7)+('Receiving Station Data'!$C$8/60)+('Receiving Station Data'!$C$9/3600)),(ABS('Receiving Station Data'!$C$7)+'Receiving Station Data'!$C$8/60)+('Receiving Station Data'!$C$9/3600)) -> 50.60944444 | D128: =IF('Receiving Station Data'!$C$11<0,-(ABS('Receiving Station Data'!$C$11)+('Receiving Station Data'!$C$12/60)+('Receiving Station Data'!$C$13/3600)),(ABS('Receiving Station Data'!$C$11)+'Receiving Station Data'!$C$12/60)+('Receiving Station Data'!$C$13/3600)) -> -4.006111111 | E128: 4407.581407 | F128: 1.914786696 | G128: 4332.437093 | H128: -0.999007276 | I128: 3.66311768 | J128: 0.08577343549 | K128: 5.581577668 | L128: 4.60284627 | M128: -0.1390555512 | N128: 1.431804301 | O128: 1.431804301 | P128: 1.431804301 | Q128: 1.573710749 | R128: 82.03634355 | S128: -0.1669840721
A129: 2011-04-02 | B129: 05:22:42 | C129: =IF('Receiving Station Data'!$C$7<0,-(ABS('Receiving Station Data'!$C$7)+('Receiving Station Data'!$C$8/60)+('Receiving Station Data'!$C$9/3600)),(ABS('Receiving Station Data'!$C$7)+'Receiving Station Data'!$C$8/60)+('Receiving Station Data'!$C$9/3600)) -> 50.60944444 | D129: =IF('Receiving Station Data'!$C$11<0,-(ABS('Receiving Station Data'!$C$11)+('Receiving Station Data'!$C$12/60)+('Receiving Station Data'!$C$13/3600)),(ABS('Receiving Station Data'!$C$11)+'Receiving Station Data'!$C$12/60)+('Receiving Station Data'!$C$13/3600)) -> -4.006111111 | E129: 4407.581521 | F129: 1.914786777 | G129: 4332.437208 | H129: -0.9990159296 | I129: 3.663083391 | J129: 0.08577421227 | K129: 5.584356018 | L129: 4.60357364 | M129: -0.1384972554 | N129: 1.432366122 | O129: 1.432366122 | P129: 1.432366122 | Q129: 1.573252988 | R129: 82.06853351 | S129: -0.1407563267
A130: 2011-04-02 | B130: 05:22:52 | C130: =IF('Receiving Station Data'!$C$7<0,-(ABS('Receiving Station Data'!$C$7)+('Receiving Station Data'!$C$8/60)+('Receiving Station Data'!$C$9/3600)),(ABS('Receiving Station Data'!$C$7)+'Receiving Station Data'!$C$8/60)+('Receiving Station Data'!$C$9/3600)) -> 50.60944444 | D130: =IF('Receiving Station Data'!$C$11<0,-(ABS('Receiving Station Data'!$C$11)+('Receiving Station Data'!$C$12/60)+('Receiving Station Data'!$C$13/3600)),(ABS('Receiving Station Data'!$C$11)+'Receiving Station Data'!$C$12/60)+('Receiving Station Data'!$C$13/3600)) -> -4.006111111 | E130: 4407.581635 | F130: 1.914786859 | G130: 4332.437322 | H130: -0.9990245832 | I130: 3.663049103 | J130: 0.08577498906 | K130: 5.587134367 | L130: 4.60430101 | M130: -0.1379389153 | N130: 1.432927913 | O130: 1.432927913 | P130: 1.432927913 | Q130: 1.572795192 | R130: 82.10072176 | S130: -0.114526533
A131: 2011-04-02 | B131: 05:23:02 | C131: =IF('Receiving Station Data'!$C$7<0,-(ABS('Receiving Station Data'!$C$7)+('Receiving Station Data'!$C$8/60)+('Receiving Station Data'!$C$9/3600)),(ABS('Receiving Station Data'!$C$7)+'Receiving Station Data'!$C$8/60)+('Receiving Station Data'!$C$9/3600)) -> 50.60944444 | D131: =IF('Receiving Station Data'!$C$11<0,-(ABS('Receiving Station Data'!$C$11)+('Receiving Station Data'!$C$12/60)+('Receiving Station Data'!$C$13/3600)),(ABS('Receiving Station Data'!$C$11)+'Receiving Station Data'!$C$12/60)+('Receiving Station Data'!$C$13/3600)) -> -4.006111111 | E131: =357.5291+0.98560028*((B131+A131)-36526) -> 4407.581749 | F131: =1.9148*SIN(E131*(PI()/180))+0.02*SIN(2*E131*(PI()/180)+0.0003*SIN(3*E131*(PI()/180))) -> 1.91478694 | G131: =280.47+F131+0.98560028*(A131+B131-36526) -> 4332.437436 | H131: =-2.468*SIN(2*G131*(PI()/180))+0.053*SIN(4*G131*(PI()/180))-0.0014*SIN(6*G131*(PI()/180)) -> -0.9990332369 | I131: =4*(F131+H131) -> 3.663014814 | J131: =ASIN(SIN(23.43929*(PI()/180))*SIN(G131*(PI()/180))) -> 0.08577576584 | K131: =B131*24-(D131/15)-(I131/60) -> 5.589912716 | L131: =K131*(PI()/12)+PI() -> 4.605028381 | M131: =(SIN(C131*(PI()/180))*COS(L131))-(COS(C131*(PI()/180))*TAN(J131)) -> -0.137380531 | N131: =ATAN(SIN(L131)/M131) -> 1.433489674 | O131: =IF(M131<0,N131,N131+PI()) -> 1.433489674 | P131: =IF(O131<0,O131+2*PI(),O131) -> 1.433489674 | Q131: =ACOS(SIN(C131*(PI()/180))*SIN(J131)+COS(C131*(PI()/180))*COS(J131)*COS(L131)) -> 1.57233736 | R131: =IF(B131<>0,P131*(180/PI()),"") -> 82.13290832 | S131: =IF(B131<>0,90-Q131*(180/PI()),"") -> -0.08829469908
A132: 2011-04-02 | B132: 05:23:12 | C132: =IF('Receiving Station Data'!$C$7<0,-(ABS('Receiving Station Data'!$C$7)+('Receiving Station Data'!$C$8/60)+('Receiving Station Data'!$C$9/3600)),(ABS('Receiving Station Data'!$C$7)+'Receiving Station Data'!$C$8/60)+('Receiving Station Data'!$C$9/3600)) -> 50.60944444 | D132: =IF('Receiving Station Data'!$C$11<0,-(ABS('Receiving Station Data'!$C$11)+('Receiving Station Data'!$C$12/60)+('Receiving Station Data'!$C$13/3600)),(ABS('Receiving Station Data'!$C$11)+'Receiving Station Data'!$C$12/60)+('Receiving Station Data'!$C$13/3600)) -> -4.006111111 | E132: 4407.581863 | F132: 1.914787022 | G132: 4332.43755 | H132: -0.9990418905 | I132: 3.662980526 | J132: 0.08577654263 | K132: 5.592691065 | L132: 4.605755751 | M132: -0.1368221029 | N132: 1.434051406 | O132: 1.434051406 | P132: 1.434051406 | Q132: 1.571879493 | R132: 82.16509319 | S132: -0.06206083349
A133: 2011-04-02 | B133: 05:23:22 | C133: =IF('Receiving Station Data'!$C$7<0,-(ABS('Receiving Station Data'!$C$7)+('Receiving Station Data'!$C$8/60)+('Receiving Station Data'!$C$9/3600)),(ABS('Receiving Station Data'!$C$7)+'Receiving Station Data'!$C$8/60)+('Receiving Station Data'!$C$9/3600)) -> 50.60944444 | D133: =IF('Receiving Station Data'!$C$11<0,-(ABS('Receiving Station Data'!$C$11)+('Receiving Station Data'!$C$12/60)+('Receiving Station Data'!$C$13/3600)),(ABS('Receiving Station Data'!$C$11)+'Receiving Station Data'!$C$12/60)+('Receiving Station Data'!$C$13/3600)) -> -4.006111111 | E133: 4407.581977 | F133: 1.914787103 | G133: 4332.437664 | H133: -0.999050544 | I133: 3.662946238 | J133: 0.08577731941 | K133: 5.595469415 | L133: 4.606483121 | M133: -0.1362636313 | N133: 1.434613109 | O133: 1.434613109 | P133: 1.434613109 | Q133: 1.57142159 | R133: 82.1972764 | S133: -0.03582494454
A134: 2011-04-02 | B134: 05:23:32 | C134: =IF('Receiving Station Data'!$C$7<0,-(ABS('Receiving Station Data'!$C$7)+('Receiving Station Data'!$C$8/60)+('Receiving Station Data'!$C$9/3600)),(ABS('Receiving Station Data'!$C$7)+'Receiving Station Data'!$C$8/60)+('Receiving Station Data'!$C$9/3600)) -> 50.60944444 | D134: =IF('Receiving Station Data'!$C$11<0,-(ABS('Receiving Station Data'!$C$11)+('Receiving Station Data'!$C$12/60)+('Receiving Station Data'!$C$13/3600)),(ABS('Receiving Station Data'!$C$11)+'Receiving Station Data'!$C$12/60)+('Receiving Station Data'!$C$13/3600)) -> -4.006111111 | E134: 4407.582091 | F134: 1.914787185 | G134: 4332.437778 | H134: -0.9990591976 | I134: 3.662911949 | J134: 0.08577809619 | K134: 5.598247764 | L134: 4.607210491 | M134: -0.1357051164 | N134: 1.435174783 | O134: 1.435174783 | P134: 1.435174783 | Q134: 1.570963652 | R134: 82.22945795 | S134: -0.009587040605
A135: 2011-04-02 | B135: 05:23:42 | C135: =IF('Receiving Station Data'!$C$7<0,-(ABS('Receiving Station Data'!$C$7)+('Receiving Station Data'!$C$8/60)+('Receiving Station Data'!$C$9/3600)),(ABS('Receiving Station Data'!$C$7)+'Receiving Station Data'!$C$8/60)+('Receiving Station Data'!$C$9/3600)) -> 50.60944444 | D135: =IF('Receiving Station Data'!$C$11<0,-(ABS('Receiving Station Data'!$C$11)+('Receiving Station Data'!$C$12/60)+('Receiving Station Data'!$C$13/3600)),(ABS('Receiving Station Data'!$C$11)+'Receiving Station Data'!$C$12/60)+('Receiving Station Data'!$C$13/3600)) -> -4.006111111 | E135: 4407.582205 | F135: 1.914787266 | G135: 4332.437893 | H135: -0.9990678512 | I135: 3.662877661 | J135: 0.08577887298 | K135: 5.601026113 | L135: 4.607937861 | M135: -0.1351465587 | N135: 1.435736429 | O135: 1.435736429 | P135: 1.435736429 | Q135: 1.570505679 | R135: 82.26163785 | S135: 0.01665286996
A136: 2011-04-02 | B136: 05:23:52 | C136: =IF('Receiving Station Data'!$C$7<0,-(ABS('Receiving Station Data'!$C$7)+('Receiving Station Data'!$C$8/60)+('Receiving Station Data'!$C$9/3600)),(ABS('Receiving Station Data'!$C$7)+'Receiving Station Data'!$C$8/60)+('Receiving Station Data'!$C$9/3600)) -> 50.60944444 | D136: =IF('Receiving Station Data'!$C$11<0,-(ABS('Receiving Station Data'!$C$11)+('Receiving Station Data'!$C$12/60)+('Receiving Station Data'!$C$13/3600)),(ABS('Receiving Station Data'!$C$11)+'Receiving Station Data'!$C$12/60)+('Receiving Station Data'!$C$13/3600)) -> -4.006111111 | E136: 4407.582319 | F136: 1.914787348 | G136: 4332.438007 | H136: -0.9990765047 | I136: 3.662843373 | J136: 0.08577964976 | K136: 5.603804462 | L136: 4.608665231 | M136: -0.1345879583 | N136: 1.436298046 | O136: 1.436298046 | P136: 1.436298046 | Q136: 1.570047672 | R136: 82.29381613 | S136: 0.04289477878
A137: 2011-04-02 | B137: 05:24:02 | C137: =IF('Receiving Station Data'!$C$7<0,-(ABS('Receiving Station Data'!$C$7)+('Receiving Station Data'!$C$8/60)+('Receiving Station Data'!$C$9/3600)),(ABS('Receiving Station Data'!$C$7)+'Receiving Station Data'!$C$8/60)+('Receiving Station Data'!$C$9/3600)) -> 50.60944444 | D137: =IF('Receiving Station Data'!$C$11<0,-(ABS('Receiving Station Data'!$C$11)+('Receiving Station Data'!$C$12/60)+('Receiving Station Data'!$C$13/3600)),(ABS('Receiving Station Data'!$C$11)+'Receiving Station Data'!$C$12/60)+('Receiving Station Data'!$C$13/3600)) -> -4.006111111 | E137: 4407.582433 | F137: 1.914787429 | G137: 4332.438121 | H137: -0.9990851582 | I137: 3.662809085 | J137: 0.08578042654 | K137: 5.606582812 | L137: 4.609392601 | M137: -0.1340293155 | N137: 1.436859634 | O137: 1.436859634 | P137: 1.436859634 | Q137: 1.569589629 | R137: 82.3259928 | S137: 0.06913867752
A138: 2011-04-02 | B138: 05:24:12 | C138: =IF('Receiving Station Data'!$C$7<0,-(ABS('Receiving Station Data'!$C$7)+('Receiving Station Data'!$C$8/60)+('Receiving Station Data'!$C$9/3600)),(ABS('Receiving Station Data'!$C$7)+'Receiving Station Data'!$C$8/60)+('Receiving Station Data'!$C$9/3600)) -> 50.60944444 | D138: =IF('Receiving Station Data'!$C$11<0,-(ABS('Receiving Station Data'!$C$11)+('Receiving Station Data'!$C$12/60)+('Receiving Station Data'!$C$13/3600)),(ABS('Receiving Station Data'!$C$11)+'Receiving Station Data'!$C$12/60)+('Receiving Station Data'!$C$13/3600)) -> -4.006111111 | E138: 4407.582547 | F138: 1.914787511 | G138: 4332.438235 | H138: -0.9990938118 | I138: 3.662774796 | J138: 0.08578120332 | K138: 5.609361161 | L138: 4.610119971 | M138: -0.1334706308 | N138: 1.437421195 | O138: 1.437421195 | P138: 1.437421195 | Q138: 1.569131552 | R138: 82.35816786 | S138: 0.0953845578
A139: 2011-04-02 | B139: 05:24:22 | C139: =IF('Receiving Station Data'!$C$7<0,-(ABS('Receiving Station Data'!$C$7)+('Receiving Station Data'!$C$8/60)+('Receiving Station Data'!$C$9/3600)),(ABS('Receiving Station Data'!$C$7)+'Receiving Station Data'!$C$8/60)+('Receiving Station Data'!$C$9/3600)) -> 50.60944444 | D139: =IF('Receiving Station Data'!$C$11<0,-(ABS('Receiving Station Data'!$C$11)+('Receiving Station Data'!$C$12/60)+('Receiving Station Data'!$C$13/3600)),(ABS('Receiving Station Data'!$C$11)+'Receiving Station Data'!$C$12/60)+('Receiving Station Data'!$C$13/3600)) -> -4.006111111 | E139: 4407.582662 | F139: 1.914787592 | G139: 4332.438349 | H139: -0.9991024653 | I139: 3.662740508 | J139: 0.08578198011 | K139: 5.61213951 | L139: 4.610847342 | M139: -0.1329119043 | N139: 1.437982728 | O139: 1.437982728 | P139: 1.437982728 | Q139: 1.568673441 | R139: 82.39034133 | S139: 0.1216324113
A140: 2011-04-02 | B140: 05:24:32 | C140: =IF('Receiving Station Data'!$C$7<0,-(ABS('Receiving Station Data'!$C$7)+('Receiving Station Data'!$C$8/60)+('Receiving Station Data'!$C$9/3600)),(ABS('Receiving Station Data'!$C$7)+'Receiving Station Data'!$C$8/60)+('Receiving Station Data'!$C$9/3600)) -> 50.60944444 | D140: =IF('Receiving Station Data'!$C$11<0,-(ABS('Receiving Station Data'!$C$11)+('Receiving Station Data'!$C$12/60)+('Receiving Station Data'!$C$13/3600)),(ABS('Receiving Station Data'!$C$11)+'Receiving Station Data'!$C$12/60)+('Receiving Station Data'!$C$13/3600)) -> -4.006111111 | E140: 4407.582776 | F140: 1.914787674 | G140: 4332.438463 | H140: -0.9991111187 | I140: 3.66270622 | J140: 0.08578275689 | K140: 5.614917859 | L140: 4.611574712 | M140: -0.1323531363 | N140: 1.438544234 | O140: 1.438544234 | P140: 1.438544234 | Q140: 1.568215295 | R140: 82.42251323 | S140: 0.1478822296
A141: 2011-04-02 | B141: 05:24:42 | C141: =IF('Receiving Station Data'!$C$7<0,-(ABS('Receiving Station Data'!$C$7)+('Receiving Station Data'!$C$8/60)+('Receiving Station Data'!$C$9/3600)),(ABS('Receiving Station Data'!$C$7)+'Receiving Station Data'!$C$8/60)+('Receiving Station Data'!$C$9/3600)) -> 50.60944444 | D141: =IF('Receiving Station Data'!$C$11<0,-(ABS('Receiving Station Data'!$C$11)+('Receiving Station Data'!$C$12/60)+('Receiving Station Data'!$C$13/3600)),(ABS('Receiving Station Data'!$C$11)+'Receiving Station Data'!$C$12/60)+('Receiving Station Data'!$C$13/3600)) -> -4.006111111 | E141: 4407.58289 | F141: 1.914787755 | G141: 4332.438577 | H141: -0.9991197722 | I141: 3.662671932 | J141: 0.08578353367 | K141: 5.617696209 | L141: 4.612302082 | M141: -0.1317943272 | N141: 1.439105712 | O141: 1.439105712 | P141: 1.439105712 | Q141: 1.567757115 | R141: 82.45468356 | S141: 0.1741340044
A142: 2011-04-02 | B142: 05:24:52 | C142: =IF('Receiving Station Data'!$C$7<0,-(ABS('Receiving Station Data'!$C$7)+('Receiving Station Data'!$C$8/60)+('Receiving Station Data'!$C$9/3600)),(ABS('Receiving Station Data'!$C$7)+'Receiving Station Data'!$C$8/60)+('Receiving Station Data'!$C$9/3600)) -> 50.60944444 | D142: =IF('Receiving Station Data'!$C$11<0,-(ABS('Receiving Station Data'!$C$11)+('Receiving Station Data'!$C$12/60)+('Receiving Station Data'!$C$13/3600)),(ABS('Receiving Station Data'!$C$11)+'Receiving Station Data'!$C$12/60)+('Receiving Station Data'!$C$13/3600)) -> -4.006111111 | E142: 4407.583004 | F142: 1.914787837 | G142: 4332.438692 | H142: -0.9991284257 | I142: 3.662637644 | J142: 0.08578431045 | K142: 5.620474558 | L142: 4.613029452 | M142: -0.1312354772 | N142: 1.439667163 | O142: 1.439667163 | P142: 1.439667163 | Q142: 1.567298901 | R142: 82.48685235 | S142: 0.2003877273
A143: 2011-04-02 | B143: 05:25:02 | C143: =IF('Receiving Station Data'!$C$7<0,-(ABS('Receiving Station Data'!$C$7)+('Receiving Station Data'!$C$8/60)+('Receiving Station Data'!$C$9/3600)),(ABS('Receiving Station Data'!$C$7)+'Receiving Station Data'!$C$8/60)+('Receiving Station Data'!$C$9/3600)) -> 50.60944444 | D143: =IF('Receiving Station Data'!$C$11<0,-(ABS('Receiving Station Data'!$C$11)+('Receiving Station Data'!$C$12/60)+('Receiving Station Data'!$C$13/3600)),(ABS('Receiving Station Data'!$C$11)+'Receiving Station Data'!$C$12/60)+('Receiving Station Data'!$C$13/3600)) -> -4.006111111 | E143: 4407.583118 | F143: 1.914787918 | G143: 4332.438806 | H143: -0.9991370791 | I143: 3.662603356 | J143: 0.08578508723 | K143: 5.623252907 | L143: 4.613756822 | M143: -0.1306765867 | N143: 1.440228588 | O143: 1.440228588 | P143: 1.440228588 | Q143: 1.566840653 | R143: 82.5190196 | S143: 0.22664339
A144: 2011-04-02 | B144: 05:25:12 | C144: =IF('Receiving Station Data'!$C$7<0,-(ABS('Receiving Station Data'!$C$7)+('Receiving Station Data'!$C$8/60)+('Receiving Station Data'!$C$9/3600)),(ABS('Receiving Station Data'!$C$7)+'Receiving Station Data'!$C$8/60)+('Receiving Station Data'!$C$9/3600)) -> 50.60944444 | D144: =IF('Receiving Station Data'!$C$11<0,-(ABS('Receiving Station Data'!$C$11)+('Receiving Station Data'!$C$12/60)+('Receiving Station Data'!$C$13/3600)),(ABS('Receiving Station Data'!$C$11)+'Receiving Station Data'!$C$12/60)+('Receiving Station Data'!$C$13/3600)) -> -4.006111111 | E144: 4407.583232 | F144: 1.914787999 | G144: 4332.43892 | H144: -0.9991457325 | I144: 3.662569068 | J144: 0.08578586401 | K144: 5.626031256 | L144: 4.614484192 | M144: -0.1301176559 | N144: 1.440789985 | O144: 1.440789985 | P144: 1.440789985 | Q144: 1.566382372 | R144: 82.55118533 | S144: 0.2529009841
A145: 2011-04-02 | B145: 05:25:22 | C145: =IF('Receiving Station Data'!$C$7<0,-(ABS('Receiving Station Data'!$C$7)+('Receiving Station Data'!$C$8/60)+('Receiving Station Data'!$C$9/3600)),(ABS('Receiving Station Data'!$C$7)+'Receiving Station Data'!$C$8/60)+('Receiving Station Data'!$C$9/3600)) -> 50.60944444 | D145: =IF('Receiving Station Data'!$C$11<0,-(ABS('Receiving Station Data'!$C$11)+('Receiving Station Data'!$C$12/60)+('Receiving Station Data'!$C$13/3600)),(ABS('Receiving Station Data'!$C$11)+'Receiving Station Data'!$C$12/60)+('Receiving Station Data'!$C$13/3600)) -> -4.006111111 | E145: 4407.583346 | F145: 1.914788081 | G145: 4332.439034 | H145: -0.999154386 | I145: 3.662534779 | J145: 0.08578664079 | K145: 5.628809606 | L145: 4.615211562 | M145: -0.1295586851 | N145: 1.441351357 | O145: 1.441351357 | P145: 1.441351357 | Q145: 1.565924057 | R145: 82.58334955 | S145: 0.2791605013
A146: 2011-04-02 | B146: 05:25:32 | C146: =IF('Receiving Station Data'!$C$7<0,-(ABS('Receiving Station Data'!$C$7)+('Receiving Station Data'!$C$8/60)+('Receiving Station Data'!$C$9/3600)),(ABS('Receiving Station Data'!$C$7)+'Receiving Station Data'!$C$8/60)+('Receiving Station Data'!$C$9/3600)) -> 50.60944444 | D146: =IF('Receiving Station Data'!$C$11<0,-(ABS('Receiving Station Data'!$C$11)+('Receiving Station Data'!$C$12/60)+('Receiving Station Data'!$C$13/3600)),(ABS('Receiving Station Data'!$C$11)+'Receiving Station Data'!$C$12/60)+('Receiving Station Data'!$C$13/3600)) -> -4.006111111 | E146: 4407.58346 | F146: 1.914788162 | G146: 4332.439148 | H146: -0.9991630393 | I146: 3.662500491 | J146: 0.08578741757 | K146: 5.631587955 | L146: 4.615938932 | M146: -0.1289996747 | N146: 1.441912702 | O146: 1.441912702 | P146: 1.441912702 | Q146: 1.565465708 | R146: 82.61551228 | S146: 0.3054219332
A147: 2011-04-02 | B147: 05:25:42 | C147: =IF('Receiving Station Data'!$C$7<0,-(ABS('Receiving Station Data'!$C$7)+('Receiving Station Data'!$C$8/60)+('Receiving Station Data'!$C$9/3600)),(ABS('Receiving Station Data'!$C$7)+'Receiving Station Data'!$C$8/60)+('Receiving Station Data'!$C$9/3600)) -> 50.60944444 | D147: =IF('Receiving Station Data'!$C$11<0,-(ABS('Receiving Station Data'!$C$11)+('Receiving Station Data'!$C$12/60)+('Receiving Station Data'!$C$13/3600)),(ABS('Receiving Station Data'!$C$11)+'Receiving Station Data'!$C$12/60)+('Receiving Station Data'!$C$13/3600)) -> -4.006111111 | E147: 4407.583574 | F147: 1.914788244 | G147: 4332.439262 | H147: -0.9991716927 | I147: 3.662466204 | J147: 0.08578819435 | K147: 5.634366304 | L147: 4.616666303 | M147: -0.1284406249 | N147: 1.442474022 | O147: 1.442474022 | P147: 1.442474022 | Q147: 1.565007327 | R147: 82.64767352 | S147: 0.3316852716
